{"text_format":"1","workbook":"xlsx","n_sheets":11,"sheets":["SAN","c1","c14","c15","Macros","CopacSortatAlfabetic","TotalNumeDefinedNames","NumeUnice2012","Copac2012","Copac2012Backup","Erori2012"],"not_rendered":{"charts":0,"images":1,"macros":1,"external_links":0,"defined_names":504,"comments":0,"pivot_tables":0},"unopened":[],"bounds":{"document_bytes":16777216,"sheet_cells":100000,"rows_first":2000,"rows_last":500,"rows_between":2000,"halvings":0,"cell_chars":16384,"cell_head_chars":4096},"cells_cut":0,"cells_raw":0,"read":"whole","date_system":"1900"}

{"sheet":"SAN","index":0,"n_rows":563,"n_cols":22,"rows_kept":563,"cut":false,"hidden":false,"merged":[[526,0,526,12],[527,0,529,0],[527,1,529,1],[527,2,529,2],[527,3,527,13],[528,3,529,3],[528,4,529,4],[528,5,529,5],[528,6,529,6],[528,7,529,7],[528,8,529,8],[528,9,529,9],[528,10,529,10],[528,11,529,11],[528,12,528,13],[507,0,507,10],[508,0,511,0],[508,1,511,1],[508,2,511,2],[508,3,508,11],[509,3,509,8],[509,9,509,10],[509,11,511,11],[510,3,511,3],[510,4,511,4],[510,5,511,5],[510,6,511,6],[510,7,511,7],[510,8,511,8],[510,9,511,9],[510,10,511,10],[112,6,114,6],[113,3,114,3],[113,4,114,4],[113,5,114,5],[450,0,450,11],[451,0,454,0],[451,1,454,1],[451,2,454,2],[451,3,451,10],[451,11,451,12],[452,3,454,3],[452,4,454,4],[452,5,454,5],[452,6,452,8],[452,9,454,9],[452,10,454,10],[452,11,454,11],[452,12,454,12],[453,6,454,6],[453,7,453,8],[446,2,446,3],[446,4,446,5],[446,0,447,0],[446,1,447,1],[105,0,107,0],[105,1,107,1],[105,2,107,2],[105,3,105,5],[106,3,107,3],[106,4,107,4],[106,5,107,5],[112,0,114,0],[112,1,114,1],[112,2,114,2],[112,3,112,5],[98,0,100,0],[98,1,100,1],[98,2,100,2],[98,3,98,5],[98,6,100,6],[98,7,98,8],[98,9,100,9],[98,10,98,11],[99,3,100,3],[99,4,100,4],[99,5,100,5],[99,7,100,7],[99,8,100,8],[99,10,100,10],[99,11,100,11],[469,0,469,11],[470,0,473,0],[470,1,473,1],[470,2,473,2],[470,3,470,10],[323,12,324,13],[323,14,324,15],[324,8,325,8],[324,9,325,9],[324,10,324,11],[470,11,470,12],[471,3,473,3],[471,4,473,4],[471,5,473,5],[471,6,471,8],[471,9,473,9],[471,10,473,10],[471,11,473,11],[471,12,473,12],[472,6,473,6],[472,7,472,8],[385,16,391,16],[386,0,389,0],[386,1,389,1],[386,2,389,2],[386,3,389,3],[386,4,387,7],[388,4,388,5],[388,6,388,7],[259,4,259,5],[259,6,259,7],[259,8,259,9],[259,10,259,11],[321,0,325,0],[321,1,325,1],[321,2,321,11],[322,2,325,2],[322,3,325,3],[322,4,322,9],[323,4,325,4],[323,5,325,5],[323,6,324,7],[323,8,323,11],[249,1,249,3],[250,1,250,3],[251,2,251,3],[252,1,254,1],[252,2,252,3],[253,2,253,3],[255,1,255,3],[256,1,256,3],[259,0,260,0],[259,1,260,1],[259,2,259,3],[232,10,232,11],[232,12,232,13],[232,14,232,15],[232,16,232,17],[235,1,235,3],[236,2,236,3],[245,2,245,3],[248,1,248,3],[242,1,242,3],[234,1,234,3],[238,2,238,3],[240,1,240,3],[241,2,241,3],[243,2,243,3],[244,1,244,3],[246,1,246,3],[247,2,247,3],[237,2,237,3],[236,1,239,1],[160,7,161,9],[160,10,161,10],[160,11,160,12],[160,13,161,13],[186,0,187,0],[186,1,187,1],[186,2,186,3],[186,4,187,4],[186,5,186,9],[168,7,168,9],[175,7,175,9],[176,7,176,9],[177,7,177,9],[178,7,178,9],[173,7,173,9],[182,7,182,9],[183,7,183,9],[160,0,161,0],[160,1,161,1],[160,2,161,2],[160,3,160,4],[160,5,161,5],[160,6,161,6],[83,0,85,0],[83,1,85,1],[83,2,85,2],[83,3,83,5],[83,6,85,6],[83,7,83,8],[84,3,85,3],[84,4,85,4],[84,5,85,5],[232,0,233,0],[232,1,233,3],[232,4,233,4],[232,5,233,5],[232,6,232,7],[232,8,232,9],[169,7,169,9],[170,7,170,9],[171,7,171,9],[172,7,172,9],[174,7,174,9],[179,7,179,9],[180,7,180,9],[181,7,181,9]]}
[" ","Denumirea unitatii",null,null,null,null,"Statistician"]
[null,"Ministerul",null,null,null,null,"Telefon"]
[null,"Judetul",null,null,null,null,"E- mail"]
[null,"Localitatea"]
[null,"Strada"]
[null,"Nr."]
[null,"Tip spital"]
[null,"Forma juridica"]
[null,"Forma de proprietate"]
[null,"Conducatorul unitatii"]
[null,"Telefon"]
[null,"Cod unitate:"]
[]
["Activitatea unităţilor sanitare în anul 2020"]
[]
["Cap.1  Numărul unităţilor sanitare și al unităților din sfera asistenței sociale în care se furnizeaza și îngrijiri medicale - la sfârşitul anului"]
["Nr. rând","Tipuri de unităţi sanitare","Total"]
["A","B","1"]
["1.    ","Spitale (inclusiv institute cu paturi de spital)",0]
["2.    ","Centre de sănătate cu paturi de spital",0]
["3.    ","Centre de sanatate ",0]
["4.    ","Centre de sanatate multifunctionale",0]
["5.    ","Centre de sanatate mintala",0]
["6.    ","Centre de diagnostic si tratament cu paturi de spital 3)",0]
["7.    ","Centre medicale de specialitate cu paturi de spital 2)",0]
["8.    ","Unitati medico-sociale",0]
["9.    ","Sanatorii TBC",0]
["10.    ","Preventorii",0]
["11.   ","Sanatorii de nevroze sau de neuropsihiatrie",0]
["12.   ","Sanatorii balneare ",0]
["13.   ","Dispensare medicale",0]
["14.   ","Cabinete medicale scolare",0]
["15.   ","Cabinete medicale studentesti",0]
["16.   ","Cabinete independente de medicina generala",0]
["17.   ","Cabinete independente de medicina de familie 1)",0]
["18.   ","Societati medicale civile 1)",0]
["19.   ","Farmacii",0]
["20.   ","Puncte de lucru ale farmaciilor",0]
["21.   ","Drogherii",0]
["22.   ","Depozite farmaceutice",0]
["23.   ","Policlinici",0]
["24.   ","Centre de dializa",0]
["25.   ","Puncte de lucru ale centrelor de dializa",0]
["26.   ","Centre de diagnostic si tratament 3)",0]
["27.   ","Centre medicale de specialitate 2)",0]
["28.   ","Ambulatorii de specialitate 2)",0]
["29.   ","Ambulatorii integrate spitalelor 4)",0]
["30.   ","Cabinete stomatologice scolare",0]
["31.   ","Cabinete stomatologice studentesti",0]
["32.   ","Cabinete stomatologice independente 1)",0]
["33.   ","Societati stomatologice civile medicale 1)",0]
["34.   ","Cabinete medicale independente de specialitate 1)",0]
["35.   ","Societati civile medicale de specialitate 1)",0]
["36.   ","Centre de transfuzie sanguina",0]
["37.   ","Laboratoare medicale",0]
["38.   ","Laboratoare de tehnica dentara",0]
["39.   ","Unitati de ambulanta,transportul pacientilor si SMURD",0]
["40.   ","Alte tipuri de cabinete medicale",0]
["41.   ","Unitati rezidentiale pentru persoanele cu dizabilitati",0]
["42.   ","Centre de zi pentru persoanele cu dizabilitati",0]
["43.   ","Unitati rezidentiale pentru persoanele varstnice care ofera ingriji medicale in cadrul unitatii",0]
["44.   ","Alte unități de asistență socială care furnizează îngrijiri medicale",0]
["45.   ","Institute şi instituţii fără paturi",0]
["Cap.2  Numărul cabinetelor medicale care funcţionează în unele tipuri de unităţi sanitare"]
["Nr. rând","Tipuri de unităţi sanitare","Cabinete de medicină generală","Cabinete medicale de familie","Cabinete Stomato-logice","Cabinete medicale de specia-litate","Sali de operatii"]
["A","B",1,2,3,4,5]
["1.","Spitale (inclusiv institute cu paturi de spital)",0,0,0,0,0]
["2.","Centre de sănătate cu paturi de spital",0,0,0,0,0]
["3.","Centre de sănătate",0,0,0,0,0]
["4.","Centre de sănătate multifuncționale",0,0,0,0,0]
["5.","Centre de sănătate mintală",0,0,0,0,0]
["6.","Centre de diagnostic şi tratament cu paturi de spital",0,0,0,0,0]
["7.","Centre medicale de specialitate cu paturi de spital",0,0,0,0,0]
["8.","Societăţi medicale civile",0,0,0,0,0]
["9.","Policlinici",0,0,0,0,0]
["10.","Centre de dializă și puncte ale centrelor de dializă",0,0,0,0,0]
["11.","Centre de diagnostic şi tratament",0,0,0,0,0]
["12.","Centre medicale de specialitate",0,0,0,0,0]
["13.","Ambulatorii de specialitate",0,0,0,0,0]
["14.","Ambulatorii integrate spitalului",0,0,0,0,0]
["15.","Societăţi stomatologice civile medicale",0,0,0,0,0]
["16.","Societăţi civile medicale de specialitate",0,0,0,0,0]
["Cap.3  Numărul paturilor si al pacienţilor internati în unităţile sanitare"]
["Nr. rând","Tipuri de unităţi sanitare","Paturi pentru spitalizare continuă","Internaţi",null,null,"Paturi pt. cazuri de zi","Numărul cazurilor de zi"]
[null,null,null,"Total","d.c: femei","Om-zile  spitalizare",null,"Total","d.c: femei"]
[]
["A","B",1,2,3,4,5,6,7]
["1.    ","Spitale (inclusiv institute, cu paturi de spital)",0,0,0,0,0,0,0]
["2.    ","Centre de sanatate ",0,0,0,0,0,0,0]
["3.    ","Centre de sanatate multifunctionale",0,0,0,0,0,0,0]
["4.    ","Centre de diagnostic şi tratament cu paturi de spital",0,0,0,0,0,0,0]
["5.    ","Centre medicale de specialitate cu paturi de spital ",0,0,0,0,0,0,0]
["6.    ","Unităţi medico-sociale",0,0,0,0]
["7.","Sanatorii TBC",0,0,0,0]
["8.","Preventorii",0,0,0,0]
["9.","Sanatorii de nevroze sau de neuropsihiatrie",0,0,0,0]
["10.","Sanatorii balneare ",0,0,0,0]
["Cap.3b  Numărul paturilor aferente posturilor de dializă și al pacienților tratați în centrele de dializă și în punctele de lucru ale centrelor de dializă"]
["Nr. rând","Tipuri de unităţi sanitare","Paturi aferente posturilor de dializă pentru spitalizare continuă","Pacienți dializați internați în regim continuu",null,null,"Paturi aferente posturilor de dializă pentru cazuri de zi","Numărul cazurilor de zi",null,"Paturi aferente posturilor de dializă pentru servicii ambulatorii","Numărul cazurilor de zi"]
[null,null,null,"Total","d.c: femei","Om-zile  spitalizare",null,"Total","d.c: femei",null,"Total","d.c: femei"]
[]
["A","B",1,2,3,4,5,6,7,8,9,10]
["1.    ","Centre de dializă",0,0,0,0,0,0,0,0,0,0]
["2.    ","Puncte de lucru ale centrelor de dializă",0,0,0,0,0,0,0,0,0,0]
["Cap.3c  Numărul paturilor și al pacienților din unitățile rezidențiale pentru persoanele cu dizabilitățisau pentru persoanele vârstnice în care se furnizează îngrijire medicală împreună cu îngrijire socială"]
["Nr. rând","Tipuri de unităţi sanitare","Paturi pentru persoane rezidente în unitate","Persoane rezidente"]
[null,null,null,"Total","d.c: femei","Om-zile  internare în unitatea rezidențială"]
[]
["A","B",1,2,3,4]
["1.    ","Unități rezidențiale pentru persoanele cu dizabilități",0,0,0,0]
["2.    ","Unitati rezidentiale pentru persoanele varstnice care ofera ingriji medicale in cadrul unitatii",0,0,0,0]
["Cap.4  Numărul paturilor în unități sanitare (exclusiv paturile din unitățile pt. persoanele cu dizabilități și pt. Persoanele vârsnice), pe specialităţi "]
["Nr. rând","Specialităţi medicale","Total paturi pentru spitalizare continuă","Din total, paturi pentru spitalizare continuă",null,null,"Paturi pentru cazuri de zi"]
[null,null,null,"Paturi pentru copii","Paturi  pentru pacienți cu COVID-19","Paturi pentru bolnavi cronici"]
[]
["A","B","1",2,3,4,5]
["1.    ","TOTAL, din care:",{"$f":"SUM(C118:C159)-C119-C122-C129-C135-C138-C140-C141-C143-C144-C150","v":0},{"$f":"SUM(D118:D159)-D119-D122-D129-D135-D138-D140-D141-D143-D144-D150","v":0},0,0,0,{"$f":"IF((C88+C89+C94+C95+C96+C97)=(C117),\"ok! \",\"eroare!\")","v":"ok! "},{"$f":"IF((G88+G89+G90+G91+G92)=(G117),\"ok! \",\"eroare!\")","v":"ok! "}]
["2.    ","Interne, din care:",0,0,0,0,0,{"$f":"IF(D118>0,\"ERR\",\"OK!\")","v":"OK!"}]
["3.    ","     - pneumologie netuberculoasă",0,0,0,0,0]
["4.    ","Nefrologie",0,0,0,0,0]
["5.    ","Boli infecţioase, din care:",0,0,0,0,0,null,null,null,null," "]
["6.    ","     - HIV/SIDA",0,0,0,0,0]
["7.    ","Boli profesionale",0,0,0,0,0,{"$f":"IF(D123>0,\"ERR\",\"OK!\")","v":"OK!"}]
["8.    ","Cardiologie",0,0,0,0,0]
["9.   ","Cronici",0,0,0,0,0,{"$f":"IF(C125=F125,\"OK\",\"ERR\")","v":"OK"}]
["10.   ","Dermato-venerologie",0,0,0,0,0]
["11.   ","Diabet zaharat, nutriţie şi boli metabolice",0,0,0,0,0]
["12.   ","Endocrinologie, din care:",0,0,0,0,0]
["13.   ","      - chirurgie endocrină",0,0,0,0,0]
["14.   ","Gastroenterologie",0,0,0,0,0]
["15.   ","Geriatrie şi gerontologie",0,0,0,0,0,{"$f":"IF(C131=F131,\"OK\",\"ERR\")","v":"OK"}]
["16.   ","Hematologie",0,0,0,0,0]
["17.   ","Medicină generală",0,0,0,0,0]
["18.   ","Neonatologie, din care:",0,0,0,0,0,{"$f":"IF(C134=D134,\"OK!\",\"ERR!\")","v":"OK!"}]
["19.   ","     - prematuri",0,0,0,0,0,{"$f":"IF(C135=F135,\"OK\",\"ERR\")","v":"OK"}]
["20.   ","Neurologie",0,0,0,0,0]
["21.   ","Oncologie, din care:",0,0,0,0,0]
["22.   ","    -chirurgie oncologica",0,0,0,0,0]
["23.   ","Pediatrie, din care:",0,0,0,0,0,{"$f":"IF(C139=D139,\"OK!\",\"ERR!\")","v":"OK!"}]
["24.   ","    - recuperare pediatrică",0,0,0,0,0,{"$f":"IF(C140=D140,\"OK\",\"ERR\")","v":"OK"},{"$f":"IF(C140=F140,\"OK\",\"ERR\")","v":"OK"}]
["25.   ","    - pneumologie netuberculoasă",0,0,0,0,0]
["26.   ","Pneumologie, din care:",0,0,0,0,0]
["27.   ","     - pneumologie -TBC",0,0,0,0,0,{"$f":"IF(C143=F143,\"OK\",\"ERR\")","v":"OK"}]
["28.   ","     - chirurgie toracică",0,0,0,0,0]
["29.   ","Psihiatrie",0,0,0,0,0]
["30.   ","Recuperare medicală fizică şi balneologie",0,0,0,0,0]
["31.   ","Recuperare neuro-psiho-motorie",0,0,0,0,0]
["32.   ","Reumatologie",0,0,0,0,0]
["33.   ","Chirurgie, din care:",0,0,0,0,0]
["34.   "," - chirurgie orală și maxilo-facială",0,0,0,0,0]
["35.   ","Neurochirurgie",0,0,0,0,0]
["36.   ","Obstetrică-ginecologie",0,0,0,0,0]
["37.   ","Oftalmologie",0,0,0,0,0]
["38.   ","ORL",0,0,0,0,0]
["39.   ","Ortopedie-traumatologie",0,0,0,0,0]
["40.   ","Urologie",0,0,0,0,0]
["41.   ","ATI (anestezie, terapie intensivă), din care:",0,0,0,0,0]
["42."," - destinate pacienților cu COVID-19",0,0,0,0,0]
[43,"Alte secţii",0,0,0,0,0]
["Cap.5  Numărul consultaţiilor de tip ambulator acordate pacienţilor, în unităţile sanitare"]
["Nr. Crt.","Tipuri de unităţi sanitare","Total consultaţii"," după domiciliul pacientului",null,"din col.1: consultatii platite de angajatori pt. personalul propriu","Nr.                            Crt.","Tipuri de unităţi sanitare",null,null,"Total consultaţii"," după domiciliul pacientului",null,"din col.1: consultatii platite de angajatori pt. personalul propriu"]
[null,null,null,"Urban","Rural",null,null,null,null,null,null,"Urban","Rural"]
["A","B","1","2","3",4,"A","B",null,null,"1","2","3",4]
[1,"TOTAL, din care:",{"$f":"SUM(D164:E164)","v":0},{"$f":"+D165+D168+D170+SUM(D172:D174)+D176+SUM(D178:D185)+SUM(L164:L166)+L168+L170+L172+SUM(L174:L185)","v":0},{"$f":"+E165+E168+E170+SUM(E172:E174)+E176+SUM(E178:E185)+SUM(M164:M166)+M168+M170+M172+SUM(M174:M185)","v":0},0,23,"Centre de dializa",null,null,{"$f":"SUM(L164:M164)","v":0},0,0,0]
[2,"Spitale (inclusiv institute cu paturi), din care:",{"$f":"+D165+E165","v":0},0,0,0,24,"Puncte ale centrelor de dializa",null,null,{"$f":"+L165+M165","v":0},0,0,0]
[3,"      - în camera de gardă şi UPU",{"$f":"+D166+E166","v":0},0,0,0,25,"Centre de diagnostic si tratament,din care:",null,null,{"$f":"SUM(L166:M166)","v":0},0,0,0]
[4,"      - în cabinete stomatologice",{"$f":"+D167+E167","v":0},0,0,0,26,"      - în cabinete stomatologice",null,null,{"$f":"SUM(L167:M167)","v":0},0,0,0]
[5,"Centre de sănătate cu paturi de spital, din care:",{"$f":"SUM(D168:E168)","v":0},0,0,0,27,"Centre medicale de specialitate, din care:",null,null,{"$f":"SUM(L168:M168)","v":0},0,0,0]
[6,"      - în cabinete stomatologice",0,0,0,0,28,"      - în cabinete stomatologice",null,null,0,0,0,0]
[7,"Centre de sanatate, din care:",0,0,0,0,29,"Ambulatorii de specialitate, din care:",null,null,0,0,0,0]
[8,"      - în cabinete stomatologice",0,0,0,0,30,"      - în cabinete stomatologice",null,null,0,0,0,0]
[9,"Centre de sanatate multifunctionale",0,0,0,0,31,"Ambulatorii integrate spitalelor, din care:",null,null,0,0,0,0]
[10,"Centre de sanatate mintala",0,0,0,0,32,"      - în cabinete stomatologice",null,null,0,0,0,0]
[11,"Centre de diagnostic si tratament cu paturi de spital, din care:",0,0,0,0,33,"Cabinete stomatologice scolare",null,null,0,0,0,0]
[12,"      - în cabinete stomatologice",{"$f":"SUM(D175:E175)","v":0},0,0,0,34,"Cabinete stomatologice studentesti",null,null,0,0,0,0]
[13,"Centre medicale de specialitate cu paturi de spital, din care:",0,0,0,0,35,"Cabinete stomatologice independente",null,null,{"$f":"SUM(L176:M176)","v":0},{"$f":"+'c1'!F15+'c1'!F16","v":0},{"$f":"+'c1'!F18+'c1'!F19","v":0},0]
[14,"      - în cabinete stomatologice",0,0,0,0,36,"Societăţi stomatologice civile medicale",null,null,{"$f":"SUM(L177:M177)","v":0},{"$f":"+'c1'!F30+'c1'!F31","v":0},{"$f":"+'c1'!F33+'c1'!F34","v":0},0]
[15,"Sanatorii balneare",0,0,0,0,37,"Cabinete medicale independente de specialitate",null,null,{"$f":"SUM(L178:M178)","v":0},{"$f":"+'c1'!G15+'c1'!G16","v":0},{"$f":"+'c1'!G18+'c1'!G19","v":0},0]
[16,"Dispensare medicale",0,0,0,0,38,"Societăţi civile medicale de specialitate",null,null,{"$f":"SUM(L179:M179)","v":0},{"$f":"+'c1'!G30+'c1'!G31","v":0},{"$f":"+'c1'!G33+'c1'!G34","v":0},0]
[17,"Cabinete medicale scolare",0,0,0,0,39,"Centre de transfuzie sanguina",null,null,{"$f":"SUM(L180:M180)","v":0},0,0,0]
[18,"Cabinete medicale studentesti",0,0,0,0,40,"Alte tipuri de cabinete medicale",null,null,0,0,0,0]
[19,"Cabinete independente de medicina generala",0,0,0,0,41,"Unitati rezidentiale pentru persoanele cu dizabilitati",null,null,0,0,0,0]
[20,"Cabinete independente de medicina de familie",0,{"$f":"+'c1'!E15+'c1'!E16","v":0},{"$f":"+'c1'!E18+'c1'!E19","v":0},0,42,"Unitati rezidentiale pentru persoanele varstnice care ofera ingrihiri medicale in cadrul unitatii",null,null,0,0,0,0]
[21,"Societăţi medicale civile ",0,{"$f":"+'c1'!E30+'c1'!E31","v":0},{"$f":"+'c1'!E33+'c1'!E34","v":0},0,43,"Alte unități de asistență socială care furnizează îngrijiri medicale",null,null,{"$f":"+SUM(L184:N185)","v":0},0,0,0]
[22,"Policlinici, din care:",0,0,0,0,44,"Institute și instituții fără paturi *",null,null,{"$f":"+SUM(L185:N185)","v":0},0,0,0]
["Cap.10  Dotarea unităţilor sanitare cu echipamente medicale cu tehnologie avansată",null,null,null,null,null,null,null,null," "]
["Nr. Crt.","Tipuri de unităţi sanitare","Aparate (scannere)  pt:",null,"Aparate          Gamma","                                                                      Aparate pt:"]
[null,null,"tomografie computerizată       (aparate TC)","tomografie cu emisie de pozitroni (aparate PET)",null,"rezonanţă magnetică (aparate RMN)","angiografie digitală      (aparate DSA)","mărunţirea calculilor renali –litotriptor   (aparate LSI)","terapie cu radiaţii          (aparate RAD)"," mamografii"]
["A","B","1","2","3","4","5","6","7",8]
["1.    ","ECHIPAMENTE -Total, din.care:",{"$f":"SUM(C191:C210)","v":0},{"$f":"SUM(D191:D210)","v":0},0,0,0,0,0,0]
["2.    ","Spitale (inclusiv institute cu paturi de spital)",0,0,0,0,0,0,0,0]
["3.    ","Centre de sanatate cu paturi de spital",0,0,0,0,0,0,0,0]
["4.    ","Centre de sanatate",0,0,0,0,0,0,0,0]
["5.    ","Centre de diagnostic şi tratament cu paturi de spital",0,0,0,0,0,0,0,0]
["6.    ","Centre medicale de specialitate cu paturi de spital ",0,0,0,0,0,0,0,0]
["7.    ","Dispensare medicale",0,0,0,0,0,0,0,0]
["8.    ","Cabinete independente de medicina de familie",0,0,0,0,0,0,0,0]
["9.    ","Societati medicale civile",0,0,0,0,0,0,0,0]
["10.    ","Policlinici",0,0,0,0,0,0,0,0]
["11.    ","Centre de dializa si puncte ale centrelor de dializa",0,0,0,0,0,0,0,0]
["12.    ","Centre de diagnostic si tratament",0,0,0,0,0,0,0,0]
["13.    ","Centre medicale de specialitate",0,0,0,0,0,0,0,0]
["14.    ","Ambulatorii de specialitate",0,0,0,0,0,0,0,0]
["15.    ","Ambulatorii integrate spitalelor",0,0,0,0,0,0,0,0]
["16.    ","Cabinete stomatologice independente ",0,0,0,0,0,0,0,0]
["17.    ","Societati stomatologice civile medicale",0,0,0,0,0,0,0,0]
["18.    ","Cabinete medicale independente de specialitate",0,0,0,0,0,0,0,0]
["19.    ","Societati civile medicale de specialitate",0,0,0,0,0,0,0,0]
["20.    ","Alte tipuri de cabinete medicale 1)",0,0,0,0,0,0,0,0]
["21.    ","Laboratoare medicale",0,0,0,0,0,0,0,0]
["22.    ","EXAMINARI -Total, din.care:",{"$f":"SUM(C212:C231)","v":0},{"$f":"SUM(D212:D231)","v":0},0,0,0,0,0,0]
["23.    ","Spitale (inclusiv institute cu paturi de spital)",0,0,0,0,0,0,0,0]
["24.    ","Centre de sanatate cu paturi de spital",0,0,0,0,0,0,0,0]
["25.    ","Centre de sanatate",0,0,0,0,0,0,0,0]
["26.    ","Centre de diagnostic şi tratament cu paturi de spital",0,0,0,0,0,0,0,0]
["27.    ","Centre medicale de specialitate cu paturi de spital ",0,0,0,0,0,0,0,0]
["28.    ","Dispensare medicale",0,0,0,0,0,0,0,0]
["29.    ","Cabinete independente de medicina de familie",0,0,0,0,0,0,0,0]
["30.    ","Societati medicale civile",0,0,0,0,0,0,0,0]
["31.    ","Policlinici",0,0,0,0,0,0,0,0]
["32.    ","Centre de dializa si puncte ale centrelor de dializa",0,0,0,0,0,0,0,0]
["33.    ","Centre de diagnostic si tratament",0,0,0,0,0,0,0,0]
["34.    ","Centre medicale de specialitate",0,0,0,0,0,0,0,0]
["35.    ","Ambulatorii de specialitate",0,0,0,0,0,0,0,0]
["36.    ","Ambulatorii integrate spitalelor",0,0,0,0,0,0,0,0]
["37.    ","Cabinete stomatologice independente ",0,0,0,0,0,0,0,0]
["38.    ","Societati stomatologice civile medicale",0,0,0,0,0,0,0,0]
["39.    ","Cabinete medicale independente de specialitate",0,0,0,0,0,0,0,0]
["40.    ","Societati civile medicale de specialitate",0,0,0,0,0,0,0,0]
["41.    ","Alte tipuri de cabinete medicale 1)",0,0,0,0,0,0,0,0]
["42.    ","Laboratoare medicale",0,0,0,0,0,0,0,0]
["Cap.6 Nr.personalului existent la sf.anului in unitatile sanitare pe gr.de varsta"]
["Nr. rand","Categorii de personal sanitar",null,null,"Total","din care: femei","Sub 25 ",null,"25-34 ani",null,"35-44 ani",null,"45-54 ani",null,"55-64 ",null,"65 ani şi peste"]
[null,null,null,null,null,null,"Total","d.c: femei","Total","d.c: femei","Total","d.c: femei","Total","d.c: femei","Total","d.c: femei","Total","d.c: femei"]
["A","B",null,null,"1","2","3","4","5","6","7","8","9","10","11","12","13","14"]
[1,"Medici (exclusiv dentisti)",null,null,{"$f":"G236+I236+K236+M236+O236+Q236","v":0},{"$f":"H236+J236+L236+N236+P236+R236","v":0},{"$f":"+'c15'!G190","v":0},{"$f":"+'c15'!I190","v":0},{"$f":"+'c15'!J190","v":0},{"$f":"+'c15'!L190","v":0},{"$f":"+'c15'!M190","v":0},{"$f":"+'c15'!O190","v":0},{"$f":"+'c15'!P190","v":0},{"$f":"+'c15'!R190","v":0},{"$f":"+'c15'!S190","v":0},{"$f":"+'c15'!U190","v":0},{"$f":"+'c15'!V190","v":0},{"$f":"+'c15'!X190","v":0}]
[2,"din rd.1","med.de familie",null,{"$f":"G237+I237+K237+M237+O237+Q237","v":0},0,{"$f":"+'c15'!G205","v":0},{"$f":"+'c15'!I205","v":0},{"$f":"+'c15'!J205","v":0},{"$f":"+'c15'!L205","v":0},{"$f":"+'c15'!M205","v":0},{"$f":"+'c15'!O205","v":0},{"$f":"+'c15'!P205","v":0},{"$f":"+'c15'!R205","v":0},{"$f":"+'c15'!S205","v":0},{"$f":"+'c15'!U205","v":0},{"$f":"+'c15'!V205","v":0},{"$f":"+'c15'!X205","v":0}]
[3,null,"med. de chirurgie orală și maxilo-facilă",null,{"$f":"G238+I238+K238+M238+O238+Q238","v":0},{"$f":"H238+J238+L238+N238+P238+R238","v":0},{"$f":"+'c15'!G225","v":0},{"$f":"+'c15'!I225","v":0},{"$f":"+'c15'!J225","v":0},{"$f":"+'c15'!L225","v":0},{"$f":"+'c15'!M225","v":0},{"$f":"+'c15'!O225","v":0},{"$f":"+'c15'!P225","v":0},{"$f":"+'c15'!R225","v":0},{"$f":"+'c15'!S225","v":0},{"$f":"+'c15'!U225","v":0},{"$f":"+'c15'!V225","v":0},{"$f":"+'c15'!X225","v":0}]
[4,null,"med.rezidenţi",null,0,0,{"$f":"+'c15'!G191","v":0},{"$f":"+'c15'!I191","v":0},{"$f":"+'c15'!J191","v":0},{"$f":"+'c15'!L191","v":0},{"$f":"+'c15'!M191","v":0},{"$f":"+'c15'!O191","v":0},{"$f":"+'c15'!P191","v":0},{"$f":"+'c15'!R191","v":0},{"$f":"+'c15'!S191","v":0},{"$f":"+'c15'!U191","v":0},{"$f":"+'c15'!V191","v":0},{"$f":"+'c15'!X191","v":0}]
[5,null,"din rd.4","rezidenţi chirurgie orală și maxilo-facilă",0,0,{"$f":"+'c15'!G226","v":0},{"$f":"+'c15'!I226","v":0},{"$f":"+'c15'!J226","v":0},{"$f":"+'c15'!L226","v":0},{"$f":"+'c15'!M226","v":0},{"$f":"+'c15'!O226","v":0},{"$f":"+'c15'!P226","v":0},{"$f":"+'c15'!R226","v":0},{"$f":"+'c15'!S226","v":0},{"$f":"+'c15'!U226","v":0},{"$f":"+'c15'!V226","v":0},{"$f":"+'c15'!X226","v":0}]
[6,"Medici dentişti",null,null,0,0,{"$f":"+'c15'!G246","v":0},{"$f":"+'c15'!I246","v":0},{"$f":"+'c15'!J246","v":0},{"$f":"+'c15'!L246","v":0},{"$f":"+'c15'!M246","v":0},{"$f":"+'c15'!O246","v":0},{"$f":"+'c15'!P246","v":0},{"$f":"+'c15'!R246","v":0},{"$f":"+'c15'!S246","v":0},{"$f":"+'c15'!U246","v":0},{"$f":"+'c15'!V246","v":0},{"$f":"+'c15'!X246","v":0}]
[7,"din rd.4","med.dentişti rezidenţi",null,0,0,{"$f":"+'c15'!G247","v":0},{"$f":"+'c15'!I247","v":0},{"$f":"+'c15'!J247","v":0},{"$f":"+'c15'!L247","v":0},{"$f":"+'c15'!M247","v":0},{"$f":"+'c15'!O247","v":0},{"$f":"+'c15'!P247","v":0},{"$f":"+'c15'!R247","v":0},{"$f":"+'c15'!S247","v":0},{"$f":"+'c15'!U247","v":0},{"$f":"+'c15'!V247","v":0},{"$f":"+'c15'!X247","v":0}]
[8,"Farmacişti",null,null,0,0,{"$f":"+'c15'!G250","v":0},{"$f":"+'c15'!I250","v":0},{"$f":"+'c15'!J250","v":0},{"$f":"+'c15'!L250","v":0},{"$f":"+'c15'!M250","v":0},{"$f":"+'c15'!O250","v":0},{"$f":"+'c15'!P250","v":0},{"$f":"+'c15'!R250","v":0},{"$f":"+'c15'!S250","v":0},{"$f":"+'c15'!U250","v":0},{"$f":"+'c15'!V250","v":0},{"$f":"+'c15'!X250","v":0}]
[9,"din rd.6","farmacişti rezidenţi",null,0,0,{"$f":"+'c15'!G251","v":0},{"$f":"+'c15'!I251","v":0},{"$f":"+'c15'!J251","v":0},{"$f":"+'c15'!L251","v":0},{"$f":"+'c15'!M251","v":0},{"$f":"+'c15'!O251","v":0},{"$f":"+'c15'!P251","v":0},{"$f":"+'c15'!R251","v":0},{"$f":"+'c15'!S251","v":0},{"$f":"+'c15'!U251","v":0},{"$f":"+'c15'!V251","v":0},{"$f":"+'c15'!X251","v":0}]
[10,"Fiziokinetoterapeuţi",null,null,{"$f":"G245+I245+K245+M245+O245+Q245","v":0},{"$f":"H245+J245+L245+N245+P245+R245","v":0},{"$f":"+'c15'!G254","v":0},{"$f":"+'c15'!I254","v":0},{"$f":"+'c15'!J254","v":0},{"$f":"+'c15'!L254","v":0},{"$f":"+'c15'!M254","v":0},{"$f":"+'c15'!O254","v":0},{"$f":"+'c15'!P254","v":0},{"$f":"+'c15'!R254","v":0},{"$f":"+'c15'!S254","v":0},{"$f":"+'c15'!U254","v":0},{"$f":"+'c15'!V254","v":0},{"$f":"+'c15'!X254","v":0}]
[11,"din rd.8","fizioterapeuti",null,0,0,{"$f":"+'c15'!G255","v":0},{"$f":"+'c15'!I255","v":0},{"$f":"+'c15'!J255","v":0},{"$f":"+'c15'!L255","v":0},{"$f":"+'c15'!M255","v":0},{"$f":"+'c15'!O255","v":0},{"$f":"+'c15'!P255","v":0},{"$f":"+'c15'!R255","v":0},{"$f":"+'c15'!S255","v":0},{"$f":"+'c15'!U255","v":0},{"$f":"+'c15'!V255","v":0},{"$f":"+'c15'!X255","v":0}]
[12,"Asistenti medicali cu studii superioare",null,null,0,0,{"$f":"+'c15'!G256","v":0},{"$f":"+'c15'!I256","v":0},{"$f":"+'c15'!J256","v":0},{"$f":"+'c15'!L256","v":0},{"$f":"+'c15'!M256","v":0},{"$f":"+'c15'!O256","v":0},{"$f":"+'c15'!P256","v":0},{"$f":"+'c15'!R256","v":0},{"$f":"+'c15'!S256","v":0},{"$f":"+'c15'!U256","v":0},{"$f":"+'c15'!V256","v":0},{"$f":"+'c15'!X256","v":0}]
[13,"din rd.10","asistenti.O-G",null,0,0,{"$f":"+'c15'!G257","v":0},{"$f":"+'c15'!I257","v":0},{"$f":"+'c15'!J257","v":0},{"$f":"+'c15'!L257","v":0},{"$f":"+'c15'!M257","v":0},{"$f":"+'c15'!O257","v":0},{"$f":"+'c15'!P257","v":0},{"$f":"+'c15'!R257","v":0},{"$f":"+'c15'!S257","v":0},{"$f":"+'c15'!U257","v":0},{"$f":"+'c15'!V257","v":0},{"$f":"+'c15'!X257","v":0}]
[14,"Alt personal sanitar cu  studii superioare ",null,null,0,0,{"$f":"+'c15'!G258","v":0},{"$f":"+'c15'!I258","v":0},{"$f":"+'c15'!J258","v":0},{"$f":"+'c15'!L258","v":0},{"$f":"+'c15'!M258","v":0},{"$f":"+'c15'!O258","v":0},{"$f":"+'c15'!P258","v":0},{"$f":"+'c15'!R258","v":0},{"$f":"+'c15'!S258","v":0},{"$f":"+'c15'!U258","v":0},{"$f":"+'c15'!V258","v":0},{"$f":"+'c15'!X258","v":0}]
[15,"Alt personal cu  studii superioare ",null,null,0,0,{"$f":"+'c15'!G259","v":0},{"$f":"+'c15'!I259","v":0},{"$f":"+'c15'!J259","v":0},{"$f":"+'c15'!L259","v":0},{"$f":"+'c15'!M259","v":0},{"$f":"+'c15'!O259","v":0},{"$f":"+'c15'!P259","v":0},{"$f":"+'c15'!R259","v":0},{"$f":"+'c15'!S259","v":0},{"$f":"+'c15'!U259","v":0},{"$f":"+'c15'!V259","v":0},{"$f":"+'c15'!X259","v":0}]
[16,"Personal sanitar mediu",null,null,0,0,{"$f":"+'c15'!G62","v":0},{"$f":"+'c15'!I62","v":0},{"$f":"+'c15'!J62","v":0},{"$f":"+'c15'!L62","v":0},{"$f":"+'c15'!M62","v":0},{"$f":"+'c15'!O62","v":0},{"$f":"+'c15'!P62","v":0},{"$f":"+'c15'!R62","v":0},{"$f":"+'c15'!S62","v":0},{"$f":"+'c15'!U62","v":0},{"$f":"+'c15'!V62","v":0},{"$f":"+'c15'!X62","v":0}]
[17,"din rd.14","total as.medicali",null,0,0,{"$f":"+'c15'!G63","v":0},{"$f":"+'c15'!I63","v":0},{"$f":"+'c15'!J63","v":0},{"$f":"+'c15'!L63","v":0},{"$f":"+'c15'!M63","v":0},{"$f":"+'c15'!O63","v":0},{"$f":"+'c15'!P63","v":0},{"$f":"+'c15'!R63","v":0},{"$f":"+'c15'!S63","v":0},{"$f":"+'c15'!U63","v":0},{"$f":"+'c15'!V63","v":0},{"$f":"+'c15'!X63","v":0}]
[18,"din rd.15","asistenţi.O-G",null,0,0,{"$f":"+'c15'!G66","v":0},{"$f":"+'c15'!I66","v":0},{"$f":"+'c15'!J66","v":0},{"$f":"+'c15'!L66","v":0},{"$f":"+'c15'!M66","v":0},{"$f":"+'c15'!O66","v":0},{"$f":"+'c15'!P66","v":0},{"$f":"+'c15'!R66","v":0},{"$f":"+'c15'!S66","v":0},{"$f":"+'c15'!U66","v":0},{"$f":"+'c15'!V66","v":0},{"$f":"+'c15'!X66","v":0}]
[19,null,"as.fiziokinetoterapeuţi",null,0,0,{"$f":"+'c15'!G74","v":0},{"$f":"+'c15'!I74","v":0},{"$f":"+'c15'!J74","v":0},{"$f":"+'c15'!L74","v":0},{"$f":"+'c15'!M74","v":0},{"$f":"+'c15'!O74","v":0},{"$f":"+'c15'!P74","v":0},{"$f":"+'c15'!R74","v":0},{"$f":"+'c15'!S74","v":0},{"$f":"+'c15'!U74","v":0},{"$f":"+'c15'!V74","v":0},{"$f":"+'c15'!X74","v":0}]
[20,null,"din rd.17","as. fizioterapeuţi",{"$f":"G255+I255+K255+M255+O255+Q255","v":0},0,{"$f":"+'c15'!G75","v":0},{"$f":"+'c15'!I75","v":0},{"$f":"+'c15'!J75","v":0},{"$f":"+'c15'!L75","v":0},{"$f":"+'c15'!M75","v":0},{"$f":"+'c15'!O75","v":0},{"$f":"+'c15'!P75","v":0},{"$f":"+'c15'!R75","v":0},{"$f":"+'c15'!S75","v":0},{"$f":"+'c15'!U75","v":0},{"$f":"+'c15'!V75","v":0},{"$f":"+'c15'!X75","v":0}]
[21,"Personal sanitar auxiliar",null,null,0,0,{"$f":"+'c15'!G94","v":0},{"$f":"+'c15'!I94","v":0},{"$f":"+'c15'!J94","v":0},{"$f":"+'c15'!L94","v":0},{"$f":"+'c15'!M94","v":0},{"$f":"+'c15'!O94","v":0},{"$f":"+'c15'!P94","v":0},{"$f":"+'c15'!R94","v":0},{"$f":"+'c15'!S94","v":0},{"$f":"+'c15'!U94","v":0},{"$f":"+'c15'!V94","v":0},{"$f":"+'c15'!X94","v":0}]
[22,"Alt personal mediu angajat",null,null,0,0,{"$f":"+'c15'!G95+'c15'!G96+'c15'!G97","v":0},{"$f":"+'c15'!I95+'c15'!I96+'c15'!I97","v":0},{"$f":"+'c15'!J95+'c15'!J96+'c15'!J97","v":0},{"$f":"+'c15'!L95+'c15'!L96+'c15'!L97","v":0},{"$f":"+'c15'!M95+'c15'!M96+'c15'!M97","v":0},{"$f":"+'c15'!O95+'c15'!O96+'c15'!O97","v":0},{"$f":"+'c15'!P95+'c15'!P96+'c15'!P97","v":0},{"$f":"+'c15'!R95+'c15'!R96+'c15'!R97","v":0},{"$f":"+'c15'!S95+'c15'!S96+'c15'!S97","v":0},{"$f":"+'c15'!U95+'c15'!U96+'c15'!U97","v":0},{"$f":"+'c15'!V95+'c15'!V96+'c15'!V97","v":0},{"$f":"+'c15'!X95+'c15'!X96+'c15'!X97","v":0}]
["Cap.7  Numărul personalului cu studii superioare, existent la sfârşitul anului, pe tipuri de unităţi sanitare"]
[null,null,{"$f":"C263=E236","v":true},{"$f":"D263=F236","v":true},{"$f":"E263=E241","v":true},{"$f":"F263=F241","v":true},{"$f":"G263=E243","v":true},{"$f":"H263=F243","v":true},{"$f":"I263=E245","v":true},{"$f":"J263=F245","v":true},{"$f":"K263=E246","v":true},{"$f":"L263=F246","v":true},{"$f":"M263=E247","v":true},{"$f":"N263=F247","v":true},{"$f":"O263=E248","v":true},{"$f":"P263=F248","v":true},{"$f":"Q263=E249","v":true},{"$f":"R263=F249","v":true},{"$f":"S263=E250","v":true},{"$f":"T263=F250","v":true}]
["Nr. Crt.","Tipuri de unităţi sanitare","Medici (exclus dentişti)",null,"Medici dentişti",null,"Farmacişti",null,"Fiziokinetoterapeuţi",null,"din care: Fizioterapeuţi",null,"   As.med.(cu std.sup.)",null," d.c: moaşe",null,"Alt personal sanitar        (cu stud.super)",null,"Alt personal cu studii superioare"]
[null,null,"Total ","d.c: femei","Total ","d.c: femei","Total ","d.c: femei","Total ","d.c: femei","Total ","d.c: femei","Total ","d.c: femei","Total ","d.c: femei","Total ","d.c: femei","Total ","d.c: femei"]
["A","B","1","2","3","4","5","6","7","8","9","10","11","12","13","14",15,16,17,18]
[1,"Total, personal cu studii superioare",{"$f":"SUM(C265:C320)-C266-C268-C271-C274-C276-C278-C280-C282-C284-C286","v":0},{"$f":"SUM(D265:D320)-D266-D268-D271-D274-D276-D278-D280-D282-D284-D286","v":0},0,0,0,0,0,0,0,0,0,0,0,0,0,0,0,0]
[2," - din care: cu norma intreaga",{"$f":"+'c15'!Y190","v":0},{"$f":"+'c15'!AA190","v":0},{"$f":"+'c15'!Y246","v":0},{"$f":"+'c15'!AA246","v":0},{"$f":"+'c15'!Y250","v":0},{"$f":"+'c15'!AA250","v":0},{"$f":"+'c15'!Y254","v":0},{"$f":"+'c15'!AA254","v":0},{"$f":"+'c15'!Y255","v":0},{"$f":"+'c15'!AA255","v":0},{"$f":"+'c15'!Y256","v":0},{"$f":"+'c15'!AA256","v":0},{"$f":"+'c15'!Y257","v":0},{"$f":"+'c15'!AA257","v":0},{"$f":"+'c15'!Y258","v":0},{"$f":"+'c15'!AA258","v":0},{"$f":"+'c15'!Y259","v":0},{"$f":"+'c15'!AA259","v":0}]
[3,"Spitale (inclusiv institute, cu paturi de spital)",{"$f":"+'c15'!P109","v":0},{"$f":"+'c15'!R109","v":0},{"$f":"+'c15'!P164","v":0},{"$f":"+'c15'!R164","v":0},{"$f":"+'c15'!P168","v":0},{"$f":"+'c15'!R168","v":0},{"$f":"+'c15'!P172","v":0},{"$f":"+'c15'!R172","v":0},{"$f":"+'c15'!P173","v":0},{"$f":"+'c15'!R173","v":0},{"$f":"+'c15'!P174","v":0},{"$f":"+'c15'!R174","v":0},{"$f":"+'c15'!P175","v":0},{"$f":"+'c15'!R175","v":0},{"$f":"+'c15'!P176","v":0},{"$f":"+'c15'!R176","v":0},{"$f":"+'c15'!P177","v":0},{"$f":"+'c15'!R177","v":0}]
[4," - din care: cu norma intreaga",{"$f":"+'c15'!$AB190","v":0},{"$f":"+'c15'!$AD190","v":0},{"$f":"+'c15'!$AB246","v":0},{"$f":"+'c15'!$AD246","v":0},{"$f":"+'c15'!$AB250","v":0},{"$f":"+'c15'!$AD250","v":0},{"$f":"+'c15'!$AB254","v":0},{"$f":"+'c15'!$AD254","v":0},{"$f":"+'c15'!$AB255","v":0},{"$f":"+'c15'!$AD255","v":0},{"$f":"+'c15'!$AB256","v":0},{"$f":"+'c15'!$AD256","v":0},{"$f":"+'c15'!$AB257","v":0},{"$f":"+'c15'!$AD257","v":0},{"$f":"+'c15'!$AB258","v":0},{"$f":"+'c15'!$AD258","v":0},{"$f":"+'c15'!$AB259","v":0},{"$f":"+'c15'!$AD259","v":0}]
[5,"Centre de sanatate cu paturi de spital",{"$f":"+'c15'!S109","v":0},{"$f":"+'c15'!U109","v":0},{"$f":"+'c15'!S164","v":0},{"$f":"+'c15'!U164","v":0},{"$f":"+'c15'!S168","v":0},{"$f":"+'c15'!U168","v":0},{"$f":"+'c15'!S172","v":0},{"$f":"+'c15'!U172","v":0},{"$f":"+'c15'!S173","v":0},{"$f":"+'c15'!U173","v":0},{"$f":"+'c15'!S174","v":0},{"$f":"+'c15'!U174","v":0},{"$f":"+'c15'!S175","v":0},{"$f":"+'c15'!U175","v":0},{"$f":"+'c15'!S176","v":0},{"$f":"+'c15'!U176","v":0},{"$f":"+'c15'!S177","v":0},{"$f":"+'c15'!U177","v":0}]
[6," - din care: cu norma intreaga"]
[7,"Centre de sanatate"]
[8,"Centre de sănătate multifuncționale"]
[9," - din care: cu norma intreaga"]
[10,"Centre de sanatate mintala"]
[11,"Centre de diagnostic si tratament cu paturi de spital"]
[12," - din care: cu norma intreaga"]
[13,"Centre medicale de specialitate cu paturi de spital"]
[14," - din care: cu norma intreaga"]
[15,"Unitati medico-sociale"]
[16," - din care: cu norma intreaga"]
[17,"Sanatorii TBC",{"$f":"+'c15'!V109","v":0},{"$f":"+'c15'!X109","v":0},{"$f":"+'c15'!V164","v":0},{"$f":"+'c15'!X164","v":0},{"$f":"+'c15'!V168","v":0},{"$f":"+'c15'!X168","v":0},{"$f":"+'c15'!V172","v":0},{"$f":"+'c15'!X172","v":0},{"$f":"+'c15'!V173","v":0},{"$f":"+'c15'!X173","v":0},{"$f":"+'c15'!V174","v":0},{"$f":"+'c15'!X174","v":0},{"$f":"+'c15'!V175","v":0},{"$f":"+'c15'!X175","v":0},{"$f":"+'c15'!V176","v":0},{"$f":"+'c15'!X176","v":0},{"$f":"+'c15'!V177","v":0},{"$f":"+'c15'!X177","v":0}]
[18," - din care: cu norma intreaga"]
[19,"Preventorii",{"$f":"+'c15'!Y109","v":0},{"$f":"+'c15'!AA109","v":0},{"$f":"+'c15'!Y164","v":0},{"$f":"+'c15'!AA164","v":0},{"$f":"+'c15'!Y168","v":0},{"$f":"+'c15'!AA168","v":0},{"$f":"+'c15'!Y172","v":0},{"$f":"+'c15'!AA172","v":0},{"$f":"+'c15'!Y173","v":0},{"$f":"+'c15'!AA173","v":0},{"$f":"+'c15'!Y174","v":0},{"$f":"+'c15'!AA174","v":0},{"$f":"+'c15'!Y175","v":0},{"$f":"+'c15'!AA175","v":0},{"$f":"+'c15'!Y176","v":0},{"$f":"+'c15'!AA176","v":0},{"$f":"+'c15'!Y177","v":0},{"$f":"+'c15'!AA177","v":0}]
[20," - din care: cu norma intreaga"]
[21,"Sanatorii de nevroze sau de neuropsihiatrie",{"$f":"+'c15'!DB109","v":0},{"$f":"+'c15'!DD109","v":0},{"$f":"+'c15'!DB164","v":0},{"$f":"+'c15'!DD164","v":0},{"$f":"+'c15'!DB168","v":0},{"$f":"+'c15'!DD168","v":0},{"$f":"+'c15'!DB172","v":0},{"$f":"+'c15'!DD172","v":0},{"$f":"+'c15'!DB173","v":0},{"$f":"+'c15'!DD173","v":0},{"$f":"+'c15'!DB174","v":0},{"$f":"+'c15'!DD174","v":0},{"$f":"+'c15'!DB175","v":0},{"$f":"+'c15'!DD175","v":0},{"$f":"+'c15'!DB176","v":0},{"$f":"+'c15'!DD176","v":0},{"$f":"+'c15'!DB177","v":0},{"$f":"+'c15'!DD177","v":0}]
[22," - din care: cu norma intreaga"]
[23,"Sanatorii balneare ",{"$f":"+'c15'!AB109","v":0},{"$f":"+'c15'!AD109","v":0},{"$f":"+'c15'!AB164","v":0},{"$f":"+'c15'!AD164","v":0},{"$f":"+'c15'!AB168","v":0},{"$f":"+'c15'!AD168","v":0},{"$f":"+'c15'!AB172","v":0},{"$f":"+'c15'!AD172","v":0},{"$f":"+'c15'!AB173","v":0},{"$f":"+'c15'!AD173","v":0},{"$f":"+'c15'!AB174","v":0},{"$f":"+'c15'!AD174","v":0},{"$f":"+'c15'!AB175","v":0},{"$f":"+'c15'!AD175","v":0},{"$f":"+'c15'!AB176","v":0},{"$f":"+'c15'!AD176","v":0},{"$f":"+'c15'!AB177","v":0},{"$f":"+'c15'!AD177","v":0}]
[24," - din care: cu norma intreaga"]
[25,"Dispensare medicale ",{"$f":"+'c15'!AE109","v":0},{"$f":"+'c15'!AG109","v":0},{"$f":"+'c15'!AE164","v":0},{"$f":"+'c15'!AG164","v":0},{"$f":"+'c15'!AE168","v":0},{"$f":"+'c15'!AG168","v":0},{"$f":"+'c15'!AE172","v":0},{"$f":"+'c15'!AG172","v":0},{"$f":"+'c15'!AE173","v":0},{"$f":"+'c15'!AG173","v":0},{"$f":"+'c15'!AE174","v":0},{"$f":"+'c15'!AG174","v":0},{"$f":"+'c15'!AE175","v":0},{"$f":"+'c15'!AG175","v":0},{"$f":"+'c15'!AE176","v":0},{"$f":"+'c15'!AG176","v":0},{"$f":"+'c15'!AE177","v":0},{"$f":"+'c15'!AG177","v":0},{"$f":"E237>=C287","v":true},{"$f":"F237>=D287","v":true}]
[26,"Cabinete medicale şcolare ",{"$f":"+'c15'!AH109","v":0},{"$f":"+'c15'!AJ109","v":0},{"$f":"+'c15'!AH164","v":0},{"$f":"+'c15'!AJ164","v":0},{"$f":"+'c15'!AH168","v":0},{"$f":"+'c15'!AJ168","v":0},{"$f":"+'c15'!AH172","v":0},{"$f":"+'c15'!AJ172","v":0},{"$f":"+'c15'!AH173","v":0},{"$f":"+'c15'!AJ173","v":0},{"$f":"+'c15'!AH174","v":0},{"$f":"+'c15'!AJ174","v":0},{"$f":"+'c15'!AH175","v":0},{"$f":"+'c15'!AJ175","v":0},{"$f":"+'c15'!AH176","v":0},{"$f":"+'c15'!AJ176","v":0},{"$f":"+'c15'!AH177","v":0},{"$f":"+'c15'!AJ177","v":0}]
[27,"Cabinete medicale studenţeşti",{"$f":"+'c15'!AK109","v":0},{"$f":"+'c15'!AM109","v":0},{"$f":"+'c15'!AK164","v":0},{"$f":"+'c15'!AM164","v":0},{"$f":"+'c15'!AK168","v":0},{"$f":"+'c15'!AM168","v":0},{"$f":"+'c15'!AK172","v":0},{"$f":"+'c15'!AM172","v":0},{"$f":"+'c15'!AK173","v":0},{"$f":"+'c15'!AM173","v":0},{"$f":"+'c15'!AK174","v":0},{"$f":"+'c15'!AM174","v":0},{"$f":"+'c15'!AK175","v":0},{"$f":"+'c15'!AM175","v":0},{"$f":"+'c15'!AK176","v":0},{"$f":"+'c15'!AM176","v":0},{"$f":"+'c15'!AK177","v":0},{"$f":"+'c15'!AM177","v":0}]
[28,"Cabinete medicale de medicină generală",{"$f":"'c15'!AN109","v":0},{"$f":"'c15'!AP109","v":0},{"$f":"'c15'!AN164","v":0},{"$f":"'c15'!AP164","v":0},{"$f":"'c15'!AN168","v":0},{"$f":"'c15'!AP168","v":0},{"$f":"'c15'!AN172","v":0},{"$f":"'c15'!AP172","v":0},{"$f":"'c15'!AN173","v":0},{"$f":"'c15'!AP173","v":0},{"$f":"'c15'!AN174","v":0},{"$f":"'c15'!AP174","v":0},{"$f":"'c15'!AN175","v":0},{"$f":"'c15'!AP175","v":0},{"$f":"'c15'!AN176","v":0},{"$f":"'c15'!AP176","v":0},{"$f":"'c15'!AN177","v":0},{"$f":"'c15'!AP177","v":0}]
[29,"Cabinete independente de medicina de familie ",{"$f":"+'c15'!AQ109","v":0},{"$f":"+'c15'!AS109","v":0},{"$f":"+'c15'!AQ164","v":0},{"$f":"+'c15'!AS164","v":0},{"$f":"+'c15'!AQ168","v":0},{"$f":"+'c15'!AS168","v":0},{"$f":"+'c15'!AQ172","v":0},{"$f":"+'c15'!AS172","v":0},{"$f":"+'c15'!AQ173","v":0},{"$f":"+'c15'!AS173","v":0},{"$f":"+'c15'!AQ174","v":0},{"$f":"+'c15'!AS174","v":0},{"$f":"+'c15'!AQ175","v":0},{"$f":"+'c15'!AS175","v":0},{"$f":"+'c15'!AQ176","v":0},{"$f":"+'c15'!AS176","v":0},{"$f":"+'c15'!AQ177","v":0},{"$f":"+'c15'!AS177","v":0}]
[30,"Societăţi medicale civile ",{"$f":"+'c15'!AT109","v":0},{"$f":"+'c15'!AV109","v":0},{"$f":"+'c15'!AT164","v":0},{"$f":"+'c15'!AV164","v":0},{"$f":"+'c15'!AT168","v":0},{"$f":"+'c15'!AV168","v":0},{"$f":"+'c15'!AT172","v":0},{"$f":"+'c15'!AV172","v":0},{"$f":"+'c15'!AT173","v":0},{"$f":"+'c15'!AV173","v":0},{"$f":"+'c15'!AT174","v":0},{"$f":"+'c15'!AV174","v":0},{"$f":"+'c15'!AT175","v":0},{"$f":"+'c15'!AV175","v":0},{"$f":"+'c15'!AT176","v":0},{"$f":"+'c15'!AV176","v":0},{"$f":"+'c15'!AT177","v":0},{"$f":"+'c15'!AV177","v":0}]
[31,"Farmacii",{"$f":"+'c15'!AW109","v":0},{"$f":"+'c15'!AY109","v":0},{"$f":"+'c15'!AW164","v":0},{"$f":"+'c15'!AY164","v":0},{"$f":"+'c15'!AW168","v":0},{"$f":"+'c15'!AY168","v":0},{"$f":"+'c15'!AW172","v":0},{"$f":"+'c15'!AY172","v":0},{"$f":"+'c15'!AW173","v":0},{"$f":"+'c15'!AY173","v":0},{"$f":"+'c15'!AW174","v":0},{"$f":"+'c15'!AY174","v":0},{"$f":"+'c15'!AW175","v":0},{"$f":"+'c15'!AY175","v":0},{"$f":"+'c15'!AW176","v":0},{"$f":"+'c15'!AY176","v":0},{"$f":"+'c15'!AW177","v":0},{"$f":"+'c15'!AY177","v":0}]
[32,"Puncte de lucru ale farmaciilor",{"$f":"+'c15'!AZ109","v":0},{"$f":"+'c15'!BB109","v":0},{"$f":"+'c15'!AZ164","v":0},{"$f":"+'c15'!BB164","v":0},{"$f":"+'c15'!AZ168","v":0},{"$f":"+'c15'!BB168","v":0},{"$f":"+'c15'!AZ172","v":0},{"$f":"+'c15'!BB172","v":0},{"$f":"+'c15'!AZ173","v":0},{"$f":"+'c15'!BB173","v":0},{"$f":"+'c15'!AZ174","v":0},{"$f":"+'c15'!BB174","v":0},{"$f":"+'c15'!AZ175","v":0},{"$f":"+'c15'!BB175","v":0},{"$f":"+'c15'!AZ176","v":0},{"$f":"+'c15'!BB176","v":0},{"$f":"+'c15'!AZ177","v":0},{"$f":"+'c15'!BB177","v":0}]
[33,"Drogherii"]
[34,"Depozite farmaceutice",{"$f":"+'c15'!BC109","v":0},{"$f":"+'c15'!BE109","v":0},{"$f":"+'c15'!BC164","v":0},{"$f":"+'c15'!BE164","v":0},{"$f":"+'c15'!BC168","v":0},{"$f":"+'c15'!BE168","v":0},{"$f":"+'c15'!BC172","v":0},{"$f":"+'c15'!BE172","v":0},{"$f":"+'c15'!BC173","v":0},{"$f":"+'c15'!BE173","v":0},{"$f":"+'c15'!BC174","v":0},{"$f":"+'c15'!BE174","v":0},{"$f":"+'c15'!BC175","v":0},{"$f":"+'c15'!BE175","v":0},{"$f":"+'c15'!BC176","v":0},{"$f":"+'c15'!BE176","v":0},{"$f":"+'c15'!BC177","v":0},{"$f":"+'c15'!BE177","v":0}]
[35,"Policlinici",{"$f":"+'c15'!BF109","v":0},{"$f":"+'c15'!BH109","v":0},{"$f":"+'c15'!BF164","v":0},{"$f":"+'c15'!BH164","v":0},{"$f":"+'c15'!BF168","v":0},{"$f":"+'c15'!BH168","v":0},{"$f":"+'c15'!BF172","v":0},{"$f":"+'c15'!BH172","v":0},{"$f":"+'c15'!BF173","v":0},{"$f":"+'c15'!BH173","v":0},{"$f":"+'c15'!BF174","v":0},{"$f":"+'c15'!BH174","v":0},{"$f":"+'c15'!BF175","v":0},{"$f":"+'c15'!BH175","v":0},{"$f":"+'c15'!BF176","v":0},{"$f":"+'c15'!BH176","v":0},{"$f":"+'c15'!BF177","v":0},{"$f":"+'c15'!BH177","v":0}]
[36,"Centre de dializa si puncte ale centrelor de dializa"]
[37," - din care: cu norma intreaga"]
[38,"Centre de diagnostic şi tratament ",{"$f":"+'c15'!BI109","v":0},{"$f":"+'c15'!BK109","v":0},{"$f":"+'c15'!BI164","v":0},{"$f":"+'c15'!BK164","v":0},{"$f":"+'c15'!BI168","v":0},{"$f":"+'c15'!BK168","v":0},{"$f":"+'c15'!BI172","v":0},{"$f":"+'c15'!BK172","v":0},{"$f":"+'c15'!BI173","v":0},{"$f":"+'c15'!BK173","v":0},{"$f":"+'c15'!BI174","v":0},{"$f":"+'c15'!BK174","v":0},{"$f":"+'c15'!BI175","v":0},{"$f":"+'c15'!BK175","v":0},{"$f":"+'c15'!BI176","v":0},{"$f":"+'c15'!BK176","v":0},{"$f":"+'c15'!BI177","v":0},{"$f":"+'c15'!BK177","v":0}]
[39,"Centre medicale de specialitate",{"$f":"+'c15'!BL109","v":0},{"$f":"+'c15'!BN109","v":0},{"$f":"+'c15'!BL164","v":0},{"$f":"+'c15'!BN164","v":0},{"$f":"+'c15'!BL168","v":0},{"$f":"+'c15'!BN168","v":0},{"$f":"+'c15'!BL172","v":0},{"$f":"+'c15'!BN172","v":0},{"$f":"+'c15'!BL173","v":0},{"$f":"+'c15'!BN173","v":0},{"$f":"+'c15'!BL174","v":0},{"$f":"+'c15'!BN174","v":0},{"$f":"+'c15'!BL175","v":0},{"$f":"+'c15'!BN175","v":0},{"$f":"+'c15'!BL176","v":0},{"$f":"+'c15'!BN176","v":0},{"$f":"+'c15'!BL177","v":0},{"$f":"+'c15'!BN177","v":0}]
[40,"Ambulatorii de specialitate ",{"$f":"+'c15'!BO109","v":0},{"$f":"+'c15'!BQ109","v":0},{"$f":"+'c15'!BO164","v":0},{"$f":"+'c15'!BQ164","v":0},{"$f":"+'c15'!BO168","v":0},{"$f":"+'c15'!BQ168","v":0},{"$f":"+'c15'!BO172","v":0},{"$f":"+'c15'!BQ172","v":0},{"$f":"+'c15'!BO173","v":0},{"$f":"+'c15'!BQ173","v":0},{"$f":"+'c15'!BO174","v":0},{"$f":"+'c15'!BQ174","v":0},{"$f":"+'c15'!BO175","v":0},{"$f":"+'c15'!BQ175","v":0},{"$f":"+'c15'!BO176","v":0},{"$f":"+'c15'!BQ176","v":0},{"$f":"+'c15'!BO177","v":0},{"$f":"+'c15'!BQ177","v":0}]
[41,"Ambulatorii integrate spitalului ",{"$f":"+'c15'!BR109","v":0},{"$f":"+'c15'!BT109","v":0},{"$f":"+'c15'!BR164","v":0},{"$f":"+'c15'!BT164","v":0},{"$f":"+'c15'!BR168","v":0},{"$f":"+'c15'!BT168","v":0},{"$f":"+'c15'!BR172","v":0},{"$f":"+'c15'!BT172","v":0},{"$f":"+'c15'!BR173","v":0},{"$f":"+'c15'!BT173","v":0},{"$f":"+'c15'!BR174","v":0},{"$f":"+'c15'!BT174","v":0},{"$f":"+'c15'!BR175","v":0},{"$f":"+'c15'!BT175","v":0},{"$f":"+'c15'!BR176","v":0},{"$f":"+'c15'!BT176","v":0},{"$f":"+'c15'!BR177","v":0},{"$f":"+'c15'!BT177","v":0}]
[42,"Cabinete stomatologice şcolare "]
[43,"Cabinete stomatologice studenţeşti"]
[44,"Cabinete stomatologice independente ",{"$f":"+'c15'!BU109","v":0},{"$f":"+'c15'!BW109","v":0},{"$f":"+'c15'!BU164","v":0},{"$f":"+'c15'!BW164","v":0},{"$f":"+'c15'!BU168","v":0},{"$f":"+'c15'!BW168","v":0},{"$f":"+'c15'!BU172","v":0},{"$f":"+'c15'!BW172","v":0},{"$f":"+'c15'!BU173","v":0},{"$f":"+'c15'!BW173","v":0},{"$f":"+'c15'!BU174","v":0},{"$f":"+'c15'!BW174","v":0},{"$f":"+'c15'!BU175","v":0},{"$f":"+'c15'!BW175","v":0},{"$f":"+'c15'!BU176","v":0},{"$f":"+'c15'!BW176","v":0},{"$f":"+'c15'!BU177","v":0},{"$f":"+'c15'!BW177","v":0}]
[45,"Societăţi stomatologice civile medicale ",{"$f":"+'c15'!BX109","v":0},{"$f":"+'c15'!BZ109","v":0},{"$f":"+'c15'!BX164","v":0},{"$f":"+'c15'!BZ164","v":0},{"$f":"+'c15'!BX168","v":0},{"$f":"+'c15'!BZ168","v":0},{"$f":"+'c15'!BX172","v":0},{"$f":"+'c15'!BZ172","v":0},{"$f":"+'c15'!BX173","v":0},{"$f":"+'c15'!BZ173","v":0},{"$f":"+'c15'!BX174","v":0},{"$f":"+'c15'!BZ174","v":0},{"$f":"+'c15'!BX175","v":0},{"$f":"+'c15'!BZ175","v":0},{"$f":"+'c15'!BX176","v":0},{"$f":"+'c15'!BZ176","v":0},{"$f":"+'c15'!BX177","v":0},{"$f":"+'c15'!BZ177","v":0}]
[46,"Cabinete medicale de specialitate ",{"$f":"+'c15'!CA109","v":0},{"$f":"+'c15'!CC109","v":0},{"$f":"+'c15'!CA164","v":0},{"$f":"+'c15'!CC164","v":0},{"$f":"+'c15'!CA168","v":0},{"$f":"+'c15'!CC168","v":0},{"$f":"+'c15'!CA172","v":0},{"$f":"+'c15'!CC172","v":0},{"$f":"+'c15'!CA173","v":0},{"$f":"+'c15'!CC173","v":0},{"$f":"+'c15'!CA174","v":0},{"$f":"+'c15'!CC174","v":0},{"$f":"+'c15'!CA175","v":0},{"$f":"+'c15'!CC175","v":0},{"$f":"+'c15'!CA176","v":0},{"$f":"+'c15'!CC176","v":0},{"$f":"+'c15'!CA177","v":0},{"$f":"+'c15'!CC177","v":0}]
[47,"Societăţi civile medicale de specialitate ",{"$f":"+'c15'!CD109","v":0},{"$f":"+'c15'!CF109","v":0},{"$f":"+'c15'!CD164","v":0},{"$f":"+'c15'!CF164","v":0},{"$f":"+'c15'!CD168","v":0},{"$f":"+'c15'!CF168","v":0},{"$f":"+'c15'!CD172","v":0},{"$f":"+'c15'!CF172","v":0},{"$f":"+'c15'!CD173","v":0},{"$f":"+'c15'!CF173","v":0},{"$f":"+'c15'!CD174","v":0},{"$f":"+'c15'!CF174","v":0},{"$f":"+'c15'!CD175","v":0},{"$f":"+'c15'!CF175","v":0},{"$f":"+'c15'!CD176","v":0},{"$f":"+'c15'!CF176","v":0},{"$f":"+'c15'!CD177","v":0},{"$f":"+'c15'!CF177","v":0}]
[48,"Centre de transfuzie sanguină",{"$f":"+'c15'!CM109","v":0},{"$f":"+'c15'!CO109","v":0},{"$f":"+'c15'!CM164","v":0},{"$f":"+'c15'!CO164","v":0},{"$f":"+'c15'!CM168","v":0},{"$f":"+'c15'!CO168","v":0},{"$f":"+'c15'!CM172","v":0},{"$f":"+'c15'!CO172","v":0},{"$f":"+'c15'!CM173","v":0},{"$f":"+'c15'!CO173","v":0},{"$f":"+'c15'!CM174","v":0},{"$f":"+'c15'!CO174","v":0},{"$f":"+'c15'!CM175","v":0},{"$f":"+'c15'!CO175","v":0},{"$f":"+'c15'!CM176","v":0},{"$f":"+'c15'!CO176","v":0},{"$f":"+'c15'!CM177","v":0},{"$f":"+'c15'!CO177","v":0}]
[49,"Laboratoare medicale",{"$f":"+'c15'!CP109","v":0},{"$f":"+'c15'!CR109","v":0},{"$f":"+'c15'!CP164","v":0},{"$f":"+'c15'!CR164","v":0},{"$f":"+'c15'!CP168","v":0},{"$f":"+'c15'!CR168","v":0},{"$f":"+'c15'!CP172","v":0},{"$f":"+'c15'!CR172","v":0},{"$f":"+'c15'!CP173","v":0},{"$f":"+'c15'!CR173","v":0},{"$f":"+'c15'!CP174","v":0},{"$f":"+'c15'!CR174","v":0},{"$f":"+'c15'!CP175","v":0},{"$f":"+'c15'!CR175","v":0},{"$f":"+'c15'!CP176","v":0},{"$f":"+'c15'!CR176","v":0},{"$f":"+'c15'!CP177","v":0},{"$f":"+'c15'!CR177","v":0}]
[50,"Laboratoare de tehnică dentară",{"$f":"+'c15'!CS109","v":0},{"$f":"+'c15'!CU109","v":0},{"$f":"+'c15'!CS164","v":0},{"$f":"+'c15'!CU164","v":0},{"$f":"+'c15'!CS168","v":0},{"$f":"+'c15'!CU168","v":0},{"$f":"+'c15'!CS172","v":0},{"$f":"+'c15'!CU172","v":0},{"$f":"+'c15'!CS173","v":0},{"$f":"+'c15'!CU173","v":0},{"$f":"+'c15'!CS174","v":0},{"$f":"+'c15'!CU174","v":0},{"$f":"+'c15'!CS175","v":0},{"$f":"+'c15'!CU175","v":0},{"$f":"+'c15'!CS176","v":0},{"$f":"+'c15'!CU176","v":0},{"$f":"+'c15'!CS177","v":0},{"$f":"+'c15'!CU177","v":0}]
[51,"Unitati de ambulanta, transportul pacientilor si SMURD",{"$f":"+'c15'!DE109","v":0},{"$f":"+'c15'!DG109","v":0},{"$f":"+'c15'!DE164","v":0},{"$f":"+'c15'!DG164","v":0},{"$f":"+'c15'!DE168","v":0},{"$f":"+'c15'!DG168","v":0},{"$f":"+'c15'!DE172","v":0},{"$f":"+'c15'!DG172","v":0},{"$f":"+'c15'!DE173","v":0},{"$f":"+'c15'!DG173","v":0},{"$f":"+'c15'!DE174","v":0},{"$f":"+'c15'!DG174","v":0},{"$f":"+'c15'!DE175","v":0},{"$f":"+'c15'!DG175","v":0},{"$f":"+'c15'!DE176","v":0},{"$f":"+'c15'!DG176","v":0},{"$f":"+'c15'!DE177","v":0},{"$f":"+'c15'!DG177","v":0}]
[52,"Alte tipuri de cabinete medicale"]
[53,"Unitati rezidentiale pentru persoanele cu dizabilitati "]
[54,"Centre de zi pentru persoanele cu dizabilitati"]
[55,"Unitati rezidentiale pentru persoanele varstnice care ofera ingriji medicale in cadrul unitatii"]
[56,"Alte unități de asistență socială care furnizează îngrijiri medicale"]
[57,"Institute şi instituţii fără paturi *",{"$f":"+'c15'!CV109+'c15'!CY109+'c15'!DH109","v":0},{"$f":"+'c15'!CX109+'c15'!DA109+'c15'!DJ109","v":0},{"$f":"+'c15'!CV164+'c15'!CY164+'c15'!DH164","v":0},{"$f":"+'c15'!CX164+'c15'!DA164+'c15'!DJ164","v":0},{"$f":"+'c15'!CV168+'c15'!CY168+'c15'!DH168","v":0},{"$f":"+'c15'!CX168+'c15'!DA168+'c15'!DJ168","v":0},{"$f":"+'c15'!CV172+'c15'!CY172+'c15'!DH172","v":0},{"$f":"+'c15'!CX172+'c15'!DA172+'c15'!DJ172","v":0},{"$f":"+'c15'!CV173+'c15'!CY173+'c15'!DH173","v":0},{"$f":"+'c15'!CX173+'c15'!DA173+'c15'!DJ173","v":0},{"$f":"+'c15'!CV174+'c15'!CY174+'c15'!DH174","v":0},{"$f":"+'c15'!CX174+'c15'!DA174+'c15'!DJ174","v":0},{"$f":"+'c15'!CV175+'c15'!CY175+'c15'!DH175","v":0},{"$f":"+'c15'!CX175+'c15'!DA175+'c15'!DJ175","v":0},{"$f":"+'c15'!CV176+'c15'!CY176+'c15'!DH176","v":0},{"$f":"+'c15'!CX176+'c15'!DA176+'c15'!DJ176","v":0},{"$f":"+'c15'!CV177+'c15'!CY177+'c15'!DH177","v":0},{"$f":"+'c15'!CX177+'c15'!DA177+'c15'!DJ177","v":0}]
[58,"Alte unitati **"]
["Cap.8  Numărul personalului cu studii medii, existent la sfârşitul anului, pe tipuri de unităţi sanitare",null,null,null,null,null,{"$f":"C328=E251","v":true},{"$f":"D328=F251","v":true},{"$f":"E328=E252","v":true},{"$f":"F328=F252","v":true},{"$f":"G328=E253","v":true},{"$f":"H328=F253","v":true},{"$f":"I328=E254","v":true},{"$f":"J328=F254","v":true}]
["Nr. Crt.","Tipuri de unităţi sanitare","PERSONAL SANITAR MEDIU ",null,null,null,null,null,null,null,null,null,{"$f":"K328=E255","v":true},{"$f":"L328=F255","v":true}]
[null,null,"TOTAL","din care: femei","ASISTENTI MEDICALI",null,null,null,null,null,null,null,{"$f":"M328=E256","v":true},{"$f":"N328=F256","v":true},{"$f":"O328=E257","v":true},{"$f":"P328=F257","v":true}]
[null,null,null,null,"TOTAL ASIS-TENŢI","DIN CARE: femei","As.med. obst.ginec. (moaşe)",null,"Asistenţi fiziokinetoterapeuţi",null,null,null,"Personal sanitar auxiliar",null,"Alt personal mediu angajat"]
[null,null,null,null,null,null,null,null,"Total","din care: femei","asistenţi fizioterapeuţi"]
[null,null,null,null,null,null,"Total","d.c: femei",null,null,"Total","d.c: femei","Total","d.c: femei","Total","d.c: femei"]
["A","B","1","2","3","4","5","6","7","8","9","10","11","12","13","14"]
[1,"Total, personal cu studii superioare",{"$f":"SUM(C330:C385)-C331-C333-C336-C339-C341-C343-C345-C347-C349-C351","v":0},{"$f":"SUM(D330:D385)-D331-D333-D336-D339-D341-D343-D345-D347-D349-D351","v":0},0,0,0,0,0,0,0,0,0,0,0,0]
[2," - din care: cu norma intreaga",{"$f":"+'c15'!Y62","v":0},{"$f":"+'c15'!AA62","v":0},{"$f":"+'c15'!$Y63","v":0},{"$f":"+'c15'!$AA63","v":0},{"$f":"+'c15'!$Y66","v":0},{"$f":"+'c15'!$AA66","v":0},{"$f":"+'c15'!$Y74","v":0},{"$f":"+'c15'!$AA74","v":0},{"$f":"+'c15'!$Y75","v":0},{"$f":"+'c15'!$AA75","v":0},{"$f":"+'c15'!$Y94","v":0},{"$f":"+'c15'!$AA94","v":0},{"$f":"+'c15'!Y95+'c15'!Y96+'c15'!Y97","v":0},{"$f":"+'c15'!AA95+'c15'!AA96+'c15'!AA97","v":0}]
[3,"Spitale (inclusiv institute, cu paturi de spital)",{"$f":"+'c15'!G15","v":0},{"$f":"+'c15'!I15","v":0},{"$f":"+'c15'!G16","v":0},{"$f":"+'c15'!I16","v":0},{"$f":"+'c15'!G19","v":0},{"$f":"+'c15'!I19","v":0},{"$f":"+'c15'!G27","v":0},{"$f":"+'c15'!I27","v":0},{"$f":"+'c15'!G28","v":0},{"$f":"+'c15'!I28","v":0},{"$f":"+'c15'!G47","v":0},{"$f":"+'c15'!I47","v":0},{"$f":"+'c15'!G48+'c15'!G49+'c15'!G50","v":0},{"$f":"+'c15'!I48+'c15'!I49+'c15'!I50","v":0}]
[4," - din care: cu norma intreaga",{"$f":"+'c15'!$AB$62","v":0},{"$f":"+'c15'!$AD$62","v":0},{"$f":"+'c15'!$AB$63","v":0},{"$f":"+'c15'!$AD$63","v":0},{"$f":"+'c15'!$AB$66","v":0},{"$f":"+'c15'!$AD$66","v":0},{"$f":"+'c15'!$AB$74","v":0},{"$f":"+'c15'!$AD$74","v":0},{"$f":"+'c15'!$AB$75","v":0},{"$f":"+'c15'!$AD$75","v":0},{"$f":"+'c15'!$AB$94","v":0},{"$f":"+'c15'!$AD$94","v":0},{"$f":"+'c15'!$AB$95+'c15'!$AB$96+'c15'!$AB$97","v":0},{"$f":"+'c15'!$AD$95+'c15'!$AD$96+'c15'!$AD$97","v":0}]
[5,"Centre de sanatate cu paturi de spital",{"$f":"+'c15'!J15","v":0},{"$f":"+'c15'!L15","v":0},{"$f":"+'c15'!J16","v":0},{"$f":"+'c15'!L16","v":0},{"$f":"+'c15'!J19","v":0},{"$f":"+'c15'!L19","v":0},{"$f":"+'c15'!J27","v":0},{"$f":"+'c15'!L27","v":0},{"$f":"+'c15'!J28","v":0},{"$f":"+'c15'!L28","v":0},{"$f":"+'c15'!J47","v":0},{"$f":"+'c15'!L47","v":0},{"$f":"+'c15'!J48+'c15'!J49+'c15'!J50","v":0},{"$f":"+'c15'!L48+'c15'!L49+'c15'!L50","v":0}]
[6," - din care: cu norma intreaga"]
[7,"Centre de sanatate"]
[8,"Centre de sănătate multifuncționale"]
[9," - din care: cu norma intreaga"]
[10,"Centre de sanatate mintala"]
[11,"Centre de diagnostic si tratament cu paturi de spital"]
[12," - din care: cu norma intreaga"]
[13,"Centre medicale de specialitate cu paturi de spital"]
[14," - din care: cu norma intreaga"]
[15,"Unitati medico-sociale"]
[16," - din care: cu norma intreaga"]
[17,"Sanatorii TBC",{"$f":"+'c15'!M15","v":0},{"$f":"+'c15'!O15","v":0},{"$f":"+'c15'!M16","v":0},{"$f":"+'c15'!O16","v":0},{"$f":"+'c15'!M19","v":0},{"$f":"+'c15'!O19","v":0},{"$f":"+'c15'!M27","v":0},{"$f":"+'c15'!O27","v":0},{"$f":"+'c15'!M28","v":0},{"$f":"+'c15'!O28","v":0},{"$f":"+'c15'!M47","v":0},{"$f":"+'c15'!O47","v":0},{"$f":"+'c15'!M48+'c15'!M49+'c15'!M50","v":0},{"$f":"+'c15'!O48+'c15'!O49+'c15'!O50","v":0}]
[18," - din care: cu norma intreaga"]
[19,"Preventorii",{"$f":"+'c15'!P15","v":0},{"$f":"+'c15'!R15","v":0},{"$f":"+'c15'!P16","v":0},{"$f":"+'c15'!R16","v":0},{"$f":"+'c15'!P19","v":0},{"$f":"+'c15'!R19","v":0},{"$f":"+'c15'!P27","v":0},{"$f":"+'c15'!R27","v":0},{"$f":"+'c15'!P28","v":0},{"$f":"+'c15'!R28","v":0},{"$f":"+'c15'!P47","v":0},{"$f":"+'c15'!R47","v":0},{"$f":"+'c15'!P48+'c15'!P49+'c15'!P50","v":0},{"$f":"+'c15'!R48+'c15'!R49+'c15'!R50","v":0}]
[20," - din care: cu norma intreaga"]
[21,"Sanatorii de nevroze sau de neuropsihiatrie",{"$f":"+'c15'!CS15","v":0},{"$f":"+'c15'!CU15","v":0},{"$f":"+'c15'!CS16","v":0},{"$f":"+'c15'!CU16","v":0},{"$f":"+'c15'!CS19","v":0},{"$f":"+'c15'!CU19","v":0},{"$f":"+'c15'!CS27","v":0},{"$f":"+'c15'!CU27","v":0},{"$f":"+'c15'!CS28","v":0},{"$f":"+'c15'!CU28","v":0},{"$f":"+'c15'!CS47","v":0},{"$f":"+'c15'!CU47","v":0},{"$f":"+'c15'!CS48+'c15'!CS49+'c15'!CS50","v":0},{"$f":"+'c15'!CU48+'c15'!CU49+'c15'!CU50","v":0}]
[22," - din care: cu norma intreaga"]
[23,"Sanatorii balneare ",{"$f":"+'c15'!S15","v":0},{"$f":"+'c15'!U15","v":0},{"$f":"+'c15'!S16","v":0},{"$f":"+'c15'!U16","v":0},{"$f":"+'c15'!S19","v":0},{"$f":"+'c15'!U19","v":0},{"$f":"+'c15'!S27","v":0},{"$f":"+'c15'!U27","v":0},{"$f":"+'c15'!S28","v":0},{"$f":"+'c15'!U28","v":0},{"$f":"+'c15'!S47","v":0},{"$f":"+'c15'!U47","v":0},{"$f":"+'c15'!S48+'c15'!S49+'c15'!S50","v":0},{"$f":"+'c15'!U48+'c15'!U49+'c15'!U50","v":0}]
[24," - din care: cu norma intreaga"]
[25,"Dispensare medicale ",{"$f":"+'c15'!V15","v":0},{"$f":"+'c15'!X15","v":0},{"$f":"+'c15'!V16","v":0},{"$f":"+'c15'!X16","v":0},{"$f":"+'c15'!V19","v":0},{"$f":"+'c15'!X19","v":0},{"$f":"+'c15'!V27","v":0},{"$f":"+'c15'!X27","v":0},{"$f":"+'c15'!V28","v":0},{"$f":"+'c15'!X28","v":0},{"$f":"+'c15'!V47","v":0},{"$f":"+'c15'!X47","v":0},{"$f":"+'c15'!V48+'c15'!V49+'c15'!V50","v":0},{"$f":"+'c15'!X48+'c15'!X49+'c15'!X50","v":0}]
[26,"Cabinete medicale şcolare ",{"$f":"+'c15'!Y15","v":0},{"$f":"+'c15'!AA15","v":0},{"$f":"+'c15'!Y16","v":0},{"$f":"+'c15'!AA16","v":0},{"$f":"+'c15'!Y19","v":0},{"$f":"+'c15'!AA19","v":0},{"$f":"+'c15'!Y27","v":0},{"$f":"+'c15'!AA27","v":0},{"$f":"+'c15'!Y28","v":0},{"$f":"+'c15'!AA28","v":0},{"$f":"+'c15'!Y47","v":0},{"$f":"+'c15'!AA47","v":0},{"$f":"+'c15'!Y48+'c15'!Y49+'c15'!Y50","v":0},{"$f":"+'c15'!AA48+'c15'!AA49+'c15'!AA50","v":0}]
[27,"Cabinete medicale studenţeşti",{"$f":"+'c15'!AB15","v":0},{"$f":"+'c15'!AD15","v":0},{"$f":"+'c15'!AB16","v":0},{"$f":"+'c15'!AD16","v":0},{"$f":"+'c15'!AB19","v":0},{"$f":"+'c15'!AD19","v":0},{"$f":"+'c15'!AB27","v":0},{"$f":"+'c15'!AD27","v":0},{"$f":"+'c15'!AB28","v":0},{"$f":"+'c15'!AD28","v":0},{"$f":"+'c15'!AB47","v":0},{"$f":"+'c15'!AD47","v":0},{"$f":"+'c15'!AB48+'c15'!AB49+'c15'!AB50","v":0},{"$f":"+'c15'!AD48+'c15'!AD49+'c15'!AD50","v":0}]
[28,"Cabinete medicale de medicină generală",{"$f":"'c15'!AE15","v":0},{"$f":"'c15'!AG15","v":0},{"$f":"'c15'!AE16","v":0},{"$f":"'c15'!AG16","v":0},{"$f":"'c15'!AE19","v":0},{"$f":"'c15'!AG19","v":0},{"$f":"'c15'!AE27","v":0},{"$f":"'c15'!AG27","v":0},{"$f":"'c15'!AE28","v":0},{"$f":"'c15'!AG28","v":0},{"$f":"'c15'!AE47","v":0},{"$f":"'c15'!AG47","v":0},{"$f":"+'c15'!AE48+'c15'!AE49+'c15'!AE50","v":0},{"$f":"+'c15'!AG48+'c15'!AG49+'c15'!AG50","v":0}]
[29,"Cabinete independente de medicina de familie ",{"$f":"+'c15'!AH15","v":0},{"$f":"+'c15'!AJ15","v":0},{"$f":"+'c15'!AH16","v":0},{"$f":"+'c15'!AJ16","v":0},{"$f":"+'c15'!AH19","v":0},{"$f":"+'c15'!AJ19","v":0},{"$f":"+'c15'!AH27","v":0},{"$f":"+'c15'!AJ27","v":0},{"$f":"+'c15'!AH28","v":0},{"$f":"+'c15'!AJ28","v":0},{"$f":"+'c15'!AH47","v":0},{"$f":"+'c15'!AJ47","v":0},{"$f":"+'c15'!AH48+'c15'!AH49+'c15'!AH50","v":0},{"$f":"+'c15'!AJ48+'c15'!AJ49+'c15'!AJ50","v":0}]
[30,"Societăţi medicale civile ",{"$f":"+'c15'!AK15","v":0},{"$f":"+'c15'!AM15","v":0},{"$f":"+'c15'!AK16","v":0},{"$f":"+'c15'!AM16","v":0},{"$f":"+'c15'!AK19","v":0},{"$f":"+'c15'!AM19","v":0},{"$f":"+'c15'!AK27","v":0},{"$f":"+'c15'!AM27","v":0},{"$f":"+'c15'!AK28","v":0},{"$f":"+'c15'!AM28","v":0},{"$f":"+'c15'!AK47","v":0},{"$f":"+'c15'!AM47","v":0},{"$f":"+'c15'!AK48+'c15'!AK49+'c15'!AK50","v":0},{"$f":"+'c15'!AM48+'c15'!AM49+'c15'!AM50","v":0}]
[31,"Farmacii",{"$f":"+'c15'!AN15","v":0},{"$f":"+'c15'!AP15","v":0},{"$f":"+'c15'!AN16","v":0},{"$f":"+'c15'!AP16","v":0},{"$f":"+'c15'!AN19","v":0},{"$f":"+'c15'!AP19","v":0},{"$f":"+'c15'!AN27","v":0},{"$f":"+'c15'!AP27","v":0},{"$f":"+'c15'!AN28","v":0},{"$f":"+'c15'!AP28","v":0},{"$f":"+'c15'!AN47","v":0},{"$f":"+'c15'!AP47","v":0},{"$f":"+'c15'!AN48+'c15'!AN49+'c15'!AN50","v":0},{"$f":"+'c15'!AP48+'c15'!AP49+'c15'!AP50","v":0}]
[32,"Puncte de lucru ale farmaciilor",{"$f":"+'c15'!AQ15","v":0},{"$f":"+'c15'!AS15","v":0},{"$f":"+'c15'!AQ16","v":0},{"$f":"+'c15'!AS16","v":0},{"$f":"+'c15'!AQ19","v":0},{"$f":"+'c15'!AS19","v":0},{"$f":"+'c15'!AQ27","v":0},{"$f":"+'c15'!AS27","v":0},{"$f":"+'c15'!AQ28","v":0},{"$f":"+'c15'!AS28","v":0},{"$f":"+'c15'!AQ47","v":0},{"$f":"+'c15'!AS47","v":0},{"$f":"+'c15'!AQ48+'c15'!AQ49+'c15'!AQ50","v":0},{"$f":"+'c15'!AS48+'c15'!AS49+'c15'!AS50","v":0}]
[33,"Drogherii"]
[34,"Depozite farmaceutice",{"$f":"+'c15'!AT15","v":0},{"$f":"+'c15'!AV15","v":0},{"$f":"+'c15'!AT16","v":0},{"$f":"+'c15'!AV16","v":0},{"$f":"+'c15'!AT19","v":0},{"$f":"+'c15'!AV19","v":0},{"$f":"+'c15'!AT27","v":0},{"$f":"+'c15'!AV27","v":0},{"$f":"+'c15'!AT28","v":0},{"$f":"+'c15'!AV28","v":0},{"$f":"+'c15'!AT47","v":0},{"$f":"+'c15'!AV47","v":0},{"$f":"+'c15'!AT48+'c15'!AT49+'c15'!AT50","v":0},{"$f":"+'c15'!AV48+'c15'!AV49+'c15'!AV50","v":0}]
[35,"Policlinici",{"$f":"+'c15'!AW15","v":0},{"$f":"+'c15'!AY15","v":0},{"$f":"+'c15'!AW16","v":0},{"$f":"+'c15'!AY16","v":0},{"$f":"+'c15'!AW19","v":0},{"$f":"+'c15'!AY19","v":0},{"$f":"+'c15'!AW27","v":0},{"$f":"+'c15'!AY27","v":0},{"$f":"+'c15'!AW28","v":0},{"$f":"+'c15'!AY28","v":0},{"$f":"+'c15'!AW47","v":0},{"$f":"+'c15'!AY47","v":0},{"$f":"+'c15'!AW48+'c15'!AW49+'c15'!AW50","v":0},{"$f":"+'c15'!AY48+'c15'!AY49+'c15'!AY50","v":0}]
[36,"Centre de dializa si puncte ale centrelor de dializa"]
[37," - din care: cu norma intreaga"]
[38,"Centre de diagnostic şi tratament ",{"$f":"+'c15'!AZ15","v":0},{"$f":"+'c15'!BB15","v":0},{"$f":"+'c15'!AZ16","v":0},{"$f":"+'c15'!BB16","v":0},{"$f":"+'c15'!AZ19","v":0},{"$f":"+'c15'!BB19","v":0},{"$f":"+'c15'!AZ27","v":0},{"$f":"+'c15'!BB27","v":0},{"$f":"+'c15'!AZ28","v":0},{"$f":"+'c15'!BB28","v":0},{"$f":"+'c15'!AZ47","v":0},{"$f":"+'c15'!BB47","v":0},{"$f":"+'c15'!AZ48+'c15'!AZ49+'c15'!AZ50","v":0},{"$f":"+'c15'!BB48+'c15'!BB49+'c15'!BB50","v":0}]
[39,"Centre medicale de specialitate",{"$f":"+'c15'!BC15","v":0},{"$f":"+'c15'!BE15","v":0},{"$f":"+'c15'!BC16","v":0},{"$f":"+'c15'!BE16","v":0},{"$f":"+'c15'!BC19","v":0},{"$f":"+'c15'!BE19","v":0},{"$f":"+'c15'!BC27","v":0},{"$f":"+'c15'!BE27","v":0},{"$f":"+'c15'!BC28","v":0},{"$f":"+'c15'!BE28","v":0},{"$f":"+'c15'!BC47","v":0},{"$f":"+'c15'!BE47","v":0},{"$f":"+'c15'!BC48+'c15'!BC49+'c15'!BC50","v":0},{"$f":"+'c15'!BE48+'c15'!BE49+'c15'!BE50","v":0}]
[40,"Ambulatorii de specialitate ",{"$f":"+'c15'!BF15","v":0},{"$f":"+'c15'!BH15","v":0},{"$f":"+'c15'!BF16","v":0},{"$f":"+'c15'!BH16","v":0},{"$f":"+'c15'!BF19","v":0},{"$f":"+'c15'!BH19","v":0},{"$f":"+'c15'!BF27","v":0},{"$f":"+'c15'!BH27","v":0},{"$f":"+'c15'!BF28","v":0},{"$f":"+'c15'!BH28","v":0},{"$f":"+'c15'!BF47","v":0},{"$f":"+'c15'!BH47","v":0},{"$f":"+'c15'!BF48+'c15'!BF49+'c15'!BF50","v":0},{"$f":"+'c15'!BH48+'c15'!BH49+'c15'!BH50","v":0}]
[41,"Ambulatorii integrate spitalului ",{"$f":"+'c15'!BI15","v":0},{"$f":"+'c15'!BK15","v":0},{"$f":"+'c15'!BI16","v":0},{"$f":"+'c15'!BK16","v":0},{"$f":"+'c15'!BI19","v":0},{"$f":"+'c15'!BK19","v":0},{"$f":"+'c15'!BI27","v":0},{"$f":"+'c15'!BK27","v":0},{"$f":"+'c15'!BI28","v":0},{"$f":"+'c15'!BK28","v":0},{"$f":"+'c15'!BI47","v":0},{"$f":"+'c15'!BK47","v":0},{"$f":"+'c15'!BI48+'c15'!BI49+'c15'!BI50","v":0},{"$f":"+'c15'!BK48+'c15'!BK49+'c15'!BK50","v":0}]
[42,"Cabinete stomatologice şcolare "]
[43,"Cabinete stomatologice studenţeşti"]
[44,"Cabinete stomatologice independente ",{"$f":"+'c15'!BL15","v":0},{"$f":"+'c15'!BN15","v":0},{"$f":"+'c15'!BL16","v":0},{"$f":"+'c15'!BN16","v":0},{"$f":"+'c15'!BL19","v":0},{"$f":"+'c15'!BN19","v":0},{"$f":"+'c15'!BL27","v":0},{"$f":"+'c15'!BN27","v":0},{"$f":"+'c15'!BL28","v":0},{"$f":"+'c15'!BN28","v":0},{"$f":"+'c15'!BL47","v":0},{"$f":"+'c15'!BN47","v":0},{"$f":"+'c15'!BL48+'c15'!BL49+'c15'!BL50","v":0},{"$f":"+'c15'!BN48+'c15'!BN49+'c15'!BN50","v":0}]
[45,"Societăţi stomatologice civile medicale ",{"$f":"+'c15'!BO15","v":0},{"$f":"+'c15'!BQ15","v":0},{"$f":"+'c15'!BO16","v":0},{"$f":"+'c15'!BQ16","v":0},{"$f":"+'c15'!BO19","v":0},{"$f":"+'c15'!BQ19","v":0},{"$f":"+'c15'!BO27","v":0},{"$f":"+'c15'!BQ27","v":0},{"$f":"+'c15'!BO28","v":0},{"$f":"+'c15'!BQ28","v":0},{"$f":"+'c15'!BO47","v":0},{"$f":"+'c15'!BQ47","v":0},{"$f":"+'c15'!BO48+'c15'!BO49+'c15'!BO50","v":0},{"$f":"+'c15'!BQ48+'c15'!BQ49+'c15'!BQ50","v":0}]
[46,"Cabinete medicale de specialitate ",{"$f":"+'c15'!BR15","v":0},{"$f":"+'c15'!BT15","v":0},{"$f":"+'c15'!BR16","v":0},{"$f":"+'c15'!BT16","v":0},{"$f":"+'c15'!BR19","v":0},{"$f":"+'c15'!BT19","v":0},{"$f":"+'c15'!BR27","v":0},{"$f":"+'c15'!BT27","v":0},{"$f":"+'c15'!BR28","v":0},{"$f":"+'c15'!BT28","v":0},{"$f":"+'c15'!BR47","v":0},{"$f":"+'c15'!BT47","v":0},{"$f":"+'c15'!BR48+'c15'!BR49+'c15'!BR50","v":0},{"$f":"+'c15'!BT48+'c15'!BT49+'c15'!BT50","v":0}]
[47,"Societăţi civile medicale de specialitate ",{"$f":"+'c15'!BU15","v":0},{"$f":"+'c15'!BW15","v":0},{"$f":"+'c15'!BU16","v":0},{"$f":"+'c15'!BW16","v":0},{"$f":"+'c15'!BU19","v":0},{"$f":"+'c15'!BW19","v":0},{"$f":"+'c15'!BU27","v":0},{"$f":"+'c15'!BW27","v":0},{"$f":"+'c15'!BU28","v":0},{"$f":"+'c15'!BW28","v":0},{"$f":"+'c15'!BU47","v":0},{"$f":"+'c15'!BW47","v":0},{"$f":"+'c15'!BU48+'c15'!BU49+'c15'!BU50","v":0},{"$f":"+'c15'!BW48+'c15'!BW49+'c15'!BW50","v":0}]
[48,"Centre de transfuzie sanguină",{"$f":"+'c15'!CD15","v":0},{"$f":"+'c15'!CF15","v":0},{"$f":"+'c15'!CD16","v":0},{"$f":"+'c15'!CF16","v":0},{"$f":"+'c15'!CD19","v":0},{"$f":"+'c15'!CF19","v":0},{"$f":"+'c15'!CD27","v":0},{"$f":"+'c15'!CF27","v":0},{"$f":"+'c15'!CD28","v":0},{"$f":"+'c15'!CF28","v":0},{"$f":"+'c15'!CD47","v":0},{"$f":"+'c15'!CF47","v":0},{"$f":"+'c15'!CD48+'c15'!CD49+'c15'!CD50","v":0},{"$f":"+'c15'!CF48+'c15'!CF49+'c15'!CF50","v":0}]
[49,"Laboratoare medicale",{"$f":"+'c15'!CG15","v":0},{"$f":"+'c15'!CI15","v":0},{"$f":"+'c15'!CG16","v":0},{"$f":"+'c15'!CI16","v":0},{"$f":"+'c15'!CG19","v":0},{"$f":"+'c15'!CI19","v":0},{"$f":"+'c15'!CG27","v":0},{"$f":"+'c15'!CI27","v":0},{"$f":"+'c15'!CG28","v":0},{"$f":"+'c15'!CI28","v":0},{"$f":"+'c15'!CG47","v":0},{"$f":"+'c15'!CI47","v":0},{"$f":"+'c15'!CG48+'c15'!CG49+'c15'!CG50","v":0},{"$f":"+'c15'!CI48+'c15'!CI49+'c15'!CI50","v":0}]
[50,"Laboratoare de tehnică dentară",{"$f":"+'c15'!CJ15","v":0},{"$f":"+'c15'!CL15","v":0},{"$f":"+'c15'!CJ16","v":0},{"$f":"+'c15'!CL16","v":0},{"$f":"+'c15'!CJ19","v":0},{"$f":"+'c15'!CL19","v":0},{"$f":"+'c15'!CJ27","v":0},{"$f":"+'c15'!CL27","v":0},{"$f":"+'c15'!CJ28","v":0},{"$f":"+'c15'!CL28","v":0},{"$f":"+'c15'!CJ47","v":0},{"$f":"+'c15'!CL47","v":0},{"$f":"+'c15'!CJ48+'c15'!CJ49+'c15'!CJ50","v":0},{"$f":"+'c15'!CL48+'c15'!CL49+'c15'!CL50","v":0}]
[51,"Unitati de ambulanta, transportul pacientilor si SMURD",{"$f":"+'c15'!CV15","v":0},{"$f":"+'c15'!CX15","v":0},{"$f":"+'c15'!CV16","v":0},{"$f":"+'c15'!CX16","v":0},{"$f":"+'c15'!CV19","v":0},{"$f":"+'c15'!CX19","v":0},{"$f":"+'c15'!CV27","v":0},{"$f":"+'c15'!CX27","v":0},{"$f":"+'c15'!CV28","v":0},{"$f":"+'c15'!CX28","v":0},{"$f":"+'c15'!CV47","v":0},{"$f":"+'c15'!CX47","v":0},{"$f":"+'c15'!CV48+'c15'!CV49+'c15'!CV50","v":0},{"$f":"+'c15'!CX48+'c15'!CX49+'c15'!CX50","v":0}]
[52,"Alte tipuri de cabinete medicale"]
[53,"Unitati rezidentiale pentru persoanele cu dizabilitati "]
[54,"Centre de zi pentru persoanele cu dizabilitati"]
[55,"Unitati rezidentiale pentru persoanele varstnice care ofera ingriji medicale in cadrul unitatii"]
[56,"Alte unități de asistență socială care furnizează îngrijiri medicale"]
[57,"Institute şi instituţii fără paturi *",{"$f":"+'c15'!CM15+'c15'!CP15+'c15'!CY15","v":0},{"$f":"+'c15'!CO15+'c15'!CR15+'c15'!DA15","v":0},{"$f":"+'c15'!CM16+'c15'!CP16+'c15'!CY16","v":0},{"$f":"+'c15'!CO16+'c15'!CR16+'c15'!DA16","v":0},{"$f":"+'c15'!CM19+'c15'!CP19+'c15'!CY19","v":0},{"$f":"+'c15'!CO19+'c15'!CR19+'c15'!DA19","v":0},{"$f":"+'c15'!CM27+'c15'!CP27+'c15'!CY27","v":0},{"$f":"+'c15'!CO27+'c15'!CR27+'c15'!DA27","v":0},{"$f":"+'c15'!CM28+'c15'!CP28+'c15'!CY28","v":0},{"$f":"+'c15'!CO28+'c15'!CR28+'c15'!DA28","v":0},{"$f":"+'c15'!CM47+'c15'!CP47+'c15'!CY47","v":0},{"$f":"+'c15'!CO47+'c15'!CR47+'c15'!DA47","v":0},{"$f":"+'c15'!CM48+'c15'!CM49+'c15'!CM50+'c15'!CP48+'c15'!CP49+'c15'!CP50+'c15'!CY48+'c15'!CY49+'c15'!CY50","v":0},{"$f":"+'c15'!CO48+'c15'!CO49+'c15'!CO50+'c15'!CR48+'c15'!CR49+'c15'!CR50+'c15'!DA48+'c15'!DA49+'c15'!DA50","v":0}]
[58,"Alte unitati **"]
["Cap.9  Numărul medicilor (exclusiv dentisti), după specialitatea medicală",null,null,null,{"$f":"C392=E236","v":true},{"$f":"D392=F236","v":true},{"$f":"E239=G392","v":true},{"$f":"F239=H392","v":true}]
["Nr. Crt.","Specialitatea medicală","Total","d.c:femei","din Total"]
[]
[null,null,null,null,"med.pt.copii",null,"medici rezidenti"]
[null,null,null,null,"total","din care femei","total","d.c. femei"]
["A","B","1","2",3,4,5,6]
["1.  ","Total, d.c:",{"$f":"SUM(C393:C445)","v":0},0,0,0,0,0]
["2.  ","Alergologie şi imunologie clinică",{"$f":"+'c15'!D111","v":0},{"$f":"+'c15'!F111","v":0},{"$f":"+'c15'!J111","v":0},{"$f":"+'c15'!L111","v":0},{"$f":"+'c15'!G111","v":0},{"$f":"+'c15'!I111","v":0}]
["3.  ","A.T.I.",{"$f":"+'c15'!D112","v":0},{"$f":"+'c15'!F112","v":0},{"$f":"+'c15'!J112","v":0},{"$f":"+'c15'!L112","v":0},{"$f":"+'c15'!G112","v":0},{"$f":"+'c15'!I112","v":0}]
["4.  ","Boli infecţioase",{"$f":"+'c15'!D113","v":0},{"$f":"+'c15'!F113","v":0},{"$f":"+'c15'!J113","v":0},{"$f":"+'c15'!L113","v":0},{"$f":"+'c15'!G113","v":0},{"$f":"+'c15'!I113","v":0}]
["5.  ","Cardiologie",{"$f":"+'c15'!D114","v":0},{"$f":"+'c15'!F114","v":0},{"$f":"+'c15'!J114","v":0},{"$f":"+'c15'!L114","v":0},{"$f":"+'c15'!G114","v":0},{"$f":"+'c15'!I114","v":0}]
["6.  ","Dermatovenerologie",{"$f":"+'c15'!D115","v":0},{"$f":"+'c15'!F115","v":0},{"$f":"+'c15'!J115","v":0},{"$f":"+'c15'!L115","v":0},{"$f":"+'c15'!G115","v":0},{"$f":"+'c15'!I115","v":0}]
["7.  ","Diabet zaharat, nutriţie şi boli metabolice",{"$f":"+'c15'!D116","v":0},{"$f":"+'c15'!F116","v":0},{"$f":"+'c15'!J116","v":0},{"$f":"+'c15'!L116","v":0},{"$f":"+'c15'!G116","v":0},{"$f":"+'c15'!I116","v":0}]
["8.  ","Endocrinologie",{"$f":"+'c15'!D117","v":0},{"$f":"+'c15'!F117","v":0},{"$f":"+'c15'!J117","v":0},{"$f":"+'c15'!L117","v":0},{"$f":"+'c15'!G117","v":0},{"$f":"+'c15'!I117","v":0}]
["9.  ","Expertiza medicală a capacităţii de muncă",{"$f":"+'c15'!D118","v":0},{"$f":"+'c15'!F118","v":0},{"$f":"+'c15'!J118","v":0},{"$f":"+'c15'!L118","v":0},{"$f":"+'c15'!G118","v":0},{"$f":"+'c15'!I118","v":0}]
["10.   ","Farmacologie clinică",{"$f":"+'c15'!D119","v":0},{"$f":"+'c15'!F119","v":0},{"$f":"+'c15'!J119","v":0},{"$f":"+'c15'!L119","v":0},{"$f":"+'c15'!G119","v":0},{"$f":"+'c15'!I119","v":0}]
["11.   ","Gastroenterologie",{"$f":"+'c15'!D120","v":0},{"$f":"+'c15'!F120","v":0},{"$f":"+'c15'!J120","v":0},{"$f":"+'c15'!L120","v":0},{"$f":"+'c15'!G120","v":0},{"$f":"+'c15'!I120","v":0}]
["12.   ","Genetică medicală",{"$f":"+'c15'!D121","v":0},{"$f":"+'c15'!F121","v":0},{"$f":"+'c15'!J121","v":0},{"$f":"+'c15'!L121","v":0},{"$f":"+'c15'!G121","v":0},{"$f":"+'c15'!I121","v":0}]
["13.   ","Geriatrie şi gerontologie",{"$f":"+'c15'!D122","v":0},{"$f":"+'c15'!F122","v":0},{"$f":"+'c15'!J122","v":0},{"$f":"+'c15'!L122","v":0},{"$f":"+'c15'!G122","v":0},{"$f":"+'c15'!I122","v":0}]
["14.   ","Hematologie",{"$f":"+'c15'!D123","v":0},{"$f":"+'c15'!F123","v":0},{"$f":"+'c15'!J123","v":0},{"$f":"+'c15'!L123","v":0},{"$f":"+'c15'!G123","v":0},{"$f":"+'c15'!I123","v":0}]
["15.   ","Medicină de familie",{"$f":"+'c15'!D124","v":0},{"$f":"+'c15'!F124","v":0},{"$f":"+'c15'!J124","v":0},{"$f":"+'c15'!L124","v":0},{"$f":"+'c15'!G124","v":0},{"$f":"+'c15'!I124","v":0},{"$f":"E237=C406","v":true},{"$f":"F237=D406","v":true}]
["16.   ","Medicină de urgenţă",{"$f":"+'c15'!D125","v":0},{"$f":"+'c15'!F125","v":0},{"$f":"+'c15'!J125","v":0},{"$f":"+'c15'!L125","v":0},{"$f":"+'c15'!G125","v":0},{"$f":"+'c15'!I125","v":0}]
["17.   ","Medicină internă",{"$f":"+'c15'!D126","v":0},{"$f":"+'c15'!F126","v":0},{"$f":"+'c15'!J126","v":0},{"$f":"+'c15'!L126","v":0},{"$f":"+'c15'!G126","v":0},{"$f":"+'c15'!I126","v":0}]
["18.   ","Medicină generală",{"$f":"+'c15'!D127","v":0},{"$f":"+'c15'!F127","v":0},{"$f":"+'c15'!J127","v":0},{"$f":"+'c15'!L127","v":0},{"$f":"+'c15'!G127","v":0},{"$f":"+'c15'!I127","v":0}]
["19.   ","Medicina muncii",{"$f":"+'c15'!D128","v":0},{"$f":"+'c15'!F128","v":0},{"$f":"+'c15'!J128","v":0},{"$f":"+'c15'!L128","v":0},{"$f":"+'c15'!G128","v":0},{"$f":"+'c15'!I128","v":0}]
["20.","Medicină sportivă",{"$f":"+'c15'!D129","v":0},{"$f":"+'c15'!F129","v":0},{"$f":"+'c15'!J129","v":0},{"$f":"+'c15'!L129","v":0},{"$f":"+'c15'!G129","v":0},{"$f":"+'c15'!I129","v":0}]
["21.","Nefrologie",{"$f":"+'c15'!D130","v":0},{"$f":"+'c15'!F130","v":0},{"$f":"+'c15'!J130","v":0},{"$f":"+'c15'!L130","v":0},{"$f":"+'c15'!G130","v":0},{"$f":"+'c15'!I130","v":0}]
["22.","Neonatologie",{"$f":"+'c15'!D131","v":0},{"$f":"+'c15'!F131","v":0},{"$f":"+'c15'!J131","v":0},{"$f":"+'c15'!L131","v":0},{"$f":"+'c15'!G131","v":0},{"$f":"+'c15'!I131","v":0}]
["23.","Neurologie",{"$f":"+'c15'!D132","v":0},{"$f":"+'c15'!F132","v":0},{"$f":"+'c15'!J132","v":0},{"$f":"+'c15'!L132","v":0},{"$f":"+'c15'!G132","v":0},{"$f":"+'c15'!I132","v":0}]
["24.","Neurologie pediatrică",{"$f":"+'c15'!D133","v":0},{"$f":"+'c15'!F133","v":0},{"$f":"+'c15'!J133","v":0},{"$f":"+'c15'!L133","v":0},{"$f":"+'c15'!G133","v":0},{"$f":"+'c15'!I133","v":0}]
["25.","Oncologie medicală",{"$f":"+'c15'!D134","v":0},{"$f":"+'c15'!F134","v":0},{"$f":"+'c15'!J134","v":0},{"$f":"+'c15'!L134","v":0},{"$f":"+'c15'!G134","v":0},{"$f":"+'c15'!I134","v":0}]
["26.","Pediatrie",{"$f":"+'c15'!D135","v":0},{"$f":"+'c15'!F135","v":0},{"$f":"+'c15'!J135","v":0},{"$f":"+'c15'!L135","v":0},{"$f":"+'c15'!G135","v":0},{"$f":"+'c15'!I135","v":0}]
["27.","Pneumologie",{"$f":"+'c15'!D136","v":0},{"$f":"+'c15'!F136","v":0},{"$f":"+'c15'!J136","v":0},{"$f":"+'c15'!L136","v":0},{"$f":"+'c15'!G136","v":0},{"$f":"+'c15'!I136","v":0}]
["28.","Psihiatrie ",{"$f":"+'c15'!D137","v":0},{"$f":"+'c15'!F137","v":0},{"$f":"+'c15'!J137","v":0},{"$f":"+'c15'!L137","v":0},{"$f":"+'c15'!G137","v":0},{"$f":"+'c15'!I137","v":0}]
["29.","Psihiatrie pediatrică ",{"$f":"+'c15'!D138","v":0},{"$f":"+'c15'!F138","v":0},{"$f":"+'c15'!J138","v":0},{"$f":"+'c15'!L138","v":0},{"$f":"+'c15'!G138","v":0},{"$f":"+'c15'!I138","v":0}]
["30.","Radioterapie",{"$f":"+'c15'!D139","v":0},{"$f":"+'c15'!F139","v":0},{"$f":"+'c15'!J139","v":0},{"$f":"+'c15'!L139","v":0},{"$f":"+'c15'!G139","v":0},{"$f":"+'c15'!I139","v":0}]
["31.","Recuperare, medicină fizică şi balneologie",{"$f":"+'c15'!D140","v":0},{"$f":"+'c15'!F140","v":0},{"$f":"+'c15'!J140","v":0},{"$f":"+'c15'!L140","v":0},{"$f":"+'c15'!G140","v":0},{"$f":"+'c15'!I140","v":0}]
["32.","Reumatologie",{"$f":"+'c15'!D141","v":0},{"$f":"+'c15'!F141","v":0},{"$f":"+'c15'!J141","v":0},{"$f":"+'c15'!L141","v":0},{"$f":"+'c15'!G141","v":0},{"$f":"+'c15'!I141","v":0}]
["33.","Chirurgie cardiovasculară",{"$f":"+'c15'!D142","v":0},{"$f":"+'c15'!F142","v":0},{"$f":"+'c15'!J142","v":0},{"$f":"+'c15'!L142","v":0},{"$f":"+'c15'!G142","v":0},{"$f":"+'c15'!I142","v":0}]
["34.","Chirurgie generală",{"$f":"+'c15'!D143","v":0},{"$f":"+'c15'!F143","v":0},{"$f":"+'c15'!J143","v":0},{"$f":"+'c15'!L143","v":0},{"$f":"+'c15'!G143","v":0},{"$f":"+'c15'!I143","v":0}]
["35.","Chirurgie orală şi maxilo- facială",{"$f":"+'c15'!D144","v":0},{"$f":"+'c15'!F144","v":0},{"$f":"+'c15'!J144","v":0},{"$f":"+'c15'!L144","v":0},{"$f":"+'c15'!G144","v":0},{"$f":"+'c15'!I144","v":0}]
["36.","Chirurgie pediatrică",{"$f":"+'c15'!D145","v":0},{"$f":"+'c15'!F145","v":0},{"$f":"+'c15'!J145","v":0},{"$f":"+'c15'!L145","v":0},{"$f":"+'c15'!G145","v":0},{"$f":"+'c15'!I145","v":0}]
["37.","Chirurgie plastică-microchir. reconstructivă",{"$f":"+'c15'!D146","v":0},{"$f":"+'c15'!F146","v":0},{"$f":"+'c15'!J146","v":0},{"$f":"+'c15'!L146","v":0},{"$f":"+'c15'!G146","v":0},{"$f":"+'c15'!I146","v":0}]
["38.","chirurgie toracică",{"$f":"+'c15'!D147","v":0},{"$f":"+'c15'!F147","v":0},{"$f":"+'c15'!J147","v":0},{"$f":"+'c15'!L147","v":0},{"$f":"+'c15'!G147","v":0},{"$f":"+'c15'!I147","v":0}]
["39.","Chirurgie vasculară",{"$f":"+'c15'!D148","v":0},{"$f":"+'c15'!F148","v":0},{"$f":"+'c15'!J148","v":0},{"$f":"+'c15'!L148","v":0},{"$f":"+'c15'!G148","v":0},{"$f":"+'c15'!I148","v":0}]
["40."," Neurochirurgie",{"$f":"+'c15'!D149","v":0},{"$f":"+'c15'!F149","v":0},{"$f":"+'c15'!J149","v":0},{"$f":"+'c15'!L149","v":0},{"$f":"+'c15'!G149","v":0},{"$f":"+'c15'!I149","v":0}]
["41.","Obstetrică- ginecologie",{"$f":"+'c15'!D150","v":0},{"$f":"+'c15'!F150","v":0},{"$f":"+'c15'!J150","v":0},{"$f":"+'c15'!L150","v":0},{"$f":"+'c15'!G150","v":0},{"$f":"+'c15'!I150","v":0}]
["42.","Oftalmologie",{"$f":"+'c15'!D151","v":0},{"$f":"+'c15'!F151","v":0},{"$f":"+'c15'!J151","v":0},{"$f":"+'c15'!L151","v":0},{"$f":"+'c15'!G151","v":0},{"$f":"+'c15'!I151","v":0}]
["43.","Ortopedie şi traumatologie",{"$f":"+'c15'!D153+'c15'!D152","v":0},{"$f":"+'c15'!F153+'c15'!F152","v":0},{"$f":"+'c15'!J153+'c15'!J152","v":0},{"$f":"+'c15'!L153+'c15'!L152","v":0},{"$f":"+'c15'!G153+'c15'!G152","v":0},{"$f":"+'c15'!I153+'c15'!I152","v":0}]
["44.","O.R.L.",{"$f":"+'c15'!D154","v":0},{"$f":"+'c15'!F154","v":0},{"$f":"+'c15'!J154","v":0},{"$f":"+'c15'!L154","v":0},{"$f":"+'c15'!G154","v":0},{"$f":"+'c15'!I154","v":0}]
["45."," Urologie",{"$f":"+'c15'!D155","v":0},{"$f":"+'c15'!F155","v":0},{"$f":"+'c15'!J155","v":0},{"$f":"+'c15'!L155","v":0},{"$f":"+'c15'!G155","v":0},{"$f":"+'c15'!I155","v":0}]
["46.","Anatomie patologică",{"$f":"+'c15'!D156","v":0},{"$f":"+'c15'!F156","v":0},{"$f":"+'c15'!J156","v":0},{"$f":"+'c15'!L156","v":0},{"$f":"+'c15'!G156","v":0},{"$f":"+'c15'!I156","v":0}]
["47.","Epidemiologie",{"$f":"+'c15'!D157","v":0},{"$f":"+'c15'!F157","v":0},{"$f":"+'c15'!J157","v":0},{"$f":"+'c15'!L157","v":0},{"$f":"+'c15'!G157","v":0},{"$f":"+'c15'!I157","v":0}]
["48.","Igienă",{"$f":"+'c15'!D158","v":0},{"$f":"+'c15'!F158","v":0},{"$f":"+'c15'!J158","v":0},{"$f":"+'c15'!L158","v":0},{"$f":"+'c15'!G158","v":0},{"$f":"+'c15'!I158","v":0}]
["49.","Medicină de laborator",{"$f":"+'c15'!D159","v":0},{"$f":"+'c15'!F159","v":0},{"$f":"+'c15'!J159","v":0},{"$f":"+'c15'!L159","v":0},{"$f":"+'c15'!G159","v":0},{"$f":"+'c15'!I159","v":0}]
["50."," Medicină legală",{"$f":"+'c15'!D160","v":0},{"$f":"+'c15'!F160","v":0},{"$f":"+'c15'!J160","v":0},{"$f":"+'c15'!L160","v":0},{"$f":"+'c15'!G160","v":0},{"$f":"+'c15'!I160","v":0}]
["51."," Medicină nucleară",{"$f":"+'c15'!D161","v":0},{"$f":"+'c15'!F161","v":0},{"$f":"+'c15'!J161","v":0},{"$f":"+'c15'!L161","v":0},{"$f":"+'c15'!G161","v":0},{"$f":"+'c15'!I161","v":0}]
["52.","Radiologie – imagistică medicală",{"$f":"+'c15'!D162","v":0},{"$f":"+'c15'!F162","v":0},{"$f":"+'c15'!J162","v":0},{"$f":"+'c15'!L162","v":0},{"$f":"+'c15'!G162","v":0},{"$f":"+'c15'!I162","v":0}]
["53.","Sănătate publică şi management",{"$f":"+'c15'!D163","v":0},{"$f":"+'c15'!F163","v":0},{"$f":"+'c15'!J163","v":0},{"$f":"+'c15'!L163","v":0},{"$f":"+'c15'!G163","v":0},{"$f":"+'c15'!I163","v":0}]
["54.","Alta specialitate medicala"]
["Cap.11 Asistenţa medicală de urgenţă ",null,{"$f":"+IF(C450>=D450,\"A\",\"F\")","v":"A"}]
["Nr. Crt.","Număr de autosanitare la sf.anului","Număr Solicitări",null,"Număr de pacienţi"]
[null,null,"Total","din care: rezolvate","Transpor-taţi","Asistaţi"]
["A","1",2,3,4,5]
["1.",0,0,0,0,0]
["Cap.12a Alocarea cheltuielilor din unitatile sanitare cu paturi si din unitatile din sfera asistentei sociale in care se furnizeaza si ingrijiri medicale, in anul financiar 2019, dupa suresele de finantare/venituri, pe categorii de cheltuieli si tipuri de unitati",null,null,null,null,null,null,null,null,null,null,null,"in mii lei"]
["Nr. rând","Tipuri de unităţi sanitare","Cheltuieli curente","din cheltuieli curente (col.1) pe surse de finantare",null,null,null,null,null,null,null,"Cheltuieli de capital"]
[null,null,null,"Bugetul de stat","Bugetele locale si judetene","Fondul National Unic de Asigurari Sociale de Sanatate","Fonduri proprii",null,null,"Societati private de asigurari","Angajatori, pt. controale periodice ale personalului propriu","Total","din care din fonduri publice"]
[null,null,null,null,null,null,"Total","din care:"]
[null,null,null,null,null,null,null,"plati directe de la pacienti","donatii"]
["A","B",1,2,3,4,5,6,7,8,9,10,11]
["1.    ","Spitale (inclusiv institute cu paturi de spital)",{"$f":"SUM(D457:G457)+SUM(J457:K457)","v":0},null,null,null,null,null,null,null,null,null,null,{"$f":"G457>=H457+I457","v":true},{"$f":"L457>=M457","v":true}]
["2.    ","Centre de sanatate cu paturi de spital",{"$f":"SUM(D458:G458)+SUM(J458:K458)","v":0},null,null,null,null,null,null,null,null,null,null,{"$f":"G458>=H458+I458","v":true},true]
["3.    ","Centre de sănătate multifuncționale",0,null,null,null,null,null,null,null,null,null,null,true,true]
["4.    ","Centre de diagnostic și tratament cu paturi de spital",0,null,null,null,null,null,null,null,null,null,null,true,true]
["5.    ","Centre medicale de specialitate cu paturi de spital",0,null,null,null,null,null,null,null,null,null,null,true,true]
["6.    ","Unităţi medico-sociale",0,null,null,null,null,null,null,null,null,null,null,true,true]
["7.    ","Sanatorii TBC",0,null,null,null,null,null,null,null,null,null,null,true,true]
["8.    ","Preventorii",0,null,null,null,null,null,null,null,null,null,null,true,true]
["9.    ","Sanatorii de nevroze sau de neuropsihiatrie",0,null,null,null,null,null,null,null,null,null,null,true,true]
["10.    ","Sanatorii balneare",0,null,null,null,null,null,null,null,null,null,null,true,true]
["11.    ","Centre de dializă și puncte ale centrelor de dializă",0,null,null,null,null,null,null,null,null,null,null,true,true]
["12.    ","Unitati rezidentiale pentru persoanele cu dizabilități",0,null,null,null,null,null,null,null,null,null,null,true,true]
["13.    ","Unitati rezidentiale pentru persoanele varstnice care ofera ingriji medicale in cadrul unitatii",0,null,null,null,null,null,null,null,null,null,null,true,true]
["Cap.12b Alocarea cheltuielilor din unitatile sanitare si din unitatile din sfera asistentei sociale in care se furnizeaza si ingrijiri medicale, care acorda asistenta medicala ambulatorie,in anul financiar 2019, dupa sursele de finantare/venituri,pe  categorii de cheltuieli si tipuri de unitati",null,null,null,null,null,null,null,null,null,null,null,"in mii lei"]
["Nr. rând","Tipuri de unităţi sanitare","Cheltuieli curente","din cheltuieli curente (col.2) pe surse de finantare",null,null,null,null,null,null,null,"Cheltuieli de capital"]
[null,null,null,"Bugetul de stat","Bugetele locale si judetene","Fondul National Unic de Asigurari Sociale de Sanatate","Fonduri proprii",null,null,"Societati private de asigurari","Angajatori, pt. controale periodice ale personalului propriu","Total","din care din fonduri publice"]
[null,null,null,null,null,null,"Total","din care:"]
[null,null,null,null,null,null,null,"plati directe de la pacienti","donatii"]
["A","B",1,2,3,4,5,6,7,8,9,10,11]
["1.    ","Centre de sănătate",{"$f":"SUM(D476:G476)+SUM(J476:K476)","v":0},null,null,null,null,null,null,null,null,null,null,{"$f":"G476>=H476+I476","v":true},{"$f":"L476>=M476","v":true}]
["2.    ","Centre de sanatate mintala",{"$f":"SUM(D477:G477)+SUM(J477:K477)","v":0},null,null,null,null,null,null,null,null,null,null,{"$f":"G477>=H477+I477","v":true},{"$f":"L477>=M477","v":true}]
["3.    ","Dispensare medicale ",0,null,null,null,null,null,null,null,null,null,null,{"$f":"G478>=H478+I478","v":true},{"$f":"L478>=M478","v":true}]
["4.    ","Cabinete medicale şcolare ",0,null,null,null,null,null,null,null,null,null,null,true,true]
["5.    ","Cabinete medicale studenţeşti",0,null,null,null,null,null,null,null,null,null,null,true,true]
["6.    ","Cabinete independente de medicale de medicină generală",0,null,null,null,null,null,null,null,null,null,null,true,true]
["7.    ","Cabinete independente de medicină de familie",0,null,null,null,null,null,null,null,null,null,null,true,true]
["8.    ","Societăţi medicale civile 2)",0,null,null,null,null,null,null,null,null,null,null,true,true]
["9.    ","Farmacii",0,null,null,null,null,null,null,null,null,null,null,true,true]
["10.    ","Puncte de lucru ale farmaciilor",0,null,null,null,null,null,null,null,null,null,null,true,true]
["11.    ","Drogherii",0,null,null,null,null,null,null,null,null,null,null,true,true]
["12.    ","Depozite farmaceutice",0,null,null,null,null,null,null,null,null,null,null,true,true]
["13.    ","Policlinici",0,null,null,null,null,null,null,null,null,null,null,true,true]
["14.    ","Centre de diagnostic şi tratament",0,null,null,null,null,null,null,null,null,null,null,true,true]
["15.    ","Centre medicale de specialitate",0,null,null,null,null,null,null,null,null,null,null,true,true]
["16.    ","Ambulatorii de specialitate",0,null,null,null,null,null,null,null,null,null,null,true,true]
["17.    ","Ambulatorii integrate spitalului",0,null,null,null,null,null,null,null,null,null,null,true,true]
["18.    ","Cabinete stomatologice şcolare ",0,null,null,null,null,null,null,null,null,null,null,true,true]
["19.    ","Cabinete stomatologice studenţeşti",0,null,null,null,null,null,null,null,null,null,null,true,true]
["20.    ","Cabinete stomatologice independente",0,null,null,null,null,null,null,null,null,null,null,true,true]
["21.    ","Societăţi stomatologice civile medicale ",0,null,null,null,null,null,null,null,null,null,null,true,true]
["22.    ","Cabinete medicale independente de specialitate",0,null,null,null,null,null,null,null,null,null,null,true,true]
["23.    ","Societăţi civile medicale de specialitate",0,null,null,null,null,null,null,null,null,null,null,true,true]
["24.    ","Centre de transfuzie sanguină",0,null,null,null,null,null,null,null,null,null,null,true,true]
["25.    ","Laboratoare medicale",0,null,null,null,null,null,null,null,null,null,null,true,true]
["26.    ","Laboratoare de tehnică dentară",0,null,null,null,null,null,null,null,null,null,null,true,true]
["27.    ","Unitati de ambulanta, transportul pacientilor si SMURD",0,null,null,null,null,null,null,null,null,null,null,true,true]
["28.    ","Alte tipuri de cabinete medicale",0,null,null,null,null,null,null,null,null,null,null,true,true]
["29.    ","Centre de zi pentru persoanele cu dizabilități",0,null,null,null,null,null,null,null,null,null,null,true,true]
["30.    ","Alte unități de asistență socială care furnizează îngrijiri medicale",{"$f":"SUM(D505:G505)+SUM(J505:K505)","v":0},null,null,null,null,null,null,null,null,null,null,true,true]
["31.    ","Institute şi instituţii fără paturi *",0,null,null,null,null,null,null,null,null,null,null,true,true]
["32.    ","Alte unitati **",{"$f":"SUM(D507:G507)+SUM(J507:K507)","v":0},null,null,null,null,null,null,null,null,null,null,true,true]
["Cap.13a Alocarea cheltuielilor din unitățile sanitare și din unitatile din sfera asistentei sociale in care se furnizeaza si ingrijiri medicale, care acorda asistenta medicala ambulatorie, in anul financiar 2019, pe tipuri de unitati si servicii",null,null,null,null,null,null,null,null,null,null,"in mii lei"]
["Nr. rând","Tipuri de unităţi sanitare","Cheltuieli curente din cap.12a, col.1","din care pe categorii principale de servicii"]
[null,null,null,"servicii medicale de:",null,null,null,null,null,"servicii medicale paraclinice",null,"medicamente"]
[null,null,null,"spit.continua pt.cazuri acute si cronice","spitalizare de zi","recuperare, reabilitare","ambulanta si transportul pacientilor","medicina muncii","preventie si sanatate publica","total din care:","d.c.diagnos- ticare imagistica"]
[]
["A","B",1,2,3,4,5,6,7,8,9,10]
["1.    ","Spitale (inclusiv institute cu paturi de spital)",null,null,null,null,null,null,null,null,null,null,{"$f":"C457=C514","v":true},{"$f":"C514>=D514+E514+F514+G514+H514+I514+J514+L514","v":true},{"$f":"J514>=K514","v":true}]
["2.    ","Centre de sanatate cu paturi de spital",null,null,null,null,null,null,null,null,null,null,true,{"$f":"C515>=D515+E515+F515+G515+H515+I515+J515+L515","v":true},{"$f":"J515>=K515","v":true}]
["3.    ","Centre de sănătate multifuncționale",null,null,null,null,null,null,null,null,null,null,true,{"$f":"C516>=D516+E516+F516+G516+H516+I516+J516+L516","v":true},{"$f":"J516>=K516","v":true}]
["4.    ","Centre de diagnostic și tratament cu paturi de spital",null,null,null,null,null,null,null,null,null,null,true,true,true]
["5.    ","Centre medicale de specialitate cu paturi de spital",null,null,null,null,null,null,null,null,null,null,true,true,true]
["6.    ","Unităţi medico-sociale",null,null,null,null,null,null,null,null,null,null,true,true,true]
["7.    ","Sanatorii TBC",null,null,null,null,null,null,null,null,null,null,true,true,true]
["8.    ","Preventorii",null,null,null,null,null,null,null,null,null,null,true,true,true]
["9.    ","Sanatorii de nevroze sau de neuropsihiatrie",null,null,null,null,null,null,null,null,null,null,true,true,true]
["10.    ","Sanatorii balneare",null,null,null,null,null,null,null,null,null,null,true,true,true]
["11.    ","Centre de dializă și puncte ale centrelor de dializă",null,null,null,null,null,null,null,null,null,null,true,true,true]
["12.    ","Unitati rezidentiale pentru persoanele cu dizabilități",null,null,null,null,null,null,null,null,null,null,true,true,true]
["13.    ","Unitati rezidentiale pentru persoanele varstnice care ofera ingriji medicale in cadrul unitatii",null,null,null,null,null,null,null,null,null,null,true,true,true]
["Cap.13b Alocarea cheltuielilor din unitatile sanitare si din unitatile din sfera asistentei sociale in care se furnizeaza si ingrijiri medicale, care acorda asistenta medicala ambulatorie, in anul financiar 2019, pe tipuri de unitati si servicii",null,null,null,null,null,null,null,null,null,null,null,null,"in mii lei"]
["Nr. rând","Tipuri de unităţi sanitare","Cheltuieli curente (din cap.12b col.1)","din care: pe categorii principale de servicii"]
[null,null,null,"medicale primare","imunizări","medicale de specialitate","medicale  Stomatologice","medicale de recuperare-reabilitare","medicale de îngrijire la domiciliu","edicale de planificare familială","ambulanţă şi transposturl pacienţilor","medicina muncii","medicale paraclinice"]
[null,null,null,null,null,null,null,null,null,null,null,null,"Total","din care: diagnos- ticare imagistică"]
["A","B",1,2,3,4,5,6,7,8,9,10,11,12]
["1.    ","Centre de sănătate",null,null,null,null,null,null,null,null,null,null,null,null,null,{"$f":"C476=C532","v":true},{"$f":"C532>=SUM(D532:M532)","v":true},{"$f":"M532>=N532","v":true}]
["2.    ","Centre de sanatate mintala",null,null,null,null,null,null,null,null,null,null,null,null,null,true,{"$f":"C533>=SUM(D533:M533)","v":true},{"$f":"M533>=N533","v":true}]
["3.    ","Dispensare medicale ",null,null,null,null,null,null,null,null,null,null,null,null,null,true,true,true]
["4.    ","Cabinete medicale şcolare ",null,null,null,null,null,null,null,null,null,null,null,null,null,true,true,true]
["5.    ","Cabinete medicale studenţeşti",null,null,null,null,null,null,null,null,null,null,null,null,null,true,true,true]
["6.    ","Cabinete independente de medicină generală",null,null,null,null,null,null,null,null,null,null,null,null,null,true,true,true]
["7.    ","Cabinete independente de medicină de familie",null,null,null,null,null,null,null,null,null,null,null,null,null,true,true,true]
["8.    ","Societăţi medicale civile",null,null,null,null,null,null,null,null,null,null,null,null,null,true,true,true]
["9.    ","Farmacii",null,null,null,null,null,null,null,null,null,null,null,null,null,true,true,true]
["10.    ","Puncte de lucru ale farmaciilor",null,null,null,null,null,null,null,null,null,null,null,null,null,true,true,true]
["11.    ","Drogherii",null,null,null,null,null,null,null,null,null,null,null,null,null,true,true,true]
["12.    ","Depozite farmaceutice",null,null,null,null,null,null,null,null,null,null,null,null,null,true,true,true]
["13.    ","Policlinici",null,null,null,null,null,null,null,null,null,null,null,null,null,true,true,true]
["14.    ","Centre de diagnostic şi tratament",null,null,null,null,null,null,null,null,null,null,null,null,null,true,true,true]
["15.    ","Centre medicale de specialitate",null,null,null,null,null,null,null,null,null,null,null,null,null,true,true,true]
["16.    ","Ambulatorii de specialitate",null,null,null,null,null,null,null,null,null,null,null,null,null,true,true,true]
["17.    ","Ambulatorii integrate spitalului",null,null,null,null,null,null,null,null,null,null,null,null,null,true,true,true]
["18.    ","Cabinete stomatologice şcolare ",null,null,null,null,null,null,null,null,null,null,null,null,null,true,true,true]
["19.    ","Cabinete stomatologice studenţeşti",null,null,null,null,null,null,null,null,null,null,null,null,null,true,true,true]
["20.    ","Cabinete stomatologice independente",null,null,null,null,null,null,null,null,null,null,null,null,null,true,true,true]
["21.    ","Societăţi stomatologice civile medicale ",null,null,null,null,null,null,null,null,null,null,null,null,null,true,true,true]
["22.    ","Cabinete medicale independente de specialitate",null,null,null,null,null,null,null,null,null,null,null,null,null,true,true,true]
["23.    ","Societăţi civile medicale de specialitate",null,null,null,null,null,null,null,null,null,null,null,null,null,true,true,true]
["24.    ","Centre de transfuzie sanguină",null,null,null,null,null,null,null,null,null,null,null,null,null,true,true,true]
["25.    ","Laboratoare medicale",null,null,null,null,null,null,null,null,null,null,null,null,null,true,true,true]
["26.    ","Laboratoare de tehnică dentară",null,null,null,null,null,null,null,null,null,null,null,null,null,true,true,true]
["27.    ","Unitati de ambulanta, transportul pacientilor si SMURD",null,null,null,null,null,null,null,null,null,null,null,null,null,true,true,true]
["28.    ","Alte tipuri de cabinete medicale",null,null,null,null,null,null,null,null,null,null,null,null,null,true,true,true]
["29.    ","Centre de zi pentru persoanele cu dizabilități",null,null,null,null,null,null,null,null,null,null,null,null,null,true,true,true]
["30.    ","Alte unități de asistență socială care furnizează îngrijiri medicale",null,null,null,null,null,null,null,null,null,null,null,null,null,true,{"$f":"C561>=SUM(D561:M561)","v":true},true]
["31.    ","Institute şi instituţii fără paturi *",null,null,null,null,null,null,null,null,null,null,null,null,null,true,true,true]
["32.    ","Alte unitati **",null,null,null,null,null,null,null,null,null,null,null,null,null,true,true,true]

{"sheet":"c1","index":1,"n_rows":37,"n_cols":11,"rows_kept":37,"cut":false,"hidden":false,"merged":[[29,0,31,0],[9,3,9,6],[9,0,11,0],[32,0,34,0],[28,0,28,1],[14,0,16,0],[17,0,19,0],[24,0,26,0],[24,1,26,1],[5,0,5,10],[24,2,26,2],[24,3,24,6],[24,7,24,10],[25,3,26,3],[25,4,25,6],[25,8,25,10],[25,7,26,7],[9,7,9,10],[10,7,11,7],[10,8,10,10],[10,3,11,3],[10,4,10,6],[9,1,11,1],[13,0,13,1],[9,2,11,2]]}
["Ministerul, primaria:",{"$f":"OFFSET(SAN!C2,0,0)","v":0},null,"Cod unitate:",{"$f":"OFFSET(SAN!C12,0,0)","v":0}]
["Judetul:",{"$f":"OFFSET(SAN!C3,0,0)","v":0}]
["Localitatea:",{"$f":"OFFSET(SAN!C4,0,0)","v":0}]
["Unitatea sanitara:",{"$f":"OFFSET(SAN!C1,0,0)","v":0}]
[]
[" Cap.1. ACTIVITATEA CABINETELOR  MEDICAL E DE  FAMILIE, STOMATOLOGICE ŞI DE SPECIALITATE  (URBAN / RURAL)"]
[]
["1. Consultaţii şi tratamente în cabinetele medicale individuale"]
[]
["Mediul","Specificare","Rând","Consultaţii",null,null,null,"Tratamente"]
[null,null,null,"Total consultaţii","din care:",null,null,"Total tratamente","din care:"]
[null,null,null,null,"Medicină de familie","Stomatologie","Alte specialităţi",null,"Medicină de familie","Stomatologie","Alte specialităţi"]
["A","B","C",1,2,3,4,5,6,7,8]
["Total ",null,1,{"$f":"+D15+D16+D18+D19","v":0},{"$f":"+E15+E16+E18+E19","v":0},0,0,0,0,0,{"$f":"+K15+K16+K18+K19","v":0}]
["urban","Adulţi    15 ani+",2,{"$f":"SUM(E15:G15)","v":0},null,null,null,{"$f":"SUM(I15:K15)","v":0}]
[null,"Copii    0-14 ani",3,0,null,null,null,0]
[null,"din care: sub 1 an",4,0,null,null,null,0]
["rural","Adulţi    15 ani+",5,0,null,null,null,0]
[null,"Copii    0-14 ani",6,0,null,null,null,0]
[null,"din care: sub 1 an",7,0,null,null,null,0]
[]
[]
["2. Consultaţii şi tratamente în cabinetele din societăţile medicale civile"]
[]
["Mediul","Specificare","Rând","Consultaţii",null,null,null,"Tratamente"]
[null,null,null,"Total consultaţii","din care:",null,null,"Total tratamente","din care:"]
[null,null,null,null,"Medicină de familie","Stomatologie","Alte specialităţi",null,"Medicină de familie","Stomatologie","Alte specialităţi"]
["A","B","C",1,2,3,4,5,6,7,8]
["Total ",null,1,{"$f":"+D30+D31+D33+D34","v":0},0,0,0,0,0,0,0]
["urban","Adulţi    15 ani+",2,{"$f":"SUM(E30:G30)","v":0},null,null,null,{"$f":"SUM(I30:K30)","v":0}]
[null,"Copii    0-14 ani",3,0,null,null,null,0]
[null,"din care: sub 1 an",4,0,null,null,null,0]
["rural","Adulţi    15 ani+",5,0,null,null,null,0]
[null,"Copii    0-14 ani",6,0,null,null,null,0]
[null,"din care: sub 1 an",7,0,null,null,null,0]
[]
["Notă: Datele din pct.2 (cabinetele din societăţile medicale civile) nu se raportează şi la pct.1 (cabinetele medicale individuale)"]

{"sheet":"c14","index":2,"n_rows":30,"n_cols":49,"rows_kept":30,"cut":false,"hidden":false,"merged":[[13,21,14,23],[14,9,15,9],[14,14,15,14],[14,15,15,15],[14,16,15,16],[14,17,15,17],[14,18,15,18],[14,19,15,19],[14,20,15,20],[13,14,13,20],[13,10,14,12],[13,13,15,13],[13,0,15,0],[14,7,15,7],[14,2,15,2],[14,3,15,3],[14,4,15,4],[14,5,15,5],[13,2,13,9],[14,6,15,6],[13,1,15,1],[14,8,15,8]]}
["Ministerul, primaria:",{"$f":"OFFSET(SAN!C2,0,0)","v":0},null,"Cod unitate:",{"$f":"OFFSET(SAN!C12,0,0)","v":0}]
["Judetul:",{"$f":"OFFSET(SAN!C3,0,0)","v":0}]
["Localitatea:",{"$f":"OFFSET(SAN!C4,0,0)","v":0}]
["Unitatea sanitara:",{"$f":"OFFSET(SAN!C1,0,0)","v":0}]
[]
["MS.60.4.4A"]
["CAP 14. CHELTUIELILE BUGETARE ÎN UNTĂŢILE SANITARE"]
[]
[]
["Anul ....................."]
[]
["1. Cheltuieli realizate",null,null,null,null,null,null,null,null,null,null,null,null,null,null,null,null,null,null,null,{"$f":"IF(U18<>(SUM(C27:AW27)),\"eroare!\",\" \")","v":" "}]
[]
["Specificare","Rând","CHELTUIELI REALIZATE - TOTAL, din care pentru:",null,null,null,null,null,null,null,"Cheltuieli realizate în spital raportate la:",null,null,"Total cheltuieli pentru medicamente","din care, cheltuieli efectuate pentru:",null,null,null,null,null,null,"Cheltuieli efectuate pentru medicamente în spital raportate la:"]
[null,null,"TOTAL CHELTUIELI","Spitalizare de zi","Cabinete şcolare   şi studenţeşti","Dispensare tbc.","Unităţi ambulatorii de specialitate","Unităţi sanitare balneare","Camera de gardă UPU/CPU","Spitale       (sanatorii tbc.)",null,null,null,null,"Spitalizare de zi","Cabinete şcolare   şi studenţeşti","Dispensare tbc.","Unităţi ambulatorii de specialitate","Unităţi sanitare balneare","Camera de gardă UPU/CPU","Spitale       (sanatorii tbc.)"]
[null,null,null,null,null,null,null,null,null,null,"un pat","un bolnav","o zi spitalizare",null,null,null,null,null,null,null,null,"un pat","un bolnav","o zi spitalizare"]
["A","B",1,2,3,4,5,6,7,8,9,10,11,12,13,14,15,16,17,18,19,20,21,22]
["TOTAL",1,{"$f":"SUM(C19:C21)","v":0},0,0,0,0,0,{"$f":"SUM(I19:I21)","v":0},0,0,0,0,0,0,{"$f":"SUM(P19:P21)","v":0},0,0,0,0,0,0,0,0]
["Clinic",2,0,0,0,0,0,0,0,0,0,0,0,0,0,0,0,0,0,0,{"$f":"SUM(C28:AW28)","v":0},0,0,0,{"$f":"IF(C19>=(+D19+E19+F19+G19+H19+I19+J19),\"ok! \",\"eroare!\")","v":"ok! "},{"$f":"IF(N19>=(O19+P19+Q19+R19+S19+T19+U19),\"ok! \",\"eroare!\")","v":"ok! "}]
["Urban",3,0,0,0,0,0,0,0,0,0,0,0,0,0,0,0,0,0,0,{"$f":"SUM(C29:AW29)","v":0},0,0,0,{"$f":"IF(C20>=(+D20+E20+F20+G20+H20+I20+J20),\"ok! \",\"eroare!\")","v":"ok! "},{"$f":"IF(N20>=(O20+P20+Q20+R20+S20+T20+U20),\"ok! \",\"eroare!\")","v":"ok! "}]
["Rural",4,0,0,0,0,0,0,0,0,0,0,0,0,0,0,0,0,0,0,{"$f":"SUM(C30:AW30)","v":0},0,0,0,{"$f":"IF(C21>=(+D21+E21+F21+G21+H21+I21+J21),\"ok! \",\"eroare!\")","v":"ok! "},{"$f":"IF(N21>=(O21+P21+Q21+R21+S21+T21+U21),\"ok! \",\"eroare!\")","v":"ok! "}]
[]
["2. Repartizarea cheltuielilor pentru medicamente din spital pe secţiile şi compartimentele componente "]
[]
["Specificare","Rând","ATI","Boli infecţioase","Boli profesionale  ","Cardiologie","Chirurgie cardio-vasculară","Chirurgie generală","Chirurgie maxilo- facială","Chirurgie pediatrică","Chirurgie plastică şi reparatorie","Chirurgie toracică","Chirurgie toracică  - tbc","Cronici","Dermato-venerologie","Diabet zaharat, nutriţie şi boli de metabolism","Endocrinologie","Gastro-enterologie","Geriatrie şi gerontologie","Ginecologie","Hematologie","Imunologie clinică şi alergologie","Medicină generală","Medicină internă","Nefrologie","Neonatologie şi prematuri","Neurochirurgie","Neurologie","Obstetrică","Obstetrică ginecologie","Oftalmologie","Oncologie medicală","O.R.L.","Ortopedie şi traumatologie","Pediatrie","Pneumologie","Pneumologie tbc","Psihiatrie","Psihiatrie acuţi","Psihiatrie cronici","Recuperare medicală","Recuperare neuro-psiho-motorie","Recuperare pediatrică","Recuperare medicină fizică şi balneologie","Reumatologie","Tbc. osteoarticular","Toxicologie","Urologie","Alte"]
["A","B",1,2,3,4,5,6,7,8,9,10,11,12,13,14,15,16,17,18,19,20,21,22,23,24,25,26,27,28,29,30,31,"32","33","34","35","36","37","38","39","40","41","42","43","44","45","46","47"]
["TOTAL",1,{"$f":"+C28+C29+C30","v":0},0,0,0,0,0,0,0,0,0,0,0,0,0,0,0,0,0,0,0,0,0,0,0,0,0,0,0,0,0,0,0,0,0,0,0,0,0,0,0,0,0,0,0,0,0,0]
["CLINIC",2,0,0,0,0,0,0,0,0,0,0,0,0,0,0,0,0,0,0,0,0,0,0,0,0,0,0,0,0,0,0,0,0,0,0,0,0,0,0,0,0,0,0,0,0,0,0,0]
["URBAN",3,0,0,0,0,0,0,0,0,0,0,0,0,0,0,0,0,0,0,0,0,0,0,0,0,0,0,0,0,0,0,0,0,0,0,0,0,0,0,0,0,0,0,0,0,0,0,0]
["RURAL",4,0,0,0,0,0,0,0,0,0,0,0,0,0,0,0,0,0,0,0,0,0,0,0,0,0,0,0,0,0,0,0,0,0,0,0,0,0,0,0,0,0,0,0,0,0,0,0]

{"sheet":"c15","index":3,"n_rows":259,"n_cols":130,"rows_kept":259,"cut":false,"hidden":false,"merged":[[185,10,185,11],[214,0,214,1],[215,0,215,1],[209,0,209,1],[210,0,210,1],[201,0,201,1],[200,0,200,1],[194,0,194,1],[220,0,220,1],[217,0,217,1],[218,0,218,1],[185,7,185,8],[189,0,189,1],[184,5,186,5],[184,3,186,3],[184,4,186,4],[233,0,233,1],[185,9,186,9],[232,0,232,1],[228,0,228,1],[229,0,229,1],[231,0,231,1],[211,0,211,1],[204,0,204,1],[225,0,225,1],[183,3,183,5],[185,22,185,23],[184,6,184,8],[184,15,184,17],[234,0,234,1],[197,0,197,1],[198,0,198,1],[199,0,199,1],[191,0,191,1],[192,0,192,1],[193,0,193,1],[203,0,203,1],[196,0,196,1],[223,0,223,1],[219,0,219,1],[185,12,186,12],[185,13,185,14],[185,15,186,15],[185,16,185,17],[205,0,205,1],[206,0,206,1],[195,0,195,1],[185,6,186,6],[183,2,186,2],[183,24,183,29],[160,0,160,1],[103,69,103,71],[185,24,186,24],[185,25,185,26],[185,27,186,27],[184,21,184,23],[184,24,184,26],[184,27,184,29],[185,28,185,29],[185,21,186,21],[164,0,164,1],[165,0,165,1],[167,0,167,1],[169,0,169,1],[170,0,170,1],[171,0,171,1],[166,0,166,1],[168,0,168,1],[172,0,172,1],[173,0,173,1],[174,0,174,1],[185,18,186,18],[185,19,185,20],[103,81,103,83],[103,84,103,86],[103,30,103,32],[103,60,103,62],[103,90,103,92],[103,57,103,59],[103,78,103,80],[103,111,103,113],[103,87,103,89],[103,63,103,65],[103,75,103,77],[103,99,103,101],[103,102,103,104],[103,93,103,95],[103,96,103,98],[103,45,103,47],[12,121,12,122],[13,121,13,122],[14,121,14,122],[15,121,15,122],[104,7,104,8],[104,10,104,11],[104,13,104,14],[57,10,57,11],[57,12,58,12],[57,16,57,17],[55,24,55,29],[56,27,56,29],[56,24,56,26],[57,24,58,24],[103,15,103,17],[57,28,57,29],[57,27,58,27],[57,13,57,14],[46,121,46,122],[47,121,47,122],[48,121,48,122],[49,121,49,122],[103,108,103,110],[103,105,103,107],[39,121,45,121],[16,121,32,121],[33,121,33,122],[34,121,34,122],[10,100,10,101],[10,13,10,14],[10,24,11,24],[9,9,9,11],[9,12,9,14],[9,15,9,17],[10,22,10,23],[10,12,11,12],[10,16,10,17],[10,18,11,18],[9,24,9,26],[35,121,38,121],[9,21,9,23],[10,45,11,45],[10,46,10,47],[10,34,10,35],[9,27,9,29],[9,33,9,35],[10,48,11,48],[10,49,10,50],[10,94,10,95],[10,96,11,96],[10,87,11,87],[10,88,10,89],[8,6,8,104],[10,76,10,77],[9,84,9,86],[9,87,9,89],[10,57,11,57],[10,58,10,59],[10,51,11,51],[10,52,10,53],[9,96,9,98],[9,90,9,92],[10,97,10,98],[10,78,11,78],[9,6,9,8],[10,60,11,60],[10,15,11,15],[9,36,9,38],[10,36,11,36],[10,37,10,38],[9,66,9,68],[9,126,11,126],[10,30,11,30],[9,51,9,53],[9,54,9,56],[9,57,9,59],[9,18,9,20],[10,69,11,69],[10,70,10,71],[10,25,10,26],[10,27,11,27],[10,31,10,32],[9,78,9,80],[9,60,9,62],[9,39,9,41],[9,42,9,44],[10,33,11,33],[10,90,11,90],[10,91,10,92],[9,30,9,32],[9,125,11,125],[10,75,11,75],[8,123,11,123],[9,124,11,124],[10,54,11,54],[10,6,11,6],[237,0,237,1],[8,121,11,122],[10,28,10,29],[9,93,9,95],[10,102,11,102],[10,103,10,104],[10,84,11,84],[9,45,9,47],[9,48,9,50],[10,43,10,44],[9,102,9,104],[9,63,9,65],[10,79,10,80],[10,81,11,81],[10,82,10,83],[9,99,9,101],[10,99,11,99],[9,81,9,83],[9,69,9,71],[9,75,9,77],[10,61,10,62],[10,85,10,86],[10,93,11,93],[103,48,103,50],[183,0,186,1],[102,6,102,11],[103,7,103,8],[103,9,105,9],[103,21,103,23],[103,24,103,26],[103,10,103,11],[104,15,105,15],[104,16,104,17],[103,18,103,20],[103,12,105,12],[103,13,103,14],[103,5,105,5],[103,6,105,6],[184,9,184,11],[184,12,184,14],[184,18,184,20],[103,27,103,29],[163,0,163,1],[161,0,161,1],[154,0,154,1],[157,0,157,1],[158,0,158,1],[10,63,11,63],[10,64,10,65],[10,7,10,8],[10,9,11,9],[10,10,10,11],[10,55,10,56],[10,19,10,20],[10,21,11,21],[10,39,11,39],[10,40,10,41],[10,42,11,42],[258,0,258,1],[239,0,239,1],[190,0,190,1],[254,0,254,1],[255,0,255,1],[243,0,243,1],[249,0,249,1],[226,0,226,1],[257,0,257,1],[250,0,250,1],[251,0,251,1],[240,0,240,1],[241,0,241,1],[252,0,252,1],[253,0,253,1],[208,0,208,1],[242,0,242,1],[235,0,235,1],[236,0,236,1],[256,0,256,1],[248,0,248,1],[212,0,212,1],[221,0,221,1],[222,0,222,1],[246,0,246,1],[247,0,247,1],[244,0,244,1],[115,0,115,1],[116,0,116,1],[117,0,117,1],[118,0,118,1],[55,3,55,5],[55,2,58,2],[102,2,105,2],[102,3,102,5],[213,0,213,1],[59,0,59,1],[60,0,60,1],[130,0,130,1],[113,0,113,1],[114,0,114,1],[80,0,80,1],[227,0,227,1],[216,0,216,1],[230,0,230,1],[224,0,224,1],[111,0,111,1],[175,0,175,1],[131,0,131,1],[132,0,132,1],[123,0,123,1],[124,0,124,1],[125,0,125,1],[107,0,107,1],[121,0,121,1],[122,0,122,1],[245,0,245,1],[176,0,176,1],[187,0,187,1],[188,0,188,1],[238,0,238,1],[207,0,207,1],[202,0,202,1],[162,0,162,1],[152,0,152,1],[153,0,153,1],[141,0,141,1],[142,0,142,1],[9,5,11,5],[8,3,8,5],[8,0,11,1],[9,3,11,3],[140,0,140,1],[8,2,11,2],[126,0,126,1],[127,0,127,1],[128,0,128,1],[93,0,93,1],[94,0,94,1],[108,0,108,1],[109,0,109,1],[119,0,119,1],[120,0,120,1],[110,0,110,1],[95,0,95,1],[139,0,139,1],[129,0,129,1],[106,0,106,1],[103,3,105,3],[103,4,105,4],[9,4,11,4],[12,0,12,1],[13,0,13,1],[15,0,15,1],[33,0,33,1],[14,0,14,1],[16,0,32,0],[46,0,46,1],[47,0,47,1],[39,0,45,0],[34,0,34,1],[35,0,38,0],[56,18,56,20],[155,0,155,1],[159,0,159,1],[156,0,156,1],[145,0,145,1],[146,0,146,1],[147,0,147,1],[148,0,148,1],[151,0,151,1],[149,0,149,1],[150,0,150,1],[143,0,143,1],[144,0,144,1],[133,0,133,1],[134,0,134,1],[135,0,135,1],[136,0,136,1],[137,0,137,1],[138,0,138,1],[86,0,92,0],[112,0,112,1],[102,0,105,1],[55,0,58,1],[61,0,61,1],[56,15,56,17],[57,7,57,8],[57,9,58,9],[63,0,79,0],[56,4,58,4],[82,0,85,0],[62,0,62,1],[96,0,96,1],[49,0,49,1],[81,0,81,1],[56,3,58,3],[57,6,58,6],[57,15,58,15],[48,0,48,1],[10,66,11,66],[10,67,10,68],[9,72,9,74],[10,72,11,72],[10,73,10,74],[103,36,103,38],[103,66,103,68],[103,72,103,74],[56,5,58,5],[56,12,56,14],[103,33,103,35],[103,39,103,41],[103,42,103,44],[57,18,58,18],[57,25,57,26],[103,51,103,53],[103,54,103,56],[57,21,58,21],[56,21,56,23],[56,6,56,8],[56,9,56,11],[57,22,57,23],[57,19,57,20]]}
["Ministerul, primaria:",{"$f":"OFFSET(SAN!C2,0,0)","v":0}]
["Judetul:",{"$f":"OFFSET(SAN!C3,0,0)","v":0}]
["Localitatea:",{"$f":"OFFSET(SAN!C4,0,0)","v":0}]
["Unitatea sanitara:",{"$f":"OFFSET(SAN!C1,0,0)","v":0}]
["Cod unitate:",{"$f":"OFFSET(SAN!C12,0,0)","v":0}]
["MS.60.4.4A"]
["Cap.15. PERSONAL MEDIU SANITAR, PERSONAL AUXILIAR SANITAR, MUNCITORI, PERSONAL DE SERVIRE ŞI PERSONAL DIN APARATUL FUNCŢIONAL PE CATEGORII DE UNITĂŢI",null,null,null,null,null,null,null,null,null,null,null,null,null,null,null,null,null,null,null,null,null,null,null,null,null,null,null,null,null,null,null,null,null,null,null,null,null,null,null,null,null,null,null,null,null,null,null,null,null,null,null,null,null,null,null,null,null,null,null,null,null,null,null,null,null,null,null,null,null,null,null,null,null,null,null,null,null,null,null,null,null,null,null,null,null,null,null,null,null,null,null,null,null,null,null,null,null,null,null,null,null,null,null,null,null,null,null,null,null,null,null,null,null,null,null,null,null,null,null,null,"verificare intre tabelele A si B"]
["A"]
["CATEGORII DE PERSONAL",null,"Randul","TOTAL",null,null,"            Repartizarea personalului sanitar mediu şi auxiliar pe tipuri de unităţi",null,null,null,null,null,null,null,null,null,null,null,null,null,null,null,null,null,null,null,null,null,null,null,null,null,null,null,null,null,null,null,null,null,null,null,null,null,null,null,null,null,null,null,null,null,null,null,null,null,null,null,null,null,null,null,null,null,null,null,null,null,null,null,null,null,null,null,null,null,null,null,null,null,null,null,null,null,null,null,null,null,null,null,null,null,null,null,null,null,null,null,null,null,null,null,null,null,null,null,null,null,null,null,null,null,null,null,null,null,null,null,null,null,null,"CATEGORII DE PERSONAL",null,"Randul"]
[null,null,null,"TOTAL","MASCULIN","FEMININ","spital",null,null,"Centru de sănătate cu paturi de spital",null,null,"Sanatorii TBC",null,null,"Preventorii",null,null,"Sanatorii balneare",null,null,"Dispensare medicale",null,null,"Cabinete medicale şcolare",null,null,"Cabinete medicale  studenţeşti",null,null,"Cabinete med.  de medicină generală ",null,null,"Cabinete medicale de familie",null,null,"Societati civile medicale",null,null,"Farmacii",null,null,"Puncte farmaceutice",null,null,"Depozite farmaceutice",null,null,"Policlinici",null,null,"Centre de diag. şi tratatament",null,null,"Centre medicale de specialitate",null,null,"Ambulatorii de specialitate",null,null,"Ambulatorii integrate spitalului",null,null,"Cabinete stomatologice",null,null,"Societati stomatologice civile medicale",null,null,"Cabinete medicale de specialitate",null,null,"Societati civile medicale de specialitate",null,null,"Centre de sănătate",null,null,"Centre de sănătate mintală",null,null,"C.T.S.",null,null,"Laboratoare medicale",null,null,"Laboratoare de tehnică dentară",null,null,"Institute, unităţi cercet. fără paturi",null,null,"MS, DSP, INSP",null,null,"Sanatorii nevroze/ neuropsihiatrie",null,null,"Salvare",null,null,"Alte tipuri de unităţi",null,null,null,null,null,null,null,null,null,null,null,null,null,null,null,null,null,null,null,null,null,"TOTAL","MASCULIN","FEMININ"]
[null,null,null,null,null,null,"Total","din care:",null,"Total","din care:",null,"Total","din care:",null,"Total","din care:",null,"Total","din care:",null,"Total","din care:",null,"Total","din care:",null,"Total","din care:",null,"Total","din care:",null,"Total","din care:",null,"Total","din care:",null,"Total","din care:",null,"Total","din care:",null,"Total","din care:",null,"Total","din care:",null,"Total","din care:",null,"Total","din care:",null,"Total","din care:",null,"Total","din care:",null,"Total","din care:",null,"Total","din care:",null,"Total","din care:",null,"Total","din care:",null,"Total","din care:",null,"Total","din care:",null,"Total","din care:",null,"Total","din care:",null,"Total","din care:",null,"Total","din care:",null,"Total","din care:",null,"Total","din care:",null,"Total","din care:",null,"Total","din care:"]
[null,null,null,null,null,null,null,"masculin","feminin",null,"masculin","feminin",null,"masculin","feminin",null,"masculin","feminin",null,"masculin","feminin",null,"masculin","feminin",null,"masculin","feminin",null,"masculin","feminin",null,"masculin","feminin",null,"masculin","feminin",null,"masculin","feminin",null,"masculin","feminin",null,"masculin","feminin",null,"masculin","feminin",null,"masculin","feminin",null,"masculin","feminin",null,"masculin","feminin",null,"masculin","feminin",null,"masculin","feminin",null,"masculin","feminin",null,"masculin","feminin",null,"masculin","feminin",null,"masculin","feminin",null,"masculin","feminin",null,"masculin","feminin",null,"masculin","feminin",null,"masculin","feminin",null,"masculin","feminin",null,"masculin","feminin",null,"masculin","feminin",null,"masculin","feminin",null,"masculin","feminin",null,"masculin","feminin"]
["A",null,"B",1,2,3,4,5,6,7,8,9,10,11,12,13,14,15,16,17,18,19,20,21,22,23,24,25,26,27,28,29,30,31,32,33,34,35,36,37,38,39,40,41,42,43,44,45,46,47,48,49,50,51,52,53,54,55,56,57,58,59,60,61,62,63,64,65,66,67,68,69,70,71,72,73,74,75,76,77,78,79,80,81,82,83,84,85,86,87,88,89,90,91,92,93,94,95,96,97,98,99,100,101,102,null,null,null,null,null,null,null,null,null,null,null,null,null,null,null,null,"A",null,"B",1,2,3]
["TOTAL PERSONAL (rând  2+34+35+36+37)",null,1,{"$f":"+D15+SUM(D47:D50)","v":0},0,0,0,0,0,{"$f":"+J15+SUM(J47:J50)","v":0},0,0,0,0,0,0,0,0,0,0,0,0,0,0,0,0,0,0,0,0,0,0,0,0,0,0,{"$f":"+AK15+SUM(AK47:AK50)","v":0},0,0,0,{"$f":"+AO15+SUM(AO47:AO50)","v":0},0,0,0,0,0,0,0,0,0,0,0,0,0,0,0,0,0,0,0,0,0,0,0,0,0,{"$f":"+BO15+SUM(BO47:BO50)","v":0},0,0,0,0,0,{"$f":"+BU15+SUM(BU47:BU50)","v":0},0,0,0,0,0,0,0,0,0,0,0,0,0,0,0,0,0,0,0,0,0,0,0,0,0,0,0,0,0,{"$f":"+CY15+SUM(CY47:CY50)","v":0},{"$f":"+CZ15+SUM(CZ47:CZ50)","v":0},{"$f":"+DA15+SUM(DA47:DA50)","v":0},null,null,null,null,null,null,null,null,null,null,null,null,null,null,null,null,"TOTAL PERSONAL (rând 02+34+35+36+37)",null,1,{"$f":"+D61-D14","v":0},{"$f":"+E61-E14","v":0},{"$f":"+F61-F14","v":0}]
["TOTAL PERSONAL MEDIU SANITAR        (rândurile   3; 21 – 33)",null,2,{"$f":"+D16+SUM(D34:D46)","v":0},0,0,0,0,0,0,0,0,0,0,0,0,0,0,0,0,0,0,0,0,0,0,0,0,0,0,0,0,0,0,0,0,{"$f":"+AK16+SUM(AK34:AK46)","v":0},0,0,0,0,0,0,0,0,0,0,0,0,0,0,0,0,0,0,0,0,0,0,0,0,0,0,0,0,0,{"$f":"+BO16+SUM(BO34:BO46)","v":0},0,0,0,0,0,{"$f":"+BU16+SUM(BU34:BU46)","v":0},0,0,0,{"$f":"+BY16+SUM(BY34:BY46)","v":0},0,0,0,0,0,0,0,0,0,0,0,0,0,0,0,0,0,0,0,0,0,0,0,0,0,0,0,0,null,null,null,null,null,null,null,null,null,null,null,null,null,null,null,null,"TOTAL PERSONAL MEDIU SANITAR        (rândurile 03; 21 – 33)",null,2,0,0,0]
["Asistenţi, surori –  TOTAL   (rând  4 – 20)",null,3,{"$f":"SUM(D17:D33)-D28","v":0},0,0,0,0,0,{"$f":"SUM(J17:J33)-J28","v":0},0,0,0,0,0,0,0,0,0,0,0,0,0,0,{"$f":"SUM(Y17:Y33)-Y28","v":0},0,0,0,0,0,0,0,0,0,0,0,{"$f":"SUM(AK17:AK33)-AK28","v":0},0,0,0,0,0,0,0,0,0,0,0,0,0,0,0,0,0,0,0,0,0,0,0,0,0,0,0,0,0,{"$f":"SUM(BO17:BO33)-BO28","v":0},0,0,0,0,0,{"$f":"SUM(BU17:BU33)-BU28","v":0},0,0,0,0,0,0,0,0,0,0,0,0,0,0,0,0,0,0,0,0,0,0,0,0,{"$f":"SUM(CT17:CT33)-CT28","v":0},0,0,0,0,0,0,0,null,null,null,null,null,null,null,null,null,null,null,null,null,null,null,null,"Asistenţi, surori –  TOTAL         (rând 04 – 20)",null,3,0,0,0]
["După specialitate","Medicale",4,{"$f":"+E17+F17","v":0},{"$f":"+H17+K17+N17+Q17+T17+W17+Z17+AC17+AF17+AI17+AO17+AR17+AU17+AX17+BA17+BD17+BG17+BJ17+BM17+BS17+BY17+CB17+CE17+CH17+CK17+CN17+CQ17+CT17+CW17+CZ17","v":0},{"$f":"+I17+L17+O17+R17+U17+X17+AA17+AD17+AG17+AJ17+AP17+AS17+AV17+AY17+BB17+BE17+BH17+BK17+BN17+BT17+BZ17+CC17+CF17+CI17+CL17+CO17+CR17+CU17+CX17+DA17","v":0},0,{"$f":"+G17-I17","v":0},0,0,{"$f":"+J17-L17","v":0},0,0,{"$f":"+M17-O17","v":0},0,0,{"$f":"+P17-R17","v":0},0,0,{"$f":"+S17-U17","v":0},0,0,{"$f":"+V17-X17","v":0},0,0,{"$f":"+Y17-AA17","v":0},0,0,{"$f":"+AB17-AD17","v":0},0,0,{"$f":"+AE17-AG17","v":0},0,0,{"$f":"+AH17-AJ17","v":0},0,0,{"$f":"+AK17-AM17","v":0},0,0,{"$f":"+AN17-AP17","v":0},0,0,{"$f":"+AQ17-AS17","v":0},0,0,{"$f":"+AT17-AV17","v":0},0,0,{"$f":"+AW17-AY17","v":0},0,0,{"$f":"+AZ17-BB17","v":0},0,0,{"$f":"+BC17-BE17","v":0},0,0,{"$f":"+BF17-BH17","v":0},0,0,{"$f":"+BI17-BK17","v":0},0,0,{"$f":"+BL17-BN17","v":0},0,0,{"$f":"+BO17-BQ17","v":0},0,0,{"$f":"+BR17-BT17","v":0},0,0,{"$f":"+BU17-BW17","v":0},0,0,{"$f":"+BX17-BZ17","v":0},0,0,{"$f":"+CA17-CC17","v":0},0,0,{"$f":"+CD17-CF17","v":0},0,0,{"$f":"+CG17-CI17","v":0},0,0,{"$f":"+CJ17-CL17","v":0},0,0,{"$f":"+CM17-CO17","v":0},0,0,{"$f":"+CP17-CR17","v":0},0,0,{"$f":"+CS17-CU17","v":0},0,0,{"$f":"+CV17-CX17","v":0},0,0,{"$f":"+CY17-DA17","v":0},0,null,null,null,null,null,null,null,null,null,null,null,null,null,null,null,null,"După specialitate","Medicale",4,0,0,0]
[null,"Pediatrie",5,{"$f":"+E18+F18","v":0},0,0,0,{"$f":"+G18-I18","v":0},0,0,{"$f":"+J18-L18","v":0},0,0,{"$f":"+M18-O18","v":0},0,0,{"$f":"+P18-R18","v":0},0,0,{"$f":"+S18-U18","v":0},0,0,{"$f":"+V18-X18","v":0},0,0,{"$f":"+Y18-AA18","v":0},0,0,{"$f":"+AB18-AD18","v":0},0,0,{"$f":"+AE18-AG18","v":0},0,0,{"$f":"+AH18-AJ18","v":0},0,0,{"$f":"+AK18-AM18","v":0},0,0,{"$f":"+AN18-AP18","v":0},0,0,{"$f":"+AQ18-AS18","v":0},0,0,{"$f":"+AT18-AV18","v":0},0,0,{"$f":"+AW18-AY18","v":0},0,0,{"$f":"+AZ18-BB18","v":0},0,0,{"$f":"+BC18-BE18","v":0},0,0,{"$f":"+BF18-BH18","v":0},0,0,{"$f":"+BI18-BK18","v":0},0,0,{"$f":"+BL18-BN18","v":0},0,0,{"$f":"+BO18-BQ18","v":0},0,0,{"$f":"+BR18-BT18","v":0},0,0,{"$f":"+BU18-BW18","v":0},0,0,{"$f":"+BX18-BZ18","v":0},0,0,{"$f":"+CA18-CC18","v":0},0,0,{"$f":"+CD18-CF18","v":0},0,0,{"$f":"+CG18-CI18","v":0},0,0,{"$f":"+CJ18-CL18","v":0},0,0,{"$f":"+CM18-CO18","v":0},0,0,{"$f":"+CP18-CR18","v":0},0,0,{"$f":"+CS18-CU18","v":0},0,0,{"$f":"+CV18-CX18","v":0},0,0,{"$f":"+CY18-DA18","v":0},0,null,null,null,null,null,null,null,null,null,null,null,null,null,null,null,null,null,"Pediatrie",5,0,0,0]
[null,"Obstetrică-ginecologie (moaşe)",6,0,0,0,0,0,0,0,0,0,0,0,0,0,0,0,0,0,0,0,0,0,0,0,0,0,0,0,0,0,0,0,0,0,0,0,0,0,0,0,0,0,0,0,0,0,0,0,0,0,0,0,0,0,0,0,0,0,0,0,0,0,0,0,0,0,0,0,0,0,0,0,0,0,0,0,0,0,0,0,0,0,0,0,0,0,0,0,0,0,0,0,0,0,0,0,0,0,0,0,0,0,0,null,null,null,null,null,null,null,null,null,null,null,null,null,null,null,null,null,"Obstetrică-ginecologie (moaşe)",6,0,0,0]
[null,"Igienă",7,0,0,0,0,0,0,0,0,0,0,0,0,0,0,0,0,0,0,0,0,0,0,0,0,0,0,0,0,0,0,0,0,0,0,0,0,0,0,0,0,0,0,0,0,0,0,0,0,0,0,0,0,0,0,0,0,0,0,0,0,0,0,0,0,0,0,0,0,0,0,0,0,0,0,0,0,0,0,0,0,0,0,0,0,0,0,0,0,0,0,0,0,0,0,0,0,0,0,0,0,0,0,null,null,null,null,null,null,null,null,null,null,null,null,null,null,null,null,null,"Igienă",7,0,0,0]
[null,"Radiologie",8,0,0,0,0,0,0,0,0,0,0,0,0,0,0,0,0,0,0,0,0,0,0,0,0,0,0,0,0,0,0,0,0,0,0,0,0,0,0,0,0,0,0,0,0,0,0,0,0,0,0,0,0,0,0,0,0,0,0,0,0,0,0,0,0,0,0,0,0,0,0,0,0,0,0,0,0,0,0,0,0,0,0,0,0,0,0,0,0,0,0,0,0,0,0,0,0,0,0,0,0,0,0,null,null,null,null,null,null,null,null,null,null,null,null,null,null,null,null,null,"Radiologie",8,0,0,0]
[null,"Balneofizioterapie şi recuperare medicală",9,0,0,0,0,0,0,0,0,0,0,0,0,0,0,0,0,0,0,0,0,0,0,0,0,0,0,0,0,0,0,0,0,0,0,0,0,0,0,0,0,0,0,0,0,0,0,0,0,0,0,0,0,0,0,0,0,0,0,0,0,0,0,0,0,0,0,0,0,0,0,0,0,0,0,0,0,0,0,0,0,0,0,0,0,0,0,0,0,0,0,0,0,0,0,0,0,0,0,0,0,0,0,null,null,null,null,null,null,null,null,null,null,null,null,null,null,null,null,null,"Balneofizioterapie şi recuperare medicală",9,0,0,0]
[null,"Dietetică",10,0,0,0,0,0,0,0,0,0,0,0,0,0,0,0,0,0,0,0,0,0,0,0,0,0,0,0,0,0,0,0,0,0,0,0,0,0,0,0,0,0,0,0,0,0,0,0,0,0,0,0,0,0,0,0,0,0,0,0,0,0,0,0,0,0,0,0,0,0,0,0,0,0,0,0,0,0,0,0,0,0,0,0,0,0,0,0,0,0,0,0,0,0,0,0,0,0,0,0,0,0,0,null,null,null,null,null,null,null,null,null,null,null,null,null,null,null,null,null,"Dietetică",10,0,0,0]
[null,"Nutriţie şi diabet",11,0,0,0,0,0,0,0,0,0,0,0,0,0,0,0,0,0,0,0,0,0,0,0,0,0,0,0,0,0,0,0,0,0,0,0,0,0,0,0,0,0,0,0,0,0,0,0,0,0,0,0,0,0,0,0,0,0,0,0,0,0,0,0,0,0,0,0,0,0,0,0,0,0,0,0,0,0,0,0,0,0,0,0,0,0,0,0,0,0,0,0,0,0,0,0,0,0,0,0,0,0,0,null,null,null,null,null,null,null,null,null,null,null,null,null,null,null,null,null,"Nutriţie şi diabet",11,0,0,0]
[null,"Stomatologie",12,0,0,0,0,0,0,0,0,0,0,0,0,0,0,0,0,0,0,0,0,0,0,0,0,0,0,0,0,0,0,0,0,0,0,0,0,0,0,0,0,0,0,0,0,0,0,0,0,0,0,0,0,0,0,0,0,0,0,0,0,0,0,0,0,0,0,0,0,0,0,0,0,0,0,0,0,0,0,0,0,0,0,0,0,0,0,0,0,0,0,0,0,0,0,0,0,0,0,0,0,0,0,null,null,null,null,null,null,null,null,null,null,null,null,null,null,null,null,null,"Stomatologie",12,0,0,0]
[null,"Urgenţe medico- chirurgicale",13,0,0,0,0,0,0,0,0,0,0,0,0,0,0,0,0,0,0,0,0,0,0,0,0,0,0,0,0,0,0,0,0,0,0,0,0,0,0,0,0,0,0,0,0,0,0,0,0,0,0,0,0,0,0,0,0,0,0,0,0,0,0,0,0,0,0,0,0,0,0,0,0,0,0,0,0,0,0,0,0,0,0,0,0,0,0,0,0,0,0,0,0,0,0,0,0,0,0,0,0,0,0,null,null,null,null,null,null,null,null,null,null,null,null,null,null,null,null,null,"Urgenţe medico- chirurgicale",13,0,0,0]
[null,"Fiziokinetoterapeuţi, din care:",14,0,0,0,0,0,0,0,0,0,0,0,0,0,0,0,0,0,0,0,0,0,0,0,0,0,0,0,0,0,0,0,0,0,0,0,0,0,0,0,0,0,0,0,0,0,0,0,0,0,0,0,0,0,0,0,0,0,0,0,0,0,0,0,0,0,0,0,0,0,0,0,0,0,0,0,0,0,0,0,0,0,0,0,0,0,0,0,0,0,0,0,0,0,0,0,0,0,0,0,0,0,0,null,null,null,null,null,null,null,null,null,null,null,null,null,null,null,null,null,"Fiziokinetoterapeuţi, din care:",14,0,0,0]
[null,"                                           - fizioterapeuţi",15,0,0,0,0,0,0,0,0,0,0,0,0,0,0,0,0,0,0,0,0,0,0,0,0,0,0,0,0,0,0,0,0,0,0,0,0,0,0,0,0,0,0,0,0,0,0,0,0,0,0,0,0,0,0,0,0,0,0,0,0,0,0,0,0,0,0,0,0,0,0,0,0,0,0,0,0,0,0,0,0,0,0,0,0,0,0,0,0,0,0,0,0,0,0,0,0,0,0,0,0,0,0,null,null,null,null,null,null,null,null,null,null,null,null,null,null,null,null,null,"                                           - fizioterapeuţi",15,0,0,0]
[null,"Ocrotire",16,0,0,0,0,0,0,0,0,0,0,0,0,0,0,0,0,0,0,0,0,0,0,0,0,0,0,0,0,0,0,0,0,0,0,0,0,0,0,0,0,0,0,0,0,0,0,0,0,0,0,0,0,0,0,0,0,0,0,0,0,0,0,0,0,0,0,0,0,0,0,0,0,0,0,0,0,0,0,0,0,0,0,0,0,0,0,0,0,0,0,0,0,0,0,0,0,0,0,0,0,0,0,null,null,null,null,null,null,null,null,null,null,null,null,null,null,null,null,null,"Ocrotire",16,0,0,0]
[null,"Laborator biologie clinică",17,0,0,0,0,0,0,0,0,0,0,0,0,0,0,0,0,0,0,0,0,0,0,0,0,0,0,0,0,0,0,0,0,0,0,0,0,0,0,0,0,0,0,0,0,0,0,0,0,0,0,0,0,0,0,0,0,0,0,0,0,0,0,0,0,0,0,0,0,0,0,0,0,0,0,0,0,0,0,0,0,0,0,0,0,0,0,0,0,0,0,0,0,0,0,0,0,0,0,0,0,0,0,null,null,null,null,null,null,null,null,null,null,null,null,null,null,null,null,null,"Laborator biologie clinică",17,0,0,0]
[null,"Laborator anatomie patologică",18,0,0,0,0,0,0,0,0,0,0,0,0,0,0,0,0,0,0,0,0,0,0,0,0,0,0,0,0,0,0,0,0,0,0,0,0,0,0,0,0,0,0,0,0,0,0,0,0,0,0,0,0,0,0,0,0,0,0,0,0,0,0,0,0,0,0,0,0,0,0,0,0,0,0,0,0,0,0,0,0,0,0,0,0,0,0,0,0,0,0,0,0,0,0,0,0,0,0,0,0,0,0,null,null,null,null,null,null,null,null,null,null,null,null,null,null,null,null,null,"Laborator anatomie patologică",18,0,0,0]
[null,"Farmacie",19,0,0,0,0,0,0,0,0,0,0,0,0,0,0,0,0,0,0,0,0,0,0,0,0,0,0,0,0,0,0,0,0,0,0,0,0,0,0,0,0,0,0,0,0,0,0,0,0,0,0,0,0,0,0,0,0,0,0,0,0,0,0,0,0,0,0,0,0,0,0,0,0,0,0,0,0,0,0,0,0,0,0,0,0,0,0,0,0,0,0,0,0,0,0,0,0,0,0,0,0,0,0,null,null,null,null,null,null,null,null,null,null,null,null,null,null,null,null,null,"Farmacie",19,0,0,0]
[null,"Alţi asistenţi",20,0,0,0,0,0,0,0,0,0,0,0,0,0,0,0,0,0,0,0,0,0,0,0,0,0,0,0,0,0,0,0,0,0,0,0,0,0,0,0,0,0,0,0,0,0,0,0,0,0,0,0,0,0,0,0,0,0,0,0,0,0,0,0,0,0,0,0,0,0,0,0,0,0,0,0,0,0,0,0,0,0,0,0,0,0,0,0,0,0,0,0,0,0,0,0,0,0,0,0,0,0,0,null,null,null,null,null,null,null,null,null,null,null,null,null,null,null,null,null,"Alţi asistenţi",20,0,0,0]
["   Registratori medicali",null,21,0,0,0,0,0,0,0,0,0,0,0,0,0,0,0,0,0,0,0,0,0,0,0,0,0,0,0,0,0,0,0,0,0,0,0,0,0,0,0,0,0,0,0,0,0,0,0,0,0,0,0,0,0,0,0,0,0,0,0,0,0,0,0,0,0,0,0,0,0,0,0,0,0,0,0,0,0,0,0,0,0,0,0,0,0,0,0,0,0,0,0,0,0,0,0,0,0,0,0,0,0,0,null,null,null,null,null,null,null,null,null,null,null,null,null,null,null,null,"   Registratori medicali",null,21,0,0,0]
["   Statisticieni medicali",null,22,0,0,0,0,0,0,0,0,0,0,0,0,0,0,0,0,0,0,0,0,0,0,0,0,0,0,0,0,0,0,0,0,0,0,0,0,0,0,0,0,0,0,0,0,0,0,0,0,0,0,0,0,0,0,0,0,0,0,0,0,0,0,0,0,0,0,0,0,0,0,0,0,0,0,0,0,0,0,0,0,0,0,0,0,0,0,0,0,0,0,0,0,0,0,0,0,0,0,0,0,0,0,null,null,null,null,null,null,null,null,null,null,null,null,null,null,null,null,"   Statisticieni medicali",null,22,0,0,0]
["Tehnicieni","Dentari",23,0,0,0,0,0,0,0,0,0,0,0,0,0,0,0,0,0,0,0,0,0,0,0,0,0,0,0,0,0,0,0,0,0,0,0,0,0,0,0,0,0,0,0,0,0,0,0,0,0,0,0,0,0,0,0,0,0,0,0,0,0,0,0,0,0,0,0,0,0,0,0,0,0,0,0,0,0,0,0,0,0,0,0,0,0,0,0,0,0,0,0,0,0,0,0,0,0,0,0,0,0,0,null,null,null,null,null,null,null,null,null,null,null,null,null,null,null,null,"Tehnicieni","Dentari",23,0,0,0]
[null,"Opticieni",24,0,0,0,0,0,0,0,0,0,0,0,0,0,0,0,0,0,0,0,0,0,0,0,0,0,0,0,0,0,0,0,0,0,0,0,0,0,0,0,0,0,0,0,0,0,0,0,0,0,0,0,0,0,0,0,0,0,0,0,0,0,0,0,0,0,0,0,0,0,0,0,0,0,0,0,0,0,0,0,0,0,0,0,0,0,0,0,0,0,0,0,0,0,0,0,0,0,0,0,0,0,0,null,null,null,null,null,null,null,null,null,null,null,null,null,null,null,null,null,"Opticieni",24,0,0,0]
[null,"Utilaje medicale",25,0,0,0,0,0,0,0,0,0,0,0,0,0,0,0,0,0,0,0,0,0,0,0,0,0,0,0,0,0,0,0,0,0,0,0,0,0,0,0,0,0,0,0,0,0,0,0,0,0,0,0,0,0,0,0,0,0,0,0,0,0,0,0,0,0,0,0,0,0,0,0,0,0,0,0,0,0,0,0,0,0,0,0,0,0,0,0,0,0,0,0,0,0,0,0,0,0,0,0,0,0,0,null,null,null,null,null,null,null,null,null,null,null,null,null,null,null,null,null,"Utilaje medicale",25,0,0,0]
[null,"Protezare",26,0,0,0,0,0,0,0,0,0,0,0,0,0,0,0,0,0,0,0,0,0,0,0,0,0,0,0,0,0,0,0,0,0,0,0,0,0,0,0,0,0,0,0,0,0,0,0,0,0,0,0,0,0,0,0,0,0,0,0,0,0,0,0,0,0,0,0,0,0,0,0,0,0,0,0,0,0,0,0,0,0,0,0,0,0,0,0,0,0,0,0,0,0,0,0,0,0,0,0,0,0,0,null,null,null,null,null,null,null,null,null,null,null,null,null,null,null,null,null,"Protezare",26,0,0,0]
["Alte","Droghişti",27,0,0,0,0,0,0,0,0,0,0,0,0,0,0,0,0,0,0,0,0,0,0,0,0,0,0,0,0,0,0,0,0,0,0,0,0,0,0,0,0,0,0,0,0,0,0,0,0,0,0,0,0,0,0,0,0,0,0,0,0,0,0,0,0,0,0,0,0,0,0,0,0,0,0,0,0,0,0,0,0,0,0,0,0,0,0,0,0,0,0,0,0,0,0,0,0,0,0,0,0,0,0,null,null,null,null,null,null,null,null,null,null,null,null,null,null,null,null,"Alte","Droghişti",27,0,0,0]
[null,"Gipsari",28,0,0,0,0,0,0,0,0,0,0,0,0,0,0,0,0,0,0,0,0,0,0,0,0,0,0,0,0,0,0,0,0,0,0,0,0,0,0,0,0,0,0,0,0,0,0,0,0,0,0,0,0,0,0,0,0,0,0,0,0,0,0,0,0,0,0,0,0,0,0,0,0,0,0,0,0,0,0,0,0,0,0,0,0,0,0,0,0,0,0,0,0,0,0,0,0,0,0,0,0,0,0,null,null,null,null,null,null,null,null,null,null,null,null,null,null,null,null,null,"Gipsari",28,0,0,0]
[null,"Maseuri",29,0,0,0,0,0,0,0,0,0,0,0,0,0,0,0,0,0,0,0,0,0,0,0,0,0,0,0,0,0,0,0,0,0,0,0,0,0,0,0,0,0,0,0,0,0,0,0,0,0,0,0,0,0,0,0,0,0,0,0,0,0,0,0,0,0,0,0,0,0,0,0,0,0,0,0,0,0,0,0,0,0,0,0,0,0,0,0,0,0,0,0,0,0,0,0,0,0,0,0,0,0,0,null,null,null,null,null,null,null,null,null,null,null,null,null,null,null,null,null,"Maseuri",29,0,0,0]
[null,"Autopsieri",30,0,0,0,0,0,0,0,0,0,0,0,0,0,0,0,0,0,0,0,0,0,0,0,0,0,0,0,0,0,0,0,0,0,0,0,0,0,0,0,0,0,0,0,0,0,0,0,0,0,0,0,0,0,0,0,0,0,0,0,0,0,0,0,0,0,0,0,0,0,0,0,0,0,0,0,0,0,0,0,0,0,0,0,0,0,0,0,0,0,0,0,0,0,0,0,0,0,0,0,0,0,0,null,null,null,null,null,null,null,null,null,null,null,null,null,null,null,null,null,"Autopsieri",30,0,0,0]
[null,"Instructori c.f.m.",31,0,0,0,0,0,0,0,0,0,0,0,0,0,0,0,0,0,0,0,0,0,0,0,0,0,0,0,0,0,0,0,0,0,0,0,0,0,0,0,0,0,0,0,0,0,0,0,0,0,0,0,0,0,0,0,0,0,0,0,0,0,0,0,0,0,0,0,0,0,0,0,0,0,0,0,0,0,0,0,0,0,0,0,0,0,0,0,0,0,0,0,0,0,0,0,0,0,0,0,0,0,0,null,null,null,null,null,null,null,null,null,null,null,null,null,null,null,null,null,"Instructori c.f.m.",31,0,0,0]
[null,"Instructori educaţie",32,0,0,0,0,0,0,0,0,0,0,0,0,0,0,0,0,0,0,0,0,0,0,0,0,0,0,0,0,0,0,0,0,0,0,0,0,0,0,0,0,0,0,0,0,0,0,0,0,0,0,0,0,0,0,0,0,0,0,0,0,0,0,0,0,0,0,0,0,0,0,0,0,0,0,0,0,0,0,0,0,0,0,0,0,0,0,0,0,0,0,0,0,0,0,0,0,0,0,0,0,0,0,null,null,null,null,null,null,null,null,null,null,null,null,null,null,null,null,null,"Instructori educaţie",32,0,0,0]
[null,"Dentişti (studii medii)",33,0,0,0,0,0,0,0,0,0,0,0,0,0,0,0,0,0,0,0,0,0,0,0,0,0,0,0,0,0,0,0,0,0,0,0,0,0,0,0,0,0,0,0,0,0,0,0,0,0,0,0,0,0,0,0,0,0,0,0,0,0,0,0,0,0,0,0,0,0,0,0,0,0,0,0,0,0,0,0,0,0,0,0,0,0,0,0,0,0,0,0,0,0,0,0,0,0,0,0,0,0,0,null,null,null,null,null,null,null,null,null,null,null,null,null,null,null,null,null,"Dentişti (studii medii)",33,0,0,0]
[" TOTAL PERSONAL AUXILIAR SANITAR",null,34,0,0,0,0,0,0,0,0,0,0,0,0,0,0,0,0,0,0,0,0,0,0,0,0,0,0,0,0,0,0,0,0,0,0,0,0,0,0,0,0,0,0,0,0,0,0,0,0,0,0,0,0,0,0,0,0,0,0,0,0,0,0,0,0,0,0,0,0,0,0,0,0,0,0,0,0,0,0,0,0,0,0,0,0,0,0,0,0,0,0,0,0,0,0,0,0,0,0,0,0,0,0,null,null,null,null,null,null,null,null,null,null,null,null,null,null,null,null," TOTAL PERSONAL AUXILIAR SANITAR",null,34,0,0,0]
["MUNCITORI",null,35,0,0,0,0,0,0,0,0,0,0,0,0,0,0,0,0,0,0,0,0,0,0,0,0,0,0,0,0,0,0,0,0,0,0,0,0,0,0,0,0,0,0,0,0,0,0,0,0,0,0,0,0,0,0,0,0,0,0,0,0,0,0,0,0,0,0,0,0,0,0,0,0,0,0,0,0,0,0,0,0,0,0,0,0,0,0,0,0,0,0,0,0,0,0,0,0,0,0,0,0,0,0,null,null,null,null,null,null,null,null,null,null,null,null,null,null,null,null,"     MUNCITORI",null,35,0,0,0]
["PERSONAL DE SERVIRE",null,36,0,0,0,0,0,0,0,0,0,0,0,0,0,0,0,0,0,0,0,0,0,0,0,0,0,0,0,0,0,0,0,0,0,0,0,0,0,0,0,0,0,0,0,0,0,0,0,0,0,0,0,0,0,0,0,0,0,0,0,0,0,0,0,0,0,0,0,0,0,0,0,0,0,0,0,0,0,0,0,0,0,0,0,0,0,0,0,0,0,0,0,0,0,0,0,0,0,0,0,0,0,0,null,null,null,null,null,null,null,null,null,null,null,null,null,null,null,null,"     PERSONAL DE SERVIRE",null,36,0,0,0]
["PERSONAL DIN APARAT FUNCŢIONAL",null,37,0,0,0,0,0,0,0,0,0,0,0,0,0,0,0,0,0,0,0,0,0,0,0,0,0,0,0,0,0,0,0,0,0,0,0,0,0,0,0,0,0,0,0,0,0,0,0,0,0,0,0,0,0,0,0,0,0,0,0,0,0,0,0,0,0,0,0,0,0,0,0,0,0,0,0,0,0,0,0,0,0,0,0,0,0,0,0,0,0,0,0,0,0,0,0,0,0,0,0,0,0,0,null,null,null,null,null,null,null,null,null,null,null,null,null,null,null,null,"PERSONAL DIN APARAT FUNCŢIONAL",null,37,0,0,0]
[]
[]
[]
["Cap.15. PERSONAL MEDIU SANITAR, PERSONAL AUXILIAR SANITAR, MUNCITORI, PERSONAL DE SERVIRE ŞI PERSONAL DIN APARATUL FUNCŢIONAL PE GRUPE DE VÂRSTĂ"]
["B"]
["CATEGORII DE PERSONAL",null,"Randul","TOTAL",null,null,"            Repartizarea personalului sanitar mediu şi auxiliar pe grupe de vârstă",null,null,null,null,null,null,null,null,null,null,null,null,null,null,null,null,null,"Cu normă întreagă"]
[null,null,null,"TOTAL","MASCULIN","FEMININ","Sub 25 ani",null,null,"25-34 ani",null,null,"35-44 ani",null,null,"45-54 ani",null,null,"55-64 ani",null,null,"65 ani şi peste",null,null,"Total",null,null,"din care: in spital, centru de sanatate cu paturi, san. TBC, preventorii, san. de nevroze/neuropsihiatrie, san. balneare"]
[null,null,null,null,null,null,"Total","din care:",null,"Total","din care:",null,"Total","din care:",null,"Total","din care:",null,"Total","din care:",null,"Total","din care:",null,"Total","din care:",null,"Total","din care:"]
[null,null,null,null,null,null,null,"masculin","feminin",null,"masculin","feminin",null,"masculin","feminin",null,"masculin","feminin",null,"masculin","feminin",null,"masculin","feminin",null,"masculin","feminin",null,"masculin","feminin"]
["A",null,"B",1,2,3,4,5,6,7,8,9,10,11,12,13,14,15,16,17,18,19,20,21,22,23,24,25,26,27]
["TOTAL PERSONA  (rând  2+34+35+36+37)",null,1,{"$f":"+D62+SUM(D94:D97)","v":0},{"$f":"+E62+SUM(E94:E97)","v":0},0,0,0,0,{"$f":"+J62+SUM(J94:J97)","v":0},{"$f":"+K62+SUM(K94:K97)","v":0},{"$f":"+L62+SUM(L94:L97)","v":0},0,0,0,0,0,0,0,0,0,0,0,0,0,0,0,0,0,0]
["TOTAL PERSONAL MEDIU SANITAR        (rândurile  3; 21 – 33)",null,2,{"$f":"+D63+SUM(D81:D93)","v":0},0,0,0,0,0,0,0,0,0,0,0,0,0,0,0,0,0,0,0,0,0,0,0,0,0,0]
["Asistenţi, surori –  TOTAL        (rând  4 – 20)",null,3,{"$f":"SUM(D64:D80)-D75","v":0},{"$f":"SUM(E64:E80)-E75","v":0},0,0,0,0,{"$f":"SUM(J64:J80)-J75","v":0},{"$f":"SUM(K64:K80)-K75","v":0},{"$f":"SUM(L64:L80)-L75","v":0},0,0,0,0,0,0,0,0,0,0,0,0,0,0,0,0,0,0]
["După specialitate","Medicale",4,{"$f":"+E64+F64","v":0},{"$f":"+H64+K64+N64+Q64+T64+W64","v":0},{"$f":"+I64+L64+O64+R64+U64+X64","v":0},0,{"$f":"+G64-I64","v":0},0,0,{"$f":"+J64-L64","v":0},0,0,{"$f":"+M64-O64","v":0},0,0,{"$f":"+P64-R64","v":0},0,0,{"$f":"+S64-U64","v":0},0,0,{"$f":"+V64-X64","v":0},0,0,{"$f":"+Y64-AA64","v":0},0,0,{"$f":"+AB64-AD64","v":0},0,{"$f":"IF((E64>=Z64),\"ok!\",\"err!total norme\")","v":"ok!"},{"$f":"IF((F64>=AA64),\"ok!\",\"err!total norme\")","v":"ok!"},{"$f":"IF((Z64>=AC64),\"ok!\",\"err!norme spital\")","v":"ok!"},{"$f":"IF((AA64>=AD64),\"ok!\",\"err!norme spital\")","v":"ok!"}]
[null,"Pediatrie",5,{"$f":"+E65+F65","v":0},{"$f":"+H65+K65+N65+Q65+T65+W65","v":0},0,0,{"$f":"+G65-I65","v":0},0,0,{"$f":"+J65-L65","v":0},0,0,{"$f":"+M65-O65","v":0},0,0,{"$f":"+P65-R65","v":0},0,0,{"$f":"+S65-U65","v":0},0,0,{"$f":"+V65-X65","v":0},0,0,{"$f":"+Y65-AA65","v":0},0,0,{"$f":"+AB65-AD65","v":0},0,{"$f":"IF((E65>=Z65),\"ok!\",\"err!total norme\")","v":"ok!"},"ok!",{"$f":"IF((Z65>=AC65),\"ok!\",\"err!norme spital\")","v":"ok!"},"ok!"]
[null,"Obstetrică-ginecologie (moaşe)",6,0,0,0,0,0,0,0,0,0,0,0,0,0,0,0,0,0,0,0,0,0,0,0,0,0,0,0,"ok!","ok!","ok!","ok!"]
[null,"Igienă",7,0,0,0,0,0,0,0,0,0,0,0,0,0,0,0,0,0,0,0,0,0,0,0,0,0,0,0,"ok!","ok!","ok!","ok!"]
[null,"Radiologie",8,0,0,0,0,0,0,0,0,0,0,0,0,0,0,0,0,0,0,0,0,0,0,0,0,0,0,0,"ok!","ok!","ok!","ok!"]
[null,"Balneofizioterapie şi recuperare medicală",9,0,0,0,0,0,0,0,0,0,0,0,0,0,0,0,0,0,0,0,0,0,0,0,0,0,0,0,"ok!","ok!","ok!","ok!"]
[null,"Dietetică",10,0,0,0,0,0,0,0,0,0,0,0,0,0,0,0,0,0,0,0,0,0,0,0,0,0,0,0,"ok!","ok!","ok!","ok!"]
[null,"Nutriţie şi diabet",11,0,0,0,0,0,0,0,0,0,0,0,0,0,0,0,0,0,0,0,0,0,0,0,0,0,0,0,"ok!","ok!","ok!","ok!"]
[null,"Stomatologie",12,0,0,0,0,0,0,0,0,0,0,0,0,0,0,0,0,0,0,0,0,0,0,0,0,0,0,0,"ok!","ok!","ok!","ok!"]
[null,"Urgenţe medico- chirurgicale",13,0,0,0,0,0,0,0,0,0,0,0,0,0,0,0,0,0,0,0,0,0,0,0,0,0,0,0,"ok!","ok!","ok!","ok!"]
[null,"Fiziokinetoterapeuţi, din care:",14,0,0,0,0,0,0,0,0,0,0,0,0,0,0,0,0,0,0,0,0,0,0,0,0,0,0,0,"ok!","ok!","ok!","ok!"]
[null,"                                           - fizioterapeuţi",15,0,0,0,0,0,0,0,0,0,0,0,0,0,0,0,0,0,0,0,0,0,0,0,0,0,0,0,"ok!","ok!","ok!","ok!"]
[null,"Ocrotire",16,0,0,0,0,0,0,0,0,0,0,0,0,0,0,0,0,0,0,0,0,0,0,0,0,0,0,0,"ok!","ok!","ok!","ok!"]
[null,"Laborator biologie clinică",17,0,0,0,0,0,0,0,0,0,0,0,0,0,0,0,0,0,0,0,0,0,0,0,0,0,0,0,"ok!","ok!","ok!","ok!"]
[null,"Laborator anatomie patologică",18,0,0,0,0,0,0,0,0,0,0,0,0,0,0,0,0,0,0,0,0,0,0,0,0,0,0,0,"ok!","ok!","ok!","ok!"]
[null,"Farmacie",19,0,0,0,0,0,0,0,0,0,0,0,0,0,0,0,0,0,0,0,0,0,0,0,0,0,0,0,"ok!","ok!","ok!","ok!"]
[null,"Alţi asistenţi",20,0,0,0,0,0,0,0,0,0,0,0,0,0,0,0,0,0,0,0,0,0,0,0,0,0,0,0,"ok!","ok!","ok!","ok!"]
["   Registratori medicali",null,21,0,0,0,0,0,0,0,0,0,0,0,0,0,0,0,0,0,0,0,0,0,0,0,0,0,0,0,"ok!","ok!","ok!","ok!"]
["   Statisticieni medicali",null,22,0,0,0,0,0,0,0,0,0,0,0,0,0,0,0,0,0,0,0,0,0,0,0,0,0,0,0,"ok!","ok!","ok!","ok!"]
["Tehnicieni","Dentari",23,0,0,0,0,0,0,0,0,0,0,0,0,0,0,0,0,0,0,0,0,0,0,0,0,0,0,0,"ok!","ok!","ok!","ok!"]
[null,"Opticieni",24,0,0,0,0,0,0,0,0,0,0,0,0,0,0,0,0,0,0,0,0,0,0,0,0,0,0,0,"ok!","ok!","ok!","ok!"]
[null,"Utilaje medicale",25,0,0,0,0,0,0,0,0,0,0,0,0,0,0,0,0,0,0,0,0,0,0,0,0,0,0,0,"ok!","ok!","ok!","ok!"]
[null,"Protezare",26,0,0,0,0,0,0,0,0,0,0,0,0,0,0,0,0,0,0,0,0,0,0,0,0,0,0,0,"ok!","ok!","ok!","ok!"]
["Alte","Droghişti",27,0,0,0,0,0,0,0,0,0,0,0,0,0,0,0,0,0,0,0,0,0,0,0,0,0,0,0,"ok!","ok!","ok!","ok!"]
[null,"Gipsari",28,0,0,0,0,0,0,0,0,0,0,0,0,0,0,0,0,0,0,0,0,0,0,0,0,0,0,0,"ok!","ok!","ok!","ok!"]
[null,"Maseuri",29,0,0,0,0,0,0,0,0,0,0,0,0,0,0,0,0,0,0,0,0,0,0,0,0,0,0,0,"ok!","ok!","ok!","ok!"]
[null,"Autopsieri",30,0,0,0,0,0,0,0,0,0,0,0,0,0,0,0,0,0,0,0,0,0,0,0,0,0,0,0,"ok!","ok!","ok!","ok!"]
[null,"Instructori c.f.m.",31,0,0,0,0,0,0,0,0,0,0,0,0,0,0,0,0,0,0,0,0,0,0,0,0,0,0,0,"ok!","ok!","ok!","ok!"]
[null,"Instructori educaţie",32,0,0,0,0,0,0,0,0,0,0,0,0,0,0,0,0,0,0,0,0,0,0,0,0,0,0,0,"ok!","ok!","ok!","ok!"]
[null,"Dentişti (studii medii)",33,0,0,0,0,0,0,0,0,0,0,0,0,0,0,0,0,0,0,0,0,0,0,0,0,0,0,0,"ok!","ok!","ok!","ok!"]
[" TOTAL PERSONAL AUXILIAR SANITAR",null,34,0,0,0,0,0,0,0,0,0,0,0,0,0,0,0,0,0,0,0,0,0,0,0,0,0,0,0,"ok!","ok!","ok!","ok!"]
["MUNCITORI",null,35,0,0,0,0,0,0,0,0,0,0,0,0,0,0,0,0,0,0,0,0,0,0,0,0,0,0,0,"ok!","ok!","ok!","ok!"]
["PERSONAL DE SERVIRE",null,36,0,0,0,0,0,0,0,0,0,0,0,0,0,0,0,0,0,0,0,0,0,0,0,0,0,0,0,"ok!","ok!","ok!","ok!"]
["PERSONAL DIN APARAT FUNCŢIONAL",null,37,0,0,0,0,0,0,0,0,0,0,0,0,0,0,0,0,0,0,0,0,0,0,0,0,0,0,0,"ok!",{"$f":"IF((F97>=AA97),\"ok!\",\"err!total norme\")","v":"ok!"},"ok!","ok!"]
[]
[]
[]
["Cap.15. PERSONAL SANITAR CU STUDII SUPERIOARE PE CATEGORII DE UNITĂŢI",null,null,null,null,null,{"$f":"IF(I110=(F191),\"ok!rezidenti femei\",\"rezidenti femei C#D!\")","v":"ok!rezidenti femei"},{"$f":"IF(I165=(F247),\"ok!rezidenti femei\",\"rezidenti femei C#D!\")","v":"ok!rezidenti femei"},{"$f":"IF(I169=(F251),\"ok!rezidenti femei\",\"rezidenti femei C#D!\")","v":"ok!rezidenti femei"},null,null,null,null,null,null,null,null,null,null,null,null,null,null,null,null,null,null,null,null,null,null,null,null,null,null,null,null,null,null,null,null,null,null,null,null,null,null,null,null,null,null,null,null,null,null,null,null,null,null,null,null,null,null,null,null,null,null,null,null,null,null,null,null,null,null,null,null,null,null,null,null,null,null,null,null,null,null,null,null,null,null,null,null,null,null,null,null,null,null,null,null,null,null,null,null,null,null,null,null,null,null,null,null,null,null,null,null,null,null,null,null,null,null,null,"verificare intre tabelele C si D"]
["C",null,null,null,null,null,{"$f":"IF(G110=(D191),\"ok!rezidenti\",\"rezidenti C#D!\")","v":"ok!rezidenti"},{"$f":"IF(G165=(D247),\"ok!rezidenti\",\"rezidenti C#D!\")","v":"ok!rezidenti"},{"$f":"IF(G169=(D251),\"ok!rezidenti\",\"rezidenti C#D!\")","v":"ok!rezidenti"}]
["CATEGORII DE PERSONAL",null,"Randul","TOTAL",null,null,"din care:",null,null,null,null,null,null,null,null,"            Repartizarea personalului sanitar cu studii superioare pe tipuri de unităţi",null,null,null,null,null,null,null,null,null,null,null,null,null,null,null,null,null,null,null,null,null,null,null,null,null,null,null,null,null,null,null,null,null,null,null,null,null,null,null,null,null,null,null,null,null,null,null,null,null,null,null,null,null,null,null,null,null,null,null,null,null,null,null,null,null,null,null,null,null,null,null,null,null,null,null,null,null,null,null,null,null,null,null,null,null,null,null,null,null,null,null,null,null,null,null,null,null,null,"UMF*)",null,null,null,null,null,null,null,null,null,"CATEGORII DE PERSONAL",null,"Randul"]
[null,null,null,"TOTAL","MASCULIN","FEMININ","Total rezi-denţi","REZIDENŢI",null,"Total  MEDICI PT.COPII","din care: MEDICI PENTRU COPII",null,"Total venit din alta tara","venit din alta tara",null,"spital",null,null,"Centru de sănătate cu paturi de spital",null,null,"Sanatorii TBC",null,null,"Preventorii",null,null,"Sanatorii balneare",null,null,"Dispensare medicale",null,null,"Cabinete medicale şcolare",null,null,"Cabinete medicale  studenţeşti",null,null,"Cabinete med.  de medicină generală ",null,null,"Cabinete medicale de familie",null,null,"Societati civile medicale",null,null,"Farmacii",null,null,"Puncte farmaceutice",null,null,"Depozite farmaceutice",null,null,"Policlinici",null,null,"Centre de diag. şi tratatament",null,null,"Centre medicale de specialitate",null,null,"Ambulatorii de specialitate",null,null,"Ambulatorii integrate spitalului",null,null,"Cabinete stomatologice",null,null,"Societati stomatologice civile medicale",null,null,"Cabinete medicale de specialitate",null,null,"Societati civile medicale de specialitate",null,null,"Centre de sănătate",null,null,"Centre de sănătate mintală",null,null,"C.T.S.",null,null,"Laboratoare medicale",null,null,"Laboratoare de tehnică dentară",null,null,"Institute, unităţi cercet. fără paturi",null,null,"MS, DSP",null,null,"Sanatorii nevroze/ neuropsihiatrie",null,null,"Salvare",null,null,"Alte tipuri de unităţi",null,null,null,null,null,null,null,null,null,null,null,null,null,null,null,"TOTAL","MASCULIN","FEMININ"]
[null,null,null,null,null,null,null,"TOTAL",null,null,"TOTAL",null,null,"din care:",null,"Total","din care:",null,"Total","din care:",null,"Total","din care:",null,"Total","din care:",null,"Total","din care:",null,"Total","din care:",null,"Total","din care:",null,"Total","din care:",null,"Total","din care:",null,"Total","din care:",null,"Total","din care:",null,"Total","din care:",null,"Total","din care:",null,"Total","din care:",null,"Total","din care:",null,"Total","din care:",null,"Total","din care:",null,"Total","din care:",null,"Total","din care:",null,"Total","din care:",null,"Total","din care:",null,"Total","din care:",null,"Total","din care:",null,"Total","din care:",null,"Total","din care:",null,"Total","din care:",null,"Total","din care:",null,"Total","din care:",null,"Total","din care:",null,"Total","din care:",null,"Total","din care:",null,"Total","din care:",null,"Total","din care:"]
[null,null,null,null,null,null,null,"masculin","feminin",null,"masculin","feminin",null,"masculin","feminin",null,"masculin","feminin",null,"masculin","feminin",null,"masculin","feminin",null,"masculin","feminin",null,"masculin","feminin",null,"masculin","feminin",null,"masculin","feminin",null,"masculin","feminin",null,"masculin","feminin",null,"masculin","feminin",null,"masculin","feminin",null,"masculin","feminin",null,"masculin","feminin",null,"masculin","feminin",null,"masculin","feminin",null,"masculin","feminin",null,"masculin","feminin",null,"masculin","feminin",null,"masculin","feminin",null,"masculin","feminin",null,"masculin","feminin",null,"masculin","feminin",null,"masculin","feminin",null,"masculin","feminin",null,"masculin","feminin",null,"masculin","feminin",null,"masculin","feminin",null,"masculin","feminin",null,"masculin","feminin",null,"masculin","feminin",null,"masculin","feminin",null,"masculin","feminin",null,"masculin","feminin"]
["A",null,"B",1,2,3,4,5,6,7,8,9,10,11,12,13,14,15,16,17,18,19,20,21,22,23,24,25,26,27,28,29,30,31,32,33,34,35,36,37,38,39,40,41,42,43,44,45,46,47,48,49,50,51,52,53,54,55,56,57,58,59,60,61,62,63,64,65,66,67,68,69,70,71,72,73,74,75,76,77,78,79,80,81,82,83,84,85,86,87,88,89,90,91,92,93,94,95,96,97,98,99,100,101,102,103,104,105,106,107,108,109,110,111,112,null,null,null,null,null,null,null,null,null,"A",null,"B",1,2,3]
["TOTAL PERSONAL CU STUDII SUPERIOARE (rândurile  2+57+61+65+67+69+70)",null,1,{"$f":"+E108+F108","v":0},{"$f":"+E109+E164+E168+E172+E174+E176+E177","v":0},{"$f":"+F109+F164+F168+F172+F174+F176+F177","v":0},{"$f":"+G109+G164+G168","v":0},{"$f":"+H109+H164+H168","v":0},{"$f":"+I109+I164+I168","v":0},{"$f":"+J109+J164+J168+J172+J174+J176+J177","v":0},0,0,0,0,0,0,0,0,0,0,0,0,0,0,0,0,0,0,0,0,0,0,0,0,0,0,{"$f":"+AK109+AK164+AK168+AK172+AK174+AK176+AK177","v":0},0,0,0,0,0,0,0,0,0,0,0,0,0,0,0,0,0,0,0,0,0,0,0,0,0,0,0,0,0,{"$f":"+BO109+BO164+BO168+BO172+BO174+BO176+BO177","v":0},0,0,0,0,0,0,0,0,0,0,0,{"$f":"+CA109+CA164+CA168+CA172+CA174+CA176+CA177","v":0},0,0,0,{"$f":"+CE109+CE164+CE168+CE172+CE174+CE176+CE177","v":0},0,0,0,0,0,0,0,0,0,0,0,0,0,0,0,0,0,0,0,0,0,0,0,0,0,0,0,0,0,0,0,{"$f":"+DK109+DK164+DK168+DK172+DK174+DK176+DK177","v":0},null,null,null,null,null,null,null,null,null,"TOTAL PERSONAL CU STUDII SUPERIOARE (rândurile 02+57+61+65+67+69+70)",null,1,{"$f":"+D189-D108","v":0},{"$f":"+E189-E108","v":0},{"$f":"+F189-F108","v":0}]
["I. MEDICI (EXCLUSIV DENTIŞTI) – TOTAL     (rândurile  4+......+56),                   din care:",null,2,{"$f":"SUM(D111:D163)","v":0},{"$f":"SUM(E111:E163)","v":0},0,0,0,0,0,0,0,0,0,0,0,0,0,0,0,0,0,0,0,0,0,0,0,0,0,0,0,0,0,0,0,{"$f":"SUM(AK111:AK163)","v":0},0,0,0,0,0,0,0,0,0,0,0,0,0,0,0,0,0,0,0,0,0,0,0,0,0,0,0,0,0,{"$f":"SUM(BO111:BO163)","v":0},0,0,0,0,0,0,0,0,0,0,{"$f":"SUM(BZ111:BZ163)","v":0},{"$f":"SUM(CA111:CA163)","v":0},0,0,0,0,0,0,0,0,0,0,0,0,0,0,0,0,0,0,0,0,0,0,0,0,0,0,0,0,0,0,0,0,0,0,0,{"$f":"SUM(DK111:DK163)","v":0},null,null,null,null,null,null,null,null,null,"I. MEDICI (EXCLUSIV DENTIŞTI) – TOTAL     (rândurile 04+......+56)                   din care:",null,2,0,0,0]
["                    - rezidenţi ",null,3,{"$f":"+E110+F110","v":0},{"$f":"+Q110+T110+W110+Z110+AC110+AF110+AI110+AO110+AR110+AU110+AX110+BA110+BD110+BG110+BJ110+BM110+BS110+BY110+CB110+CE110+CH110+CK110+CN110+CQ110+CT110+CW110+CZ110+DC110+DF110+DI110","v":0},{"$f":"R110+U110+X110+AA110+AD110+AG110+AJ110+AP110+AS110+AV110+AY110+BB110+BE110+BH110+BK110+BN110+BT110+BZ110+CC110+CF110+CI110+CL110+CO110+CR110+CU110+CX110+DA110+DD110+DG110+DJ110","v":0},0,{"$f":"+G110-I110","v":0},0,0,0,0,0,{"$f":"+M110-O110","v":0},0,0,{"$f":"+P110-R110","v":0},0,0,{"$f":"+S110-U110","v":0},0,0,{"$f":"+V110-X110","v":0},0,0,{"$f":"+Y110-AA110","v":0},0,0,{"$f":"+AB110-AD110","v":0},0,0,{"$f":"+AE110-AG110","v":0},0,0,{"$f":"+AH110-AJ110","v":0},0,0,{"$f":"+AK110-AM110","v":0},0,0,{"$f":"+AN110-AP110","v":0},0,0,{"$f":"+AQ110-AS110","v":0},0,0,{"$f":"+AT110-AV110","v":0},0,0,{"$f":"+AW110-AY110","v":0},0,0,{"$f":"+AZ110-BB110","v":0},0,0,{"$f":"+BC110-BE110","v":0},0,0,{"$f":"+BF110-BH110","v":0},0,0,{"$f":"+BI110-BK110","v":0},0,0,{"$f":"+BL110-BN110","v":0},0,0,{"$f":"+BO110-BQ110","v":0},0,0,{"$f":"+BR110-BT110","v":0},0,0,{"$f":"+BU110-BW110","v":0},0,0,{"$f":"+BX110-BZ110","v":0},0,0,{"$f":"+CA110-CC110","v":0},0,0,{"$f":"+CD110-CF110","v":0},0,0,{"$f":"+CG110-CI110","v":0},0,0,{"$f":"+CJ110-CL110","v":0},0,0,{"$f":"+CM110-CO110","v":0},0,0,{"$f":"+CP110-CR110","v":0},0,0,{"$f":"+CS110-CU110","v":0},0,0,{"$f":"+CV110-CX110","v":0},0,0,{"$f":"+CY110-DA110","v":0},0,0,{"$f":"+DB110-DD110","v":0},0,0,{"$f":"+DE110-DG110","v":0},0,0,{"$f":"+DH110-DJ110","v":0},0,0,{"$f":"IF(D110>=(DK110),\"OK! \",\"eroare!UMF\")","v":"OK! "},null,null,null,null,null,null,null,null,"                    - rezidenţi ",null,3,0,0,0]
["1. Alergologie şi imunologie clinică",null,4,{"$f":"+E111+F111","v":0},{"$f":"+Q111+T111+W111+Z111+AC111+AF111+AI111+AO111+AR111+AU111+AX111+BA111+BD111+BG111+BJ111+BM111+BS111+BY111+CB111+CE111+CH111+CK111+CN111+CQ111+CT111+CW111+CZ111+DC111+DF111+DI111","v":0},{"$f":"R111+U111+X111+AA111+AD111+AG111+AJ111+AP111+AS111+AV111+AY111+BB111+BE111+BH111+BK111+BN111+BT111+BZ111+CC111+CF111+CI111+CL111+CO111+CR111+CU111+CX111+DA111+DD111+DG111+DJ111","v":0},0,{"$f":"+G111-I111","v":0},0,0,0,0,0,{"$f":"+M111-O111","v":0},0,0,{"$f":"+P111-R111","v":0},0,0,{"$f":"+S111-U111","v":0},0,0,{"$f":"+V111-X111","v":0},0,0,{"$f":"+Y111-AA111","v":0},0,0,{"$f":"+AB111-AD111","v":0},0,0,{"$f":"+AE111-AG111","v":0},0,0,{"$f":"+AH111-AJ111","v":0},0,0,{"$f":"+AK111-AM111","v":0},0,0,{"$f":"+AN111-AP111","v":0},0,0,{"$f":"+AQ111-AS111","v":0},0,0,{"$f":"+AT111-AV111","v":0},0,0,{"$f":"+AW111-AY111","v":0},0,0,{"$f":"+AZ111-BB111","v":0},0,0,{"$f":"+BC111-BE111","v":0},0,0,{"$f":"+BF111-BH111","v":0},0,0,{"$f":"+BI111-BK111","v":0},0,0,{"$f":"+BL111-BN111","v":0},0,0,{"$f":"+BO111-BQ111","v":0},0,0,{"$f":"+BR111-BT111","v":0},0,0,{"$f":"+BU111-BW111","v":0},0,0,{"$f":"+BX111-BZ111","v":0},0,0,{"$f":"+CA111-CC111","v":0},0,0,{"$f":"+CD111-CF111","v":0},0,0,{"$f":"+CG111-CI111","v":0},0,0,{"$f":"+CJ111-CL111","v":0},0,0,{"$f":"+CM111-CO111","v":0},0,0,{"$f":"+CP111-CR111","v":0},0,0,{"$f":"+CS111-CU111","v":0},0,0,{"$f":"+CV111-CX111","v":0},0,0,{"$f":"+CY111-DA111","v":0},0,0,{"$f":"+DB111-DD111","v":0},0,0,{"$f":"+DE111-DG111","v":0},0,0,{"$f":"+DH111-DJ111","v":0},0,0,{"$f":"IF(D111>=(DK111),\"OK! \",\"eroare!UMF\")","v":"OK! "},null,null,null,null,null,null,null,null,"1. Alergologie şi imunologie clinică",null,4,0,0,0]
["2. A.T.I.",null,5,0,0,0,0,0,0,0,0,0,0,0,0,0,{"$f":"+P112-R112","v":0},0,0,{"$f":"+S112-U112","v":0},0,0,{"$f":"+V112-X112","v":0},0,0,{"$f":"+Y112-AA112","v":0},0,0,{"$f":"+AB112-AD112","v":0},0,0,{"$f":"+AE112-AG112","v":0},0,0,{"$f":"+AH112-AJ112","v":0},0,0,{"$f":"+AK112-AM112","v":0},0,0,{"$f":"+AN112-AP112","v":0},0,0,{"$f":"+AQ112-AS112","v":0},0,0,{"$f":"+AT112-AV112","v":0},0,0,{"$f":"+AW112-AY112","v":0},0,0,{"$f":"+AZ112-BB112","v":0},0,0,{"$f":"+BC112-BE112","v":0},0,0,{"$f":"+BF112-BH112","v":0},0,0,{"$f":"+BI112-BK112","v":0},0,0,{"$f":"+BL112-BN112","v":0},0,0,{"$f":"+BO112-BQ112","v":0},0,0,{"$f":"+BR112-BT112","v":0},0,0,{"$f":"+BU112-BW112","v":0},0,0,{"$f":"+BX112-BZ112","v":0},0,0,{"$f":"+CA112-CC112","v":0},0,0,{"$f":"+CD112-CF112","v":0},0,0,{"$f":"+CG112-CI112","v":0},0,0,{"$f":"+CJ112-CL112","v":0},0,0,{"$f":"+CM112-CO112","v":0},0,0,{"$f":"+CP112-CR112","v":0},0,0,{"$f":"+CS112-CU112","v":0},0,0,{"$f":"+CV112-CX112","v":0},0,0,{"$f":"+CY112-DA112","v":0},0,0,{"$f":"+DB112-DD112","v":0},0,0,{"$f":"+DE112-DG112","v":0},0,0,{"$f":"+DH112-DJ112","v":0},0,0,"OK! ",null,null,null,null,null,null,null,null,"2. A.T.I.",null,5,0,0,0]
["3. Boli infecţioase",null,6,0,0,0,0,0,0,0,0,0,0,0,0,0,{"$f":"+P113-R113","v":0},0,0,{"$f":"+S113-U113","v":0},0,0,{"$f":"+V113-X113","v":0},0,0,{"$f":"+Y113-AA113","v":0},0,0,{"$f":"+AB113-AD113","v":0},0,0,{"$f":"+AE113-AG113","v":0},0,0,{"$f":"+AH113-AJ113","v":0},0,0,{"$f":"+AK113-AM113","v":0},0,0,{"$f":"+AN113-AP113","v":0},0,0,{"$f":"+AQ113-AS113","v":0},0,0,{"$f":"+AT113-AV113","v":0},0,0,{"$f":"+AW113-AY113","v":0},0,0,{"$f":"+AZ113-BB113","v":0},0,0,{"$f":"+BC113-BE113","v":0},0,0,{"$f":"+BF113-BH113","v":0},0,0,{"$f":"+BI113-BK113","v":0},0,0,{"$f":"+BL113-BN113","v":0},0,0,{"$f":"+BO113-BQ113","v":0},0,0,{"$f":"+BR113-BT113","v":0},0,0,{"$f":"+BU113-BW113","v":0},0,0,{"$f":"+BX113-BZ113","v":0},0,0,{"$f":"+CA113-CC113","v":0},0,0,{"$f":"+CD113-CF113","v":0},0,0,{"$f":"+CG113-CI113","v":0},0,0,{"$f":"+CJ113-CL113","v":0},0,0,{"$f":"+CM113-CO113","v":0},0,0,{"$f":"+CP113-CR113","v":0},0,0,{"$f":"+CS113-CU113","v":0},0,0,{"$f":"+CV113-CX113","v":0},0,0,{"$f":"+CY113-DA113","v":0},0,0,{"$f":"+DB113-DD113","v":0},0,0,{"$f":"+DE113-DG113","v":0},0,0,{"$f":"+DH113-DJ113","v":0},0,0,"OK! ",null,null,null,null,null,null,null,null,"3. Boli infecţioase",null,6,0,0,0]
["4. Cardiologie",null,7,0,0,0,0,0,0,0,0,0,0,0,0,0,{"$f":"+P114-R114","v":0},0,0,{"$f":"+S114-U114","v":0},0,0,{"$f":"+V114-X114","v":0},0,0,{"$f":"+Y114-AA114","v":0},0,0,{"$f":"+AB114-AD114","v":0},0,0,{"$f":"+AE114-AG114","v":0},0,0,{"$f":"+AH114-AJ114","v":0},0,0,{"$f":"+AK114-AM114","v":0},0,0,{"$f":"+AN114-AP114","v":0},0,0,{"$f":"+AQ114-AS114","v":0},0,0,{"$f":"+AT114-AV114","v":0},0,0,{"$f":"+AW114-AY114","v":0},0,0,{"$f":"+AZ114-BB114","v":0},0,0,{"$f":"+BC114-BE114","v":0},0,0,{"$f":"+BF114-BH114","v":0},0,0,{"$f":"+BI114-BK114","v":0},0,0,{"$f":"+BL114-BN114","v":0},0,0,{"$f":"+BO114-BQ114","v":0},0,0,{"$f":"+BR114-BT114","v":0},0,0,{"$f":"+BU114-BW114","v":0},0,0,{"$f":"+BX114-BZ114","v":0},0,0,{"$f":"+CA114-CC114","v":0},0,0,{"$f":"+CD114-CF114","v":0},0,0,{"$f":"+CG114-CI114","v":0},0,0,{"$f":"+CJ114-CL114","v":0},0,0,{"$f":"+CM114-CO114","v":0},0,0,{"$f":"+CP114-CR114","v":0},0,0,{"$f":"+CS114-CU114","v":0},0,0,{"$f":"+CV114-CX114","v":0},0,0,{"$f":"+CY114-DA114","v":0},0,0,{"$f":"+DB114-DD114","v":0},0,0,{"$f":"+DE114-DG114","v":0},0,0,{"$f":"+DH114-DJ114","v":0},0,0,"OK! ",null,null,null,null,null,null,null,null,"4. Cardiologie",null,7,0,0,0]
["5. Dermatovenerologie",null,8,0,0,0,0,0,0,0,0,0,0,0,0,0,0,0,0,0,0,0,0,0,0,0,0,0,0,0,0,0,0,0,0,0,0,0,0,0,0,0,0,0,0,0,0,0,0,0,0,0,0,0,0,0,0,0,0,0,0,0,0,0,0,0,0,0,0,0,0,0,0,0,0,0,0,0,0,0,0,0,0,0,0,0,0,0,0,0,0,0,0,0,0,0,0,0,0,0,0,0,0,0,0,0,0,0,0,0,0,0,0,0,0,"OK! ",null,null,null,null,null,null,null,null,"5. Dermatovenerologie",null,8,0,0,0]
["6. Diabet zaharat, nutriţie şi boli metabolice",null,9,0,0,0,0,0,0,0,0,0,0,0,0,0,0,0,0,0,0,0,0,0,0,0,0,0,0,0,0,0,0,0,0,0,0,0,0,0,0,0,0,0,0,0,0,0,0,0,0,0,0,0,0,0,0,0,0,0,0,0,0,0,0,0,0,0,0,0,0,0,0,0,0,0,0,0,0,0,0,0,0,0,0,0,0,0,0,0,0,0,0,0,0,0,0,0,0,0,0,0,0,0,0,0,0,0,0,0,0,0,0,0,0,"OK! ",null,null,null,null,null,null,null,null,"6. Diabet zaharat, nutriţie şi boli metabolice",null,9,0,0,0]
["7. Endocrinologie",null,10,0,0,0,0,0,0,0,0,0,0,0,0,0,0,0,0,0,0,0,0,0,0,0,0,0,0,0,0,0,0,0,0,0,0,0,0,0,0,0,0,0,0,0,0,0,0,0,0,0,0,0,0,0,0,0,0,0,0,0,0,0,0,0,0,0,0,0,0,0,0,0,0,0,0,0,0,0,0,0,0,0,0,0,0,0,0,0,0,0,0,0,0,0,0,0,0,0,0,0,0,0,0,0,0,0,0,0,0,0,0,0,0,"OK! ",null,null,null,null,null,null,null,null,"7. Endocrinologie",null,10,0,0,0]
["8. Expertiza medicală a capacităţii de muncă",null,11,0,0,0,0,0,0,0,0,0,0,0,0,0,0,0,0,0,0,0,0,0,0,0,0,0,0,0,0,0,0,0,0,0,0,0,0,0,0,0,0,0,0,0,0,0,0,0,0,0,0,0,0,0,0,0,0,0,0,0,0,0,0,0,0,0,0,0,0,0,0,0,0,0,0,0,0,0,0,0,0,0,0,0,0,0,0,0,0,0,0,0,0,0,0,0,0,0,0,0,0,0,0,0,0,0,0,0,0,0,0,0,0,"OK! ",null,null,null,null,null,null,null,null,"8. Expertiza medicală a capacităţii de muncă",null,11,0,0,0]
["9. Farmacologie clinică",null,12,0,0,0,0,0,0,0,0,0,0,0,0,0,0,0,0,0,0,0,0,0,0,0,0,0,0,0,0,0,0,0,0,0,0,0,0,0,0,0,0,0,0,0,0,0,0,0,0,0,0,0,0,0,0,0,0,0,0,0,0,0,0,0,0,0,0,0,0,0,0,0,0,0,0,0,0,0,0,0,0,0,0,0,0,0,0,0,0,0,0,0,0,0,0,0,0,0,0,0,0,0,0,0,0,0,0,0,0,0,0,0,0,"OK! ",null,null,null,null,null,null,null,null,"9. Farmacologie clinică",null,12,0,0,0]
["10. Gastroenterologie",null,13,0,0,0,0,0,0,0,0,0,0,0,0,0,0,0,0,0,0,0,0,0,0,0,0,0,0,0,0,0,0,0,0,0,0,0,0,0,0,0,0,0,0,0,0,0,0,0,0,0,0,0,0,0,0,0,0,0,0,0,0,0,0,0,0,0,0,0,0,0,0,0,0,0,0,0,0,0,0,0,0,0,0,0,0,0,0,0,0,0,0,0,0,0,0,0,0,0,0,0,0,0,0,0,0,0,0,0,0,0,0,0,0,"OK! ",null,null,null,null,null,null,null,null,"10. Gastroenterologie",null,13,0,0,0]
["11. Genetică medicală",null,14,0,0,0,0,0,0,0,0,0,0,0,0,0,0,0,0,0,0,0,0,0,0,0,0,0,0,0,0,0,0,0,0,0,0,0,0,0,0,0,0,0,0,0,0,0,0,0,0,0,0,0,0,0,0,0,0,0,0,0,0,0,0,0,0,0,0,0,0,0,0,0,0,0,0,0,0,0,0,0,0,0,0,0,0,0,0,0,0,0,0,0,0,0,0,0,0,0,0,0,0,0,0,0,0,0,0,0,0,0,0,0,0,"OK! ",null,null,null,null,null,null,null,null,"11. Genetică medicală",null,14,0,0,0]
["12. Geriatrie şi gerontologie",null,15,0,0,0,0,0,0,0,0,0,0,0,0,0,0,0,0,0,0,0,0,0,0,0,0,0,0,0,0,0,0,0,0,0,0,0,0,0,0,0,0,0,0,0,0,0,0,0,0,0,0,0,0,0,0,0,0,0,0,0,0,0,0,0,0,0,0,0,0,0,0,0,0,0,0,0,0,0,0,0,0,0,0,0,0,0,0,0,0,0,0,0,0,0,0,0,0,0,0,0,0,0,0,0,0,0,0,0,0,0,0,0,0,"OK! ",null,null,null,null,null,null,null,null,"12. Geriatrie şi gerontologie",null,15,0,0,0]
["13. Hematologie",null,16,0,0,0,0,0,0,0,0,0,0,0,0,0,0,0,0,0,0,0,0,0,0,0,0,0,0,0,0,0,0,0,0,0,0,0,0,0,0,0,0,0,0,0,0,0,0,0,0,0,0,0,0,0,0,0,0,0,0,0,0,0,0,0,0,0,0,0,0,0,0,0,0,0,0,0,0,0,0,0,0,0,0,0,0,0,0,0,0,0,0,0,0,0,0,0,0,0,0,0,0,0,0,0,0,0,0,0,0,0,0,0,0,"OK! ",null,null,null,null,null,null,null,null,"13. Hematologie",null,16,0,0,0]
["14. Medicină de familie",null,17,0,0,0,0,0,0,0,0,0,0,0,0,0,0,0,0,0,0,0,0,0,0,0,0,0,0,0,0,0,0,0,0,0,0,0,0,0,0,0,0,0,0,0,0,0,0,0,0,0,0,0,0,0,0,0,0,0,0,0,0,0,0,0,0,0,0,0,0,0,0,0,0,0,0,0,0,0,0,0,0,0,0,0,0,0,0,0,0,0,0,0,0,0,0,0,0,0,0,0,0,0,0,0,0,0,0,0,0,0,0,0,0,"OK! ",null,null,null,null,null,null,null,null,"14. Medicină de familie",null,17,{"$f":"+D205-D124","v":0},0,0]
["15. Medicină de urgenţă",null,18,0,0,0,0,0,0,0,0,0,0,0,0,0,0,0,0,0,0,0,0,0,0,0,0,0,0,0,0,0,0,0,0,0,0,0,0,0,0,0,0,0,0,0,0,0,0,0,0,0,0,0,0,0,0,0,0,0,0,0,0,0,0,0,0,0,0,0,0,0,0,0,0,0,0,0,0,0,0,0,0,0,0,0,0,0,0,0,0,0,0,0,0,0,0,0,0,0,0,0,0,0,0,0,0,0,0,0,0,0,0,0,0,"OK! ",null,null,null,null,null,null,null,null,"15. Medicină de urgenţă",null,18,0,0,0]
["16. Medicină internă",null,19,0,0,0,0,0,0,0,0,0,0,0,0,0,0,0,0,0,0,0,0,0,0,0,0,0,0,0,0,0,0,0,0,0,0,0,0,0,0,0,0,0,0,0,0,0,0,0,0,0,0,0,0,0,0,0,0,0,0,0,0,0,0,0,0,0,0,0,0,0,0,0,0,0,0,0,0,0,0,0,0,0,0,0,0,0,0,0,0,0,0,0,0,0,0,0,0,0,0,0,0,0,0,0,0,0,0,0,0,0,0,0,0,"OK! ",null,null,null,null,null,null,null,null,"16. Medicină internă",null,19,0,0,0]
["17. Medicină generală",null,20,0,0,0,0,0,0,0,0,0,0,0,0,0,0,0,0,0,0,0,0,0,0,0,0,0,0,0,0,0,0,0,0,0,0,0,0,0,0,0,0,0,0,0,0,0,0,0,0,0,0,0,0,0,0,0,0,0,0,0,0,0,0,0,0,0,0,0,0,0,0,0,0,0,0,0,0,0,0,0,0,0,0,0,0,0,0,0,0,0,0,0,0,0,0,0,0,0,0,0,0,0,0,0,0,0,0,0,0,0,0,0,0,"OK! ",null,null,null,null,null,null,null,null,"17. Medicină generală",null,20,0,0,0]
["18. Medicina muncii",null,21,0,0,0,0,0,0,0,0,0,0,0,0,0,0,0,0,0,0,0,0,0,0,0,0,0,0,0,0,0,0,0,0,0,0,0,0,0,0,0,0,0,0,0,0,0,0,0,0,0,0,0,0,0,0,0,0,0,0,0,0,0,0,0,0,0,0,0,0,0,0,0,0,0,0,0,0,0,0,0,0,0,0,0,0,0,0,0,0,0,0,0,0,0,0,0,0,0,0,0,0,0,0,0,0,0,0,0,0,0,0,0,0,"OK! ",null,null,null,null,null,null,null,null,"18. Medicina muncii",null,21,0,0,0]
["19. Medicină sportivă",null,22,0,0,0,0,0,0,0,0,0,0,0,0,0,0,0,0,0,0,0,0,0,0,0,0,0,0,0,0,0,0,0,0,0,0,0,0,0,0,0,0,0,0,0,0,0,0,0,0,0,0,0,0,0,0,0,0,0,0,0,0,0,0,0,0,0,0,0,0,0,0,0,0,0,0,0,0,0,0,0,0,0,0,0,0,0,0,0,0,0,0,0,0,0,0,0,0,0,0,0,0,0,0,0,0,0,0,0,0,0,0,0,0,"OK! ",null,null,null,null,null,null,null,null,"19. Medicină sportivă",null,22,0,0,0]
["20. Nefrologie",null,23,0,0,0,0,0,0,0,0,0,0,0,0,0,0,0,0,0,0,0,0,0,0,0,0,0,0,0,0,0,0,0,0,0,0,0,0,0,0,0,0,0,0,0,0,0,0,0,0,0,0,0,0,0,0,0,0,0,0,0,0,0,0,0,0,0,0,0,0,0,0,0,0,0,0,0,0,0,0,0,0,0,0,0,0,0,0,0,0,0,0,0,0,0,0,0,0,0,0,0,0,0,0,0,0,0,0,0,0,0,0,0,0,"OK! ",null,null,null,null,null,null,null,null,"20. Nefrologie",null,23,0,0,0]
["21. Neonatologie",null,24,0,0,0,0,0,0,0,0,0,0,0,0,0,0,0,0,0,0,0,0,0,0,0,0,0,0,0,0,0,0,0,0,0,0,0,0,0,0,0,0,0,0,0,0,0,0,0,0,0,0,0,0,0,0,0,0,0,0,0,0,0,0,0,0,0,0,0,0,0,0,0,0,0,0,0,0,0,0,0,0,0,0,0,0,0,0,0,0,0,0,0,0,0,0,0,0,0,0,0,0,0,0,0,0,0,0,0,0,0,0,0,0,"OK! ",null,null,null,null,null,null,null,null,"21. Neonatologie",null,24,0,0,0]
["22. Neurologie",null,25,0,0,0,0,0,0,0,0,0,0,0,0,0,0,0,0,0,0,0,0,0,0,0,0,0,0,0,0,0,0,0,0,0,0,0,0,0,0,0,0,0,0,0,0,0,0,0,0,0,0,0,0,0,0,0,0,0,0,0,0,0,0,0,0,0,0,0,0,0,0,0,0,0,0,0,0,0,0,0,0,0,0,0,0,0,0,0,0,0,0,0,0,0,0,0,0,0,0,0,0,0,0,0,0,0,0,0,0,0,0,0,0,"OK! ",null,null,null,null,null,null,null,null,"22. Neurologie",null,25,0,0,0]
["23. Neurologie pediatrică",null,26,0,0,0,0,0,0,0,0,0,0,0,0,0,0,0,0,0,0,0,0,0,0,0,0,0,0,0,0,0,0,0,0,0,0,0,0,0,0,0,0,0,0,0,0,0,0,0,0,0,0,0,0,0,0,0,0,0,0,0,0,0,0,0,0,0,0,0,0,0,0,0,0,0,0,0,0,0,0,0,0,0,0,0,0,0,0,0,0,0,0,0,0,0,0,0,0,0,0,0,0,0,0,0,0,0,0,0,0,0,0,0,0,"OK! ",null,null,null,null,null,null,null,null,"23. Neurologie pediatrică",null,26,0,0,0]
["24. Oncologie medicală",null,27,0,0,0,0,0,0,0,0,0,0,0,0,0,0,0,0,0,0,0,0,0,0,0,0,0,0,0,0,0,0,0,0,0,0,0,0,0,0,0,0,0,0,0,0,0,0,0,0,0,0,0,0,0,0,0,0,0,0,0,0,0,0,0,0,0,0,0,0,0,0,0,0,0,0,0,0,0,0,0,0,0,0,0,0,0,0,0,0,0,0,0,0,0,0,0,0,0,0,0,0,0,0,0,0,0,0,0,0,0,0,0,0,"OK! ",null,null,null,null,null,null,null,null,"24. Oncologie medicală",null,27,0,0,0]
["25. Pediatrie",null,28,0,0,0,0,0,0,0,0,0,0,0,0,0,0,0,0,0,0,0,0,0,0,0,0,0,0,0,0,0,0,0,0,0,0,0,0,0,0,0,0,0,0,0,0,0,0,0,0,0,0,0,0,0,0,0,0,0,0,0,0,0,0,0,0,0,0,0,0,0,0,0,0,0,0,0,0,0,0,0,0,0,0,0,0,0,0,0,0,0,0,0,0,0,0,0,0,0,0,0,0,0,0,0,0,0,0,0,0,0,0,0,0,"OK! ",null,null,null,null,null,null,null,null,"25. Pediatrie",null,28,0,0,0]
["26. Pneumologie",null,29,0,0,0,0,0,0,0,0,0,0,0,0,0,0,0,0,0,0,0,0,0,0,0,0,0,0,0,0,0,0,0,0,0,0,0,0,0,0,0,0,0,0,0,0,0,0,0,0,0,0,0,0,0,0,0,0,0,0,0,0,0,0,0,0,0,0,0,0,0,0,0,0,0,0,0,0,0,0,0,0,0,0,0,0,0,0,0,0,0,0,0,0,0,0,0,0,0,0,0,0,0,0,0,0,0,0,0,0,0,0,0,0,"OK! ",null,null,null,null,null,null,null,null,"26. Pneumologie",null,29,0,0,0]
["27. Psihiatrie ",null,30,0,0,0,0,0,0,0,0,0,0,0,0,0,0,0,0,0,0,0,0,0,0,0,0,0,0,0,0,0,0,0,0,0,0,0,0,0,0,0,0,0,0,0,0,0,0,0,0,0,0,0,0,0,0,0,0,0,0,0,0,0,0,0,0,0,0,0,0,0,0,0,0,0,0,0,0,0,0,0,0,0,0,0,0,0,0,0,0,0,0,0,0,0,0,0,0,0,0,0,0,0,0,0,0,0,0,0,0,0,0,0,0,"OK! ",null,null,null,null,null,null,null,null,"27. Psihiatrie ",null,30,0,0,0]
["28. Psihiatrie pediatrică ",null,31,0,0,0,0,0,0,0,0,0,0,0,0,0,0,0,0,0,0,0,0,0,0,0,0,0,0,0,0,0,0,0,0,0,0,0,0,0,0,0,0,0,0,0,0,0,0,0,0,0,0,0,0,0,0,0,0,0,0,0,0,0,0,0,0,0,0,0,0,0,0,0,0,0,0,0,0,0,0,0,0,0,0,0,0,0,0,0,0,0,0,0,0,0,0,0,0,0,0,0,0,0,0,0,0,0,0,0,0,0,0,0,0,"OK! ",null,null,null,null,null,null,null,null,"28. Psihiatrie pediatrică ",null,31,0,0,0]
["29. Radioterapie",null,32,0,0,0,0,0,0,0,0,0,0,0,0,0,0,0,0,0,0,0,0,0,0,0,0,0,0,0,0,0,0,0,0,0,0,0,0,0,0,0,0,0,0,0,0,0,0,0,0,0,0,0,0,0,0,0,0,0,0,0,0,0,0,0,0,0,0,0,0,0,0,0,0,0,0,0,0,0,0,0,0,0,0,0,0,0,0,0,0,0,0,0,0,0,0,0,0,0,0,0,0,0,0,0,0,0,0,0,0,0,0,0,0,"OK! ",null,null,null,null,null,null,null,null,"29. Radioterapie",null,32,0,0,0]
["30. Recuperare, medicină fizică şi balneologie",null,33,0,0,0,0,0,0,0,0,0,0,0,0,0,0,0,0,0,0,0,0,0,0,0,0,0,0,0,0,0,0,0,0,0,0,0,0,0,0,0,0,0,0,0,0,0,0,0,0,0,0,0,0,0,0,0,0,0,0,0,0,0,0,0,0,0,0,0,0,0,0,0,0,0,0,0,0,0,0,0,0,0,0,0,0,0,0,0,0,0,0,0,0,0,0,0,0,0,0,0,0,0,0,0,0,0,0,0,0,0,0,0,0,"OK! ",null,null,null,null,null,null,null,null,"30. Recuperare, medicină fizică şi balneologie",null,33,{"$f":"+D221-D140","v":0},0,0]
["31. Reumatologie",null,34,0,0,0,0,0,0,0,0,0,0,0,0,0,0,0,0,0,0,0,0,0,0,0,0,0,0,0,0,0,0,0,0,0,0,0,0,0,0,0,0,0,0,0,0,0,0,0,0,0,0,0,0,0,0,0,0,0,0,0,0,0,0,0,0,0,0,0,0,0,0,0,0,0,0,0,0,0,0,0,0,0,0,0,0,0,0,0,0,0,0,0,0,0,0,0,0,0,0,0,0,0,0,0,0,0,0,0,0,0,0,0,0,"OK! ",null,null,null,null,null,null,null,null,"31. Reumatologie",null,34,0,0,0]
["32. Chirurgie cardiovasculară",null,35,0,0,0,0,0,0,0,0,0,0,0,0,0,0,0,0,0,0,0,0,0,0,0,0,0,0,0,0,0,0,0,0,0,0,0,0,0,0,0,0,0,0,0,0,0,0,0,0,0,0,0,0,0,0,0,0,0,0,0,0,0,0,0,0,0,0,0,0,0,0,0,0,0,0,0,0,0,0,0,0,0,0,0,0,0,0,0,0,0,0,0,0,0,0,0,0,0,0,0,0,0,0,0,0,0,0,0,0,0,0,0,0,"OK! ",null,null,null,null,null,null,null,null,"32. Chirurgie cardiovasculară",null,35,0,0,0]
["33. Chirurgie generală",null,36,0,0,0,0,0,0,0,0,0,0,0,0,0,0,0,0,0,0,0,0,0,0,0,0,0,0,0,0,0,0,0,0,0,0,0,0,0,0,0,0,0,0,0,0,0,0,0,0,0,0,0,0,0,0,0,0,0,0,0,0,0,0,0,0,0,0,0,0,0,0,0,0,0,0,0,0,0,0,0,0,0,0,0,0,0,0,0,0,0,0,0,0,0,0,0,0,0,0,0,0,0,0,0,0,0,0,0,0,0,0,0,0,"OK! ",null,null,null,null,null,null,null,null,"33. Chirurgie generală",null,36,0,0,0]
["34. Chirurgie orală şi maxilo- facială",null,37,0,0,0,0,0,0,0,0,0,0,0,0,0,0,0,0,0,0,0,0,0,0,0,0,0,0,0,0,0,0,0,0,0,0,0,0,0,0,0,0,0,0,0,0,0,0,0,0,0,0,0,0,0,0,0,0,0,0,0,0,0,0,0,0,0,0,0,0,0,0,0,0,0,0,0,0,0,0,0,0,0,0,0,0,0,0,0,0,0,0,0,0,0,0,0,0,0,0,0,0,0,0,0,0,0,0,0,0,0,0,0,0,"OK! ",null,null,null,null,null,null,null,null,"34. Chirurgie orală şi maxilo- facială",null,37,0,0,0]
["35. Chirurgie pediatrică",null,38,0,0,0,0,0,0,0,0,0,0,0,0,0,0,0,0,0,0,0,0,0,0,0,0,0,0,0,0,0,0,0,0,0,0,0,0,0,0,0,0,0,0,0,0,0,0,0,0,0,0,0,0,0,0,0,0,0,0,0,0,0,0,0,0,0,0,0,0,0,0,0,0,0,0,0,0,0,0,0,0,0,0,0,0,0,0,0,0,0,0,0,0,0,0,0,0,0,0,0,0,0,0,0,0,0,0,0,0,0,0,0,0,"OK! ",null,null,null,null,null,null,null,null,"35. Chirurgie pediatrică",null,38,{"$f":"+D227-D145","v":0},{"$f":"+E227-E145","v":0},{"$f":"+F227-F145","v":0}]
["36. Chirurgie plastică-microchirurgie reconstructivă",null,39,0,0,0,0,0,0,0,0,0,0,0,0,0,0,0,0,0,0,0,0,0,0,0,0,0,0,0,0,0,0,0,0,0,0,0,0,0,0,0,0,0,0,0,0,0,0,0,0,0,0,0,0,0,0,0,0,0,0,0,0,0,0,0,0,0,0,0,0,0,0,0,0,0,0,0,0,0,0,0,0,0,0,0,0,0,0,0,0,0,0,0,0,0,0,0,0,0,0,0,0,0,0,0,0,0,0,0,0,0,0,0,0,"OK! ",null,null,null,null,null,null,null,null,"36. Chirurgie plastică-microchirurgie reconstructivă",null,39,0,0,0]
["37. Chirurgie toracică",null,40,0,0,0,0,0,0,0,0,0,0,0,0,0,0,0,0,0,0,0,0,0,0,0,0,0,0,0,0,0,0,0,0,0,0,0,0,0,0,0,0,0,0,0,0,0,0,0,0,0,0,0,0,0,0,0,0,0,0,0,0,0,0,0,0,0,0,0,0,0,0,0,0,0,0,0,0,0,0,0,0,0,0,0,0,0,0,0,0,0,0,0,0,0,0,0,0,0,0,0,0,0,0,0,0,0,0,0,0,0,0,0,0,"OK! ",null,null,null,null,null,null,null,null,"37. Chirurgie toracică",null,40,0,0,0]
["38. Chirurgie vasculară",null,41,0,0,0,0,0,0,0,0,0,0,0,0,0,0,0,0,0,0,0,0,0,0,0,0,0,0,0,0,0,0,0,0,0,0,0,0,0,0,0,0,0,0,0,0,0,0,0,0,0,0,0,0,0,0,0,0,0,0,0,0,0,0,0,0,0,0,0,0,0,0,0,0,0,0,0,0,0,0,0,0,0,0,0,0,0,0,0,0,0,0,0,0,0,0,0,0,0,0,0,0,0,0,0,0,0,0,0,0,0,0,0,0,"OK! ",null,null,null,null,null,null,null,null,"38. Chirurgie vasculară",null,41,0,0,0]
["39. Neurochirurgie",null,42,0,0,0,0,0,0,0,0,0,0,0,0,0,0,0,0,0,0,0,0,0,0,0,0,0,0,0,0,0,0,0,0,0,0,0,0,0,0,0,0,0,0,0,0,0,0,0,0,0,0,0,0,0,0,0,0,0,0,0,0,0,0,0,0,0,0,0,0,0,0,0,0,0,0,0,0,0,0,0,0,0,0,0,0,0,0,0,0,0,0,0,0,0,0,0,0,0,0,0,0,0,0,0,0,0,0,0,0,0,0,0,0,"OK! ",null,null,null,null,null,null,null,null,"39. Neurochirurgie",null,42,0,0,0]
["40. Obstetrică- ginecologie",null,43,0,0,0,0,0,0,0,0,0,0,0,0,0,0,0,0,0,0,0,0,0,0,0,0,0,0,0,0,0,0,0,0,0,0,0,0,0,0,0,0,0,0,0,0,0,0,0,0,0,0,0,0,0,0,0,0,0,0,0,0,0,0,0,0,0,0,0,0,0,0,0,0,0,0,0,0,0,0,0,0,0,0,0,0,0,0,0,0,0,0,0,0,0,0,0,0,0,0,0,0,0,0,0,0,0,0,0,0,0,0,0,0,"OK! ",null,null,null,null,null,null,null,null,"40. Obstetrică- ginecologie",null,43,0,0,0]
["41. Oftalmologie",null,44,0,0,0,0,0,0,0,0,0,0,0,0,0,0,0,0,0,0,0,0,0,0,0,0,0,0,0,0,0,0,0,0,0,0,0,0,0,0,0,0,0,0,0,0,0,0,0,0,0,0,0,0,0,0,0,0,0,0,0,0,0,0,0,0,0,0,0,0,0,0,0,0,0,0,0,0,0,0,0,0,0,0,0,0,0,0,0,0,0,0,0,0,0,0,0,0,0,0,0,0,0,0,0,0,0,0,0,0,0,0,0,0,"OK! ",null,null,null,null,null,null,null,null,"41. Oftalmologie",null,44,0,0,0]
["42. Ortopedie pediatrică",null,45,0,0,0,0,0,0,0,0,0,0,0,0,0,0,0,0,0,0,0,0,0,0,0,0,0,0,0,0,0,0,0,0,0,0,0,0,0,0,0,0,0,0,0,0,0,0,0,0,0,0,0,0,0,0,0,0,0,0,0,0,0,0,0,0,0,0,0,0,0,0,0,0,0,0,0,0,0,0,0,0,0,0,0,0,0,0,0,0,0,0,0,0,0,0,0,0,0,0,0,0,0,0,0,0,0,0,0,0,0,0,0,0,"OK! ",null,null,null,null,null,null,null,null,"42. Ortopedie pediatrică",null,45,0,0,0]
["43. Ortopedie şi traumatologie",null,46,0,0,0,0,0,0,0,0,0,0,0,0,0,0,0,0,0,0,0,0,0,0,0,0,0,0,0,0,0,0,0,0,0,0,0,0,0,0,0,0,0,0,0,0,0,0,0,0,0,0,0,0,0,0,0,0,0,0,0,0,0,0,0,0,0,0,0,0,0,0,0,0,0,0,0,0,0,0,0,0,0,0,0,0,0,0,0,0,0,0,0,0,0,0,0,0,0,0,0,0,0,0,0,0,0,0,0,0,0,0,0,0,"OK! ",null,null,null,null,null,null,null,null,"43. Ortopedie şi traumatologie",null,46,0,0,0]
["44. O.R.L.",null,47,0,0,0,0,0,0,0,0,0,0,0,0,0,0,0,0,0,0,0,0,0,0,0,0,0,0,0,0,0,0,0,0,0,0,0,0,0,0,0,0,0,0,0,0,0,0,0,0,0,0,0,0,0,0,0,0,0,0,0,0,0,0,0,0,0,0,0,0,0,0,0,0,0,0,0,0,0,0,0,0,0,0,0,0,0,0,0,0,0,0,0,0,0,0,0,0,0,0,0,0,0,0,0,0,0,0,0,0,0,0,0,0,"OK! ",null,null,null,null,null,null,null,null,"44. O.R.L.",null,47,0,0,0]
["45. Urologie",null,48,0,0,0,0,0,0,0,0,0,0,0,0,0,0,0,0,0,0,0,0,0,0,0,0,0,0,0,0,0,0,0,0,0,0,0,0,0,0,0,0,0,0,0,0,0,0,0,0,0,0,0,0,0,0,0,0,0,0,0,0,0,0,0,0,0,0,0,0,0,0,0,0,0,0,0,0,0,0,0,0,0,0,0,0,0,0,0,0,0,0,0,0,0,0,0,0,0,0,0,0,0,0,0,0,0,0,0,0,0,0,0,0,"OK! ",null,null,null,null,null,null,null,null,"45. Urologie",null,48,0,0,0]
["46. Anatomie patologică",null,49,0,0,0,0,0,0,0,0,0,0,0,0,0,0,0,0,0,0,0,0,0,0,0,0,0,0,0,0,0,0,0,0,0,0,0,0,0,0,0,0,0,0,0,0,0,0,0,0,0,0,0,0,0,0,0,0,0,0,0,0,0,0,0,0,0,0,0,0,0,0,0,0,0,0,0,0,0,0,0,0,0,0,0,0,0,0,0,0,0,0,0,0,0,0,0,0,0,0,0,0,0,0,0,0,0,0,0,0,0,0,0,0,"OK! ",null,null,null,null,null,null,null,null,"46. Anatomie patologică",null,49,0,0,0]
["47. Epidemiologie",null,50,0,0,0,0,0,0,0,0,0,0,0,0,0,0,0,0,0,0,0,0,0,0,0,0,0,0,0,0,0,0,0,0,0,0,0,0,0,0,0,0,0,0,0,0,0,0,0,0,0,0,0,0,0,0,0,0,0,0,0,0,0,0,0,0,0,0,0,0,0,0,0,0,0,0,0,0,0,0,0,0,0,0,0,0,0,0,0,0,0,0,0,0,0,0,0,0,0,0,0,0,0,0,0,0,0,0,0,0,0,0,0,0,"OK! ",null,null,null,null,null,null,null,null,"47. Epidemiologie",null,50,0,0,0]
["48. Igienă",null,51,0,0,0,0,0,0,0,0,0,0,0,0,0,0,0,0,0,0,0,0,0,0,0,0,0,0,0,0,0,0,0,0,0,0,0,0,0,0,0,0,0,0,0,0,0,0,0,0,0,0,0,0,0,0,0,0,0,0,0,0,0,0,0,0,0,0,0,0,0,0,0,0,0,0,0,0,0,0,0,0,0,0,0,0,0,0,0,0,0,0,0,0,0,0,0,0,0,0,0,0,0,0,0,0,0,0,0,0,0,0,0,0,"OK! ",null,null,null,null,null,null,null,null,"48. Igienă",null,51,0,0,0]
["49. Medicină de laborator",null,52,0,0,0,0,0,0,0,0,0,0,0,0,0,0,0,0,0,0,0,0,0,0,0,0,0,0,0,0,0,0,0,0,0,0,0,0,0,0,0,0,0,0,0,0,0,0,0,0,0,0,0,0,0,0,0,0,0,0,0,0,0,0,0,0,0,0,0,0,0,0,0,0,0,0,0,0,0,0,0,0,0,0,0,0,0,0,0,0,0,0,0,0,0,0,0,0,0,0,0,0,0,0,0,0,0,0,0,0,0,0,0,0,"OK! ",null,null,null,null,null,null,null,null,"49. Medicină de laborator",null,52,0,0,0]
["50. Medicină legală",null,53,0,0,0,0,0,0,0,0,0,0,0,0,0,0,0,0,0,0,0,0,0,0,0,0,0,0,0,0,0,0,0,0,0,0,0,0,0,0,0,0,0,0,0,0,0,0,0,0,0,0,0,0,0,0,0,0,0,0,0,0,0,0,0,0,0,0,0,0,0,0,0,0,0,0,0,0,0,0,0,0,0,0,0,0,0,0,0,0,0,0,0,0,0,0,0,0,0,0,0,0,0,0,0,0,0,0,0,0,0,0,0,0,"OK! ",null,null,null,null,null,null,null,null,"50. Medicină legală",null,53,0,0,0]
["51. Medicină nucleară",null,54,0,0,0,0,0,0,0,0,0,0,0,0,0,0,0,0,0,0,0,0,0,0,0,0,0,0,0,0,0,0,0,0,0,0,0,0,0,0,0,0,0,0,0,0,0,0,0,0,0,0,0,0,0,0,0,0,0,0,0,0,0,0,0,0,0,0,0,0,0,0,0,0,0,0,0,0,0,0,0,0,0,0,0,0,0,0,0,0,0,0,0,0,0,0,0,0,0,0,0,0,0,0,0,0,0,0,0,0,0,0,0,0,"OK! ",null,null,null,null,null,null,null,null,"51. Medicină nucleară",null,54,0,0,0]
["52. Radiologie – imagistică medicală",null,55,0,0,0,0,0,0,0,0,0,0,0,0,0,0,0,0,0,0,0,0,0,0,0,0,0,0,0,0,0,0,0,0,0,0,0,0,0,0,0,0,0,0,0,0,0,0,0,0,0,0,0,0,0,0,0,0,0,0,0,0,0,0,0,0,0,0,0,0,0,0,0,0,0,0,0,0,0,0,0,0,0,0,0,0,0,0,0,0,0,0,0,0,0,0,0,0,0,0,0,0,0,0,0,0,0,0,0,0,0,0,0,0,"OK! ",null,null,null,null,null,null,null,null,"52. Radiologie – imagistică medicală",null,55,0,0,0]
["53. Sănătate publică şi management",null,56,0,0,0,0,0,0,0,0,0,0,0,0,0,0,0,0,0,0,0,0,0,0,0,0,0,0,0,0,0,0,0,0,0,0,0,0,0,0,0,0,0,0,0,0,0,0,0,0,0,0,0,0,0,0,0,0,0,0,0,0,0,0,0,0,0,0,0,0,0,0,0,0,0,0,0,0,0,0,0,0,0,0,0,0,0,0,0,0,0,0,0,0,0,0,0,0,0,0,0,0,0,0,0,0,0,0,0,0,0,0,0,0,"OK! ",null,null,null,null,null,null,null,null,"53. Sănătate publică şi management",null,56,0,0,0]
["II. DENTIŞTI -  TOTAL,                      din care:",null,57,0,0,0,0,0,0,0,0,0,0,0,0,0,0,0,0,0,0,0,0,0,0,0,0,0,0,0,0,0,0,0,0,0,0,0,0,0,0,0,0,0,0,0,0,0,0,0,0,0,0,0,0,0,0,0,0,0,0,0,0,0,0,0,0,0,0,0,0,0,0,0,0,0,0,0,0,0,0,0,0,0,0,0,0,0,0,0,0,0,0,0,0,0,0,0,0,0,0,0,0,0,0,0,0,0,0,0,0,0,0,0,0,"OK! ",null,null,null,null,null,null,null,null,"II. DENTIŞTI TOTAL, din care:",null,57,0,0,0]
["           - rezidenţi",null,58,0,0,0,0,0,0,0,0,0,0,0,0,0,0,0,0,0,0,0,0,0,0,0,0,0,0,0,0,0,0,0,0,0,0,0,0,0,0,0,0,0,0,0,0,0,0,0,0,0,0,0,0,0,0,0,0,0,0,0,0,0,0,0,0,0,0,0,0,0,0,0,0,0,0,0,0,0,0,0,0,0,0,0,0,0,0,0,0,0,0,0,0,0,0,0,0,0,0,0,0,0,0,0,0,0,0,0,0,0,0,0,0,"OK! ",null,null,null,null,null,null,null,null,"           - rezidenţi",null,58,0,0,0]
["1. Chirurgie dento-alveolară",null,59,0,0,0,"x",0,0,0,0,0,0,0,0,0,0,0,0,0,0,0,0,0,0,0,0,0,0,0,0,0,0,0,0,0,0,0,0,0,0,0,0,0,0,0,0,0,0,0,0,0,0,0,0,0,0,0,0,0,0,0,0,0,0,0,0,0,0,0,0,0,0,0,0,0,0,0,0,0,0,0,0,0,0,0,0,0,0,0,0,0,0,0,0,0,0,0,0,0,0,0,0,0,0,0,0,0,0,0,0,0,0,0,0,"OK! ",null,null,null,null,null,null,null,null,"1. Chirurgie dento-alveolară",null,59,0,0,0]
["2. Ortodonţie şi ortopedie dento-facială",null,60,0,0,0,"x",0,0,0,0,0,0,0,0,0,0,0,0,0,0,0,0,0,0,0,0,0,0,0,0,0,0,0,0,0,0,0,0,0,0,0,0,0,0,0,0,0,0,0,0,0,0,0,0,0,0,0,0,0,0,0,0,0,0,0,0,0,0,0,0,0,0,0,0,0,0,0,0,0,0,0,0,0,0,0,0,0,0,0,0,0,0,0,0,0,0,0,0,0,0,0,0,0,0,0,0,0,0,0,0,0,0,0,0,"OK! ",null,null,null,null,null,null,null,null,"2. Ortodonţie şi ortopedie dento-facială",null,60,0,0,0]
["III. FARMACIŞTI – TOTAL,              din care:",null,61,0,0,0,0,{"$f":"+G168-I168","v":0},0,0,0,0,0,0,0,0,0,0,0,0,0,0,0,0,0,0,0,0,0,0,0,0,0,0,0,0,0,0,0,0,0,0,0,0,0,0,0,0,0,0,0,0,0,0,0,0,0,0,0,0,0,0,0,0,0,0,0,0,0,0,0,0,0,0,0,0,0,0,0,0,0,0,0,0,0,0,0,0,0,0,0,0,0,0,0,0,0,0,0,0,0,0,0,0,0,0,0,0,0,0,0,0,0,0,0,"OK! ",null,null,null,null,null,null,null,null,"III. FARMACIŞTI – TOTAL, din care:",null,61,0,0,0]
["          - rezidenţi",null,62,0,0,0,0,{"$f":"+G169-I169","v":0},0,0,0,0,0,0,0,0,0,0,0,0,0,0,0,0,0,0,0,0,0,0,0,0,0,0,0,0,0,0,0,0,0,0,0,0,0,0,0,0,0,0,0,0,0,0,0,0,0,0,0,0,0,0,0,0,0,0,0,0,0,0,0,0,0,0,0,0,0,0,0,0,0,0,0,0,0,0,0,0,0,0,0,0,0,0,0,0,0,0,0,0,0,0,0,0,0,0,0,0,0,0,0,0,0,0,0,"OK! ",null,null,null,null,null,null,null,null,"          - rezidenţi",null,62,0,0,0]
["1. Farmacie clinică",null,63,0,0,0,"x",0,0,0,0,0,0,0,0,0,0,0,0,0,0,0,0,0,0,0,0,0,0,0,0,0,0,0,0,0,0,0,0,0,0,0,0,0,0,0,0,0,0,0,0,0,0,0,0,0,0,0,0,0,0,0,0,0,0,0,0,0,0,0,0,0,0,0,0,0,0,0,0,0,0,0,0,0,0,0,0,0,0,0,0,0,0,0,0,0,0,0,0,0,0,0,0,0,0,0,0,0,0,0,0,0,0,0,0,"OK! ",null,null,null,null,null,null,null,null,"1. Farmacie clinică",null,63,0,0,0]
["2. Laborator farmaceutic",null,64,0,0,0,"x",0,0,0,0,0,0,0,0,0,0,0,0,0,0,0,0,0,0,0,0,0,0,0,0,0,0,0,0,0,0,0,0,0,0,0,0,0,0,0,0,0,0,0,0,0,0,0,0,0,0,0,0,0,0,0,0,0,0,0,0,0,0,0,0,0,0,0,0,0,0,0,0,0,0,0,0,0,0,0,0,0,0,0,0,0,0,0,0,0,0,0,0,0,0,0,0,0,0,0,0,0,0,0,0,0,0,0,0,"OK! ",null,null,null,null,null,null,null,null,"2. Laborator farmaceutic",null,64,0,0,0]
["IV. FIZIOKINETOTERAPEUŢI - TOTAL, din care:",null,65,0,0,0,"x",0,0,0,0,0,0,0,0,0,0,0,0,0,0,0,0,0,0,0,0,0,0,0,0,0,0,0,0,0,0,0,0,0,0,0,0,0,0,0,0,0,0,0,0,0,0,0,0,0,0,0,0,0,0,0,0,0,0,0,0,0,0,0,0,0,0,0,0,0,0,0,0,0,0,0,0,0,0,0,0,0,0,0,0,0,0,0,0,0,0,0,0,0,0,0,0,0,0,0,0,0,0,0,0,0,0,0,0,"OK! ",null,null,null,null,null,null,null,null,"IV. FIZIOKINETOTERAPEUŢI, din care:",null,65,0,0,0]
["          - fizioterapeuţi  ",null,66,0,0,0,"x",0,0,0,0,0,0,0,0,0,0,0,0,0,0,0,0,0,0,0,0,0,0,0,0,0,0,0,0,0,0,0,0,0,0,0,0,0,0,0,0,0,0,0,0,0,0,0,0,0,0,0,0,0,0,0,0,0,0,0,0,0,0,0,0,0,0,0,0,0,0,0,0,0,0,0,0,0,0,0,0,0,0,0,0,0,0,0,0,0,0,0,0,0,0,0,0,0,0,0,0,0,0,0,0,0,0,0,0,"OK! ",null,null,null,null,null,null,null,null,"          - fizioterapeuţi  ",null,66,0,0,0]
["V. ASISTENŢI MEDICALI CU STUDII SUPERIOARE - TOTAL,       din care:",null,67,0,0,0,"x",0,0,0,0,0,0,0,0,0,0,0,0,0,0,0,0,0,0,0,0,0,0,0,0,0,0,0,0,0,0,0,0,0,0,0,0,0,0,0,0,0,0,0,0,0,0,0,0,0,0,0,0,0,0,0,0,0,0,0,0,0,0,0,0,0,0,0,0,0,0,0,0,0,0,0,0,0,0,0,0,0,0,0,0,0,0,0,0,0,0,0,0,0,0,0,0,0,0,0,0,0,0,0,0,0,0,0,0,"OK! ",null,null,null,null,null,null,null,null,"V. ASISTENŢI MEDICALI CU STUDII SUPERIOARE, din care:",null,67,0,0,0]
["       - asistenţi medicali obstetrică- ginecologie (moaşe)",null,68,{"$f":"+E175+F175","v":0},{"$f":"+Q175+T175+W175+Z175+AC175+AF175+AI175+AO175+AR175+AU175+AX175+BA175+BD175+BG175+BJ175+BM175+BS175+BY175+CB175+CE175+CH175+CK175+CN175+CQ175+CT175+CW175+CZ175+DC175+DF175+DI175","v":0},{"$f":"R175+U175+X175+AA175+AD175+AG175+AJ175+AP175+AS175+AV175+AY175+BB175+BE175+BH175+BK175+BN175+BT175+BZ175+CC175+CF175+CI175+CL175+CO175+CR175+CU175+CX175+DA175+DD175+DG175+DJ175","v":0},"x",0,0,0,0,0,0,{"$f":"+M175-O175","v":0},0,0,0,0,0,0,0,0,0,0,0,0,0,0,0,0,0,0,0,0,0,0,0,0,0,0,0,0,0,0,0,0,0,0,0,0,0,0,0,0,0,0,0,0,0,0,0,0,0,0,0,0,0,0,0,0,0,0,0,0,0,0,0,0,0,0,0,0,0,0,0,0,0,0,0,0,0,0,0,0,0,0,0,0,0,0,0,0,0,0,0,0,0,0,0,0,0,0,0,0,0,{"$f":"IF(D175>=(DK175),\"OK! \",\"eroare!UMF\")","v":"OK! "},null,null,null,null,null,null,null,null,"       - asistenţi medicali obstetrică-       ginecologie (moaşe)",null,68,0,0,0]
["VI. ALT PERSONAL SANITAR SUPERIOR (biologi, chimişti, logopezi, profesori CFM, psihologi)",null,69,{"$f":"+E176+F176","v":0},{"$f":"+Q176+T176+W176+Z176+AC176+AF176+AI176+AO176+AR176+AU176+AX176+BA176+BD176+BG176+BJ176+BM176+BS176+BY176+CB176+CE176+CH176+CK176+CN176+CQ176+CT176+CW176+CZ176+DC176+DF176+DI176","v":0},{"$f":"R176+U176+X176+AA176+AD176+AG176+AJ176+AP176+AS176+AV176+AY176+BB176+BE176+BH176+BK176+BN176+BT176+BZ176+CC176+CF176+CI176+CL176+CO176+CR176+CU176+CX176+DA176+DD176+DG176+DJ176","v":0},"x",0,0,0,0,0,0,{"$f":"+M176-O176","v":0},0,0,0,0,0,0,0,0,0,0,0,0,0,0,0,0,0,0,0,0,0,0,0,0,0,0,0,0,0,0,0,0,0,0,0,0,0,0,0,0,0,0,0,0,0,0,0,0,0,0,0,0,0,0,0,0,0,0,0,0,0,0,0,0,0,0,0,0,0,0,0,0,0,0,0,0,0,0,0,0,0,0,0,0,0,0,0,0,0,0,0,0,0,0,0,0,0,0,0,0,0,{"$f":"IF(D176>=(DK176),\"OK! \",\"eroare!UMF\")","v":"OK! "},null,null,null,null,null,null,null,null,"VI. ALT PERSONAL SANITAR SUPERIOR (biologi, chimişti, logopezi, profesori CFM, psihologi)",null,69,0,0,0]
["VII. ALT PERSONAL CU STUDII SUPERIOARE (economişti,jurişti, ingineri etc)",null,70,{"$f":"+E177+F177","v":0},{"$f":"+Q177+T177+W177+Z177+AC177+AF177+AI177+AO177+AR177+AU177+AX177+BA177+BD177+BG177+BJ177+BM177+BS177+BY177+CB177+CE177+CH177+CK177+CN177+CQ177+CT177+CW177+CZ177+DC177+DF177+DI177","v":0},{"$f":"R177+U177+X177+AA177+AD177+AG177+AJ177+AP177+AS177+AV177+AY177+BB177+BE177+BH177+BK177+BN177+BT177+BZ177+CC177+CF177+CI177+CL177+CO177+CR177+CU177+CX177+DA177+DD177+DG177+DJ177","v":0},"x",0,0,0,0,0,0,{"$f":"+M177-O177","v":0},0,0,0,0,0,0,0,0,0,0,0,0,0,0,0,0,0,0,0,0,0,0,0,0,0,0,0,0,0,0,0,0,0,0,0,0,0,0,0,0,0,0,0,0,0,0,0,0,0,0,0,0,0,0,0,0,0,0,0,0,0,0,0,0,0,0,0,0,0,0,0,0,0,0,0,0,0,0,0,0,0,0,0,0,0,0,0,0,0,0,0,0,0,0,0,0,0,0,0,0,0,{"$f":"IF(D177>=(DK177),\"OK! \",\"eroare!UMF\")","v":"OK! "},null,null,null,null,null,null,null,null,"VII. ALT PERSONAL CU STUDII SUPERIOARE (economişti,jurişti, ingineri etc)",null,70,0,0,0]
[null,"U.M.F. *)  - este trecut personalul sanitar cu cartea de muncă la Universitatatea de Medicină şi Farmacie şi care are integrare clinică. Nu se prinde în total ( coloana 01)."]
[]
[]
[]
["Cap.15. PERSONAL SANITAR CU STUDII SUPERIOARE PE GRUPE DE VÂRSTĂ"]
["D"]
["CATEGORII DE PERSONAL",null,"Randul","TOTAL",null,null,"            Repartizarea personalului cu studii superioare pe grupe de vârstă",null,null,null,null,null,null,null,null,null,null,null,null,null,null,null,null,null,"Cu normă întreagă"]
[null,null,null,"TOTAL","MASCULIN","FEMININ","Sub 25 ani",null,null,"25-34 ani",null,null,"35-44 ani",null,null,"45-54 ani",null,null,"55-64 ani",null,null,"65 ani şi peste",null,null,"Total",null,null,"din care: in spital, centru de sanatate cu paturi, san. TBC, preventorii, san. de nevroze/neuropsihiatrie, san. balneare"]
[null,null,null,null,null,null,"Total","din care:",null,"Total","din care:",null,"Total","din care:",null,"Total","din care:",null,"Total","din care:",null,"Total","din care:",null,"Total","din care:",null,"Total","din care:"]
[null,null,null,null,null,null,null,"masculin","feminin",null,"masculin","feminin",null,"masculin","feminin",null,"masculin","feminin",null,"masculin","feminin",null,"masculin","feminin",null,"masculin","feminin",null,"masculin","feminin"]
["A",null,"B",1,2,3,4,5,6,7,8,9,10,11,12,13,14,15,16,17,18,19,20,21,22,23,24,25,26,27]
["TOTAL PERSONAL CU STUDII SUPERIOARE (rândurile  2+57+61+65+67+69+70)",null,1,{"$f":"+D190+D246+D250+D254+D256+D258+D259","v":0},0,0,0,0,0,0,0,0,0,0,0,0,0,0,0,0,0,0,0,0,0,0,0,0,0,0]
["I. MEDICI (EXCLUSIV DENTIŞTI) – TOTAL     (rândurile  4+......+56),                   din care:",null,2,{"$f":"SUM(D192:D245)-D226","v":0},{"$f":"SUM(E192:E245)-E226","v":0},0,0,0,0,0,0,0,0,0,0,0,0,0,0,0,0,0,0,0,0,0,0,0,0,0]
["                    - rezidenţi ",null,3,{"$f":"+E191+F191","v":0},{"$f":"+H191+K191+N191+Q191+T191+W191","v":0},{"$f":"+I191+L191+O191+R191+U191+X191","v":0},0,{"$f":"+G191-I191","v":0},0,0,{"$f":"+J191-L191","v":0},0,0,{"$f":"+M191-O191","v":0},0,0,{"$f":"+P191-R191","v":0},0,0,{"$f":"+S191-U191","v":0},0,0,{"$f":"+V191-X191","v":0},0,0,{"$f":"+Y191-AA191","v":0},0,0,{"$f":"+AB191-AD191","v":0},0,{"$f":"IF((E191>=Z191),\"ok!\",\"err!total norme\")","v":"ok!"},{"$f":"IF((F191>=AA191),\"ok!\",\"err!total norme\")","v":"ok!"},{"$f":"IF((Z191>=AC191),\"ok!\",\"err!norme spital\")","v":"ok!"},{"$f":"IF((AA191>=AD191),\"ok!\",\"err!norme spital\")","v":"ok!"}]
["1. Alergologie şi imunologie clinică",null,4,{"$f":"+E192+F192","v":0},{"$f":"+H192+K192+N192+Q192+T192+W192","v":0},0,0,{"$f":"+G192-I192","v":0},0,0,{"$f":"+J192-L192","v":0},0,0,{"$f":"+M192-O192","v":0},0,0,{"$f":"+P192-R192","v":0},0,0,{"$f":"+S192-U192","v":0},0,0,{"$f":"+V192-X192","v":0},0,0,{"$f":"+Y192-AA192","v":0},0,0,{"$f":"+AB192-AD192","v":0},0,{"$f":"IF((E192>=Z192),\"ok!\",\"err!total norme\")","v":"ok!"},"ok!",{"$f":"IF((Z192>=AC192),\"ok!\",\"err!norme spital\")","v":"ok!"},"ok!"]
["2. A.T.I.",null,5,0,0,0,0,0,0,0,0,0,0,0,0,0,0,0,0,0,0,0,0,0,0,0,0,0,0,0,"ok!","ok!","ok!","ok!"]
["3. Boli infecţioase",null,6,0,0,0,0,0,0,0,0,0,0,0,0,0,0,0,0,0,0,0,0,0,0,0,0,0,0,0,"ok!","ok!","ok!","ok!"]
["4. Cardiologie",null,7,0,0,0,0,0,0,0,0,0,0,0,0,0,0,0,0,0,0,0,0,0,0,0,0,0,0,0,"ok!","ok!","ok!","ok!"]
["5. Dermatovenerologie",null,8,0,0,0,0,0,0,0,0,0,0,0,0,0,0,0,0,0,0,0,0,0,0,0,0,0,0,0,"ok!","ok!","ok!","ok!"]
["6. Diabet zaharat, nutriţie şi boli metabolice",null,9,0,0,0,0,0,0,0,0,0,0,0,0,0,0,0,0,0,0,0,0,0,0,0,0,0,0,0,"ok!","ok!","ok!","ok!"]
["7. Endocrinologie",null,10,0,0,0,0,0,0,0,0,0,0,0,0,0,0,0,0,0,0,0,0,0,0,0,0,0,0,0,"ok!","ok!","ok!","ok!"]
["8. Expertiza medicală a capacităţii de muncă",null,11,0,0,0,0,0,0,0,0,0,0,0,0,0,0,0,0,0,0,0,0,0,0,0,0,0,0,0,"ok!","ok!","ok!","ok!"]
["9. Farmacologie clinică",null,12,0,0,0,0,0,0,0,0,0,0,0,0,0,0,0,0,0,0,0,0,0,0,0,0,0,0,0,"ok!","ok!","ok!","ok!"]
["10. Gastroenterologie",null,13,0,0,0,0,0,0,0,0,0,0,0,0,0,0,0,0,0,0,0,0,0,0,0,0,0,0,0,"ok!","ok!","ok!","ok!"]
["11. Genetică medicală",null,14,0,0,0,0,0,0,0,0,0,0,0,0,0,0,0,0,0,0,0,0,0,0,0,0,0,0,0,"ok!","ok!","ok!","ok!"]
["12. Geriatrie şi gerontologie",null,15,0,0,0,0,0,0,0,0,0,0,0,0,0,0,0,0,0,0,0,0,0,0,0,0,0,0,0,"ok!","ok!","ok!","ok!"]
["13. Hematologie",null,16,0,0,0,0,0,0,0,0,0,0,0,0,0,0,0,0,0,0,0,0,0,0,0,0,0,0,0,"ok!","ok!","ok!","ok!"]
["14. Medicină de familie",null,17,0,0,0,0,0,0,0,0,0,0,0,0,0,0,0,0,0,0,0,0,0,0,0,0,0,0,0,"ok!","ok!","ok!","ok!"]
["15. Medicină de urgenţă",null,18,0,0,0,0,0,0,0,0,0,0,0,0,0,0,0,0,0,0,0,0,0,0,0,0,0,0,0,"ok!","ok!","ok!","ok!"]
["16. Medicină internă",null,19,0,0,0,0,0,0,0,0,0,0,0,0,0,0,0,0,0,0,0,0,0,0,0,0,0,0,0,"ok!","ok!","ok!","ok!"]
["17. Medicină generală",null,20,0,0,0,0,0,0,0,0,0,0,0,0,0,0,0,0,0,0,0,0,0,0,0,0,0,0,0,"ok!","ok!","ok!","ok!"]
["18. Medicina muncii",null,21,0,0,0,0,0,0,0,0,0,0,0,0,0,0,0,0,0,0,0,0,0,0,0,0,0,0,0,"ok!","ok!","ok!","ok!"]
["19. Medicină sportivă",null,22,0,0,0,0,0,0,0,0,0,0,0,0,0,0,0,0,0,0,0,0,0,0,0,0,0,0,0,"ok!","ok!","ok!","ok!"]
["20. Nefrologie",null,23,0,0,0,0,0,0,0,0,0,0,0,0,0,0,0,0,0,0,0,0,0,0,0,0,0,0,0,"ok!","ok!","ok!","ok!"]
["21. Neonatologie",null,24,0,0,0,0,0,0,0,0,0,0,0,0,0,0,0,0,0,0,0,0,0,0,0,0,0,0,0,"ok!","ok!","ok!","ok!"]
["22. Neurologie",null,25,0,0,0,0,0,0,0,0,0,0,0,0,0,0,0,0,0,0,0,0,0,0,0,0,0,0,0,"ok!","ok!","ok!","ok!"]
["23. Neurologie pediatrică",null,26,0,0,0,0,0,0,0,0,0,0,0,0,0,0,0,0,0,0,0,0,0,0,0,0,0,0,0,"ok!","ok!","ok!","ok!"]
["24. Oncologie medicală",null,27,0,0,0,0,0,0,0,0,0,0,0,0,0,0,0,0,0,0,0,0,0,0,0,0,0,0,0,"ok!","ok!","ok!","ok!"]
["25. Pediatrie",null,28,0,0,0,0,0,0,0,0,0,0,0,0,0,0,0,0,0,0,0,0,0,0,0,0,0,0,0,"ok!","ok!","ok!","ok!"]
["26. Pneumologie",null,29,0,0,0,0,0,0,0,0,0,0,0,0,0,0,0,0,0,0,0,0,0,0,0,0,0,0,0,"ok!","ok!","ok!","ok!"]
["27. Psihiatrie ",null,30,0,0,0,0,0,0,0,0,0,0,0,0,0,0,0,0,0,0,0,0,0,0,0,0,0,0,0,"ok!","ok!","ok!","ok!"]
["28. Psihiatrie pediatrică ",null,31,0,0,0,0,0,0,0,0,0,0,0,0,0,0,0,0,0,0,0,0,0,0,0,0,0,0,0,"ok!","ok!","ok!","ok!"]
["29. Radioterapie",null,32,0,0,0,0,0,0,0,0,0,0,0,0,0,0,0,0,0,0,0,0,0,0,0,0,0,0,0,"ok!","ok!","ok!","ok!"]
["30. Recuperare, medicină fizică şi balneologie",null,33,0,0,0,0,0,0,0,0,0,0,0,0,0,0,0,0,0,0,0,0,0,0,0,0,0,0,0,"ok!","ok!","ok!","ok!"]
["31. Reumatologie",null,34,0,0,0,0,0,0,0,0,0,0,0,0,0,0,0,0,0,0,0,0,0,0,0,0,0,0,0,"ok!","ok!","ok!","ok!"]
["32. Chirurgie cardiovasculară",null,35,0,0,0,0,0,0,0,0,0,0,0,0,0,0,0,0,0,0,0,0,0,0,0,0,0,0,0,"ok!","ok!","ok!","ok!"]
["33. Chirurgie generală",null,36,0,0,0,0,0,0,0,0,0,0,0,0,0,0,0,0,0,0,0,0,0,0,0,0,0,0,0,"ok!","ok!","ok!","ok!"]
["34. Chirurgie orală şi maxilo- facială din care:",null,37,0,0,0,0,0,0,0,0,0,0,0,0,0,0,0,0,0,0,0,0,0,0,0,0,0,0,0,"ok!","ok!","ok!","ok!"]
["      - rezidenți de chirurgie orală și maxilo-facială",null,38,{"$f":"+E226+F226","v":0},{"$f":"+H226+K226+N226+Q226+T226+W226","v":0},{"$f":"+I226+L226+O226+R226+U226+X226","v":0},0,{"$f":"+G226-I226","v":0},0,0,{"$f":"+J226-L226","v":0},0,0,{"$f":"+M226-O226","v":0},0,0,{"$f":"+P226-R226","v":0},0,0,{"$f":"+S226-U226","v":0},0,0,{"$f":"+V226-X226","v":0},0,0,{"$f":"+Y226-AA226","v":0},0,0,{"$f":"+AB226-AD226","v":0},0,{"$f":"IF((E226>=Z226),\"ok!\",\"err!total norme\")","v":"ok!"},{"$f":"IF((F226>=AA226),\"ok!\",\"err!total norme\")","v":"ok!"},{"$f":"IF((Z226>=AC226),\"ok!\",\"err!norme spital\")","v":"ok!"},{"$f":"IF((AA226>=AD226),\"ok!\",\"err!norme spital\")","v":"ok!"}]
["35. Chirurgie pediatrică",null,39,0,0,0,0,0,0,0,0,0,0,0,0,0,0,0,0,0,0,0,0,0,0,0,0,0,0,0,"ok!","ok!","ok!","ok!"]
["36. Chirurgie plastică-microchirurgie reconstructivă",null,40,0,0,0,0,0,0,0,0,0,0,0,0,0,0,0,0,0,0,0,0,0,0,0,0,0,0,0,"ok!","ok!","ok!","ok!"]
["37. Chirurgie toracică",null,41,0,0,0,0,0,0,0,0,0,0,0,0,0,0,0,0,0,0,0,0,0,0,0,0,0,0,0,"ok!","ok!","ok!","ok!"]
["38. Chirurgie vasculară",null,42,0,0,0,0,0,0,0,0,0,0,0,0,0,0,0,0,0,0,0,0,0,0,0,0,0,0,0,"ok!","ok!","ok!","ok!"]
["39. Neurochirurgie",null,43,0,0,0,0,0,0,0,0,0,0,0,0,0,0,0,0,0,0,0,0,0,0,0,0,0,0,0,"ok!","ok!","ok!","ok!"]
["40. Obstetrică- ginecologie",null,44,0,0,0,0,0,0,0,0,0,0,0,0,0,0,0,0,0,0,0,0,0,0,0,0,0,0,0,"ok!","ok!","ok!","ok!"]
["41. Oftalmologie",null,45,0,0,0,0,0,0,0,0,0,0,0,0,0,0,0,0,0,0,0,0,0,0,0,0,0,0,0,"ok!","ok!","ok!","ok!"]
["42. Ortopedie pediatrică",null,46,0,0,0,0,0,0,0,0,0,0,0,0,0,0,0,0,0,0,0,0,0,0,0,0,0,0,0,"ok!","ok!","ok!","ok!"]
["43. Ortopedie şi traumatologie",null,47,0,0,0,0,0,0,0,0,0,0,0,0,0,0,0,0,0,0,0,0,0,0,0,0,0,0,0,"ok!","ok!","ok!","ok!"]
["44. O.R.L.",null,48,0,0,0,0,0,0,0,0,0,0,0,0,0,0,0,0,0,0,0,0,0,0,0,0,0,0,0,"ok!","ok!","ok!","ok!"]
["45. Urologie",null,49,0,0,0,0,0,0,0,0,0,0,0,0,0,0,0,0,0,0,0,0,0,0,0,0,0,0,0,"ok!","ok!","ok!","ok!"]
["46. Anatomie patologică",null,50,0,0,0,0,0,0,0,0,0,0,0,0,0,0,0,0,0,0,0,0,0,0,0,0,0,0,0,"ok!","ok!","ok!","ok!"]
["47. Epidemiologie",null,51,0,0,0,0,0,0,0,0,0,0,0,0,0,0,0,0,0,0,0,0,0,0,0,0,0,0,0,"ok!","ok!","ok!","ok!"]
["48. Igienă",null,52,0,0,0,0,0,0,0,0,0,0,0,0,0,0,0,0,0,0,0,0,0,0,0,0,0,0,0,"ok!","ok!","ok!","ok!"]
["49. Medicină de laborator",null,53,0,0,0,0,0,0,0,0,0,0,0,0,0,0,0,0,0,0,0,0,0,0,0,0,0,0,0,"ok!","ok!","ok!","ok!"]
["50. Medicină legală",null,54,0,0,0,0,0,0,0,0,0,0,0,0,0,0,0,0,0,0,0,0,0,0,0,0,0,0,0,"ok!","ok!","ok!","ok!"]
["51. Medicină nucleară",null,55,0,0,0,0,0,0,0,0,0,0,0,0,0,0,0,0,0,0,0,0,0,0,0,0,0,0,0,"ok!","ok!","ok!","ok!"]
["52. Radiologie – imagistică medicală",null,56,0,0,0,0,0,0,0,0,0,0,0,0,0,0,0,0,0,0,0,0,0,0,0,0,0,0,0,"ok!","ok!","ok!","ok!"]
["53. Sănătate publică şi management",null,57,0,0,0,0,0,0,0,0,0,0,0,0,0,0,0,0,0,0,0,0,0,0,0,0,0,0,0,"ok!","ok!","ok!","ok!"]
["II. DENTIŞTI -  TOTAL,                      din care:",null,58,0,0,0,0,0,0,0,0,0,0,0,0,0,0,0,0,0,0,0,0,0,0,0,0,0,0,0,"ok!","ok!","ok!","ok!"]
["           - rezidenţi",null,59,0,0,0,0,0,0,0,0,0,0,0,0,0,0,0,0,0,0,0,0,0,0,0,0,0,0,0,"ok!","ok!","ok!","ok!"]
["1. Chirurgie dento-alveolară",null,60,0,0,0,0,0,0,0,0,0,0,0,0,0,0,0,0,0,0,0,0,0,0,0,0,0,0,0,"ok!","ok!","ok!","ok!"]
["2. Ortodonţie şi ortopedie dento-facială",null,61,0,0,0,0,0,0,0,0,0,0,0,0,0,0,0,0,0,0,0,0,0,0,0,0,0,0,0,"ok!","ok!","ok!","ok!"]
["III. FARMACIŞTI – TOTAL,              din care:",null,62,0,0,0,0,0,0,0,0,0,0,0,0,0,0,0,0,0,0,0,0,0,0,0,0,0,0,0,"ok!","ok!","ok!","ok!"]
["          - rezidenţi",null,63,0,0,0,0,0,0,0,0,0,0,0,0,0,0,0,0,0,0,0,0,0,0,0,0,0,0,0,"ok!","ok!","ok!","ok!"]
["1. Farmacie clinică",null,64,0,0,0,0,0,0,0,0,0,0,0,0,0,0,0,0,0,0,0,0,0,0,0,0,0,0,0,"ok!","ok!","ok!","ok!"]
["2. Laborator farmaceutic",null,65,0,0,0,0,0,0,0,0,0,0,0,0,0,0,0,0,0,0,0,0,0,0,0,0,0,0,0,"ok!","ok!","ok!","ok!"]
["IV. FIZIOKINETOTERAPEUŢI - TOTAL, din care:",null,66,0,0,0,0,0,0,0,0,0,0,0,0,0,0,0,0,0,0,0,0,0,0,0,0,0,0,0,"ok!","ok!","ok!","ok!"]
["          - fizioterapeuţi  ",null,67,0,0,0,0,0,0,0,0,0,0,0,0,0,0,0,0,0,0,0,0,0,0,0,0,0,0,0,"ok!","ok!","ok!","ok!"]
["V. ASISTENŢI MEDICALI CU STUDII SUPERIOARE - TOTAL,       din care:",null,68,0,0,0,0,0,0,0,0,0,0,0,0,0,0,0,0,0,0,0,0,0,0,0,0,0,0,0,"ok!","ok!","ok!","ok!"]
["       - asistenţi medicali obstetrică- ginecologie (moaşe)",null,69,{"$f":"+E257+F257","v":0},{"$f":"+H257+K257+N257+Q257+T257+W257","v":0},0,0,{"$f":"+G257-I257","v":0},0,0,{"$f":"+J257-L257","v":0},0,0,{"$f":"+M257-O257","v":0},0,0,{"$f":"+P257-R257","v":0},0,0,{"$f":"+S257-U257","v":0},0,0,{"$f":"+V257-X257","v":0},0,0,{"$f":"+Y257-AA257","v":0},0,0,{"$f":"+AB257-AD257","v":0},0,{"$f":"IF((E257>=Z257),\"ok!\",\"err!total norme\")","v":"ok!"},"ok!",{"$f":"IF((Z257>=AC257),\"ok!\",\"err!norme spital\")","v":"ok!"},"ok!"]
["VI. ALT PERSONAL SANITAR SUPERIOR (biologi, chimişti, logopezi, profesori CFM, psihologi)",null,70,{"$f":"+E258+F258","v":0},0,0,0,{"$f":"+G258-I258","v":0},0,0,{"$f":"+J258-L258","v":0},0,0,{"$f":"+M258-O258","v":0},0,0,{"$f":"+P258-R258","v":0},0,0,{"$f":"+S258-U258","v":0},0,0,{"$f":"+V258-X258","v":0},0,0,{"$f":"+Y258-AA258","v":0},0,0,{"$f":"+AB258-AD258","v":0},0,"ok!","ok!","ok!","ok!"]
["VII. ALT PERSONAL CU STUDII SUPERIOARE (economişti,jurişti, ingineri etc)",null,71,{"$f":"+E259+F259","v":0},0,0,0,{"$f":"+G259-I259","v":0},0,0,{"$f":"+J259-L259","v":0},0,0,{"$f":"+M259-O259","v":0},0,0,{"$f":"+P259-R259","v":0},0,0,{"$f":"+S259-U259","v":0},0,0,{"$f":"+V259-X259","v":0},0,0,{"$f":"+Y259-AA259","v":0},0,0,{"$f":"+AB259-AD259","v":0},0,"ok!","ok!","ok!","ok!"]

{"sheet":"Macros","index":4,"n_rows":0,"n_cols":0,"rows_kept":0,"cut":false,"hidden":true,"merged":[]}

{"sheet":"CopacSortatAlfabetic","index":5,"n_rows":500,"n_cols":3,"rows_kept":500,"cut":false,"hidden":true,"merged":[]}
["Copac 2012 Sortat Alfabetic"]
[]
["SPECIALITATI ALE SECTIILOR MEDICALE"]
[]
["SECTII:","SUBSECTII:","SUBSECTII3:"]
["ALERGOLOGIE_SI_IMUNOLOGIE"]
["ALERGOLOGIE_SI_IMUNOLOGIE","ALERGOLOGIE_SI_IMUNOLOGIE_COPII"]
["ALTE_SECŢII"]
["ALTE_SECŢII","ALTE_SECTII_COPII"]
["ATI"]
["ATI","ATI_ARSI"]
["ATI","ATI_CHIRURGIE_CARDIOVASCULARA"]
["ATI","ATI_CHIRURGIE_GENERALA"]
["ATI","ATI_CHIRURGIE_PLASTICA"]
["ATI","ATI_COPII"]
["ATI","ATI_NEUROCHIRURGIE"]
["ATI","ATI_NOU_NASCUTI_DIN_PEDIATRIE"]
["ATI","ATI_OBSTETRICA_GINECOLOGIE"]
["ATI","ATI_OFTALMOLOGIE"]
["ATI","ATI_ORL"]
["ATI","ATI_ORL_SI_OFTALMOLOGIE"]
["ATI","ATI_ORTOPEDIE_SI_TRAUMATOLOGIE"]
["ATI","ATI_POLITRAUMATISME"]
["ATI","ATI_TOXICOLOGIE"]
["ATI","TI_CORONARIENI"]
["ATI","TI_HEPATOLOGIE"]
["ATI","TI_NEONATOLOGIE"]
["ATI_COPII_"]
["BOLI_CRONICE"]
["BOLI_CRONICE","INGRIJIRI_PALIATIVE"]
["BOLI_INFECTIOASE_COPII_"]
["BOLI_INFECTIOASE_COPII_","HIV_SIDA_"]
["BOLI_INFECTIOASE_COPII_","HIV_SIDA_ADULTI_SI_COPII"]
["BOLI_INFECTIOASE_COPII_","TA_"]
["BOLI_INFECTIOASE_COPII_","TI_"]
["BOLI_INFECTIOASE_HIV_SIDA"]
["BOLI_INFECTIOASE_HIV_SIDA","BOLI_INFECTIOASE_COPII_HIV_SIDA"]
["BOLI_INFECTIOASE_MAPN"]
["BOLI_INFECTIOASE_SI_TROPICALE"]
["BOLI_INFECTIOASE_SI_TROPICALE","BOLI_INFECTIOASE_SI_TROPICALE_COPII"]
["BOLI_INFECTIOASE_SI_TROPICALE","TI__"]
["BOLI_INFECŢIOASE"]
["BOLI_INFECŢIOASE","BOLI_INFECTIOASE_COPII"]
["BOLI_INFECŢIOASE","HIV_SIDA"]
["BOLI_INFECŢIOASE","INGRIJIRI_PALIATIVE_"]
["BOLI_INFECŢIOASE","PARAZITOLOGIE"]
["BOLI_INFECŢIOASE","PARAZITOLOGIE","BOLI_PARAZITARE_COPII"]
["BOLI_INFECŢIOASE","TA"]
["BOLI_INFECŢIOASE","TI"]
["BOLI_PROFESIONALE"]
["BOLI_PROFESIONALE","RADIOPATOLOGIE"]
["BOLNAVI_PSIHICI_CU_TBC_PULMONAR_"]
["BOLNAVI_PSIHICI_CU_TBC_PULMONAR_COD_PENAL__"]
["CARDIOLOGIE"]
["CARDIOLOGIE","CARDIOLOGIE_INTERVENTIONALA"]
["CARDIOLOGIE","CARDIOLOGIE_PEDIATRICA"]
["CARDIOLOGIE","CARDIOLOGIE_PEDIATRICA","TI_CORONARIENI_____"]
["CARDIOLOGIE","PATOLOGIE_STABILIZATA_SI_CRONICA"]
["CARDIOLOGIE","RECUPERARE_CARDIOLOGIE"]
["CARDIOLOGIE","TI_CORONARIENI_"]
["CARDIOLOGIE","TI___"]
["CARDIOLOGIE_INTERVENTIONALA_"]
["CARDIOLOGIE_PATOLOGIE_STABILIZATA_SI_CRONICA"]
["CARDIOLOGIE_PEDIATRICA_"]
["CARDIOLOGIE_PEDIATRICA_","TI_CORONARIENI__"]
["CARDIOLOGIE_PEDIATRICA_","TI_CORONARIENI__","TI_NEONATOLOGIE_DIN_SECTIILE_DE_PEDIATRIE"]
["CARDIOLOGIE_PENTRU_DIABETICI"]
["CG"]
["CG","TOATE_SPECIALITATILE_"]
["CHIRURGIE_CARDIACA_SI_A_VASELOR_MARI"]
["CHIRURGIE_CARDIACA_SI_A_VASELOR_MARI","ATI_"]
["CHIRURGIE_CARDIOVASCULARA"]
["CHIRURGIE_CARDIOVASCULARA","ATI_COPII__"]
["CHIRURGIE_CARDIOVASCULARA","ATI__"]
["CHIRURGIE_CARDIOVASCULARA","CHIRURGIE_CARDIOVASCULARA_COPII"]
["CHIRURGIE_CARDIOVASCULARA","CHIRURGIE_TORACICA"]
["CHIRURGIE_CARDIOVASCULARA","TRANSPLANT"]
["CHIRURGIE_CARDIOVASCULARA_ADULTI_SI_COPII"]
["CHIRURGIE_ENDOCRINA"]
["CHIRURGIE_ENDOCRINA","ATI___"]
["CHIRURGIE_GENERALA"]
["CHIRURGIE_GENERALA","ARSI"]
["CHIRURGIE_GENERALA","ATI____"]
["CHIRURGIE_GENERALA","CHIRURGIE_ENDOSCOPICA"]
["CHIRURGIE_GENERALA","CHIRURGIE_HEPATICA"]
["CHIRURGIE_GENERALA","CHIRURGIE_LAPAROSCOPICA"]
["CHIRURGIE_GENERALA","CHIRURGIE_MAXILO_FACIALA"]
["CHIRURGIE_GENERALA","CHIRURGIE_ONCOLOGICA"]
["CHIRURGIE_GENERALA","CHIRURGIE_ORALA_SI_MAXILO_FACIALA"]
["CHIRURGIE_GENERALA","CHIRURGIE_PEDIATRICA"]
["CHIRURGIE_GENERALA","CHIRURGIE_PLASTICA_MICROCHIRURGIE_RECONSTRUCTIVA"]
["CHIRURGIE_GENERALA","CHIRURGIE_REPARATORIE_A_PICIORULUI_DIABETIC"]
["CHIRURGIE_GENERALA","CHIRURGIE_SI_ORTOPEDIE_INFANTILA_PEDIATRICA"]
["CHIRURGIE_GENERALA","CHIRURGIE_TORACICA_"]
["CHIRURGIE_GENERALA","CHIRURGIE_TORACICA_SI_ESOFAGIANA"]
["CHIRURGIE_GENERALA","CHIRURGIE_VASCULARA"]
["CHIRURGIE_GENERALA","CRONICI"]
["CHIRURGIE_GENERALA","FLEBOLOGIE"]
["CHIRURGIE_GENERALA","NEUROCHIRURGIE"]
["CHIRURGIE_GENERALA","OBSTETRICA_GINECOLOGIE"]
["CHIRURGIE_GENERALA","OBSTETRICA_GINECOLOGIE","NEONATOLOGIE____"]
["CHIRURGIE_GENERALA","OFTALMOLOGIE"]
["CHIRURGIE_GENERALA","ORL"]
["CHIRURGIE_GENERALA","ORTOPEDIE_SI_TRAUMATOLOGIE"]
["CHIRURGIE_GENERALA","TRANSPLANT_HEPATIC"]
["CHIRURGIE_GENERALA","UROLOGIE"]
["CHIRURGIE_GENERALA_CHIRURGIE_ONCOLOGICA"]
["CHIRURGIE_GENERALA_CHIRURGIE_ONCOLOGICA","CHIRURGIE_TORACICA__"]
["CHIRURGIE_LAPAROSCOPICA_"]
["CHIRURGIE_MAXILO_FACIALA_"]
["CHIRURGIE_MAXILO_FACIALA_","CHIRURGIE_MAXILO_FACIALA_COPII"]
["CHIRURGIE_ONCOLOGICA_"]
["CHIRURGIE_ONCOLOGICA_","CHIRURGIE_ONCOLOGICA_COPII"]
["CHIRURGIE_ONCOLOGICA_","CHIRURGIE_ORALA_SI_MAXILO_FACIALA_"]
["CHIRURGIE_ONCOLOGICA_","CHIRURGIE_PLASTICA_MICROCHIRURGIE_RECONSTRUCTIVA_"]
["CHIRURGIE_ONCOLOGICA_","CHIRURGIE_TORACICA___"]
["CHIRURGIE_ONCOLOGICA_","GINECOLOGIE"]
["CHIRURGIE_ONCOLOGICA_","GINECO_ONCOLOGIE"]
["CHIRURGIE_ONCOLOGICA_","UROLOGIE_"]
["CHIRURGIE_ONCOLOGICA_ORL_CHIRURGIE_CERVICO_FACIALA_SI_ONCOLOGIE_LARINGIANA"]
["CHIRURGIE_ORALA_SI_MAXILO_FACIALA__"]
["CHIRURGIE_ORALA_SI_MAXILO_FACIALA__","ATI_____"]
["CHIRURGIE_ORALA_SI_MAXILO_FACIALA__","CHIRURGIE_ORALA_SI_MAXILO_FACIALA_COPII"]
["CHIRURGIE_ORALA_SI_MAXILO_FACIALA__","CHIRURGIE_PLASTICA_MICROCHIRURGIE_RECONSTRUCTIVA__"]
["CHIRURGIE_ORALA_SI_MAXILO_FACIALA__","CHIRURGIE_PLASTICA_SI_REPARATORIE_FACIALA"]
["CHIRURGIE_ORALA_SI_MAXILO_FACIALA__","ORL_"]
["CHIRURGIE_PEDIATRICA_"]
["CHIRURGIE_PEDIATRICA_","ATI______"]
["CHIRURGIE_PEDIATRICA_","CHIRURGIE_CARDIOVASCULARA_"]
["CHIRURGIE_PEDIATRICA_","NEUROCHIRURGIE_"]
["CHIRURGIE_PEDIATRICA_","OFTALMOLOGIE_"]
["CHIRURGIE_PEDIATRICA_","ORL__"]
["CHIRURGIE_PEDIATRICA_","ORTOPEDIE_PEDIATRICA"]
["CHIRURGIE_PEDIATRICA_","UROLOGIE__"]
["CHIRURGIE_PLASTICA_MICROCHIRURGIE_RECONSTRUCTIVA_ARSI"]
["CHIRURGIE_PLASTICA_MICROCHIRURGIE_RECONSTRUCTIVA_COPII"]
["CHIRURGIE_PLASTICA_MICROCHIRURGIE_RECONSTRUCTIVA___"]
["CHIRURGIE_PLASTICA_MICROCHIRURGIE_RECONSTRUCTIVA___","ARSI_"]
["CHIRURGIE_PLASTICA_MICROCHIRURGIE_RECONSTRUCTIVA___","ARSI_","ATI________________"]
["CHIRURGIE_PLASTICA_MICROCHIRURGIE_RECONSTRUCTIVA___","ATI_______"]
["CHIRURGIE_PLASTICA_MICROCHIRURGIE_RECONSTRUCTIVA___","TI____"]
["CHIRURGIE_SI_ORTOPEDIE_INFANTILA_PEDIATRICA_"]
["CHIRURGIE_SI_ORTOPEDIE_INFANTILA_PEDIATRICA_","CHIRURGIE_PLASTICA_MICROCHIRURGIE_RECONSTRUCTIVA____"]
["CHIRURGIE_SI_ORTOPEDIE_INFANTILA_PEDIATRICA_","OFTALMOLOGIE__"]
["CHIRURGIE_SI_ORTOPEDIE_INFANTILA_PEDIATRICA_","ORL___"]
["CHIRURGIE_SI_ORTOPEDIE_INFANTILA_PEDIATRICA_","ORTOPEDIE_PEDIATRICA_"]
["CHIRURGIE_TORACICA_TBC"]
["CHIRURGIE_TORACICA_TBC","ATI_________"]
["CHIRURGIE_TORACICA____"]
["CHIRURGIE_TORACICA____","ATI________"]
["CHIRURGIE_TORACICA____","CRONICI_"]
["CHIRURGIE_VASCULARA_"]
["CHIRURGIE_VASCULARA_","MICROCHIRURGIE_VASCULARA"]
["CPU"]
["CRONICI_AFECTIUNI_PSIHOSOMATICE"]
["CRONICI_TERAPIE_IZOTOPICA"]
["CRONICI__"]
["CRONICI__","GERIATRIE_SI_GERONTOLOGIE"]
["DERMATOVENEROLOGIE"]
["DERMATOVENEROLOGIE","ALERGOLOGIE_SI_IMUNOLOGIE"]
["DERMATOVENEROLOGIE","DERMATOVENEROLOGIE_COPII"]
["DERMATOVENEROLOGIE","PARAZITOLOGIE_"]
["DERMATOVENEROLOGIE","PARAZITOLOGIE_","BOLI_PARAZITARE_COPII_"]
["DERMATOVENEROLOGIE_COPII_"]
["DIABET_ZAHARAT_NUTRITIE_SI_BOLI_METABOLICE"]
["DIABET_ZAHARAT_NUTRITIE_SI_BOLI_METABOLICE","DERMATOVENEROLOGIE_"]
["DIABET_ZAHARAT_NUTRITIE_SI_BOLI_METABOLICE","ENDOCRINOLOGIE"]
["DIABET_ZAHARAT_NUTRITIE_SI_BOLI_METABOLICE","MEDICINA_INTERNA"]
["DIABET_ZAHARAT_NUTRITIE_SI_BOLI_METABOLICE","TA__"]
["DIALIZA_PERITONEALA"]
["ENDOCRINOLOGIE_"]
["ENDOCRINOLOGIE_","DIABET_ZAHARAT_NUTRITIE_SI_BOLI_METABOLICE_"]
["ENDOCRINOLOGIE_","ENDOCRINOLOGIE_COPII"]
["ENDOCRINOLOGIE_","GUSA_ENDEMICA_SI_COMPLICATIILE_EI"]
["ENDOCRINOLOGIE_","INFERTILITATE_SI_PATOLOGIE_GONADICA"]
["ENDOCRINOLOGIE_","PATOLOGIA_TIROIDEI_DE_CORELATIE"]
["ENDOCRINOLOGIE_","PATOLOGIE_ENDOCRINO_METABOLICA"]
["ENDOCRINOLOGIE_","PATOLOGIE_HIPOFIZARA_SI_NEUROENDOCRINA"]
["ENDOCRINOLOGIE_","PATOLOGIE_SUPRARENALA_SI_A_METABOLISMULUI_OSOS"]
["ENDOCRINOLOGIE_COPII_"]
["GASTROENTEROLOGIE"]
["GASTROENTEROLOGIE","GASTROENTEROLOGIE_COPII"]
["GASTROENTEROLOGIE","HEPATOLOGIE"]
["GASTROENTEROLOGIE","MEDICINA_INTERNA_"]
["GASTROENTEROLOGIE","TA___"]
["GASTROENTEROLOGIE_HEPATOLOGIE"]
["GASTROENTEROLOGIE_HEPATOLOGIE","ONCOLOGIE_MEDICALA"]
["GENETICA_MEDICALA"]
["GERIATRIE_SI_GERONTOLOGIE_"]
["GERIATRIE_SI_GERONTOLOGIE_","PSIHOGERIATRIE"]
["GINECOLOGIE_"]
["GINECOLOGIE_","CHIRURGIE_LAPAROSCOPICA_GINECOLOGICA"]
["GINECOLOGIE_","GINECO_ONCOLOGIE_"]
["GINECOLOGIE_INFANTILA"]
["HEMATOLOGIE"]
["HEMATOLOGIE","HEMATOLOGIE_COPII"]
["HEMATOLOGIE","TRANSPLANT_MEDULAR"]
["HEMATOLOGIE","TRANSPLANT_MEDULAR_ADULTI_SI_COPII"]
["HEMATOLOGIE_HEMOFILIE"]
["HEMATOLOGIE_ONCOLOGIE"]
["HEMATOLOGIE_ONCOLOGIE_PEDIATRICA"]
["HEMODIALIZA"]
["HIV_SIDA_ADULTI_SI_COPII_"]
["HIV_SIDA_COPII"]
["HIV_SIDA__"]
["INGRIJIRI_PALIATIVE__"]
["MEDICINA_GENERALA"]
["MEDICINA_INTERNA_CRONICI_"]
["MEDICINA_INTERNA_CRONICI_","BOLI_PROFESIONALE__"]
["MEDICINA_INTERNA__"]
["MEDICINA_INTERNA__","ALERGOLOGIE_SI_IMUNOLOGIE_"]
["MEDICINA_INTERNA__","BOLI_PROFESIONALE_"]
["MEDICINA_INTERNA__","CARDIOLOGIE_"]
["MEDICINA_INTERNA__","CARDIOLOGIE_","TA___________"]
["MEDICINA_INTERNA__","CRONICI___"]
["MEDICINA_INTERNA__","DERMATOVENEROLOGIE__"]
["MEDICINA_INTERNA__","DIABET_ZAHARAT_NUTRITIE_SI_BOLI_METABOLICE__"]
["MEDICINA_INTERNA__","DIALIZA_PERITONEALA_"]
["MEDICINA_INTERNA__","ENDOCRINOLOGIE__"]
["MEDICINA_INTERNA__","GASTROENTEROLOGIE_"]
["MEDICINA_INTERNA__","GASTROENTEROLOGIE_","TA____________"]
["MEDICINA_INTERNA__","GERIATRIE_SI_GERONTOLOGIE__"]
["MEDICINA_INTERNA__","HEMATOLOGIE_"]
["MEDICINA_INTERNA__","MEDICINA_INTERNA_CRONICI"]
["MEDICINA_INTERNA__","NEFROLOGIE"]
["MEDICINA_INTERNA__","NEFROLOGIE","DIALIZA_PERITONEALA_____"]
["MEDICINA_INTERNA__","NEUROLOGIE"]
["MEDICINA_INTERNA__","ONCOLOGIE_MEDICALA_"]
["MEDICINA_INTERNA__","PNEUMOLOGIE_DIN_SECTIILE_MEDICALE"]
["MEDICINA_INTERNA__","RECUPERARE_MEDICINA_FIZICA_SI_BALNEOLOGIE"]
["MEDICINA_INTERNA__","REUMATOLOGIE"]
["MEDICINA_INTERNA__","TA____"]
["MEDICINA_INTERNA__","TI_CORONARIENI___"]
["MEDICINA_INTERNA__","TI_____"]
["MEDICINA_MATERNO_FETALA"]
["NEFROLOGIE_"]
["NEFROLOGIE_","DIALIZA_PERITONEALA__"]
["NEFROLOGIE_","HEMODIALIZA_"]
["NEFROLOGIE_","MEDICINA_INTERNA___"]
["NEFROLOGIE_","TA_____"]
["NEFROLOGIE_","TI______"]
["NEFROLOGIE_","TOXICOLOGIE"]
["NEFROLOGIE_PEDIATRICA"]
["NEFROLOGIE_PENTRU_DIABETICI"]
["NEFROLOGIE_PENTRU_DIABETICI","DIALIZA_PERITONEALA___"]
["NEONATOLOGIE"]
["NEONATOLOGIE","PREMATURI"]
["NEONATOLOGIE","TA______"]
["NEONATOLOGIE","TI_______"]
["NEONATOLOGIE_PREMATURI"]
["NEONATOLOGIE_PREMATURI","TI________"]
["NEUROCHIRURGIE_STEREOTACTICA_SI_FUNCTIONALA"]
["NEUROCHIRURGIE__"]
["NEUROCHIRURGIE__","ATI__________"]
["NEUROCHIRURGIE__","CHIRURGIE_SPINALA"]
["NEUROCHIRURGIE__","CRONICI____"]
["NEUROCHIRURGIE__","NEUROCHIRURGIE_PEDIATRICA_COPII"]
["NEUROLOGIE_"]
["NEUROLOGIE_","CRONICI_____"]
["NEUROLOGIE_","PENTRU_BOLNAVI_CU_MIASTENIA_GRAVIS"]
["NEUROLOGIE_","RECUPERARE_CRONICI"]
["NEUROLOGIE_","RECUPERARE_NEUROLOGICA"]
["NEUROLOGIE_","RECUPERARE_NEUROMOTORIE"]
["NEUROLOGIE_","TA_______"]
["NEUROLOGIE_","TI_________"]
["NEUROLOGIE_","URGENTE_NEUROVASCULARE"]
["NEUROLOGIE_CRONICI"]
["NEUROLOGIE_PEDIATRICA"]
["NEUROLOGIE_PEDIATRICA","RECUPERARE_NEUROPSIHOMOTORIE"]
["NEUROLOGIE_PEDIATRICA","TA________"]
["NEUROLOGIE_SI_PSIHIATRIE"]
["NEUROPSIHIATRIE_ADULTI"]
["NEUROPSIHIATRIE_INFANTILA"]
["OBSTETRICA"]
["OBSTETRICA","MEDICINA_MATERNO_FETALA_"]
["OBSTETRICA","OBSTETRICA_PATOLOGICA"]
["OBSTETRICA_FIZIOLOGICA"]
["OBSTETRICA_FIZIOLOGICA","NEONATOLOGIE_"]
["OBSTETRICA_GINECOLOGIE_"]
["OBSTETRICA_GINECOLOGIE_","ATI___________"]
["OBSTETRICA_GINECOLOGIE_","FERTILIZARE_IN_VITRO"]
["OBSTETRICA_GINECOLOGIE_","GINECOLOGIE__"]
["OBSTETRICA_GINECOLOGIE_","GINECO_ONCOLOGIE__"]
["OBSTETRICA_GINECOLOGIE_","MEDICINA_MATERNO_FETALA__"]
["OBSTETRICA_GINECOLOGIE_","MEDICINA_MATERNO_FETALA__","DIAGNOSTIC_PRENATAL"]
["OBSTETRICA_GINECOLOGIE_","NASTERI_PRECIPITATE"]
["OBSTETRICA_GINECOLOGIE_","NASTERI_PRECIPITATE","NEONATOLOGIE_____"]
["OBSTETRICA_GINECOLOGIE_","NEONATOLOGIE___"]
["OBSTETRICA_GINECOLOGIE_","NEONATOLOGIE___","PREMATURI___"]
["OBSTETRICA_GINECOLOGIE_","OBSTETRICA_"]
["OBSTETRICA_GINECOLOGIE_","OBSTETRICA_PATOLOGICA__"]
["OBSTETRICA_GINECOLOGIE_","PREMATURI_"]
["OBSTETRICA_GINECOLOGIE_","TI_NEONATOLOGIE_"]
["OBSTETRICA_GINECOLOGIE_","TRATAMENTUL_INFERTILITATII_CUPLULUI_SI_REPRODUCERE_UMANA_ASISTATA"]
["OBSTETRICA_GINECOLOGIE_","TRATAMENTUL_INFERTILITATII_CUPLULUI_SI_REPRODUCERE_UMANA_ASISTATA","FERTILIZARE_IN_VITRO_"]
["OBSTETRICA_GINECOLOGIE_GRAVIDE_CU_RISC"]
["OBSTETRICA_GINECOLOGIE_NASTERI_PRECIPITATE"]
["OBSTETRICA_GINECOLOGIE_NASTERI_PRECIPITATE","NEONATOLOGIE__"]
["OBSTETRICA_GINECOLOGIE_PATOLOGICA"]
["OBSTETRICA_PATOLOGICA_"]
["OBSTETRICA_PATOLOGICA_","STERILITATE_INFERTILITATE"]
["OFTALMOLOGIE___"]
["OFTALMOLOGIE___","ATI____________"]
["OFTALMOLOGIE___","OFTALMOLOGIE_COPII"]
["ONCOLOGIE_MEDICALA_INGRIJIRI_PALIATIVE"]
["ONCOLOGIE_MEDICALA__"]
["ONCOLOGIE_MEDICALA__","HEMATOLOGIE__"]
["ONCOLOGIE_MEDICALA__","INGRIJIRI_PALIATIVE___"]
["ONCOLOGIE_MEDICALA__","RADIOTERAPIE"]
["ONCOLOGIE_PEDIATRICA"]
["ONCOLOGIE_PEDIATRICA","HEMATOLOGIE___"]
["ONCOLOGIE_TERAPIE_CU_IZOTOPI"]
["ORL_CHIRURGIE_AUDIOLOGICA_SI_RINOLOGICA"]
["ORL_MICROCHIRURGIE_ORL_SI_FONIATRIE_RECUPERAREA_VOCII"]
["ORL_MICROCHIRURGIE_OTOLOGICA"]
["ORL_MICROCHIRURGIE_OTOLOGICA","IMPLANT_COHLEAR"]
["ORL____"]
["ORL____","ATI_____________"]
["ORL____","CHIRURGIE_MAXILO_FACIALA__"]
["ORL____","CHIRURGIE_ORALA_SI_MAXILO_FACIALA___"]
["ORL____","IMPLANT_COHLEAR_"]
["ORL____","ORL_COPII"]
["ORTOPEDIE_PEDIATRICA__"]
["ORTOPEDIE_SI_TRAUMATOLOGIE_"]
["ORTOPEDIE_SI_TRAUMATOLOGIE_","ATI______________"]
["ORTOPEDIE_SI_TRAUMATOLOGIE_","CHIRURGIE_ARTROSCOPICA"]
["ORTOPEDIE_SI_TRAUMATOLOGIE_","CHIRURGIE_SPINALA_"]
["ORTOPEDIE_SI_TRAUMATOLOGIE_","ORTOPEDIE_PEDIATRICA___"]
["ORTOPEDIE_SI_TRAUMATOLOGIE_","ORTOPEDIE_SI_TRAUMATOLOGIE_PEDIATRICA"]
["ORTOPEDIE_SI_TRAUMATOLOGIE_","RECUPERARE_CRONICI_"]
["ORTOPEDIE_SI_TRAUMATOLOGIE_","RECUPERARE_MEDICALA"]
["ORTOPEDIE_SI_TRAUMATOLOGIE_","RECUPERARE_POSTTRAUMATICA"]
["PATURI_CARE_FUNCTIONEAZA_IN_RURAL"]
["PATURI_CARE_FUNCTIONEAZA_IN_URBAN"]
["PATURI_INCHISE_TEMPORAR"]
["PATURI_IN_CONSERVARE"]
["PEDIATRIE"]
["PEDIATRIE","ALERGOLOGIE_SI_IMUNOLOGIE__"]
["PEDIATRIE","CARDIOLOGIE__"]
["PEDIATRIE","CRONICI______"]
["PEDIATRIE","DERMATOVENEROLOGIE___"]
["PEDIATRIE","DIABET_ZAHARAT_NUTRITIE_SI_BOLI_METABOLICE___"]
["PEDIATRIE","DIALIZA_PERITONEALA____"]
["PEDIATRIE","ENDOCRINOLOGIE___"]
["PEDIATRIE","GASTROENTEROLOGIE__"]
["PEDIATRIE","GENETICA_MEDICALA_"]
["PEDIATRIE","HEMATOLOGIE_ONCOLOGIE_"]
["PEDIATRIE","HEMATOLOGIE_ONCOLOGIE_","TI_____________"]
["PEDIATRIE","HEMATOLOGIE_THALASEMII"]
["PEDIATRIE","HEMATOLOGIE____"]
["PEDIATRIE","HIV_SIDA___"]
["PEDIATRIE","NEFROLOGIE__"]
["PEDIATRIE","NEONATOLOGIE_DIN_SECTIILE_DE_PEDIATRIE"]
["PEDIATRIE","NEONATOLOGIE_PATOLOGICA_DIN_SECTIILE_DE_PEDIATRIE"]
["PEDIATRIE","NEUROLOGIE_PEDIATRICA_"]
["PEDIATRIE","NEUROPSIHIATRIE_INFANTILA_"]
["PEDIATRIE","ONCOLOGIE_PEDIATRICA_"]
["PEDIATRIE","PNEUMOLOGIE_DIN_SECTIILE_MEDICALE_"]
["PEDIATRIE","PREMATURI_DIN_SECTIILE_DE_PEDIATRIE"]
["PEDIATRIE","PSIHIATRIE_PEDIATRICA"]
["PEDIATRIE","RECUPERARE_NEUROMOTORIE_"]
["PEDIATRIE","RECUPERARE_NUTRITIONALA_SI_METABOLICA_A_SUGARULUI_SI_COPILULUI_MIC"]
["PEDIATRIE","RECUPERARE_PEDIATRICA_DISTROFICI"]
["PEDIATRIE","TA_________"]
["PEDIATRIE","TI__________"]
["PEDIATRIE","TI__________","TI_NEONATOLOGIE__"]
["PEDIATRIE","TOXICOLOGIE_"]
["PEDIATRIE","TRANSPLANT_MEDULAR_"]
["PEDIATRIE_CRONICI"]
["PEDIATRIE_NEFROLOGIE"]
["PEDIATRIE_NEFROLOGIE","DIALIZA_PERITONEALA_COPII"]
["PEDIATRIE_RECUPERARE_PEDIATRICA"]
["PNEUMOLOGIE_COPII_DIN_SECTIILE_TBC_"]
["PNEUMOLOGIE_COPII_DIN_SECTIILE_TBC_","PNEUMOLOGIE_TBC_COPII_"]
["PNEUMOLOGIE_DIN_SECTIILE_MEDICALE__"]
["PNEUMOLOGIE_DIN_SECTIILE_TBC"]
["PNEUMOLOGIE_DIN_SECTIILE_TBC","PNEUMOLOGIE_COPII_DIN_SECTIILE_TBC"]
["PNEUMOLOGIE_DIN_SECTIILE_TBC","PNEUMOLOGIE_TBC"]
["PNEUMOLOGIE_DIN_SECTIILE_TBC","PNEUMOLOGIE_TBC_ADULTI"]
["PNEUMOLOGIE_DIN_SECTIILE_TBC","PNEUMOLOGIE_TBC_COPII"]
["PNEUMOLOGIE_DIN_SECTIILE_TBC","PNEUMOLOGIE_TBC_CRONICI"]
["PNEUMOLOGIE_DIN_SECTIILE_TBC","PNEUMOLOGIE_TBC_MDR_MULTIDROG_REZISTENTA"]
["PNEUMOLOGIE_DIN_SECTIILE_TBC","TA__________"]
["PNEUMOLOGIE_DIN_SECTIILE_TBC","TI___________"]
["PNEUMOLOGIE_TBC_"]
["PNEUMOLOGIE_TBC_","PNEUMOLOGIE_TBC_COPII__"]
["PNEUMOLOGIE_TBC_COPII___"]
["PNEUMOLOGIE_TBC_CRONICI_"]
["PNEUMOLOGIE_TBC_MDR_MULTIDROG_REZISTENTA_"]
["PREMATURI__"]
["PSIHIATRIE"]
["PSIHIATRIE","BOLNAVI_PSIHICI_CU_TBC_PULMONAR_COD_PENAL"]
["PSIHIATRIE","COD_PENAL"]
["PSIHIATRIE","CRONICI_TERAPIE_OCUPATIONALA_SI_REABILITARE"]
["PSIHIATRIE","INTERNARI_NEVOLUNTARE"]
["PSIHIATRIE","NEVROZE"]
["PSIHIATRIE","POSTCURA_POLITOXICOMANIE_SI_ADICTII"]
["PSIHIATRIE","POSTCURA_TOXICOMANIE"]
["PSIHIATRIE","PSIHIATRIE_ACUTI"]
["PSIHIATRIE","PSIHIATRIE_CRONICI"]
["PSIHIATRIE","PSIHIATRIE_PEDIATRICA_COPII"]
["PSIHIATRIE","PSIHOGERIATRIE_"]
["PSIHIATRIE","RECUPERARE_CRONICI__"]
["PSIHIATRIE_ACUTI_"]
["PSIHIATRIE_ACUTI_","ALCOOLISM"]
["PSIHIATRIE_ACUTI_","COD_PENAL__"]
["PSIHIATRIE_ACUTI_","CURA_TOXICODEPENDENTE"]
["PSIHIATRIE_ACUTI_","NEUROPSIHIATRIE_INFANTILA__"]
["PSIHIATRIE_ACUTI_","PSIHIATRIE_"]
["PSIHIATRIE_ACUTI_","PSIHIATRIE_CRONICI__"]
["PSIHIATRIE_ACUTI_","TOXICOMANIE_"]
["PSIHIATRIE_ACUTI_","URGENTE_PSIHIATRICE"]
["PSIHIATRIE_CRONICI_COPII"]
["PSIHIATRIE_CRONICI___"]
["PSIHIATRIE_CRONICI___","BOLNAVI_PSIHICI_CU_TBC_PULMONAR"]
["PSIHIATRIE_CRONICI___","BOLNAVI_PSIHICI_CU_TBC_PULMONAR_COD_PENAL_"]
["PSIHIATRIE_CRONICI___","CRONICI_AFECTIUNI_PSIHOSOMATICE_"]
["PSIHIATRIE_CRONICI___","DEMENTA_SENILA_SI_BOALA_ALZHEIMER"]
["PSIHIATRIE_CRONICI___","PSIHIATRIE_ACUTI__"]
["PSIHIATRIE_CRONICI___","PSIHIATRIE_DEMENTE"]
["PSIHIATRIE_CRONICI___","PSIHIATRIE_PEDIATRICA_COPII__"]
["PSIHIATRIE_CRONICI___","PSIHIATRIE__"]
["PSIHIATRIE_CRONICI___","TERAPIE_OCUPATIONALA_SI_ERGOTERAPIE"]
["PSIHIATRIE_DROGODEPENDENTA"]
["PSIHIATRIE_DROGODEPENDENTA","COD_PENAL_"]
["PSIHIATRIE_DROGODEPENDENTA","TOXICOMANIE"]
["PSIHIATRIE_GERONTOPSIHIATRIE"]
["PSIHIATRIE_GERONTOPSIHIATRIE","PSIHIATRIE_CRONICI____"]
["PSIHIATRIE_PEDIATRICA_COPII_"]
["PSIHIATRIE_PEDIATRICA_COPII_","NEUROLOGIE_PEDIATRICA__"]
["PSIHIATRIE_PEDIATRICA_COPII_","PSIHIATRIE_CRONICI_"]
["PSIHIATRIE_PEDIATRICA_COPII_","TOXICOMANIE_DEZINTOXICARE"]
["PSIHIATRIE_PSIHOSOMATICA"]
["PSIHIATRIE_PSIHOSOMATICA","PSIHIATRIE_CRONICI______"]
["PSIHIATRIE_PSIHOZE"]
["PSIHIATRIE_PSIHOZE","PSIHIATRIE_CRONICI_____"]
["PSIHIATRIE_TOXICOMANIE"]
["PSIHOGERIATRIE__"]
["RADIOTERAPIE_"]
["RADIOTERAPIE_","COBALTOTERAPIE"]
["RADIOTERAPIE_","CRONICI_______"]
["RADIOTERAPIE_","CURIETERAPIE"]
["RADIOTERAPIE_","MEDICINA_NUCLEARA"]
["RADIOTERAPIE_","TERAPIE_CU_IZOTOPI"]
["RADIOTERAPIE_M_AP_N"]
["RADIOTERAPIE_M_AP_N","RADIOPATOLOGIE_"]
["RECUPERARE_BOLI_CRDIOVASCULARE"]
["RECUPERARE_BOLI_CRDIOVASCULARE","TI_CORONARIENI____"]
["RECUPERARE_CARDIOLOGIE_COPII"]
["RECUPERARE_MEDICALA_"]
["RECUPERARE_MEDICALA_CARDIOVASCULARA"]
["RECUPERARE_MEDICALA_CRONICI_DIABET_SI_HEMOFILIE"]
["RECUPERARE_MEDICALA_NEUROPSIHOMOTORIE_COPII"]
["RECUPERARE_MEDICALA_ORTOPEDIE_SI_TRAUMATOLOGIE"]
["RECUPERARE_MEDICALA_RESPIRATORIE"]
["RECUPERARE_MEDICINA_FIZICA_SI_BALNEOLOGIE_"]
["RECUPERARE_MEDICINA_FIZICA_SI_BALNEOLOGIE_","RECUPERARE_BOLI_CRDIOVASCULARE_"]
["RECUPERARE_MEDICINA_FIZICA_SI_BALNEOLOGIE_","RECUPERARE_BOLI_CRDIOVASCULARE__"]
["RECUPERARE_MEDICINA_FIZICA_SI_BALNEOLOGIE_","RECUPERARE_BOLI_RESPIRATORII"]
["RECUPERARE_MEDICINA_FIZICA_SI_BALNEOLOGIE_","RECUPERARE_NEUROLOGICA__"]
["RECUPERARE_MEDICINA_FIZICA_SI_BALNEOLOGIE_","RECUPERARE_NEUROLOGICA___"]
["RECUPERARE_MEDICINA_FIZICA_SI_BALNEOLOGIE_","RECUPERARE_NEUROMOTORIE_COPII_"]
["RECUPERARE_MEDICINA_FIZICA_SI_BALNEOLOGIE_","RECUPERARE_ORTOPEDIE_SI_TRAUMATOLOGIE_"]
["RECUPERARE_MEDICINA_FIZICA_SI_BALNEOLOGIE_","RECUPERARE_POSTTRAUMATICA_"]
["RECUPERARE_MEDICINA_FIZICA_SI_BALNEOLOGIE_","REUMATOLOGIE_"]
["RECUPERARE_MEDICINA_FIZICA_SI_BALNEOLOGIE_COPII"]
["RECUPERARE_NEUROLOGICA"]
["RECUPERARE_NEUROLOGICA_"]
["RECUPERARE_NEUROLOGICA_COPII"]
["RECUPERARE_NEUROLOGICA_CRONICI"]
["RECUPERARE_NEUROMOTORIE_COPII"]
["RECUPERARE_NEUROMOTORIE__"]
["RECUPERARE_NEUROMUSCULARA"]
["RECUPERARE_NEUROPSIHOMOTORIE_"]
["RECUPERARE_NEUROPSIHOMOTORIE_COPII"]
["RECUPERARE_NEUROPSIHOMOTORIE_COPII","TI____________"]
["RECUPERARE_NEUROPSIHOMOTORIE_SI_POSTTRAUMATICA_COPII"]
["RECUPERARE_ORL_COPII_CU_HANDICAP_AUZ_VORBIRE_CIUBOTICA_CUCULUI"]
["RECUPERARE_ORTOPEDIE_SI_TRAUMATOLOGIE"]
["RECUPERARE_ORTOPEDIE_SI_TRAUMATOLOGIE","CHIRURGIE_SI_ORTOPEDIE_INFANTILA_PEDIATRICA__"]
["RECUPERARE_PEDIATRICA_DISTROFICI_"]
["RECUPERARE_TRAUMATOLOGICA_VERTEBROMEDULARA_SI_NEUROMOTORIE"]
["REUMATOLOGIE__"]
["REUMATOLOGIE__","RECUPERARE_MEDICINA_FIZICA_SI_BALNEOLOGIE__"]
["TBC_OSTEOARTICULAR"]
["TOXICOLOGIE__"]
["TOXICOLOGIE__","TOXICOLOGIE_COPII"]
["TOXICOMANIE_ELEVI_SI_STUDENTI"]
["TOXICOMANIE__"]
["TOXICOMANIE__","TOXICOMANIE_COPII"]
["UPU"]
["UPU","TOATE_SPECIALITATILE"]
["UROLOGIE___"]
["UROLOGIE___","ATI_______________"]
["UROLOGIE___","ENDOUROLOGIE"]
["UROLOGIE___","ENDOUROLOGIE","LITOTRITIE_"]
["UROLOGIE___","LITOTRITIE"]
["UROLOGIE___","TRANSPLANT_RENAL"]
["UROLOGIE___","TRANSPLANT_RENAL","ATI_________________"]
["UROLOGIE___","UROLOGIE_COPII"]

{"sheet":"TotalNumeDefinedNames","index":6,"n_rows":506,"n_cols":160,"rows_kept":506,"cut":false,"hidden":true,"merged":[]}
["SECTII",null,"ALERGOLOGIE_SI_IMUNOLOGIE","ALTE_SECŢII","ATI","ATI_COPII_","BOLI_CRONICE","BOLI_INFECTIOASE_COPII_","BOLI_INFECTIOASE_HIV_SIDA","BOLI_INFECTIOASE_MAPN","BOLI_INFECTIOASE_SI_TROPICALE","BOLI_INFECŢIOASE","BOLI_PROFESIONALE","BOLNAVI_PSIHICI_CU_TBC_PULMONAR_","BOLNAVI_PSIHICI_CU_TBC_PULMONAR_COD_PENAL__","CARDIOLOGIE","CARDIOLOGIE_INTERVENTIONALA_","CARDIOLOGIE_PATOLOGIE_STABILIZATA_SI_CRONICA","CARDIOLOGIE_PEDIATRICA_","CARDIOLOGIE_PENTRU_DIABETICI","CG","CHIRURGIE_CARDIACA_SI_A_VASELOR_MARI","CHIRURGIE_CARDIOVASCULARA","CHIRURGIE_CARDIOVASCULARA_ADULTI_SI_COPII","CHIRURGIE_ENDOCRINA","CHIRURGIE_GENERALA","CHIRURGIE_GENERALA_CHIRURGIE_ONCOLOGICA","CHIRURGIE_LAPAROSCOPICA_","CHIRURGIE_MAXILO_FACIALA_","CHIRURGIE_ONCOLOGICA_","CHIRURGIE_ONCOLOGICA_ORL_CHIRURGIE_CERVICO_FACIALA_SI_ONCOLOGIE_LARINGIANA","CHIRURGIE_ORALA_SI_MAXILO_FACIALA__","CHIRURGIE_PEDIATRICA_","CHIRURGIE_PLASTICA_MICROCHIRURGIE_RECONSTRUCTIVA_ARSI","CHIRURGIE_PLASTICA_MICROCHIRURGIE_RECONSTRUCTIVA_COPII","CHIRURGIE_PLASTICA_MICROCHIRURGIE_RECONSTRUCTIVA___","CHIRURGIE_SI_ORTOPEDIE_INFANTILA_PEDIATRICA_","CHIRURGIE_TORACICA_TBC","CHIRURGIE_TORACICA____","CHIRURGIE_VASCULARA_","CPU","CRONICI_AFECTIUNI_PSIHOSOMATICE","CRONICI_TERAPIE_IZOTOPICA","CRONICI__","DERMATOVENEROLOGIE","DERMATOVENEROLOGIE_COPII_","DIABET_ZAHARAT_NUTRITIE_SI_BOLI_METABOLICE","DIALIZA_PERITONEALA","ENDOCRINOLOGIE_","ENDOCRINOLOGIE_COPII_","GASTROENTEROLOGIE","GASTROENTEROLOGIE_HEPATOLOGIE","GENETICA_MEDICALA","GERIATRIE_SI_GERONTOLOGIE_","GINECOLOGIE_","GINECOLOGIE_INFANTILA","HEMATOLOGIE","HEMATOLOGIE_HEMOFILIE","HEMATOLOGIE_ONCOLOGIE","HEMATOLOGIE_ONCOLOGIE_PEDIATRICA","HEMODIALIZA","HIV_SIDA_ADULTI_SI_COPII_","HIV_SIDA_COPII","HIV_SIDA__","INGRIJIRI_PALIATIVE__","MEDICINA_GENERALA","MEDICINA_INTERNA_CRONICI_","MEDICINA_INTERNA__","MEDICINA_MATERNO_FETALA","NEFROLOGIE_","NEFROLOGIE_PEDIATRICA","NEFROLOGIE_PENTRU_DIABETICI","NEONATOLOGIE","NEONATOLOGIE_PREMATURI","NEUROCHIRURGIE_STEREOTACTICA_SI_FUNCTIONALA","NEUROCHIRURGIE__","NEUROLOGIE_","NEUROLOGIE_CRONICI","NEUROLOGIE_PEDIATRICA","NEUROLOGIE_SI_PSIHIATRIE","NEUROPSIHIATRIE_ADULTI","NEUROPSIHIATRIE_INFANTILA","OBSTETRICA","OBSTETRICA_FIZIOLOGICA","OBSTETRICA_GINECOLOGIE_","OBSTETRICA_GINECOLOGIE_GRAVIDE_CU_RISC","OBSTETRICA_GINECOLOGIE_NASTERI_PRECIPITATE","OBSTETRICA_GINECOLOGIE_PATOLOGICA","OBSTETRICA_PATOLOGICA_","OFTALMOLOGIE___","ONCOLOGIE_MEDICALA_INGRIJIRI_PALIATIVE","ONCOLOGIE_MEDICALA__","ONCOLOGIE_PEDIATRICA","ONCOLOGIE_TERAPIE_CU_IZOTOPI","ORL_CHIRURGIE_AUDIOLOGICA_SI_RINOLOGICA","ORL_MICROCHIRURGIE_ORL_SI_FONIATRIE_RECUPERAREA_VOCII","ORL_MICROCHIRURGIE_OTOLOGICA","ORL____","ORTOPEDIE_PEDIATRICA__","ORTOPEDIE_SI_TRAUMATOLOGIE_","PATURI_CARE_FUNCTIONEAZA_IN_RURAL","PATURI_CARE_FUNCTIONEAZA_IN_URBAN","PATURI_INCHISE_TEMPORAR","PATURI_IN_CONSERVARE","PEDIATRIE","PEDIATRIE_CRONICI","PEDIATRIE_NEFROLOGIE","PEDIATRIE_RECUPERARE_PEDIATRICA","PNEUMOLOGIE_COPII_DIN_SECTIILE_TBC_","PNEUMOLOGIE_DIN_SECTIILE_MEDICALE__","PNEUMOLOGIE_DIN_SECTIILE_TBC","PNEUMOLOGIE_TBC_","PNEUMOLOGIE_TBC_COPII___","PNEUMOLOGIE_TBC_CRONICI_","PNEUMOLOGIE_TBC_MDR_MULTIDROG_REZISTENTA_","PREMATURI__","PSIHIATRIE","PSIHIATRIE_ACUTI_","PSIHIATRIE_CRONICI_COPII","PSIHIATRIE_CRONICI___","PSIHIATRIE_DROGODEPENDENTA","PSIHIATRIE_GERONTOPSIHIATRIE","PSIHIATRIE_PEDIATRICA_COPII_","PSIHIATRIE_PSIHOSOMATICA","PSIHIATRIE_PSIHOZE","PSIHIATRIE_TOXICOMANIE","PSIHOGERIATRIE__","RADIOTERAPIE_","RADIOTERAPIE_M_AP_N","RECUPERARE_BOLI_CRDIOVASCULARE","RECUPERARE_CARDIOLOGIE_COPII","RECUPERARE_MEDICALA_","RECUPERARE_MEDICALA_CARDIOVASCULARA","RECUPERARE_MEDICALA_CRONICI_DIABET_SI_HEMOFILIE","RECUPERARE_MEDICALA_NEUROPSIHOMOTORIE_COPII","RECUPERARE_MEDICALA_ORTOPEDIE_SI_TRAUMATOLOGIE","RECUPERARE_MEDICALA_RESPIRATORIE","RECUPERARE_MEDICINA_FIZICA_SI_BALNEOLOGIE_","RECUPERARE_MEDICINA_FIZICA_SI_BALNEOLOGIE_COPII","RECUPERARE_NEUROLOGICA","RECUPERARE_NEUROLOGICA_","RECUPERARE_NEUROLOGICA_COPII","RECUPERARE_NEUROLOGICA_CRONICI","RECUPERARE_NEUROMOTORIE_COPII","RECUPERARE_NEUROMOTORIE__","RECUPERARE_NEUROMUSCULARA","RECUPERARE_NEUROPSIHOMOTORIE_","RECUPERARE_NEUROPSIHOMOTORIE_COPII","RECUPERARE_NEUROPSIHOMOTORIE_SI_POSTTRAUMATICA_COPII","RECUPERARE_ORL_COPII_CU_HANDICAP_AUZ_VORBIRE_CIUBOTICA_CUCULUI","RECUPERARE_ORTOPEDIE_SI_TRAUMATOLOGIE","RECUPERARE_PEDIATRICA_DISTROFICI_","RECUPERARE_TRAUMATOLOGICA_VERTEBROMEDULARA_SI_NEUROMOTORIE","REUMATOLOGIE__","TBC_OSTEOARTICULAR","TOXICOLOGIE__","TOXICOMANIE_ELEVI_SI_STUDENTI","TOXICOMANIE__","UPU","UROLOGIE___"]
["ALERGOLOGIE_SI_IMUNOLOGIE",null,"ALERGOLOGIE_SI_IMUNOLOGIE_COPII"]
["ALTE_SECŢII",null,"ALTE_SECTII_COPII"]
["ATI",null,"ATI_ARSI","ATI_CHIRURGIE_CARDIOVASCULARA","ATI_CHIRURGIE_GENERALA","ATI_CHIRURGIE_PLASTICA","ATI_COPII","ATI_NEUROCHIRURGIE","ATI_NOU_NASCUTI_DIN_PEDIATRIE","ATI_OBSTETRICA_GINECOLOGIE","ATI_OFTALMOLOGIE","ATI_ORL","ATI_ORL_SI_OFTALMOLOGIE","ATI_ORTOPEDIE_SI_TRAUMATOLOGIE","ATI_POLITRAUMATISME","ATI_TOXICOLOGIE","TI_CORONARIENI","TI_HEPATOLOGIE","TI_NEONATOLOGIE"]
["ATI_COPII_"]
["BOLI_CRONICE",null,"INGRIJIRI_PALIATIVE"]
["BOLI_INFECTIOASE_COPII_",null,"HIV_SIDA_","HIV_SIDA_ADULTI_SI_COPII","TA_","TI_"]
["BOLI_INFECTIOASE_HIV_SIDA",null,"BOLI_INFECTIOASE_COPII_HIV_SIDA"]
["BOLI_INFECTIOASE_MAPN"]
["BOLI_INFECTIOASE_SI_TROPICALE",null,"BOLI_INFECTIOASE_SI_TROPICALE_COPII","TI__"]
["BOLI_INFECŢIOASE",null,"BOLI_INFECTIOASE_COPII","HIV_SIDA","INGRIJIRI_PALIATIVE_","PARAZITOLOGIE","TA","TI"]
["BOLI_PROFESIONALE",null,"RADIOPATOLOGIE"]
["BOLNAVI_PSIHICI_CU_TBC_PULMONAR_"]
["BOLNAVI_PSIHICI_CU_TBC_PULMONAR_COD_PENAL__"]
["CARDIOLOGIE",null,"CARDIOLOGIE_INTERVENTIONALA","CARDIOLOGIE_PEDIATRICA","PATOLOGIE_STABILIZATA_SI_CRONICA","RECUPERARE_CARDIOLOGIE","TI_CORONARIENI_","TI___"]
["CARDIOLOGIE_INTERVENTIONALA_"]
["CARDIOLOGIE_PATOLOGIE_STABILIZATA_SI_CRONICA"]
["CARDIOLOGIE_PEDIATRICA_",null,"TI_CORONARIENI__"]
["CARDIOLOGIE_PENTRU_DIABETICI"]
["CG",null,"TOATE_SPECIALITATILE_"]
["CHIRURGIE_CARDIACA_SI_A_VASELOR_MARI",null,"ATI_"]
["CHIRURGIE_CARDIOVASCULARA",null,"ATI_COPII__","ATI__","CHIRURGIE_CARDIOVASCULARA_COPII","CHIRURGIE_TORACICA","TRANSPLANT"]
["CHIRURGIE_CARDIOVASCULARA_ADULTI_SI_COPII"]
["CHIRURGIE_ENDOCRINA",null,"ATI___"]
["CHIRURGIE_GENERALA",null,"ARSI","ATI____","CHIRURGIE_ENDOSCOPICA","CHIRURGIE_HEPATICA","CHIRURGIE_LAPAROSCOPICA","CHIRURGIE_MAXILO_FACIALA","CHIRURGIE_ONCOLOGICA","CHIRURGIE_ORALA_SI_MAXILO_FACIALA","CHIRURGIE_PEDIATRICA","CHIRURGIE_PLASTICA_MICROCHIRURGIE_RECONSTRUCTIVA","CHIRURGIE_REPARATORIE_A_PICIORULUI_DIABETIC","CHIRURGIE_SI_ORTOPEDIE_INFANTILA_PEDIATRICA","CHIRURGIE_TORACICA_","CHIRURGIE_TORACICA_SI_ESOFAGIANA","CHIRURGIE_VASCULARA","CRONICI","FLEBOLOGIE","NEUROCHIRURGIE","OBSTETRICA_GINECOLOGIE","OFTALMOLOGIE","ORL","ORTOPEDIE_SI_TRAUMATOLOGIE","TRANSPLANT_HEPATIC","UROLOGIE"]
["CHIRURGIE_GENERALA_CHIRURGIE_ONCOLOGICA",null,"CHIRURGIE_TORACICA__"]
["CHIRURGIE_LAPAROSCOPICA_"]
["CHIRURGIE_MAXILO_FACIALA_",null,"CHIRURGIE_MAXILO_FACIALA_COPII"]
["CHIRURGIE_ONCOLOGICA_",null,"CHIRURGIE_ONCOLOGICA_COPII","CHIRURGIE_ORALA_SI_MAXILO_FACIALA_","CHIRURGIE_PLASTICA_MICROCHIRURGIE_RECONSTRUCTIVA_","CHIRURGIE_TORACICA___","GINECOLOGIE","GINECO_ONCOLOGIE","UROLOGIE_"]
["CHIRURGIE_ONCOLOGICA_ORL_CHIRURGIE_CERVICO_FACIALA_SI_ONCOLOGIE_LARINGIANA"]
["CHIRURGIE_ORALA_SI_MAXILO_FACIALA__",null,"ATI_____","CHIRURGIE_ORALA_SI_MAXILO_FACIALA_COPII","CHIRURGIE_PLASTICA_MICROCHIRURGIE_RECONSTRUCTIVA__","CHIRURGIE_PLASTICA_SI_REPARATORIE_FACIALA","ORL_"]
["CHIRURGIE_PEDIATRICA_",null,"ATI______","CHIRURGIE_CARDIOVASCULARA_","NEUROCHIRURGIE_","OFTALMOLOGIE_","ORL__","ORTOPEDIE_PEDIATRICA","UROLOGIE__"]
["CHIRURGIE_PLASTICA_MICROCHIRURGIE_RECONSTRUCTIVA_ARSI"]
["CHIRURGIE_PLASTICA_MICROCHIRURGIE_RECONSTRUCTIVA_COPII"]
["CHIRURGIE_PLASTICA_MICROCHIRURGIE_RECONSTRUCTIVA___",null,"ARSI_","ATI_______","TI____"]
["CHIRURGIE_SI_ORTOPEDIE_INFANTILA_PEDIATRICA_",null,"CHIRURGIE_PLASTICA_MICROCHIRURGIE_RECONSTRUCTIVA____","OFTALMOLOGIE__","ORL___","ORTOPEDIE_PEDIATRICA_"]
["CHIRURGIE_TORACICA_TBC",null,"ATI_________"]
["CHIRURGIE_TORACICA____",null,"ATI________","CRONICI_"]
["CHIRURGIE_VASCULARA_",null,"MICROCHIRURGIE_VASCULARA"]
["CPU"]
["CRONICI_AFECTIUNI_PSIHOSOMATICE"]
["CRONICI_TERAPIE_IZOTOPICA"]
["CRONICI__",null,"GERIATRIE_SI_GERONTOLOGIE"]
["DERMATOVENEROLOGIE",null,"ALERGOLOGIE_SI_IMUNOLOGIE","DERMATOVENEROLOGIE_COPII","PARAZITOLOGIE_"]
["DERMATOVENEROLOGIE_COPII_"]
["DIABET_ZAHARAT_NUTRITIE_SI_BOLI_METABOLICE",null,"DERMATOVENEROLOGIE_","ENDOCRINOLOGIE","MEDICINA_INTERNA","TA__"]
["DIALIZA_PERITONEALA"]
["ENDOCRINOLOGIE_",null,"DIABET_ZAHARAT_NUTRITIE_SI_BOLI_METABOLICE_","ENDOCRINOLOGIE_COPII","GUSA_ENDEMICA_SI_COMPLICATIILE_EI","INFERTILITATE_SI_PATOLOGIE_GONADICA","PATOLOGIA_TIROIDEI_DE_CORELATIE","PATOLOGIE_ENDOCRINO_METABOLICA","PATOLOGIE_HIPOFIZARA_SI_NEUROENDOCRINA","PATOLOGIE_SUPRARENALA_SI_A_METABOLISMULUI_OSOS"]
["ENDOCRINOLOGIE_COPII_"]
["GASTROENTEROLOGIE",null,"GASTROENTEROLOGIE_COPII","HEPATOLOGIE","MEDICINA_INTERNA_","TA___"]
["GASTROENTEROLOGIE_HEPATOLOGIE",null,"ONCOLOGIE_MEDICALA"]
["GENETICA_MEDICALA"]
["GERIATRIE_SI_GERONTOLOGIE_",null,"PSIHOGERIATRIE"]
["GINECOLOGIE_",null,"CHIRURGIE_LAPAROSCOPICA_GINECOLOGICA","GINECO_ONCOLOGIE_"]
["GINECOLOGIE_INFANTILA"]
["HEMATOLOGIE",null,"HEMATOLOGIE_COPII","TRANSPLANT_MEDULAR","TRANSPLANT_MEDULAR_ADULTI_SI_COPII"]
["HEMATOLOGIE_HEMOFILIE"]
["HEMATOLOGIE_ONCOLOGIE"]
["HEMATOLOGIE_ONCOLOGIE_PEDIATRICA"]
["HEMODIALIZA"]
["HIV_SIDA_ADULTI_SI_COPII_"]
["HIV_SIDA_COPII"]
["HIV_SIDA__"]
["INGRIJIRI_PALIATIVE__"]
["MEDICINA_GENERALA"]
["MEDICINA_INTERNA_CRONICI_",null,"BOLI_PROFESIONALE__"]
["MEDICINA_INTERNA__",null,"ALERGOLOGIE_SI_IMUNOLOGIE_","BOLI_PROFESIONALE_","CARDIOLOGIE_","CRONICI___","DERMATOVENEROLOGIE__","DIABET_ZAHARAT_NUTRITIE_SI_BOLI_METABOLICE__","DIALIZA_PERITONEALA_","ENDOCRINOLOGIE__","GASTROENTEROLOGIE_","GERIATRIE_SI_GERONTOLOGIE__","HEMATOLOGIE_","MEDICINA_INTERNA_CRONICI","NEFROLOGIE","NEUROLOGIE","ONCOLOGIE_MEDICALA_","PNEUMOLOGIE_DIN_SECTIILE_MEDICALE","RECUPERARE_MEDICINA_FIZICA_SI_BALNEOLOGIE","REUMATOLOGIE","TA____","TI_CORONARIENI___","TI_____"]
["MEDICINA_MATERNO_FETALA"]
["NEFROLOGIE_",null,"DIALIZA_PERITONEALA__","HEMODIALIZA_","MEDICINA_INTERNA___","TA_____","TI______","TOXICOLOGIE"]
["NEFROLOGIE_PEDIATRICA"]
["NEFROLOGIE_PENTRU_DIABETICI",null,"DIALIZA_PERITONEALA___"]
["NEONATOLOGIE",null,"PREMATURI","TA______","TI_______"]
["NEONATOLOGIE_PREMATURI",null,"TI________"]
["NEUROCHIRURGIE_STEREOTACTICA_SI_FUNCTIONALA"]
["NEUROCHIRURGIE__",null,"ATI__________","CHIRURGIE_SPINALA","CRONICI____","NEUROCHIRURGIE_PEDIATRICA_COPII"]
["NEUROLOGIE_",null,"CRONICI_____","PENTRU_BOLNAVI_CU_MIASTENIA_GRAVIS","RECUPERARE_CRONICI","RECUPERARE_NEUROLOGICA","RECUPERARE_NEUROMOTORIE","TA_______","TI_________","URGENTE_NEUROVASCULARE"]
["NEUROLOGIE_CRONICI"]
["NEUROLOGIE_PEDIATRICA",null,"RECUPERARE_NEUROPSIHOMOTORIE","TA________"]
["NEUROLOGIE_SI_PSIHIATRIE"]
["NEUROPSIHIATRIE_ADULTI"]
["NEUROPSIHIATRIE_INFANTILA"]
["OBSTETRICA",null,"MEDICINA_MATERNO_FETALA_","OBSTETRICA_PATOLOGICA"]
["OBSTETRICA_FIZIOLOGICA",null,"NEONATOLOGIE_"]
["OBSTETRICA_GINECOLOGIE_",null,"ATI___________","FERTILIZARE_IN_VITRO","GINECOLOGIE__","GINECO_ONCOLOGIE__","MEDICINA_MATERNO_FETALA__","NASTERI_PRECIPITATE","NEONATOLOGIE___","OBSTETRICA_","OBSTETRICA_PATOLOGICA__","PREMATURI_","TI_NEONATOLOGIE_","TRATAMENTUL_INFERTILITATII_CUPLULUI_SI_REPRODUCERE_UMANA_ASISTATA"]
["OBSTETRICA_GINECOLOGIE_GRAVIDE_CU_RISC"]
["OBSTETRICA_GINECOLOGIE_NASTERI_PRECIPITATE",null,"NEONATOLOGIE__"]
["OBSTETRICA_GINECOLOGIE_PATOLOGICA"]
["OBSTETRICA_PATOLOGICA_",null,"STERILITATE_INFERTILITATE"]
["OFTALMOLOGIE___",null,"ATI____________","OFTALMOLOGIE_COPII"]
["ONCOLOGIE_MEDICALA_INGRIJIRI_PALIATIVE"]
["ONCOLOGIE_MEDICALA__",null,"HEMATOLOGIE__","INGRIJIRI_PALIATIVE___","RADIOTERAPIE"]
["ONCOLOGIE_PEDIATRICA",null,"HEMATOLOGIE___"]
["ONCOLOGIE_TERAPIE_CU_IZOTOPI"]
["ORL_CHIRURGIE_AUDIOLOGICA_SI_RINOLOGICA"]
["ORL_MICROCHIRURGIE_ORL_SI_FONIATRIE_RECUPERAREA_VOCII"]
["ORL_MICROCHIRURGIE_OTOLOGICA",null,"IMPLANT_COHLEAR"]
["ORL____",null,"ATI_____________","CHIRURGIE_MAXILO_FACIALA__","CHIRURGIE_ORALA_SI_MAXILO_FACIALA___","IMPLANT_COHLEAR_","ORL_COPII"]
["ORTOPEDIE_PEDIATRICA__"]
["ORTOPEDIE_SI_TRAUMATOLOGIE_",null,"ATI______________","CHIRURGIE_ARTROSCOPICA","CHIRURGIE_SPINALA_","ORTOPEDIE_PEDIATRICA___","ORTOPEDIE_SI_TRAUMATOLOGIE_PEDIATRICA","RECUPERARE_CRONICI_","RECUPERARE_MEDICALA","RECUPERARE_POSTTRAUMATICA"]
["PATURI_CARE_FUNCTIONEAZA_IN_RURAL"]
["PATURI_CARE_FUNCTIONEAZA_IN_URBAN"]
["PATURI_INCHISE_TEMPORAR"]
["PATURI_IN_CONSERVARE"]
["PEDIATRIE",null,"ALERGOLOGIE_SI_IMUNOLOGIE__","CARDIOLOGIE__","CRONICI______","DERMATOVENEROLOGIE___","DIABET_ZAHARAT_NUTRITIE_SI_BOLI_METABOLICE___","DIALIZA_PERITONEALA____","ENDOCRINOLOGIE___","GASTROENTEROLOGIE__","GENETICA_MEDICALA_","HEMATOLOGIE_ONCOLOGIE_","HEMATOLOGIE_THALASEMII","HEMATOLOGIE____","HIV_SIDA___","NEFROLOGIE__","NEONATOLOGIE_DIN_SECTIILE_DE_PEDIATRIE","NEONATOLOGIE_PATOLOGICA_DIN_SECTIILE_DE_PEDIATRIE","NEUROLOGIE_PEDIATRICA_","NEUROPSIHIATRIE_INFANTILA_","ONCOLOGIE_PEDIATRICA_","PNEUMOLOGIE_DIN_SECTIILE_MEDICALE_","PREMATURI_DIN_SECTIILE_DE_PEDIATRIE","PSIHIATRIE_PEDIATRICA","RECUPERARE_NEUROMOTORIE_","RECUPERARE_NUTRITIONALA_SI_METABOLICA_A_SUGARULUI_SI_COPILULUI_MIC","RECUPERARE_PEDIATRICA_DISTROFICI","TA_________","TI__________","TOXICOLOGIE_","TRANSPLANT_MEDULAR_"]
["PEDIATRIE_CRONICI"]
["PEDIATRIE_NEFROLOGIE",null,"DIALIZA_PERITONEALA_COPII"]
["PEDIATRIE_RECUPERARE_PEDIATRICA"]
["PNEUMOLOGIE_COPII_DIN_SECTIILE_TBC_",null,"PNEUMOLOGIE_TBC_COPII_"]
["PNEUMOLOGIE_DIN_SECTIILE_MEDICALE__"]
["PNEUMOLOGIE_DIN_SECTIILE_TBC",null,"PNEUMOLOGIE_COPII_DIN_SECTIILE_TBC","PNEUMOLOGIE_TBC","PNEUMOLOGIE_TBC_ADULTI","PNEUMOLOGIE_TBC_COPII","PNEUMOLOGIE_TBC_CRONICI","PNEUMOLOGIE_TBC_MDR_MULTIDROG_REZISTENTA","TA__________","TI___________"]
["PNEUMOLOGIE_TBC_",null,"PNEUMOLOGIE_TBC_COPII__"]
["PNEUMOLOGIE_TBC_COPII___"]
["PNEUMOLOGIE_TBC_CRONICI_"]
["PNEUMOLOGIE_TBC_MDR_MULTIDROG_REZISTENTA_"]
["PREMATURI__"]
["PSIHIATRIE",null,"BOLNAVI_PSIHICI_CU_TBC_PULMONAR_COD_PENAL","COD_PENAL","CRONICI_TERAPIE_OCUPATIONALA_SI_REABILITARE","INTERNARI_NEVOLUNTARE","NEVROZE","POSTCURA_POLITOXICOMANIE_SI_ADICTII","POSTCURA_TOXICOMANIE","PSIHIATRIE_ACUTI","PSIHIATRIE_CRONICI","PSIHIATRIE_PEDIATRICA_COPII","PSIHOGERIATRIE_","RECUPERARE_CRONICI__"]
["PSIHIATRIE_ACUTI_",null,"ALCOOLISM","COD_PENAL__","CURA_TOXICODEPENDENTE","NEUROPSIHIATRIE_INFANTILA__","PSIHIATRIE_","PSIHIATRIE_CRONICI__","TOXICOMANIE_","URGENTE_PSIHIATRICE"]
["PSIHIATRIE_CRONICI_COPII"]
["PSIHIATRIE_CRONICI___",null,"BOLNAVI_PSIHICI_CU_TBC_PULMONAR","BOLNAVI_PSIHICI_CU_TBC_PULMONAR_COD_PENAL_","CRONICI_AFECTIUNI_PSIHOSOMATICE_","DEMENTA_SENILA_SI_BOALA_ALZHEIMER","PSIHIATRIE_ACUTI__","PSIHIATRIE_DEMENTE","PSIHIATRIE_PEDIATRICA_COPII__","PSIHIATRIE__","TERAPIE_OCUPATIONALA_SI_ERGOTERAPIE"]
["PSIHIATRIE_DROGODEPENDENTA",null,"COD_PENAL_","TOXICOMANIE"]
["PSIHIATRIE_GERONTOPSIHIATRIE",null,"PSIHIATRIE_CRONICI____"]
["PSIHIATRIE_PEDIATRICA_COPII_",null,"NEUROLOGIE_PEDIATRICA__","PSIHIATRIE_CRONICI_","TOXICOMANIE_DEZINTOXICARE"]
["PSIHIATRIE_PSIHOSOMATICA",null,"PSIHIATRIE_CRONICI______"]
["PSIHIATRIE_PSIHOZE",null,"PSIHIATRIE_CRONICI_____"]
["PSIHIATRIE_TOXICOMANIE"]
["PSIHOGERIATRIE__"]
["RADIOTERAPIE_",null,"COBALTOTERAPIE","CRONICI_______","CURIETERAPIE","MEDICINA_NUCLEARA","TERAPIE_CU_IZOTOPI"]
["RADIOTERAPIE_M_AP_N",null,"RADIOPATOLOGIE_"]
["RECUPERARE_BOLI_CRDIOVASCULARE",null,"TI_CORONARIENI____"]
["RECUPERARE_CARDIOLOGIE_COPII"]
["RECUPERARE_MEDICALA_"]
["RECUPERARE_MEDICALA_CARDIOVASCULARA"]
["RECUPERARE_MEDICALA_CRONICI_DIABET_SI_HEMOFILIE"]
["RECUPERARE_MEDICALA_NEUROPSIHOMOTORIE_COPII"]
["RECUPERARE_MEDICALA_ORTOPEDIE_SI_TRAUMATOLOGIE"]
["RECUPERARE_MEDICALA_RESPIRATORIE"]
["RECUPERARE_MEDICINA_FIZICA_SI_BALNEOLOGIE_",null,"RECUPERARE_BOLI_CRDIOVASCULARE_","RECUPERARE_BOLI_CRDIOVASCULARE__","RECUPERARE_BOLI_RESPIRATORII","RECUPERARE_NEUROLOGICA__","RECUPERARE_NEUROLOGICA___","RECUPERARE_NEUROMOTORIE_COPII_","RECUPERARE_ORTOPEDIE_SI_TRAUMATOLOGIE_","RECUPERARE_POSTTRAUMATICA_","REUMATOLOGIE_"]
["RECUPERARE_MEDICINA_FIZICA_SI_BALNEOLOGIE_COPII"]
["RECUPERARE_NEUROLOGICA"]
["RECUPERARE_NEUROLOGICA_"]
["RECUPERARE_NEUROLOGICA_COPII"]
["RECUPERARE_NEUROLOGICA_CRONICI"]
["RECUPERARE_NEUROMOTORIE_COPII"]
["RECUPERARE_NEUROMOTORIE__"]
["RECUPERARE_NEUROMUSCULARA"]
["RECUPERARE_NEUROPSIHOMOTORIE_"]
["RECUPERARE_NEUROPSIHOMOTORIE_COPII",null,"TI____________"]
["RECUPERARE_NEUROPSIHOMOTORIE_SI_POSTTRAUMATICA_COPII"]
["RECUPERARE_ORL_COPII_CU_HANDICAP_AUZ_VORBIRE_CIUBOTICA_CUCULUI"]
["RECUPERARE_ORTOPEDIE_SI_TRAUMATOLOGIE",null,"CHIRURGIE_SI_ORTOPEDIE_INFANTILA_PEDIATRICA__"]
["RECUPERARE_PEDIATRICA_DISTROFICI_"]
["RECUPERARE_TRAUMATOLOGICA_VERTEBROMEDULARA_SI_NEUROMOTORIE"]
["REUMATOLOGIE__",null,"RECUPERARE_MEDICINA_FIZICA_SI_BALNEOLOGIE__"]
["TBC_OSTEOARTICULAR"]
["TOXICOLOGIE__",null,"TOXICOLOGIE_COPII"]
["TOXICOMANIE_ELEVI_SI_STUDENTI"]
["TOXICOMANIE__",null,"TOXICOMANIE_COPII"]
["UPU",null,"TOATE_SPECIALITATILE"]
["UROLOGIE___",null,"ATI_______________","ENDOUROLOGIE","LITOTRITIE","TRANSPLANT_RENAL","UROLOGIE_COPII"]
["SUBSECTII:"]
["ALCOOLISM"]
["ALERGOLOGIE_SI_IMUNOLOGIE"]
["ALERGOLOGIE_SI_IMUNOLOGIE_"]
["ALERGOLOGIE_SI_IMUNOLOGIE_COPII"]
["ALERGOLOGIE_SI_IMUNOLOGIE__"]
["ALTE_SECTII_COPII"]
["ARSI"]
["ARSI_",null,"ATI________________"]
["ATI_"]
["ATI_ARSI"]
["ATI_CHIRURGIE_CARDIOVASCULARA"]
["ATI_CHIRURGIE_GENERALA"]
["ATI_CHIRURGIE_PLASTICA"]
["ATI_COPII"]
["ATI_COPII__"]
["ATI_NEUROCHIRURGIE"]
["ATI_NOU_NASCUTI_DIN_PEDIATRIE"]
["ATI_OBSTETRICA_GINECOLOGIE"]
["ATI_OFTALMOLOGIE"]
["ATI_ORL"]
["ATI_ORL_SI_OFTALMOLOGIE"]
["ATI_ORTOPEDIE_SI_TRAUMATOLOGIE"]
["ATI_POLITRAUMATISME"]
["ATI_TOXICOLOGIE"]
["ATI__"]
["ATI___"]
["ATI____"]
["ATI_____"]
["ATI______"]
["ATI_______"]
["ATI________"]
["ATI_________"]
["ATI__________"]
["ATI___________"]
["ATI____________"]
["ATI_____________"]
["ATI______________"]
["ATI_______________"]
["BOLI_INFECTIOASE_COPII"]
["BOLI_INFECTIOASE_COPII_HIV_SIDA"]
["BOLI_INFECTIOASE_SI_TROPICALE_COPII"]
["BOLI_PROFESIONALE_"]
["BOLI_PROFESIONALE__"]
["BOLNAVI_PSIHICI_CU_TBC_PULMONAR"]
["BOLNAVI_PSIHICI_CU_TBC_PULMONAR_COD_PENAL"]
["BOLNAVI_PSIHICI_CU_TBC_PULMONAR_COD_PENAL_"]
["CARDIOLOGIE_",null,"CRONICI________","TA___________"]
["CARDIOLOGIE_INTERVENTIONALA"]
["CARDIOLOGIE_PEDIATRICA",null,"TI_CORONARIENI_____"]
["CARDIOLOGIE__"]
["CHIRURGIE_ARTROSCOPICA"]
["CHIRURGIE_CARDIOVASCULARA_"]
["CHIRURGIE_CARDIOVASCULARA_COPII"]
["CHIRURGIE_ENDOSCOPICA"]
["CHIRURGIE_HEPATICA"]
["CHIRURGIE_LAPAROSCOPICA"]
["CHIRURGIE_LAPAROSCOPICA_GINECOLOGICA"]
["CHIRURGIE_MAXILO_FACIALA"]
["CHIRURGIE_MAXILO_FACIALA_COPII"]
["CHIRURGIE_MAXILO_FACIALA__"]
["CHIRURGIE_ONCOLOGICA"]
["CHIRURGIE_ONCOLOGICA_COPII"]
["CHIRURGIE_ORALA_SI_MAXILO_FACIALA"]
["CHIRURGIE_ORALA_SI_MAXILO_FACIALA_"]
["CHIRURGIE_ORALA_SI_MAXILO_FACIALA_COPII"]
["CHIRURGIE_ORALA_SI_MAXILO_FACIALA___"]
["CHIRURGIE_PEDIATRICA"]
["CHIRURGIE_PLASTICA_MICROCHIRURGIE_RECONSTRUCTIVA"]
["CHIRURGIE_PLASTICA_MICROCHIRURGIE_RECONSTRUCTIVA_"]
["CHIRURGIE_PLASTICA_MICROCHIRURGIE_RECONSTRUCTIVA__"]
["CHIRURGIE_PLASTICA_MICROCHIRURGIE_RECONSTRUCTIVA____"]
["CHIRURGIE_PLASTICA_SI_REPARATORIE_FACIALA"]
["CHIRURGIE_REPARATORIE_A_PICIORULUI_DIABETIC"]
["CHIRURGIE_SI_ORTOPEDIE_INFANTILA_PEDIATRICA"]
["CHIRURGIE_SI_ORTOPEDIE_INFANTILA_PEDIATRICA__"]
["CHIRURGIE_SPINALA"]
["CHIRURGIE_SPINALA_"]
["CHIRURGIE_TORACICA"]
["CHIRURGIE_TORACICA_"]
["CHIRURGIE_TORACICA_SI_ESOFAGIANA"]
["CHIRURGIE_TORACICA__"]
["CHIRURGIE_TORACICA___"]
["CHIRURGIE_VASCULARA"]
["COBALTOTERAPIE"]
["COD_PENAL"]
["COD_PENAL_"]
["COD_PENAL__"]
["CRONICI"]
["CRONICI_"]
["CRONICI_AFECTIUNI_PSIHOSOMATICE_"]
["CRONICI_TERAPIE_OCUPATIONALA_SI_REABILITARE"]
["CRONICI___"]
["CRONICI____"]
["CRONICI_____"]
["CRONICI______"]
["CRONICI_______"]
["CURA_TOXICODEPENDENTE"]
["CURIETERAPIE"]
["DEMENTA_SENILA_SI_BOALA_ALZHEIMER"]
["DERMATOVENEROLOGIE_"]
["DERMATOVENEROLOGIE_COPII"]
["DERMATOVENEROLOGIE__"]
["DERMATOVENEROLOGIE___"]
["DIABET_ZAHARAT_NUTRITIE_SI_BOLI_METABOLICE_"]
["DIABET_ZAHARAT_NUTRITIE_SI_BOLI_METABOLICE__"]
["DIABET_ZAHARAT_NUTRITIE_SI_BOLI_METABOLICE___"]
["DIALIZA_PERITONEALA_"]
["DIALIZA_PERITONEALA_COPII"]
["DIALIZA_PERITONEALA__"]
["DIALIZA_PERITONEALA___"]
["DIALIZA_PERITONEALA____"]
["ENDOCRINOLOGIE"]
["ENDOCRINOLOGIE_COPII"]
["ENDOCRINOLOGIE__"]
["ENDOCRINOLOGIE___"]
["ENDOUROLOGIE",null,"LITOTRITIE_"]
["FERTILIZARE_IN_VITRO"]
["FLEBOLOGIE"]
["GASTROENTEROLOGIE_",null,"TA____________"]
["GASTROENTEROLOGIE_COPII"]
["GASTROENTEROLOGIE__"]
["GENETICA_MEDICALA_"]
["GERIATRIE_SI_GERONTOLOGIE"]
["GERIATRIE_SI_GERONTOLOGIE__"]
["GINECOLOGIE"]
["GINECOLOGIE__"]
["GINECO_ONCOLOGIE"]
["GINECO_ONCOLOGIE_"]
["GINECO_ONCOLOGIE__"]
["GUSA_ENDEMICA_SI_COMPLICATIILE_EI"]
["HEMATOLOGIE_"]
["HEMATOLOGIE_COPII"]
["HEMATOLOGIE_ONCOLOGIE_",null,"TI_____________"]
["HEMATOLOGIE_THALASEMII"]
["HEMATOLOGIE__"]
["HEMATOLOGIE___"]
["HEMATOLOGIE____"]
["HEMODIALIZA_"]
["HEPATOLOGIE"]
["HIV_SIDA"]
["HIV_SIDA_"]
["HIV_SIDA_ADULTI_SI_COPII"]
["HIV_SIDA___"]
["IMPLANT_COHLEAR"]
["IMPLANT_COHLEAR_"]
["INFERTILITATE_SI_PATOLOGIE_GONADICA"]
["INGRIJIRI_PALIATIVE"]
["INGRIJIRI_PALIATIVE_"]
["INGRIJIRI_PALIATIVE___"]
["INTERNARI_NEVOLUNTARE"]
["LITOTRITIE"]
["MEDICINA_INTERNA"]
["MEDICINA_INTERNA_"]
["MEDICINA_INTERNA_CRONICI"]
["MEDICINA_INTERNA___"]
["MEDICINA_MATERNO_FETALA_"]
["MEDICINA_MATERNO_FETALA__",null,"DIAGNOSTIC_PRENATAL"]
["MEDICINA_NUCLEARA"]
["MICROCHIRURGIE_VASCULARA"]
["NASTERI_PRECIPITATE",null,"NEONATOLOGIE_____"]
["NEFROLOGIE",null,"DIALIZA_PERITONEALA_____"]
["NEFROLOGIE__"]
["NEONATOLOGIE_"]
["NEONATOLOGIE_DIN_SECTIILE_DE_PEDIATRIE"]
["NEONATOLOGIE_PATOLOGICA_DIN_SECTIILE_DE_PEDIATRIE"]
["NEONATOLOGIE__"]
["NEONATOLOGIE___",null,"PREMATURI___"]
["NEUROCHIRURGIE"]
["NEUROCHIRURGIE_"]
["NEUROCHIRURGIE_PEDIATRICA_COPII"]
["NEUROLOGIE"]
["NEUROLOGIE_PEDIATRICA_"]
["NEUROLOGIE_PEDIATRICA__"]
["NEUROPSIHIATRIE_INFANTILA_"]
["NEUROPSIHIATRIE_INFANTILA__"]
["NEVROZE"]
["OBSTETRICA_"]
["OBSTETRICA_GINECOLOGIE",null,"NEONATOLOGIE____"]
["OBSTETRICA_PATOLOGICA"]
["OBSTETRICA_PATOLOGICA__"]
["OFTALMOLOGIE"]
["OFTALMOLOGIE_"]
["OFTALMOLOGIE_COPII"]
["OFTALMOLOGIE__"]
["ONCOLOGIE_MEDICALA"]
["ONCOLOGIE_MEDICALA_"]
["ONCOLOGIE_PEDIATRICA_"]
["ORL"]
["ORL_"]
["ORL_COPII"]
["ORL__"]
["ORL___"]
["ORTOPEDIE_PEDIATRICA"]
["ORTOPEDIE_PEDIATRICA_"]
["ORTOPEDIE_PEDIATRICA___"]
["ORTOPEDIE_SI_TRAUMATOLOGIE"]
["ORTOPEDIE_SI_TRAUMATOLOGIE_PEDIATRICA"]
["PARAZITOLOGIE",null,"BOLI_PARAZITARE_COPII"]
["PARAZITOLOGIE_",null,"BOLI_PARAZITARE_COPII_"]
["PATOLOGIA_TIROIDEI_DE_CORELATIE"]
["PATOLOGIE_ENDOCRINO_METABOLICA"]
["PATOLOGIE_HIPOFIZARA_SI_NEUROENDOCRINA"]
["PATOLOGIE_STABILIZATA_SI_CRONICA"]
["PATOLOGIE_SUPRARENALA_SI_A_METABOLISMULUI_OSOS"]
["PENTRU_BOLNAVI_CU_MIASTENIA_GRAVIS"]
["PNEUMOLOGIE_COPII_DIN_SECTIILE_TBC"]
["PNEUMOLOGIE_DIN_SECTIILE_MEDICALE"]
["PNEUMOLOGIE_DIN_SECTIILE_MEDICALE_"]
["PNEUMOLOGIE_TBC"]
["PNEUMOLOGIE_TBC_ADULTI"]
["PNEUMOLOGIE_TBC_COPII"]
["PNEUMOLOGIE_TBC_COPII_"]
["PNEUMOLOGIE_TBC_COPII__"]
["PNEUMOLOGIE_TBC_CRONICI"]
["PNEUMOLOGIE_TBC_MDR_MULTIDROG_REZISTENTA"]
["POSTCURA_POLITOXICOMANIE_SI_ADICTII"]
["POSTCURA_TOXICOMANIE"]
["PREMATURI"]
["PREMATURI_"]
["PREMATURI_DIN_SECTIILE_DE_PEDIATRIE"]
["PSIHIATRIE_"]
["PSIHIATRIE_ACUTI"]
["PSIHIATRIE_ACUTI__"]
["PSIHIATRIE_CRONICI"]
["PSIHIATRIE_CRONICI_"]
["PSIHIATRIE_CRONICI__"]
["PSIHIATRIE_CRONICI____"]
["PSIHIATRIE_CRONICI_____"]
["PSIHIATRIE_CRONICI______"]
["PSIHIATRIE_DEMENTE"]
["PSIHIATRIE_PEDIATRICA"]
["PSIHIATRIE_PEDIATRICA_COPII"]
["PSIHIATRIE_PEDIATRICA_COPII__"]
["PSIHIATRIE__"]
["PSIHOGERIATRIE"]
["PSIHOGERIATRIE_"]
["RADIOPATOLOGIE"]
["RADIOPATOLOGIE_"]
["RADIOTERAPIE"]
["RECUPERARE_BOLI_CRDIOVASCULARE_"]
["RECUPERARE_BOLI_CRDIOVASCULARE__"]
["RECUPERARE_BOLI_RESPIRATORII"]
["RECUPERARE_CARDIOLOGIE"]
["RECUPERARE_CRONICI"]
["RECUPERARE_CRONICI_"]
["RECUPERARE_CRONICI__"]
["RECUPERARE_MEDICALA"]
["RECUPERARE_MEDICINA_FIZICA_SI_BALNEOLOGIE"]
["RECUPERARE_MEDICINA_FIZICA_SI_BALNEOLOGIE__"]
["RECUPERARE_NEUROLOGICA"]
["RECUPERARE_NEUROLOGICA__"]
["RECUPERARE_NEUROLOGICA___"]
["RECUPERARE_NEUROMOTORIE"]
["RECUPERARE_NEUROMOTORIE_"]
["RECUPERARE_NEUROMOTORIE_COPII_"]
["RECUPERARE_NEUROPSIHOMOTORIE"]
["RECUPERARE_NUTRITIONALA_SI_METABOLICA_A_SUGARULUI_SI_COPILULUI_MIC"]
["RECUPERARE_ORTOPEDIE_SI_TRAUMATOLOGIE_"]
["RECUPERARE_PEDIATRICA_DISTROFICI"]
["RECUPERARE_POSTTRAUMATICA"]
["RECUPERARE_POSTTRAUMATICA_"]
["REUMATOLOGIE"]
["REUMATOLOGIE_"]
["STERILITATE_INFERTILITATE"]
["TA"]
["TA_"]
["TA__"]
["TA___"]
["TA____"]
["TA_____"]
["TA______"]
["TA_______"]
["TA________"]
["TA_________"]
["TA__________"]
["TERAPIE_CU_IZOTOPI"]
["TERAPIE_OCUPATIONALA_SI_ERGOTERAPIE"]
["TI"]
["TI_"]
["TI_CORONARIENI"]
["TI_CORONARIENI_"]
["TI_CORONARIENI__",null,"TI_NEONATOLOGIE_DIN_SECTIILE_DE_PEDIATRIE"]
["TI_CORONARIENI___"]
["TI_CORONARIENI____"]
["TI_HEPATOLOGIE"]
["TI_NEONATOLOGIE"]
["TI_NEONATOLOGIE_"]
["TI__"]
["TI___"]
["TI____"]
["TI_____"]
["TI______"]
["TI_______"]
["TI________"]
["TI_________"]
["TI__________",null,"TI_NEONATOLOGIE__"]
["TI___________"]
["TI____________"]
["TOATE_SPECIALITATILE"]
["TOATE_SPECIALITATILE_"]
["TOXICOLOGIE"]
["TOXICOLOGIE_"]
["TOXICOLOGIE_COPII"]
["TOXICOMANIE"]
["TOXICOMANIE_"]
["TOXICOMANIE_COPII"]
["TOXICOMANIE_DEZINTOXICARE"]
["TRANSPLANT"]
["TRANSPLANT_HEPATIC"]
["TRANSPLANT_MEDULAR"]
["TRANSPLANT_MEDULAR_"]
["TRANSPLANT_MEDULAR_ADULTI_SI_COPII"]
["TRANSPLANT_RENAL",null,"ATI_________________"]
["TRATAMENTUL_INFERTILITATII_CUPLULUI_SI_REPRODUCERE_UMANA_ASISTATA",null,"FERTILIZARE_IN_VITRO_"]
["URGENTE_NEUROVASCULARE"]
["URGENTE_PSIHIATRICE"]
["UROLOGIE"]
["UROLOGIE_"]
["UROLOGIE_COPII"]
["UROLOGIE__"]
["SUBSECTII3:"]
["BOLI_PARAZITARE_COPII"]
["ATI________________"]
["ATI_________________"]
["BOLI_PARAZITARE_COPII_"]
["CRONICI________"]
["DIAGNOSTIC_PRENATAL"]
["DIALIZA_PERITONEALA_____"]
["FERTILIZARE_IN_VITRO_"]
["LITOTRITIE_"]
["NEONATOLOGIE____"]
["NEONATOLOGIE_____"]
["PREMATURI___"]
["TA___________"]
["TA____________"]
["TI_CORONARIENI_____"]
["TI_NEONATOLOGIE_DIN_SECTIILE_DE_PEDIATRIE"]
["TI_NEONATOLOGIE__"]
["TI_____________"]
["Alte_Nume:"]
["S_C",null,"Compartiment","Sectie"]
["S_C_CONSERVARE",null,"DA","NU"]
["Compartiment"]
["DA"]
["NU"]
["Sectie"]

{"sheet":"NumeUnice2012","index":7,"n_rows":499,"n_cols":7,"rows_kept":499,"cut":false,"hidden":true,"merged":[]}
["Nomenclator de nume folosite in selectiile de la miscare"]
[]
["Nume Unic:","Este Sectie?:","Este SubSectie?:","Este SubSectie3?:","Sectia de care apartine:","SubSectia de care apartine:","SubSectia3 de care apartine:"]
["ALCOOLISM","NU","DA","NU","PSIHIATRIE_ACUTI_","ALCOOLISM"]
["ALERGOLOGIE_SI_IMUNOLOGIE","DA","NU","NU","ALERGOLOGIE_SI_IMUNOLOGIE"]
["ALERGOLOGIE_SI_IMUNOLOGIE","NU","DA","NU","DERMATOVENEROLOGIE","ALERGOLOGIE_SI_IMUNOLOGIE"]
["ALERGOLOGIE_SI_IMUNOLOGIE_","NU","DA","NU","MEDICINA_INTERNA__","ALERGOLOGIE_SI_IMUNOLOGIE_"]
["ALERGOLOGIE_SI_IMUNOLOGIE_COPII","NU","DA","NU","ALERGOLOGIE_SI_IMUNOLOGIE","ALERGOLOGIE_SI_IMUNOLOGIE_COPII"]
["ALERGOLOGIE_SI_IMUNOLOGIE__","NU","DA","NU","PEDIATRIE","ALERGOLOGIE_SI_IMUNOLOGIE__"]
["ALTE_SECTII_COPII","NU","DA","NU","ALTE_SECŢII","ALTE_SECTII_COPII"]
["ALTE_SECŢII","DA","NU","NU","ALTE_SECŢII"]
["ARSI","NU","DA","NU","CHIRURGIE_GENERALA","ARSI"]
["ARSI_","NU","DA","NU","CHIRURGIE_PLASTICA_MICROCHIRURGIE_RECONSTRUCTIVA___","ARSI_"]
["ATI","DA","NU","NU","ATI"]
["ATI_","NU","DA","NU","CHIRURGIE_CARDIACA_SI_A_VASELOR_MARI","ATI_"]
["ATI_ARSI","NU","DA","NU","ATI","ATI_ARSI"]
["ATI_CHIRURGIE_CARDIOVASCULARA","NU","DA","NU","ATI","ATI_CHIRURGIE_CARDIOVASCULARA"]
["ATI_CHIRURGIE_GENERALA","NU","DA","NU","ATI","ATI_CHIRURGIE_GENERALA"]
["ATI_CHIRURGIE_PLASTICA","NU","DA","NU","ATI","ATI_CHIRURGIE_PLASTICA"]
["ATI_COPII","NU","DA","NU","ATI","ATI_COPII"]
["ATI_COPII_","DA","NU","NU","ATI_COPII_"]
["ATI_COPII__","NU","DA","NU","CHIRURGIE_CARDIOVASCULARA","ATI_COPII__"]
["ATI_NEUROCHIRURGIE","NU","DA","NU","ATI","ATI_NEUROCHIRURGIE"]
["ATI_NOU_NASCUTI_DIN_PEDIATRIE","NU","DA","NU","ATI","ATI_NOU_NASCUTI_DIN_PEDIATRIE"]
["ATI_OBSTETRICA_GINECOLOGIE","NU","DA","NU","ATI","ATI_OBSTETRICA_GINECOLOGIE"]
["ATI_OFTALMOLOGIE","NU","DA","NU","ATI","ATI_OFTALMOLOGIE"]
["ATI_ORL","NU","DA","NU","ATI","ATI_ORL"]
["ATI_ORL_SI_OFTALMOLOGIE","NU","DA","NU","ATI","ATI_ORL_SI_OFTALMOLOGIE"]
["ATI_ORTOPEDIE_SI_TRAUMATOLOGIE","NU","DA","NU","ATI","ATI_ORTOPEDIE_SI_TRAUMATOLOGIE"]
["ATI_POLITRAUMATISME","NU","DA","NU","ATI","ATI_POLITRAUMATISME"]
["ATI_TOXICOLOGIE","NU","DA","NU","ATI","ATI_TOXICOLOGIE"]
["ATI__","NU","DA","NU","CHIRURGIE_CARDIOVASCULARA","ATI__"]
["ATI___","NU","DA","NU","CHIRURGIE_ENDOCRINA","ATI___"]
["ATI____","NU","DA","NU","CHIRURGIE_GENERALA","ATI____"]
["ATI_____","NU","DA","NU","CHIRURGIE_ORALA_SI_MAXILO_FACIALA__","ATI_____"]
["ATI______","NU","DA","NU","CHIRURGIE_PEDIATRICA_","ATI______"]
["ATI_______","NU","DA","NU","CHIRURGIE_PLASTICA_MICROCHIRURGIE_RECONSTRUCTIVA___","ATI_______"]
["ATI________","NU","DA","NU","CHIRURGIE_TORACICA____","ATI________"]
["ATI_________","NU","DA","NU","CHIRURGIE_TORACICA_TBC","ATI_________"]
["ATI__________","NU","DA","NU","NEUROCHIRURGIE__","ATI__________"]
["ATI___________","NU","DA","NU","OBSTETRICA_GINECOLOGIE_","ATI___________"]
["ATI____________","NU","DA","NU","OFTALMOLOGIE___","ATI____________"]
["ATI_____________","NU","DA","NU","ORL____","ATI_____________"]
["ATI______________","NU","DA","NU","ORTOPEDIE_SI_TRAUMATOLOGIE_","ATI______________"]
["ATI_______________","NU","DA","NU","UROLOGIE___","ATI_______________"]
["ATI________________","NU","NU","DA","CHIRURGIE_PLASTICA_MICROCHIRURGIE_RECONSTRUCTIVA___","ARSI_","ATI________________"]
["ATI_________________","NU","NU","DA","UROLOGIE___","TRANSPLANT_RENAL","ATI_________________"]
["BOLI_CRONICE","DA","NU","NU","BOLI_CRONICE"]
["BOLI_INFECTIOASE_COPII","NU","DA","NU","BOLI_INFECŢIOASE","BOLI_INFECTIOASE_COPII"]
["BOLI_INFECTIOASE_COPII_","DA","NU","NU","BOLI_INFECTIOASE_COPII_"]
["BOLI_INFECTIOASE_COPII_HIV_SIDA","NU","DA","NU","BOLI_INFECTIOASE_HIV_SIDA","BOLI_INFECTIOASE_COPII_HIV_SIDA"]
["BOLI_INFECTIOASE_HIV_SIDA","DA","NU","NU","BOLI_INFECTIOASE_HIV_SIDA"]
["BOLI_INFECTIOASE_MAPN","DA","NU","NU","BOLI_INFECTIOASE_MAPN"]
["BOLI_INFECTIOASE_SI_TROPICALE","DA","NU","NU","BOLI_INFECTIOASE_SI_TROPICALE"]
["BOLI_INFECTIOASE_SI_TROPICALE_COPII","NU","DA","NU","BOLI_INFECTIOASE_SI_TROPICALE","BOLI_INFECTIOASE_SI_TROPICALE_COPII"]
["BOLI_INFECŢIOASE","DA","NU","NU","BOLI_INFECŢIOASE"]
["BOLI_PARAZITARE_COPII","NU","NU","DA","BOLI_INFECŢIOASE","PARAZITOLOGIE","BOLI_PARAZITARE_COPII"]
["BOLI_PARAZITARE_COPII_","NU","NU","DA","DERMATOVENEROLOGIE","PARAZITOLOGIE_","BOLI_PARAZITARE_COPII_"]
["BOLI_PROFESIONALE","DA","NU","NU","BOLI_PROFESIONALE"]
["BOLI_PROFESIONALE_","NU","DA","NU","MEDICINA_INTERNA__","BOLI_PROFESIONALE_"]
["BOLI_PROFESIONALE__","NU","DA","NU","MEDICINA_INTERNA_CRONICI_","BOLI_PROFESIONALE__"]
["BOLNAVI_PSIHICI_CU_TBC_PULMONAR","NU","DA","NU","PSIHIATRIE_CRONICI___","BOLNAVI_PSIHICI_CU_TBC_PULMONAR"]
["BOLNAVI_PSIHICI_CU_TBC_PULMONAR_","DA","NU","NU","BOLNAVI_PSIHICI_CU_TBC_PULMONAR_"]
["BOLNAVI_PSIHICI_CU_TBC_PULMONAR_COD_PENAL","NU","DA","NU","PSIHIATRIE","BOLNAVI_PSIHICI_CU_TBC_PULMONAR_COD_PENAL"]
["BOLNAVI_PSIHICI_CU_TBC_PULMONAR_COD_PENAL_","NU","DA","NU","PSIHIATRIE_CRONICI___","BOLNAVI_PSIHICI_CU_TBC_PULMONAR_COD_PENAL_"]
["BOLNAVI_PSIHICI_CU_TBC_PULMONAR_COD_PENAL__","DA","NU","NU","BOLNAVI_PSIHICI_CU_TBC_PULMONAR_COD_PENAL__"]
["CARDIOLOGIE","DA","NU","NU","CARDIOLOGIE"]
["CARDIOLOGIE_","NU","DA","NU","MEDICINA_INTERNA__","CARDIOLOGIE_"]
["CARDIOLOGIE_INTERVENTIONALA","NU","DA","NU","CARDIOLOGIE","CARDIOLOGIE_INTERVENTIONALA"]
["CARDIOLOGIE_INTERVENTIONALA_","DA","NU","NU","CARDIOLOGIE_INTERVENTIONALA_"]
["CARDIOLOGIE_PATOLOGIE_STABILIZATA_SI_CRONICA","DA","NU","NU","CARDIOLOGIE_PATOLOGIE_STABILIZATA_SI_CRONICA"]
["CARDIOLOGIE_PEDIATRICA","NU","DA","NU","CARDIOLOGIE","CARDIOLOGIE_PEDIATRICA"]
["CARDIOLOGIE_PEDIATRICA_","DA","NU","NU","CARDIOLOGIE_PEDIATRICA_"]
["CARDIOLOGIE_PENTRU_DIABETICI","DA","NU","NU","CARDIOLOGIE_PENTRU_DIABETICI"]
["CARDIOLOGIE__","NU","DA","NU","PEDIATRIE","CARDIOLOGIE__"]
["CG","DA","NU","NU","CG"]
["CHIRURGIE_ARTROSCOPICA","NU","DA","NU","ORTOPEDIE_SI_TRAUMATOLOGIE_","CHIRURGIE_ARTROSCOPICA"]
["CHIRURGIE_CARDIACA_SI_A_VASELOR_MARI","DA","NU","NU","CHIRURGIE_CARDIACA_SI_A_VASELOR_MARI"]
["CHIRURGIE_CARDIOVASCULARA","DA","NU","NU","CHIRURGIE_CARDIOVASCULARA"]
["CHIRURGIE_CARDIOVASCULARA_","NU","DA","NU","CHIRURGIE_PEDIATRICA_","CHIRURGIE_CARDIOVASCULARA_"]
["CHIRURGIE_CARDIOVASCULARA_ADULTI_SI_COPII","DA","NU","NU","CHIRURGIE_CARDIOVASCULARA_ADULTI_SI_COPII"]
["CHIRURGIE_CARDIOVASCULARA_COPII","NU","DA","NU","CHIRURGIE_CARDIOVASCULARA","CHIRURGIE_CARDIOVASCULARA_COPII"]
["CHIRURGIE_ENDOCRINA","DA","NU","NU","CHIRURGIE_ENDOCRINA"]
["CHIRURGIE_ENDOSCOPICA","NU","DA","NU","CHIRURGIE_GENERALA","CHIRURGIE_ENDOSCOPICA"]
["CHIRURGIE_GENERALA","DA","NU","NU","CHIRURGIE_GENERALA"]
["CHIRURGIE_GENERALA_CHIRURGIE_ONCOLOGICA","DA","NU","NU","CHIRURGIE_GENERALA_CHIRURGIE_ONCOLOGICA"]
["CHIRURGIE_HEPATICA","NU","DA","NU","CHIRURGIE_GENERALA","CHIRURGIE_HEPATICA"]
["CHIRURGIE_LAPAROSCOPICA","NU","DA","NU","CHIRURGIE_GENERALA","CHIRURGIE_LAPAROSCOPICA"]
["CHIRURGIE_LAPAROSCOPICA_","DA","NU","NU","CHIRURGIE_LAPAROSCOPICA_"]
["CHIRURGIE_LAPAROSCOPICA_GINECOLOGICA","NU","DA","NU","GINECOLOGIE_","CHIRURGIE_LAPAROSCOPICA_GINECOLOGICA"]
["CHIRURGIE_MAXILO_FACIALA","NU","DA","NU","CHIRURGIE_GENERALA","CHIRURGIE_MAXILO_FACIALA"]
["CHIRURGIE_MAXILO_FACIALA_","DA","NU","NU","CHIRURGIE_MAXILO_FACIALA_"]
["CHIRURGIE_MAXILO_FACIALA_COPII","NU","DA","NU","CHIRURGIE_MAXILO_FACIALA_","CHIRURGIE_MAXILO_FACIALA_COPII"]
["CHIRURGIE_MAXILO_FACIALA__","NU","DA","NU","ORL____","CHIRURGIE_MAXILO_FACIALA__"]
["CHIRURGIE_ONCOLOGICA","NU","DA","NU","CHIRURGIE_GENERALA","CHIRURGIE_ONCOLOGICA"]
["CHIRURGIE_ONCOLOGICA_","DA","NU","NU","CHIRURGIE_ONCOLOGICA_"]
["CHIRURGIE_ONCOLOGICA_COPII","NU","DA","NU","CHIRURGIE_ONCOLOGICA_","CHIRURGIE_ONCOLOGICA_COPII"]
["CHIRURGIE_ONCOLOGICA_ORL_CHIRURGIE_CERVICO_FACIALA_SI_ONCOLOGIE_LARINGIANA","DA","NU","NU","CHIRURGIE_ONCOLOGICA_ORL_CHIRURGIE_CERVICO_FACIALA_SI_ONCOLOGIE_LARINGIANA"]
["CHIRURGIE_ORALA_SI_MAXILO_FACIALA","NU","DA","NU","CHIRURGIE_GENERALA","CHIRURGIE_ORALA_SI_MAXILO_FACIALA"]
["CHIRURGIE_ORALA_SI_MAXILO_FACIALA_","NU","DA","NU","CHIRURGIE_ONCOLOGICA_","CHIRURGIE_ORALA_SI_MAXILO_FACIALA_"]
["CHIRURGIE_ORALA_SI_MAXILO_FACIALA_COPII","NU","DA","NU","CHIRURGIE_ORALA_SI_MAXILO_FACIALA__","CHIRURGIE_ORALA_SI_MAXILO_FACIALA_COPII"]
["CHIRURGIE_ORALA_SI_MAXILO_FACIALA__","DA","NU","NU","CHIRURGIE_ORALA_SI_MAXILO_FACIALA__"]
["CHIRURGIE_ORALA_SI_MAXILO_FACIALA___","NU","DA","NU","ORL____","CHIRURGIE_ORALA_SI_MAXILO_FACIALA___"]
["CHIRURGIE_PEDIATRICA","NU","DA","NU","CHIRURGIE_GENERALA","CHIRURGIE_PEDIATRICA"]
["CHIRURGIE_PEDIATRICA_","DA","NU","NU","CHIRURGIE_PEDIATRICA_"]
["CHIRURGIE_PLASTICA_MICROCHIRURGIE_RECONSTRUCTIVA","NU","DA","NU","CHIRURGIE_GENERALA","CHIRURGIE_PLASTICA_MICROCHIRURGIE_RECONSTRUCTIVA"]
["CHIRURGIE_PLASTICA_MICROCHIRURGIE_RECONSTRUCTIVA_","NU","DA","NU","CHIRURGIE_ONCOLOGICA_","CHIRURGIE_PLASTICA_MICROCHIRURGIE_RECONSTRUCTIVA_"]
["CHIRURGIE_PLASTICA_MICROCHIRURGIE_RECONSTRUCTIVA_ARSI","DA","NU","NU","CHIRURGIE_PLASTICA_MICROCHIRURGIE_RECONSTRUCTIVA_ARSI"]
["CHIRURGIE_PLASTICA_MICROCHIRURGIE_RECONSTRUCTIVA_COPII","DA","NU","NU","CHIRURGIE_PLASTICA_MICROCHIRURGIE_RECONSTRUCTIVA_COPII"]
["CHIRURGIE_PLASTICA_MICROCHIRURGIE_RECONSTRUCTIVA__","NU","DA","NU","CHIRURGIE_ORALA_SI_MAXILO_FACIALA__","CHIRURGIE_PLASTICA_MICROCHIRURGIE_RECONSTRUCTIVA__"]
["CHIRURGIE_PLASTICA_MICROCHIRURGIE_RECONSTRUCTIVA___","DA","NU","NU","CHIRURGIE_PLASTICA_MICROCHIRURGIE_RECONSTRUCTIVA___"]
["CHIRURGIE_PLASTICA_MICROCHIRURGIE_RECONSTRUCTIVA____","NU","DA","NU","CHIRURGIE_SI_ORTOPEDIE_INFANTILA_PEDIATRICA_","CHIRURGIE_PLASTICA_MICROCHIRURGIE_RECONSTRUCTIVA____"]
["CHIRURGIE_PLASTICA_SI_REPARATORIE_FACIALA","NU","DA","NU","CHIRURGIE_ORALA_SI_MAXILO_FACIALA__","CHIRURGIE_PLASTICA_SI_REPARATORIE_FACIALA"]
["CHIRURGIE_REPARATORIE_A_PICIORULUI_DIABETIC","NU","DA","NU","CHIRURGIE_GENERALA","CHIRURGIE_REPARATORIE_A_PICIORULUI_DIABETIC"]
["CHIRURGIE_SI_ORTOPEDIE_INFANTILA_PEDIATRICA","NU","DA","NU","CHIRURGIE_GENERALA","CHIRURGIE_SI_ORTOPEDIE_INFANTILA_PEDIATRICA"]
["CHIRURGIE_SI_ORTOPEDIE_INFANTILA_PEDIATRICA_","DA","NU","NU","CHIRURGIE_SI_ORTOPEDIE_INFANTILA_PEDIATRICA_"]
["CHIRURGIE_SI_ORTOPEDIE_INFANTILA_PEDIATRICA__","NU","DA","NU","RECUPERARE_ORTOPEDIE_SI_TRAUMATOLOGIE","CHIRURGIE_SI_ORTOPEDIE_INFANTILA_PEDIATRICA__"]
["CHIRURGIE_SPINALA","NU","DA","NU","NEUROCHIRURGIE__","CHIRURGIE_SPINALA"]
["CHIRURGIE_SPINALA_","NU","DA","NU","ORTOPEDIE_SI_TRAUMATOLOGIE_","CHIRURGIE_SPINALA_"]
["CHIRURGIE_TORACICA","NU","DA","NU","CHIRURGIE_CARDIOVASCULARA","CHIRURGIE_TORACICA"]
["CHIRURGIE_TORACICA_","NU","DA","NU","CHIRURGIE_GENERALA","CHIRURGIE_TORACICA_"]
["CHIRURGIE_TORACICA_SI_ESOFAGIANA","NU","DA","NU","CHIRURGIE_GENERALA","CHIRURGIE_TORACICA_SI_ESOFAGIANA"]
["CHIRURGIE_TORACICA_TBC","DA","NU","NU","CHIRURGIE_TORACICA_TBC"]
["CHIRURGIE_TORACICA__","NU","DA","NU","CHIRURGIE_GENERALA_CHIRURGIE_ONCOLOGICA","CHIRURGIE_TORACICA__"]
["CHIRURGIE_TORACICA___","NU","DA","NU","CHIRURGIE_ONCOLOGICA_","CHIRURGIE_TORACICA___"]
["CHIRURGIE_TORACICA____","DA","NU","NU","CHIRURGIE_TORACICA____"]
["CHIRURGIE_VASCULARA","NU","DA","NU","CHIRURGIE_GENERALA","CHIRURGIE_VASCULARA"]
["CHIRURGIE_VASCULARA_","DA","NU","NU","CHIRURGIE_VASCULARA_"]
["COBALTOTERAPIE","NU","DA","NU","RADIOTERAPIE_","COBALTOTERAPIE"]
["COD_PENAL","NU","DA","NU","PSIHIATRIE","COD_PENAL"]
["COD_PENAL_","NU","DA","NU","PSIHIATRIE_DROGODEPENDENTA","COD_PENAL_"]
["COD_PENAL__","NU","DA","NU","PSIHIATRIE_ACUTI_","COD_PENAL__"]
["CPU","DA","NU","NU","CPU"]
["CRONICI","NU","DA","NU","CHIRURGIE_GENERALA","CRONICI"]
["CRONICI_","NU","DA","NU","CHIRURGIE_TORACICA____","CRONICI_"]
["CRONICI_AFECTIUNI_PSIHOSOMATICE","DA","NU","NU","CRONICI_AFECTIUNI_PSIHOSOMATICE"]
["CRONICI_AFECTIUNI_PSIHOSOMATICE_","NU","DA","NU","PSIHIATRIE_CRONICI___","CRONICI_AFECTIUNI_PSIHOSOMATICE_"]
["CRONICI_TERAPIE_IZOTOPICA","DA","NU","NU","CRONICI_TERAPIE_IZOTOPICA"]
["CRONICI_TERAPIE_OCUPATIONALA_SI_REABILITARE","NU","DA","NU","PSIHIATRIE","CRONICI_TERAPIE_OCUPATIONALA_SI_REABILITARE"]
["CRONICI__","DA","NU","NU","CRONICI__"]
["CRONICI___","NU","DA","NU","MEDICINA_INTERNA__","CRONICI___"]
["CRONICI____","NU","DA","NU","NEUROCHIRURGIE__","CRONICI____"]
["CRONICI_____","NU","DA","NU","NEUROLOGIE_","CRONICI_____"]
["CRONICI______","NU","DA","NU","PEDIATRIE","CRONICI______"]
["CRONICI_______","NU","DA","NU","RADIOTERAPIE_","CRONICI_______"]
["CRONICI________","NU","NU","DA","MEDICINA_INTERNA__","CARDIOLOGIE_","CRONICI________"]
["CURA_TOXICODEPENDENTE","NU","DA","NU","PSIHIATRIE_ACUTI_","CURA_TOXICODEPENDENTE"]
["CURIETERAPIE","NU","DA","NU","RADIOTERAPIE_","CURIETERAPIE"]
["DEMENTA_SENILA_SI_BOALA_ALZHEIMER","NU","DA","NU","PSIHIATRIE_CRONICI___","DEMENTA_SENILA_SI_BOALA_ALZHEIMER"]
["DERMATOVENEROLOGIE","DA","NU","NU","DERMATOVENEROLOGIE"]
["DERMATOVENEROLOGIE_","NU","DA","NU","DIABET_ZAHARAT_NUTRITIE_SI_BOLI_METABOLICE","DERMATOVENEROLOGIE_"]
["DERMATOVENEROLOGIE_COPII","NU","DA","NU","DERMATOVENEROLOGIE","DERMATOVENEROLOGIE_COPII"]
["DERMATOVENEROLOGIE_COPII_","DA","NU","NU","DERMATOVENEROLOGIE_COPII_"]
["DERMATOVENEROLOGIE__","NU","DA","NU","MEDICINA_INTERNA__","DERMATOVENEROLOGIE__"]
["DERMATOVENEROLOGIE___","NU","DA","NU","PEDIATRIE","DERMATOVENEROLOGIE___"]
["DIABET_ZAHARAT_NUTRITIE_SI_BOLI_METABOLICE","DA","NU","NU","DIABET_ZAHARAT_NUTRITIE_SI_BOLI_METABOLICE"]
["DIABET_ZAHARAT_NUTRITIE_SI_BOLI_METABOLICE_","NU","DA","NU","ENDOCRINOLOGIE_","DIABET_ZAHARAT_NUTRITIE_SI_BOLI_METABOLICE_"]
["DIABET_ZAHARAT_NUTRITIE_SI_BOLI_METABOLICE__","NU","DA","NU","MEDICINA_INTERNA__","DIABET_ZAHARAT_NUTRITIE_SI_BOLI_METABOLICE__"]
["DIABET_ZAHARAT_NUTRITIE_SI_BOLI_METABOLICE___","NU","DA","NU","PEDIATRIE","DIABET_ZAHARAT_NUTRITIE_SI_BOLI_METABOLICE___"]
["DIAGNOSTIC_PRENATAL","NU","NU","DA","OBSTETRICA_GINECOLOGIE_","MEDICINA_MATERNO_FETALA__","DIAGNOSTIC_PRENATAL"]
["DIALIZA_PERITONEALA","DA","NU","NU","DIALIZA_PERITONEALA"]
["DIALIZA_PERITONEALA_","NU","DA","NU","MEDICINA_INTERNA__","DIALIZA_PERITONEALA_"]
["DIALIZA_PERITONEALA_COPII","NU","DA","NU","PEDIATRIE_NEFROLOGIE","DIALIZA_PERITONEALA_COPII"]
["DIALIZA_PERITONEALA__","NU","DA","NU","NEFROLOGIE_","DIALIZA_PERITONEALA__"]
["DIALIZA_PERITONEALA___","NU","DA","NU","NEFROLOGIE_PENTRU_DIABETICI","DIALIZA_PERITONEALA___"]
["DIALIZA_PERITONEALA____","NU","DA","NU","PEDIATRIE","DIALIZA_PERITONEALA____"]
["DIALIZA_PERITONEALA_____","NU","NU","DA","MEDICINA_INTERNA__","NEFROLOGIE","DIALIZA_PERITONEALA_____"]
["ENDOCRINOLOGIE","NU","DA","NU","DIABET_ZAHARAT_NUTRITIE_SI_BOLI_METABOLICE","ENDOCRINOLOGIE"]
["ENDOCRINOLOGIE_","DA","NU","NU","ENDOCRINOLOGIE_"]
["ENDOCRINOLOGIE_COPII","NU","DA","NU","ENDOCRINOLOGIE_","ENDOCRINOLOGIE_COPII"]
["ENDOCRINOLOGIE_COPII_","DA","NU","NU","ENDOCRINOLOGIE_COPII_"]
["ENDOCRINOLOGIE__","NU","DA","NU","MEDICINA_INTERNA__","ENDOCRINOLOGIE__"]
["ENDOCRINOLOGIE___","NU","DA","NU","PEDIATRIE","ENDOCRINOLOGIE___"]
["ENDOUROLOGIE","NU","DA","NU","UROLOGIE___","ENDOUROLOGIE"]
["FERTILIZARE_IN_VITRO","NU","DA","NU","OBSTETRICA_GINECOLOGIE_","FERTILIZARE_IN_VITRO"]
["FERTILIZARE_IN_VITRO_","NU","NU","DA","OBSTETRICA_GINECOLOGIE_","TRATAMENTUL_INFERTILITATII_CUPLULUI_SI_REPRODUCERE_UMANA_ASISTATA","FERTILIZARE_IN_VITRO_"]
["FLEBOLOGIE","NU","DA","NU","CHIRURGIE_GENERALA","FLEBOLOGIE"]
["GASTROENTEROLOGIE","DA","NU","NU","GASTROENTEROLOGIE"]
["GASTROENTEROLOGIE_","NU","DA","NU","MEDICINA_INTERNA__","GASTROENTEROLOGIE_"]
["GASTROENTEROLOGIE_COPII","NU","DA","NU","GASTROENTEROLOGIE","GASTROENTEROLOGIE_COPII"]
["GASTROENTEROLOGIE_HEPATOLOGIE","DA","NU","NU","GASTROENTEROLOGIE_HEPATOLOGIE"]
["GASTROENTEROLOGIE__","NU","DA","NU","PEDIATRIE","GASTROENTEROLOGIE__"]
["GENETICA_MEDICALA","DA","NU","NU","GENETICA_MEDICALA"]
["GENETICA_MEDICALA_","NU","DA","NU","PEDIATRIE","GENETICA_MEDICALA_"]
["GERIATRIE_SI_GERONTOLOGIE","NU","DA","NU","CRONICI__","GERIATRIE_SI_GERONTOLOGIE"]
["GERIATRIE_SI_GERONTOLOGIE_","DA","NU","NU","GERIATRIE_SI_GERONTOLOGIE_"]
["GERIATRIE_SI_GERONTOLOGIE__","NU","DA","NU","MEDICINA_INTERNA__","GERIATRIE_SI_GERONTOLOGIE__"]
["GINECOLOGIE","NU","DA","NU","CHIRURGIE_ONCOLOGICA_","GINECOLOGIE"]
["GINECOLOGIE_","DA","NU","NU","GINECOLOGIE_"]
["GINECOLOGIE_INFANTILA","DA","NU","NU","GINECOLOGIE_INFANTILA"]
["GINECOLOGIE__","NU","DA","NU","OBSTETRICA_GINECOLOGIE_","GINECOLOGIE__"]
["GINECO_ONCOLOGIE","NU","DA","NU","CHIRURGIE_ONCOLOGICA_","GINECO_ONCOLOGIE"]
["GINECO_ONCOLOGIE_","NU","DA","NU","GINECOLOGIE_","GINECO_ONCOLOGIE_"]
["GINECO_ONCOLOGIE__","NU","DA","NU","OBSTETRICA_GINECOLOGIE_","GINECO_ONCOLOGIE__"]
["GUSA_ENDEMICA_SI_COMPLICATIILE_EI","NU","DA","NU","ENDOCRINOLOGIE_","GUSA_ENDEMICA_SI_COMPLICATIILE_EI"]
["HEMATOLOGIE","DA","NU","NU","HEMATOLOGIE"]
["HEMATOLOGIE_","NU","DA","NU","MEDICINA_INTERNA__","HEMATOLOGIE_"]
["HEMATOLOGIE_COPII","NU","DA","NU","HEMATOLOGIE","HEMATOLOGIE_COPII"]
["HEMATOLOGIE_HEMOFILIE","DA","NU","NU","HEMATOLOGIE_HEMOFILIE"]
["HEMATOLOGIE_ONCOLOGIE","DA","NU","NU","HEMATOLOGIE_ONCOLOGIE"]
["HEMATOLOGIE_ONCOLOGIE_","NU","DA","NU","PEDIATRIE","HEMATOLOGIE_ONCOLOGIE_"]
["HEMATOLOGIE_ONCOLOGIE_PEDIATRICA","DA","NU","NU","HEMATOLOGIE_ONCOLOGIE_PEDIATRICA"]
["HEMATOLOGIE_THALASEMII","NU","DA","NU","PEDIATRIE","HEMATOLOGIE_THALASEMII"]
["HEMATOLOGIE__","NU","DA","NU","ONCOLOGIE_MEDICALA__","HEMATOLOGIE__"]
["HEMATOLOGIE___","NU","DA","NU","ONCOLOGIE_PEDIATRICA","HEMATOLOGIE___"]
["HEMATOLOGIE____","NU","DA","NU","PEDIATRIE","HEMATOLOGIE____"]
["HEMODIALIZA","DA","NU","NU","HEMODIALIZA"]
["HEMODIALIZA_","NU","DA","NU","NEFROLOGIE_","HEMODIALIZA_"]
["HEPATOLOGIE","NU","DA","NU","GASTROENTEROLOGIE","HEPATOLOGIE"]
["HIV_SIDA","NU","DA","NU","BOLI_INFECŢIOASE","HIV_SIDA"]
["HIV_SIDA_","NU","DA","NU","BOLI_INFECTIOASE_COPII_","HIV_SIDA_"]
["HIV_SIDA_ADULTI_SI_COPII","NU","DA","NU","BOLI_INFECTIOASE_COPII_","HIV_SIDA_ADULTI_SI_COPII"]
["HIV_SIDA_ADULTI_SI_COPII_","DA","NU","NU","HIV_SIDA_ADULTI_SI_COPII_"]
["HIV_SIDA_COPII","DA","NU","NU","HIV_SIDA_COPII"]
["HIV_SIDA__","DA","NU","NU","HIV_SIDA__"]
["HIV_SIDA___","NU","DA","NU","PEDIATRIE","HIV_SIDA___"]
["IMPLANT_COHLEAR","NU","DA","NU","ORL_MICROCHIRURGIE_OTOLOGICA","IMPLANT_COHLEAR"]
["IMPLANT_COHLEAR_","NU","DA","NU","ORL____","IMPLANT_COHLEAR_"]
["INFERTILITATE_SI_PATOLOGIE_GONADICA","NU","DA","NU","ENDOCRINOLOGIE_","INFERTILITATE_SI_PATOLOGIE_GONADICA"]
["INGRIJIRI_PALIATIVE","NU","DA","NU","BOLI_CRONICE","INGRIJIRI_PALIATIVE"]
["INGRIJIRI_PALIATIVE_","NU","DA","NU","BOLI_INFECŢIOASE","INGRIJIRI_PALIATIVE_"]
["INGRIJIRI_PALIATIVE__","DA","NU","NU","INGRIJIRI_PALIATIVE__"]
["INGRIJIRI_PALIATIVE___","NU","DA","NU","ONCOLOGIE_MEDICALA__","INGRIJIRI_PALIATIVE___"]
["INTERNARI_NEVOLUNTARE","NU","DA","NU","PSIHIATRIE","INTERNARI_NEVOLUNTARE"]
["LITOTRITIE","NU","DA","NU","UROLOGIE___","LITOTRITIE"]
["LITOTRITIE_","NU","NU","DA","UROLOGIE___","ENDOUROLOGIE","LITOTRITIE_"]
["MEDICINA_GENERALA","DA","NU","NU","MEDICINA_GENERALA"]
["MEDICINA_INTERNA","NU","DA","NU","DIABET_ZAHARAT_NUTRITIE_SI_BOLI_METABOLICE","MEDICINA_INTERNA"]
["MEDICINA_INTERNA_","NU","DA","NU","GASTROENTEROLOGIE","MEDICINA_INTERNA_"]
["MEDICINA_INTERNA_CRONICI","NU","DA","NU","MEDICINA_INTERNA__","MEDICINA_INTERNA_CRONICI"]
["MEDICINA_INTERNA_CRONICI_","DA","NU","NU","MEDICINA_INTERNA_CRONICI_"]
["MEDICINA_INTERNA__","DA","NU","NU","MEDICINA_INTERNA__"]
["MEDICINA_INTERNA___","NU","DA","NU","NEFROLOGIE_","MEDICINA_INTERNA___"]
["MEDICINA_MATERNO_FETALA","DA","NU","NU","MEDICINA_MATERNO_FETALA"]
["MEDICINA_MATERNO_FETALA_","NU","DA","NU","OBSTETRICA","MEDICINA_MATERNO_FETALA_"]
["MEDICINA_MATERNO_FETALA__","NU","DA","NU","OBSTETRICA_GINECOLOGIE_","MEDICINA_MATERNO_FETALA__"]
["MEDICINA_NUCLEARA","NU","DA","NU","RADIOTERAPIE_","MEDICINA_NUCLEARA"]
["MICROCHIRURGIE_VASCULARA","NU","DA","NU","CHIRURGIE_VASCULARA_","MICROCHIRURGIE_VASCULARA"]
["NASTERI_PRECIPITATE","NU","DA","NU","OBSTETRICA_GINECOLOGIE_","NASTERI_PRECIPITATE"]
["NEFROLOGIE","NU","DA","NU","MEDICINA_INTERNA__","NEFROLOGIE"]
["NEFROLOGIE_","DA","NU","NU","NEFROLOGIE_"]
["NEFROLOGIE_PEDIATRICA","DA","NU","NU","NEFROLOGIE_PEDIATRICA"]
["NEFROLOGIE_PENTRU_DIABETICI","DA","NU","NU","NEFROLOGIE_PENTRU_DIABETICI"]
["NEFROLOGIE__","NU","DA","NU","PEDIATRIE","NEFROLOGIE__"]
["NEONATOLOGIE","DA","NU","NU","NEONATOLOGIE"]
["NEONATOLOGIE_","NU","DA","NU","OBSTETRICA_FIZIOLOGICA","NEONATOLOGIE_"]
["NEONATOLOGIE_DIN_SECTIILE_DE_PEDIATRIE","NU","DA","NU","PEDIATRIE","NEONATOLOGIE_DIN_SECTIILE_DE_PEDIATRIE"]
["NEONATOLOGIE_PATOLOGICA_DIN_SECTIILE_DE_PEDIATRIE","NU","DA","NU","PEDIATRIE","NEONATOLOGIE_PATOLOGICA_DIN_SECTIILE_DE_PEDIATRIE"]
["NEONATOLOGIE_PREMATURI","DA","NU","NU","NEONATOLOGIE_PREMATURI"]
["NEONATOLOGIE__","NU","DA","NU","OBSTETRICA_GINECOLOGIE_NASTERI_PRECIPITATE","NEONATOLOGIE__"]
["NEONATOLOGIE___","NU","DA","NU","OBSTETRICA_GINECOLOGIE_","NEONATOLOGIE___"]
["NEONATOLOGIE____","NU","NU","DA","CHIRURGIE_GENERALA","OBSTETRICA_GINECOLOGIE","NEONATOLOGIE____"]
["NEONATOLOGIE_____","NU","NU","DA","OBSTETRICA_GINECOLOGIE_","NASTERI_PRECIPITATE","NEONATOLOGIE_____"]
["NEUROCHIRURGIE","NU","DA","NU","CHIRURGIE_GENERALA","NEUROCHIRURGIE"]
["NEUROCHIRURGIE_","NU","DA","NU","CHIRURGIE_PEDIATRICA_","NEUROCHIRURGIE_"]
["NEUROCHIRURGIE_PEDIATRICA_COPII","NU","DA","NU","NEUROCHIRURGIE__","NEUROCHIRURGIE_PEDIATRICA_COPII"]
["NEUROCHIRURGIE_STEREOTACTICA_SI_FUNCTIONALA","DA","NU","NU","NEUROCHIRURGIE_STEREOTACTICA_SI_FUNCTIONALA"]
["NEUROCHIRURGIE__","DA","NU","NU","NEUROCHIRURGIE__"]
["NEUROLOGIE","NU","DA","NU","MEDICINA_INTERNA__","NEUROLOGIE"]
["NEUROLOGIE_","DA","NU","NU","NEUROLOGIE_"]
["NEUROLOGIE_CRONICI","DA","NU","NU","NEUROLOGIE_CRONICI"]
["NEUROLOGIE_PEDIATRICA","DA","NU","NU","NEUROLOGIE_PEDIATRICA"]
["NEUROLOGIE_PEDIATRICA_","NU","DA","NU","PEDIATRIE","NEUROLOGIE_PEDIATRICA_"]
["NEUROLOGIE_PEDIATRICA__","NU","DA","NU","PSIHIATRIE_PEDIATRICA_COPII_","NEUROLOGIE_PEDIATRICA__"]
["NEUROLOGIE_SI_PSIHIATRIE","DA","NU","NU","NEUROLOGIE_SI_PSIHIATRIE"]
["NEUROPSIHIATRIE_ADULTI","DA","NU","NU","NEUROPSIHIATRIE_ADULTI"]
["NEUROPSIHIATRIE_INFANTILA","DA","NU","NU","NEUROPSIHIATRIE_INFANTILA"]
["NEUROPSIHIATRIE_INFANTILA_","NU","DA","NU","PEDIATRIE","NEUROPSIHIATRIE_INFANTILA_"]
["NEUROPSIHIATRIE_INFANTILA__","NU","DA","NU","PSIHIATRIE_ACUTI_","NEUROPSIHIATRIE_INFANTILA__"]
["NEVROZE","NU","DA","NU","PSIHIATRIE","NEVROZE"]
["OBSTETRICA","DA","NU","NU","OBSTETRICA"]
["OBSTETRICA_","NU","DA","NU","OBSTETRICA_GINECOLOGIE_","OBSTETRICA_"]
["OBSTETRICA_FIZIOLOGICA","DA","NU","NU","OBSTETRICA_FIZIOLOGICA"]
["OBSTETRICA_GINECOLOGIE","NU","DA","NU","CHIRURGIE_GENERALA","OBSTETRICA_GINECOLOGIE"]
["OBSTETRICA_GINECOLOGIE_","DA","NU","NU","OBSTETRICA_GINECOLOGIE_"]
["OBSTETRICA_GINECOLOGIE_GRAVIDE_CU_RISC","DA","NU","NU","OBSTETRICA_GINECOLOGIE_GRAVIDE_CU_RISC"]
["OBSTETRICA_GINECOLOGIE_NASTERI_PRECIPITATE","DA","NU","NU","OBSTETRICA_GINECOLOGIE_NASTERI_PRECIPITATE"]
["OBSTETRICA_GINECOLOGIE_PATOLOGICA","DA","NU","NU","OBSTETRICA_GINECOLOGIE_PATOLOGICA"]
["OBSTETRICA_PATOLOGICA","NU","DA","NU","OBSTETRICA","OBSTETRICA_PATOLOGICA"]
["OBSTETRICA_PATOLOGICA_","DA","NU","NU","OBSTETRICA_PATOLOGICA_"]
["OBSTETRICA_PATOLOGICA__","NU","DA","NU","OBSTETRICA_GINECOLOGIE_","OBSTETRICA_PATOLOGICA__"]
["OFTALMOLOGIE","NU","DA","NU","CHIRURGIE_GENERALA","OFTALMOLOGIE"]
["OFTALMOLOGIE_","NU","DA","NU","CHIRURGIE_PEDIATRICA_","OFTALMOLOGIE_"]
["OFTALMOLOGIE_COPII","NU","DA","NU","OFTALMOLOGIE___","OFTALMOLOGIE_COPII"]
["OFTALMOLOGIE__","NU","DA","NU","CHIRURGIE_SI_ORTOPEDIE_INFANTILA_PEDIATRICA_","OFTALMOLOGIE__"]
["OFTALMOLOGIE___","DA","NU","NU","OFTALMOLOGIE___"]
["ONCOLOGIE_MEDICALA","NU","DA","NU","GASTROENTEROLOGIE_HEPATOLOGIE","ONCOLOGIE_MEDICALA"]
["ONCOLOGIE_MEDICALA_","NU","DA","NU","MEDICINA_INTERNA__","ONCOLOGIE_MEDICALA_"]
["ONCOLOGIE_MEDICALA_INGRIJIRI_PALIATIVE","DA","NU","NU","ONCOLOGIE_MEDICALA_INGRIJIRI_PALIATIVE"]
["ONCOLOGIE_MEDICALA__","DA","NU","NU","ONCOLOGIE_MEDICALA__"]
["ONCOLOGIE_PEDIATRICA","DA","NU","NU","ONCOLOGIE_PEDIATRICA"]
["ONCOLOGIE_PEDIATRICA_","NU","DA","NU","PEDIATRIE","ONCOLOGIE_PEDIATRICA_"]
["ONCOLOGIE_TERAPIE_CU_IZOTOPI","DA","NU","NU","ONCOLOGIE_TERAPIE_CU_IZOTOPI"]
["ORL","NU","DA","NU","CHIRURGIE_GENERALA","ORL"]
["ORL_","NU","DA","NU","CHIRURGIE_ORALA_SI_MAXILO_FACIALA__","ORL_"]
["ORL_CHIRURGIE_AUDIOLOGICA_SI_RINOLOGICA","DA","NU","NU","ORL_CHIRURGIE_AUDIOLOGICA_SI_RINOLOGICA"]
["ORL_COPII","NU","DA","NU","ORL____","ORL_COPII"]
["ORL_MICROCHIRURGIE_ORL_SI_FONIATRIE_RECUPERAREA_VOCII","DA","NU","NU","ORL_MICROCHIRURGIE_ORL_SI_FONIATRIE_RECUPERAREA_VOCII"]
["ORL_MICROCHIRURGIE_OTOLOGICA","DA","NU","NU","ORL_MICROCHIRURGIE_OTOLOGICA"]
["ORL__","NU","DA","NU","CHIRURGIE_PEDIATRICA_","ORL__"]
["ORL___","NU","DA","NU","CHIRURGIE_SI_ORTOPEDIE_INFANTILA_PEDIATRICA_","ORL___"]
["ORL____","DA","NU","NU","ORL____"]
["ORTOPEDIE_PEDIATRICA","NU","DA","NU","CHIRURGIE_PEDIATRICA_","ORTOPEDIE_PEDIATRICA"]
["ORTOPEDIE_PEDIATRICA_","NU","DA","NU","CHIRURGIE_SI_ORTOPEDIE_INFANTILA_PEDIATRICA_","ORTOPEDIE_PEDIATRICA_"]
["ORTOPEDIE_PEDIATRICA__","DA","NU","NU","ORTOPEDIE_PEDIATRICA__"]
["ORTOPEDIE_PEDIATRICA___","NU","DA","NU","ORTOPEDIE_SI_TRAUMATOLOGIE_","ORTOPEDIE_PEDIATRICA___"]
["ORTOPEDIE_SI_TRAUMATOLOGIE","NU","DA","NU","CHIRURGIE_GENERALA","ORTOPEDIE_SI_TRAUMATOLOGIE"]
["ORTOPEDIE_SI_TRAUMATOLOGIE_","DA","NU","NU","ORTOPEDIE_SI_TRAUMATOLOGIE_"]
["ORTOPEDIE_SI_TRAUMATOLOGIE_PEDIATRICA","NU","DA","NU","ORTOPEDIE_SI_TRAUMATOLOGIE_","ORTOPEDIE_SI_TRAUMATOLOGIE_PEDIATRICA"]
["PARAZITOLOGIE","NU","DA","NU","BOLI_INFECŢIOASE","PARAZITOLOGIE"]
["PARAZITOLOGIE_","NU","DA","NU","DERMATOVENEROLOGIE","PARAZITOLOGIE_"]
["PATOLOGIA_TIROIDEI_DE_CORELATIE","NU","DA","NU","ENDOCRINOLOGIE_","PATOLOGIA_TIROIDEI_DE_CORELATIE"]
["PATOLOGIE_ENDOCRINO_METABOLICA","NU","DA","NU","ENDOCRINOLOGIE_","PATOLOGIE_ENDOCRINO_METABOLICA"]
["PATOLOGIE_HIPOFIZARA_SI_NEUROENDOCRINA","NU","DA","NU","ENDOCRINOLOGIE_","PATOLOGIE_HIPOFIZARA_SI_NEUROENDOCRINA"]
["PATOLOGIE_STABILIZATA_SI_CRONICA","NU","DA","NU","CARDIOLOGIE","PATOLOGIE_STABILIZATA_SI_CRONICA"]
["PATOLOGIE_SUPRARENALA_SI_A_METABOLISMULUI_OSOS","NU","DA","NU","ENDOCRINOLOGIE_","PATOLOGIE_SUPRARENALA_SI_A_METABOLISMULUI_OSOS"]
["PATURI_CARE_FUNCTIONEAZA_IN_RURAL","DA","NU","NU","PATURI_CARE_FUNCTIONEAZA_IN_RURAL"]
["PATURI_CARE_FUNCTIONEAZA_IN_URBAN","DA","NU","NU","PATURI_CARE_FUNCTIONEAZA_IN_URBAN"]
["PATURI_INCHISE_TEMPORAR","DA","NU","NU","PATURI_INCHISE_TEMPORAR"]
["PATURI_IN_CONSERVARE","DA","NU","NU","PATURI_IN_CONSERVARE"]
["PEDIATRIE","DA","NU","NU","PEDIATRIE"]
["PEDIATRIE_CRONICI","DA","NU","NU","PEDIATRIE_CRONICI"]
["PEDIATRIE_NEFROLOGIE","DA","NU","NU","PEDIATRIE_NEFROLOGIE"]
["PEDIATRIE_RECUPERARE_PEDIATRICA","DA","NU","NU","PEDIATRIE_RECUPERARE_PEDIATRICA"]
["PENTRU_BOLNAVI_CU_MIASTENIA_GRAVIS","NU","DA","NU","NEUROLOGIE_","PENTRU_BOLNAVI_CU_MIASTENIA_GRAVIS"]
["PNEUMOLOGIE_COPII_DIN_SECTIILE_TBC","NU","DA","NU","PNEUMOLOGIE_DIN_SECTIILE_TBC","PNEUMOLOGIE_COPII_DIN_SECTIILE_TBC"]
["PNEUMOLOGIE_COPII_DIN_SECTIILE_TBC_","DA","NU","NU","PNEUMOLOGIE_COPII_DIN_SECTIILE_TBC_"]
["PNEUMOLOGIE_DIN_SECTIILE_MEDICALE","NU","DA","NU","MEDICINA_INTERNA__","PNEUMOLOGIE_DIN_SECTIILE_MEDICALE"]
["PNEUMOLOGIE_DIN_SECTIILE_MEDICALE_","NU","DA","NU","PEDIATRIE","PNEUMOLOGIE_DIN_SECTIILE_MEDICALE_"]
["PNEUMOLOGIE_DIN_SECTIILE_MEDICALE__","DA","NU","NU","PNEUMOLOGIE_DIN_SECTIILE_MEDICALE__"]
["PNEUMOLOGIE_DIN_SECTIILE_TBC","DA","NU","NU","PNEUMOLOGIE_DIN_SECTIILE_TBC"]
["PNEUMOLOGIE_TBC","NU","DA","NU","PNEUMOLOGIE_DIN_SECTIILE_TBC","PNEUMOLOGIE_TBC"]
["PNEUMOLOGIE_TBC_","DA","NU","NU","PNEUMOLOGIE_TBC_"]
["PNEUMOLOGIE_TBC_ADULTI","NU","DA","NU","PNEUMOLOGIE_DIN_SECTIILE_TBC","PNEUMOLOGIE_TBC_ADULTI"]
["PNEUMOLOGIE_TBC_COPII","NU","DA","NU","PNEUMOLOGIE_DIN_SECTIILE_TBC","PNEUMOLOGIE_TBC_COPII"]
["PNEUMOLOGIE_TBC_COPII_","NU","DA","NU","PNEUMOLOGIE_COPII_DIN_SECTIILE_TBC_","PNEUMOLOGIE_TBC_COPII_"]
["PNEUMOLOGIE_TBC_COPII__","NU","DA","NU","PNEUMOLOGIE_TBC_","PNEUMOLOGIE_TBC_COPII__"]
["PNEUMOLOGIE_TBC_COPII___","DA","NU","NU","PNEUMOLOGIE_TBC_COPII___"]
["PNEUMOLOGIE_TBC_CRONICI","NU","DA","NU","PNEUMOLOGIE_DIN_SECTIILE_TBC","PNEUMOLOGIE_TBC_CRONICI"]
["PNEUMOLOGIE_TBC_CRONICI_","DA","NU","NU","PNEUMOLOGIE_TBC_CRONICI_"]
["PNEUMOLOGIE_TBC_MDR_MULTIDROG_REZISTENTA","NU","DA","NU","PNEUMOLOGIE_DIN_SECTIILE_TBC","PNEUMOLOGIE_TBC_MDR_MULTIDROG_REZISTENTA"]
["PNEUMOLOGIE_TBC_MDR_MULTIDROG_REZISTENTA_","DA","NU","NU","PNEUMOLOGIE_TBC_MDR_MULTIDROG_REZISTENTA_"]
["POSTCURA_POLITOXICOMANIE_SI_ADICTII","NU","DA","NU","PSIHIATRIE","POSTCURA_POLITOXICOMANIE_SI_ADICTII"]
["POSTCURA_TOXICOMANIE","NU","DA","NU","PSIHIATRIE","POSTCURA_TOXICOMANIE"]
["PREMATURI","NU","DA","NU","NEONATOLOGIE","PREMATURI"]
["PREMATURI_","NU","DA","NU","OBSTETRICA_GINECOLOGIE_","PREMATURI_"]
["PREMATURI_DIN_SECTIILE_DE_PEDIATRIE","NU","DA","NU","PEDIATRIE","PREMATURI_DIN_SECTIILE_DE_PEDIATRIE"]
["PREMATURI__","DA","NU","NU","PREMATURI__"]
["PREMATURI___","NU","NU","DA","OBSTETRICA_GINECOLOGIE_","NEONATOLOGIE___","PREMATURI___"]
["PSIHIATRIE","DA","NU","NU","PSIHIATRIE"]
["PSIHIATRIE_","NU","DA","NU","PSIHIATRIE_ACUTI_","PSIHIATRIE_"]
["PSIHIATRIE_ACUTI","NU","DA","NU","PSIHIATRIE","PSIHIATRIE_ACUTI"]
["PSIHIATRIE_ACUTI_","DA","NU","NU","PSIHIATRIE_ACUTI_"]
["PSIHIATRIE_ACUTI__","NU","DA","NU","PSIHIATRIE_CRONICI___","PSIHIATRIE_ACUTI__"]
["PSIHIATRIE_CRONICI","NU","DA","NU","PSIHIATRIE","PSIHIATRIE_CRONICI"]
["PSIHIATRIE_CRONICI_","NU","DA","NU","PSIHIATRIE_PEDIATRICA_COPII_","PSIHIATRIE_CRONICI_"]
["PSIHIATRIE_CRONICI_COPII","DA","NU","NU","PSIHIATRIE_CRONICI_COPII"]
["PSIHIATRIE_CRONICI__","NU","DA","NU","PSIHIATRIE_ACUTI_","PSIHIATRIE_CRONICI__"]
["PSIHIATRIE_CRONICI___","DA","NU","NU","PSIHIATRIE_CRONICI___"]
["PSIHIATRIE_CRONICI____","NU","DA","NU","PSIHIATRIE_GERONTOPSIHIATRIE","PSIHIATRIE_CRONICI____"]
["PSIHIATRIE_CRONICI_____","NU","DA","NU","PSIHIATRIE_PSIHOZE","PSIHIATRIE_CRONICI_____"]
["PSIHIATRIE_CRONICI______","NU","DA","NU","PSIHIATRIE_PSIHOSOMATICA","PSIHIATRIE_CRONICI______"]
["PSIHIATRIE_DEMENTE","NU","DA","NU","PSIHIATRIE_CRONICI___","PSIHIATRIE_DEMENTE"]
["PSIHIATRIE_DROGODEPENDENTA","DA","NU","NU","PSIHIATRIE_DROGODEPENDENTA"]
["PSIHIATRIE_GERONTOPSIHIATRIE","DA","NU","NU","PSIHIATRIE_GERONTOPSIHIATRIE"]
["PSIHIATRIE_PEDIATRICA","NU","DA","NU","PEDIATRIE","PSIHIATRIE_PEDIATRICA"]
["PSIHIATRIE_PEDIATRICA_COPII","NU","DA","NU","PSIHIATRIE","PSIHIATRIE_PEDIATRICA_COPII"]
["PSIHIATRIE_PEDIATRICA_COPII_","DA","NU","NU","PSIHIATRIE_PEDIATRICA_COPII_"]
["PSIHIATRIE_PEDIATRICA_COPII__","NU","DA","NU","PSIHIATRIE_CRONICI___","PSIHIATRIE_PEDIATRICA_COPII__"]
["PSIHIATRIE_PSIHOSOMATICA","DA","NU","NU","PSIHIATRIE_PSIHOSOMATICA"]
["PSIHIATRIE_PSIHOZE","DA","NU","NU","PSIHIATRIE_PSIHOZE"]
["PSIHIATRIE_TOXICOMANIE","DA","NU","NU","PSIHIATRIE_TOXICOMANIE"]
["PSIHIATRIE__","NU","DA","NU","PSIHIATRIE_CRONICI___","PSIHIATRIE__"]
["PSIHOGERIATRIE","NU","DA","NU","GERIATRIE_SI_GERONTOLOGIE_","PSIHOGERIATRIE"]
["PSIHOGERIATRIE_","NU","DA","NU","PSIHIATRIE","PSIHOGERIATRIE_"]
["PSIHOGERIATRIE__","DA","NU","NU","PSIHOGERIATRIE__"]
["RADIOPATOLOGIE","NU","DA","NU","BOLI_PROFESIONALE","RADIOPATOLOGIE"]
["RADIOPATOLOGIE_","NU","DA","NU","RADIOTERAPIE_M_AP_N","RADIOPATOLOGIE_"]
["RADIOTERAPIE","NU","DA","NU","ONCOLOGIE_MEDICALA__","RADIOTERAPIE"]
["RADIOTERAPIE_","DA","NU","NU","RADIOTERAPIE_"]
["RADIOTERAPIE_M_AP_N","DA","NU","NU","RADIOTERAPIE_M_AP_N"]
["RECUPERARE_BOLI_CRDIOVASCULARE","DA","NU","NU","RECUPERARE_BOLI_CRDIOVASCULARE"]
["RECUPERARE_BOLI_CRDIOVASCULARE_","NU","DA","NU","RECUPERARE_MEDICINA_FIZICA_SI_BALNEOLOGIE_","RECUPERARE_BOLI_CRDIOVASCULARE_"]
["RECUPERARE_BOLI_CRDIOVASCULARE__","NU","DA","NU","RECUPERARE_MEDICINA_FIZICA_SI_BALNEOLOGIE_","RECUPERARE_BOLI_CRDIOVASCULARE__"]
["RECUPERARE_BOLI_RESPIRATORII","NU","DA","NU","RECUPERARE_MEDICINA_FIZICA_SI_BALNEOLOGIE_","RECUPERARE_BOLI_RESPIRATORII"]
["RECUPERARE_CARDIOLOGIE","NU","DA","NU","CARDIOLOGIE","RECUPERARE_CARDIOLOGIE"]
["RECUPERARE_CARDIOLOGIE_COPII","DA","NU","NU","RECUPERARE_CARDIOLOGIE_COPII"]
["RECUPERARE_CRONICI","NU","DA","NU","NEUROLOGIE_","RECUPERARE_CRONICI"]
["RECUPERARE_CRONICI_","NU","DA","NU","ORTOPEDIE_SI_TRAUMATOLOGIE_","RECUPERARE_CRONICI_"]
["RECUPERARE_CRONICI__","NU","DA","NU","PSIHIATRIE","RECUPERARE_CRONICI__"]
["RECUPERARE_MEDICALA","NU","DA","NU","ORTOPEDIE_SI_TRAUMATOLOGIE_","RECUPERARE_MEDICALA"]
["RECUPERARE_MEDICALA_","DA","NU","NU","RECUPERARE_MEDICALA_"]
["RECUPERARE_MEDICALA_CARDIOVASCULARA","DA","NU","NU","RECUPERARE_MEDICALA_CARDIOVASCULARA"]
["RECUPERARE_MEDICALA_CRONICI_DIABET_SI_HEMOFILIE","DA","NU","NU","RECUPERARE_MEDICALA_CRONICI_DIABET_SI_HEMOFILIE"]
["RECUPERARE_MEDICALA_NEUROPSIHOMOTORIE_COPII","DA","NU","NU","RECUPERARE_MEDICALA_NEUROPSIHOMOTORIE_COPII"]
["RECUPERARE_MEDICALA_ORTOPEDIE_SI_TRAUMATOLOGIE","DA","NU","NU","RECUPERARE_MEDICALA_ORTOPEDIE_SI_TRAUMATOLOGIE"]
["RECUPERARE_MEDICALA_RESPIRATORIE","DA","NU","NU","RECUPERARE_MEDICALA_RESPIRATORIE"]
["RECUPERARE_MEDICINA_FIZICA_SI_BALNEOLOGIE","NU","DA","NU","MEDICINA_INTERNA__","RECUPERARE_MEDICINA_FIZICA_SI_BALNEOLOGIE"]
["RECUPERARE_MEDICINA_FIZICA_SI_BALNEOLOGIE_","DA","NU","NU","RECUPERARE_MEDICINA_FIZICA_SI_BALNEOLOGIE_"]
["RECUPERARE_MEDICINA_FIZICA_SI_BALNEOLOGIE_COPII","DA","NU","NU","RECUPERARE_MEDICINA_FIZICA_SI_BALNEOLOGIE_COPII"]
["RECUPERARE_MEDICINA_FIZICA_SI_BALNEOLOGIE__","NU","DA","NU","REUMATOLOGIE__","RECUPERARE_MEDICINA_FIZICA_SI_BALNEOLOGIE__"]
["RECUPERARE_NEUROLOGICA","NU","DA","NU","NEUROLOGIE_","RECUPERARE_NEUROLOGICA"]
["RECUPERARE_NEUROLOGICA","DA","NU","NU","RECUPERARE_NEUROLOGICA"]
["RECUPERARE_NEUROLOGICA_","DA","NU","NU","RECUPERARE_NEUROLOGICA_"]
["RECUPERARE_NEUROLOGICA_COPII","DA","NU","NU","RECUPERARE_NEUROLOGICA_COPII"]
["RECUPERARE_NEUROLOGICA_CRONICI","DA","NU","NU","RECUPERARE_NEUROLOGICA_CRONICI"]
["RECUPERARE_NEUROLOGICA__","NU","DA","NU","RECUPERARE_MEDICINA_FIZICA_SI_BALNEOLOGIE_","RECUPERARE_NEUROLOGICA__"]
["RECUPERARE_NEUROLOGICA___","NU","DA","NU","RECUPERARE_MEDICINA_FIZICA_SI_BALNEOLOGIE_","RECUPERARE_NEUROLOGICA___"]
["RECUPERARE_NEUROMOTORIE","NU","DA","NU","NEUROLOGIE_","RECUPERARE_NEUROMOTORIE"]
["RECUPERARE_NEUROMOTORIE_","NU","DA","NU","PEDIATRIE","RECUPERARE_NEUROMOTORIE_"]
["RECUPERARE_NEUROMOTORIE_COPII","DA","NU","NU","RECUPERARE_NEUROMOTORIE_COPII"]
["RECUPERARE_NEUROMOTORIE_COPII_","NU","DA","NU","RECUPERARE_MEDICINA_FIZICA_SI_BALNEOLOGIE_","RECUPERARE_NEUROMOTORIE_COPII_"]
["RECUPERARE_NEUROMOTORIE__","DA","NU","NU","RECUPERARE_NEUROMOTORIE__"]
["RECUPERARE_NEUROMUSCULARA","DA","NU","NU","RECUPERARE_NEUROMUSCULARA"]
["RECUPERARE_NEUROPSIHOMOTORIE","NU","DA","NU","NEUROLOGIE_PEDIATRICA","RECUPERARE_NEUROPSIHOMOTORIE"]
["RECUPERARE_NEUROPSIHOMOTORIE_","DA","NU","NU","RECUPERARE_NEUROPSIHOMOTORIE_"]
["RECUPERARE_NEUROPSIHOMOTORIE_COPII","DA","NU","NU","RECUPERARE_NEUROPSIHOMOTORIE_COPII"]
["RECUPERARE_NEUROPSIHOMOTORIE_SI_POSTTRAUMATICA_COPII","DA","NU","NU","RECUPERARE_NEUROPSIHOMOTORIE_SI_POSTTRAUMATICA_COPII"]
["RECUPERARE_NUTRITIONALA_SI_METABOLICA_A_SUGARULUI_SI_COPILULUI_MIC","NU","DA","NU","PEDIATRIE","RECUPERARE_NUTRITIONALA_SI_METABOLICA_A_SUGARULUI_SI_COPILULUI_MIC"]
["RECUPERARE_ORL_COPII_CU_HANDICAP_AUZ_VORBIRE_CIUBOTICA_CUCULUI","DA","NU","NU","RECUPERARE_ORL_COPII_CU_HANDICAP_AUZ_VORBIRE_CIUBOTICA_CUCULUI"]
["RECUPERARE_ORTOPEDIE_SI_TRAUMATOLOGIE","DA","NU","NU","RECUPERARE_ORTOPEDIE_SI_TRAUMATOLOGIE"]
["RECUPERARE_ORTOPEDIE_SI_TRAUMATOLOGIE_","NU","DA","NU","RECUPERARE_MEDICINA_FIZICA_SI_BALNEOLOGIE_","RECUPERARE_ORTOPEDIE_SI_TRAUMATOLOGIE_"]
["RECUPERARE_PEDIATRICA_DISTROFICI","NU","DA","NU","PEDIATRIE","RECUPERARE_PEDIATRICA_DISTROFICI"]
["RECUPERARE_PEDIATRICA_DISTROFICI_","DA","NU","NU","RECUPERARE_PEDIATRICA_DISTROFICI_"]
["RECUPERARE_POSTTRAUMATICA","NU","DA","NU","ORTOPEDIE_SI_TRAUMATOLOGIE_","RECUPERARE_POSTTRAUMATICA"]
["RECUPERARE_POSTTRAUMATICA_","NU","DA","NU","RECUPERARE_MEDICINA_FIZICA_SI_BALNEOLOGIE_","RECUPERARE_POSTTRAUMATICA_"]
["RECUPERARE_TRAUMATOLOGICA_VERTEBROMEDULARA_SI_NEUROMOTORIE","DA","NU","NU","RECUPERARE_TRAUMATOLOGICA_VERTEBROMEDULARA_SI_NEUROMOTORIE"]
["REUMATOLOGIE","NU","DA","NU","MEDICINA_INTERNA__","REUMATOLOGIE"]
["REUMATOLOGIE_","NU","DA","NU","RECUPERARE_MEDICINA_FIZICA_SI_BALNEOLOGIE_","REUMATOLOGIE_"]
["REUMATOLOGIE__","DA","NU","NU","REUMATOLOGIE__"]
["STERILITATE_INFERTILITATE","NU","DA","NU","OBSTETRICA_PATOLOGICA_","STERILITATE_INFERTILITATE"]
["TA","NU","DA","NU","BOLI_INFECŢIOASE","TA"]
["TA_","NU","DA","NU","BOLI_INFECTIOASE_COPII_","TA_"]
["TA__","NU","DA","NU","DIABET_ZAHARAT_NUTRITIE_SI_BOLI_METABOLICE","TA__"]
["TA___","NU","DA","NU","GASTROENTEROLOGIE","TA___"]
["TA____","NU","DA","NU","MEDICINA_INTERNA__","TA____"]
["TA_____","NU","DA","NU","NEFROLOGIE_","TA_____"]
["TA______","NU","DA","NU","NEONATOLOGIE","TA______"]
["TA_______","NU","DA","NU","NEUROLOGIE_","TA_______"]
["TA________","NU","DA","NU","NEUROLOGIE_PEDIATRICA","TA________"]
["TA_________","NU","DA","NU","PEDIATRIE","TA_________"]
["TA__________","NU","DA","NU","PNEUMOLOGIE_DIN_SECTIILE_TBC","TA__________"]
["TA___________","NU","NU","DA","MEDICINA_INTERNA__","CARDIOLOGIE_","TA___________"]
["TA____________","NU","NU","DA","MEDICINA_INTERNA__","GASTROENTEROLOGIE_","TA____________"]
["TBC_OSTEOARTICULAR","DA","NU","NU","TBC_OSTEOARTICULAR"]
["TERAPIE_CU_IZOTOPI","NU","DA","NU","RADIOTERAPIE_","TERAPIE_CU_IZOTOPI"]
["TERAPIE_OCUPATIONALA_SI_ERGOTERAPIE","NU","DA","NU","PSIHIATRIE_CRONICI___","TERAPIE_OCUPATIONALA_SI_ERGOTERAPIE"]
["TI","NU","DA","NU","BOLI_INFECŢIOASE","TI"]
["TI_","NU","DA","NU","BOLI_INFECTIOASE_COPII_","TI_"]
["TI_CORONARIENI","NU","DA","NU","ATI","TI_CORONARIENI"]
["TI_CORONARIENI_","NU","DA","NU","CARDIOLOGIE","TI_CORONARIENI_"]
["TI_CORONARIENI__","NU","DA","NU","CARDIOLOGIE_PEDIATRICA_","TI_CORONARIENI__"]
["TI_CORONARIENI___","NU","DA","NU","MEDICINA_INTERNA__","TI_CORONARIENI___"]
["TI_CORONARIENI____","NU","DA","NU","RECUPERARE_BOLI_CRDIOVASCULARE","TI_CORONARIENI____"]
["TI_CORONARIENI_____","NU","NU","DA","CARDIOLOGIE","CARDIOLOGIE_PEDIATRICA","TI_CORONARIENI_____"]
["TI_HEPATOLOGIE","NU","DA","NU","ATI","TI_HEPATOLOGIE"]
["TI_NEONATOLOGIE","NU","DA","NU","ATI","TI_NEONATOLOGIE"]
["TI_NEONATOLOGIE_","NU","DA","NU","OBSTETRICA_GINECOLOGIE_","TI_NEONATOLOGIE_"]
["TI_NEONATOLOGIE_DIN_SECTIILE_DE_PEDIATRIE","NU","NU","DA","CARDIOLOGIE_PEDIATRICA_","TI_CORONARIENI__","TI_NEONATOLOGIE_DIN_SECTIILE_DE_PEDIATRIE"]
["TI_NEONATOLOGIE__","NU","NU","DA","PEDIATRIE","TI__________","TI_NEONATOLOGIE__"]
["TI__","NU","DA","NU","BOLI_INFECTIOASE_SI_TROPICALE","TI__"]
["TI___","NU","DA","NU","CARDIOLOGIE","TI___"]
["TI____","NU","DA","NU","CHIRURGIE_PLASTICA_MICROCHIRURGIE_RECONSTRUCTIVA___","TI____"]
["TI_____","NU","DA","NU","MEDICINA_INTERNA__","TI_____"]
["TI______","NU","DA","NU","NEFROLOGIE_","TI______"]
["TI_______","NU","DA","NU","NEONATOLOGIE","TI_______"]
["TI________","NU","DA","NU","NEONATOLOGIE_PREMATURI","TI________"]
["TI_________","NU","DA","NU","NEUROLOGIE_","TI_________"]
["TI__________","NU","DA","NU","PEDIATRIE","TI__________"]
["TI___________","NU","DA","NU","PNEUMOLOGIE_DIN_SECTIILE_TBC","TI___________"]
["TI____________","NU","DA","NU","RECUPERARE_NEUROPSIHOMOTORIE_COPII","TI____________"]
["TI_____________","NU","NU","DA","PEDIATRIE","HEMATOLOGIE_ONCOLOGIE_","TI_____________"]
["TOATE_SPECIALITATILE","NU","DA","NU","UPU","TOATE_SPECIALITATILE"]
["TOATE_SPECIALITATILE_","NU","DA","NU","CG","TOATE_SPECIALITATILE_"]
["TOXICOLOGIE","NU","DA","NU","NEFROLOGIE_","TOXICOLOGIE"]
["TOXICOLOGIE_","NU","DA","NU","PEDIATRIE","TOXICOLOGIE_"]
["TOXICOLOGIE_COPII","NU","DA","NU","TOXICOLOGIE__","TOXICOLOGIE_COPII"]
["TOXICOLOGIE__","DA","NU","NU","TOXICOLOGIE__"]
["TOXICOMANIE","NU","DA","NU","PSIHIATRIE_DROGODEPENDENTA","TOXICOMANIE"]
["TOXICOMANIE_","NU","DA","NU","PSIHIATRIE_ACUTI_","TOXICOMANIE_"]
["TOXICOMANIE_COPII","NU","DA","NU","TOXICOMANIE__","TOXICOMANIE_COPII"]
["TOXICOMANIE_DEZINTOXICARE","NU","DA","NU","PSIHIATRIE_PEDIATRICA_COPII_","TOXICOMANIE_DEZINTOXICARE"]
["TOXICOMANIE_ELEVI_SI_STUDENTI","DA","NU","NU","TOXICOMANIE_ELEVI_SI_STUDENTI"]
["TOXICOMANIE__","DA","NU","NU","TOXICOMANIE__"]
["TRANSPLANT","NU","DA","NU","CHIRURGIE_CARDIOVASCULARA","TRANSPLANT"]
["TRANSPLANT_HEPATIC","NU","DA","NU","CHIRURGIE_GENERALA","TRANSPLANT_HEPATIC"]
["TRANSPLANT_MEDULAR","NU","DA","NU","HEMATOLOGIE","TRANSPLANT_MEDULAR"]
["TRANSPLANT_MEDULAR_","NU","DA","NU","PEDIATRIE","TRANSPLANT_MEDULAR_"]
["TRANSPLANT_MEDULAR_ADULTI_SI_COPII","NU","DA","NU","HEMATOLOGIE","TRANSPLANT_MEDULAR_ADULTI_SI_COPII"]
["TRANSPLANT_RENAL","NU","DA","NU","UROLOGIE___","TRANSPLANT_RENAL"]
["TRATAMENTUL_INFERTILITATII_CUPLULUI_SI_REPRODUCERE_UMANA_ASISTATA","NU","DA","NU","OBSTETRICA_GINECOLOGIE_","TRATAMENTUL_INFERTILITATII_CUPLULUI_SI_REPRODUCERE_UMANA_ASISTATA"]
["UPU","DA","NU","NU","UPU"]
["URGENTE_NEUROVASCULARE","NU","DA","NU","NEUROLOGIE_","URGENTE_NEUROVASCULARE"]
["URGENTE_PSIHIATRICE","NU","DA","NU","PSIHIATRIE_ACUTI_","URGENTE_PSIHIATRICE"]
["UROLOGIE","NU","DA","NU","CHIRURGIE_GENERALA","UROLOGIE"]
["UROLOGIE_","NU","DA","NU","CHIRURGIE_ONCOLOGICA_","UROLOGIE_"]
["UROLOGIE_COPII","NU","DA","NU","UROLOGIE___","UROLOGIE_COPII"]
["UROLOGIE__","NU","DA","NU","CHIRURGIE_PEDIATRICA_","UROLOGIE__"]
["UROLOGIE___","DA","NU","NU","UROLOGIE___"]

{"sheet":"Copac2012","index":8,"n_rows":496,"n_cols":5,"rows_kept":496,"cut":false,"hidden":true,"merged":[]}
["SPECIALITATI ALE SECTIILOR MEDICALE"]
["****************         1",2,3,4,"NOTE"]
["ALERGOLOGIE_SI_IMUNOLOGIE"]
["ALERGOLOGIE_SI_IMUNOLOGIE","ALERGOLOGIE_SI_IMUNOLOGIE_COPII"]
["ALTE_SECŢII"]
["ALTE_SECŢII","ALTE_SECTII_COPII"]
["ATI"]
["ATI","ATI_ARSI"]
["ATI","ATI_CHIRURGIE_CARDIOVASCULARA"]
["ATI","ATI_CHIRURGIE_GENERALA"]
["ATI","ATI_CHIRURGIE_PLASTICA"]
["ATI","ATI_NOU_NASCUTI_DIN_PEDIATRIE"]
["ATI","ATI_NEUROCHIRURGIE"]
["ATI","ATI_OBSTETRICA_GINECOLOGIE"]
["ATI","ATI_OFTALMOLOGIE"]
["ATI","ATI_ORL"]
["ATI","ATI_ORL_SI_OFTALMOLOGIE"]
["ATI","ATI_ORTOPEDIE_SI_TRAUMATOLOGIE"]
["ATI","ATI_POLITRAUMATISME"]
["ATI","ATI_TOXICOLOGIE"]
["ATI","ATI_COPII"]
["ATI","TI_CORONARIENI"]
["ATI","TI_HEPATOLOGIE"]
["ATI","TI_NEONATOLOGIE"]
["ATI_COPII_"]
["BOLI_CRONICE"]
["BOLI_CRONICE","INGRIJIRI_PALIATIVE"]
["BOLI_INFECŢIOASE"]
["BOLI_INFECŢIOASE","BOLI_INFECTIOASE_COPII"]
["BOLI_INFECŢIOASE","HIV_SIDA"]
["BOLI_INFECŢIOASE","INGRIJIRI_PALIATIVE_"]
["BOLI_INFECŢIOASE","PARAZITOLOGIE"]
["BOLI_INFECŢIOASE","PARAZITOLOGIE","BOLI_PARAZITARE_COPII"]
["BOLI_INFECŢIOASE","TA"]
["BOLI_INFECŢIOASE","TI"]
["BOLI_INFECTIOASE_HIV_SIDA"]
["BOLI_INFECTIOASE_HIV_SIDA","BOLI_INFECTIOASE_COPII_HIV_SIDA"]
["BOLI_INFECTIOASE_COPII_"]
["BOLI_INFECTIOASE_COPII_","HIV_SIDA_"]
["BOLI_INFECTIOASE_COPII_","HIV_SIDA_ADULTI_SI_COPII"]
["BOLI_INFECTIOASE_COPII_","TA_"]
["BOLI_INFECTIOASE_COPII_","TI_"]
["BOLI_INFECTIOASE_MAPN"]
["BOLI_INFECTIOASE_SI_TROPICALE"]
["BOLI_INFECTIOASE_SI_TROPICALE","TI__"]
["BOLI_INFECTIOASE_SI_TROPICALE","BOLI_INFECTIOASE_SI_TROPICALE_COPII"]
["BOLI_PROFESIONALE"]
["BOLI_PROFESIONALE","RADIOPATOLOGIE"]
["CARDIOLOGIE"]
["CARDIOLOGIE","CARDIOLOGIE_INTERVENTIONALA"]
["CARDIOLOGIE","CARDIOLOGIE_PEDIATRICA"]
["CARDIOLOGIE","CARDIOLOGIE_PEDIATRICA","TI_CORONARIENI_____"]
["CARDIOLOGIE","PATOLOGIE_STABILIZATA_SI_CRONICA"]
["CARDIOLOGIE","RECUPERARE_CARDIOLOGIE"]
["CARDIOLOGIE","TI___"]
["CARDIOLOGIE","TI_CORONARIENI_"]
["CARDIOLOGIE_PATOLOGIE_STABILIZATA_SI_CRONICA"]
["CARDIOLOGIE_PENTRU_DIABETICI",null,null,null,"PAULESCU"]
["CARDIOLOGIE_PEDIATRICA_"]
["CARDIOLOGIE_PEDIATRICA_","TI_CORONARIENI__"]
["CARDIOLOGIE_PEDIATRICA_","TI_CORONARIENI__","TI_NEONATOLOGIE_DIN_SECTIILE_DE_PEDIATRIE"]
["CARDIOLOGIE_INTERVENTIONALA_"]
["ORL_CHIRURGIE_AUDIOLOGICA_SI_RINOLOGICA",null,null,null,"HOCIOTA"]
["CHIRURGIE_CARDIACA_SI_A_VASELOR_MARI"]
["CHIRURGIE_CARDIACA_SI_A_VASELOR_MARI","ATI_"]
["CHIRURGIE_CARDIOVASCULARA"]
["CHIRURGIE_CARDIOVASCULARA","ATI__"]
["CHIRURGIE_CARDIOVASCULARA","ATI_COPII__"]
["CHIRURGIE_CARDIOVASCULARA","CHIRURGIE_CARDIOVASCULARA_COPII"]
["CHIRURGIE_CARDIOVASCULARA","CHIRURGIE_TORACICA"]
["CHIRURGIE_CARDIOVASCULARA","TRANSPLANT"]
["CHIRURGIE_CARDIOVASCULARA_ADULTI_SI_COPII"]
["CHIRURGIE_ENDOCRINA"]
["CHIRURGIE_ENDOCRINA","ATI___"]
["CHIRURGIE_GENERALA"]
["CHIRURGIE_GENERALA","ARSI"]
["CHIRURGIE_GENERALA","ATI____"]
["CHIRURGIE_GENERALA","CHIRURGIE_ENDOSCOPICA"]
["CHIRURGIE_GENERALA","CHIRURGIE_HEPATICA"]
["CHIRURGIE_GENERALA","CHIRURGIE_LAPAROSCOPICA"]
["CHIRURGIE_GENERALA","CHIRURGIE_MAXILO_FACIALA"]
["CHIRURGIE_GENERALA","CHIRURGIE_ONCOLOGICA"]
["CHIRURGIE_GENERALA","CHIRURGIE_ORALA_SI_MAXILO_FACIALA"]
["CHIRURGIE_GENERALA","CHIRURGIE_PEDIATRICA"]
["CHIRURGIE_GENERALA","CHIRURGIE_PLASTICA_MICROCHIRURGIE_RECONSTRUCTIVA"]
["CHIRURGIE_GENERALA","CHIRURGIE_REPARATORIE_A_PICIORULUI_DIABETIC"]
["CHIRURGIE_GENERALA","CHIRURGIE_SI_ORTOPEDIE_INFANTILA_PEDIATRICA"]
["CHIRURGIE_GENERALA","CHIRURGIE_TORACICA_"]
["CHIRURGIE_GENERALA","CHIRURGIE_TORACICA_SI_ESOFAGIANA"]
["CHIRURGIE_GENERALA","CHIRURGIE_VASCULARA"]
["CHIRURGIE_GENERALA","CRONICI"]
["CHIRURGIE_GENERALA","FLEBOLOGIE"]
["CHIRURGIE_GENERALA","NEUROCHIRURGIE"]
["CHIRURGIE_GENERALA","OBSTETRICA_GINECOLOGIE"]
["CHIRURGIE_GENERALA","OBSTETRICA_GINECOLOGIE","NEONATOLOGIE____"]
["CHIRURGIE_GENERALA","OFTALMOLOGIE"]
["CHIRURGIE_GENERALA","ORL"]
["CHIRURGIE_GENERALA","ORTOPEDIE_SI_TRAUMATOLOGIE"]
["CHIRURGIE_GENERALA","TRANSPLANT_HEPATIC"]
["CHIRURGIE_GENERALA","UROLOGIE"]
["CHIRURGIE_GENERALA_CHIRURGIE_ONCOLOGICA"]
["CHIRURGIE_GENERALA_CHIRURGIE_ONCOLOGICA","CHIRURGIE_TORACICA__"]
["CHIRURGIE_LAPAROSCOPICA_",null,null,null,"IN CHIRURGIE GEN. - LA SP.JUD.MEHEDINTI"]
["CHIRURGIE_MAXILO_FACIALA_"]
["CHIRURGIE_MAXILO_FACIALA_","CHIRURGIE_MAXILO_FACIALA_COPII"]
["CHIRURGIE_ONCOLOGICA_"]
["CHIRURGIE_ONCOLOGICA_","CHIRURGIE_ONCOLOGICA_COPII"]
["CHIRURGIE_ONCOLOGICA_","CHIRURGIE_TORACICA___"]
["CHIRURGIE_ONCOLOGICA_","CHIRURGIE_ORALA_SI_MAXILO_FACIALA_"]
["CHIRURGIE_ONCOLOGICA_","CHIRURGIE_PLASTICA_MICROCHIRURGIE_RECONSTRUCTIVA_"]
["CHIRURGIE_ONCOLOGICA_","GINECOLOGIE"]
["CHIRURGIE_ONCOLOGICA_","GINECO_ONCOLOGIE"]
["CHIRURGIE_ONCOLOGICA_","UROLOGIE_"]
["CHIRURGIE_ONCOLOGICA_ORL_CHIRURGIE_CERVICO_FACIALA_SI_ONCOLOGIE_LARINGIANA",null,null,null,"HOCIOTA"]
["CHIRURGIE_ORALA_SI_MAXILO_FACIALA__"]
["CHIRURGIE_ORALA_SI_MAXILO_FACIALA__","ATI_____"]
["CHIRURGIE_ORALA_SI_MAXILO_FACIALA__","CHIRURGIE_ORALA_SI_MAXILO_FACIALA_COPII"]
["CHIRURGIE_ORALA_SI_MAXILO_FACIALA__","CHIRURGIE_PLASTICA_MICROCHIRURGIE_RECONSTRUCTIVA__"]
["CHIRURGIE_ORALA_SI_MAXILO_FACIALA__","CHIRURGIE_PLASTICA_SI_REPARATORIE_FACIALA"]
["CHIRURGIE_ORALA_SI_MAXILO_FACIALA__","ORL_"]
["CHIRURGIE_PEDIATRICA_"]
["CHIRURGIE_PEDIATRICA_","ATI______"]
["CHIRURGIE_PEDIATRICA_","CHIRURGIE_CARDIOVASCULARA_"]
["CHIRURGIE_PEDIATRICA_","NEUROCHIRURGIE_"]
["CHIRURGIE_PEDIATRICA_","OFTALMOLOGIE_"]
["CHIRURGIE_PEDIATRICA_","ORL__"]
["CHIRURGIE_PEDIATRICA_","ORTOPEDIE_PEDIATRICA"]
["CHIRURGIE_PEDIATRICA_","UROLOGIE__"]
["CHIRURGIE_PLASTICA_MICROCHIRURGIE_RECONSTRUCTIVA___"]
["CHIRURGIE_PLASTICA_MICROCHIRURGIE_RECONSTRUCTIVA___","ARSI_"]
["CHIRURGIE_PLASTICA_MICROCHIRURGIE_RECONSTRUCTIVA___","ARSI_","ATI________________"]
["CHIRURGIE_PLASTICA_MICROCHIRURGIE_RECONSTRUCTIVA___","ATI_______"]
["CHIRURGIE_PLASTICA_MICROCHIRURGIE_RECONSTRUCTIVA___","TI____"]
["CHIRURGIE_PLASTICA_MICROCHIRURGIE_RECONSTRUCTIVA_ARSI"]
["CHIRURGIE_PLASTICA_MICROCHIRURGIE_RECONSTRUCTIVA_COPII"]
["CHIRURGIE_SI_ORTOPEDIE_INFANTILA_PEDIATRICA_"]
["CHIRURGIE_SI_ORTOPEDIE_INFANTILA_PEDIATRICA_","CHIRURGIE_PLASTICA_MICROCHIRURGIE_RECONSTRUCTIVA____"]
["CHIRURGIE_SI_ORTOPEDIE_INFANTILA_PEDIATRICA_","ORL___"]
["CHIRURGIE_SI_ORTOPEDIE_INFANTILA_PEDIATRICA_","OFTALMOLOGIE__"]
["CHIRURGIE_SI_ORTOPEDIE_INFANTILA_PEDIATRICA_","ORTOPEDIE_PEDIATRICA_"]
["CHIRURGIE_TORACICA____"]
["CHIRURGIE_TORACICA____","ATI________"]
["CHIRURGIE_TORACICA____","CRONICI_"]
["CHIRURGIE_TORACICA_TBC"]
["CHIRURGIE_TORACICA_TBC","ATI_________"]
["CHIRURGIE_VASCULARA_"]
["CHIRURGIE_VASCULARA_","MICROCHIRURGIE_VASCULARA"]
["CRONICI__"]
["CRONICI__","GERIATRIE_SI_GERONTOLOGIE"]
["CRONICI_AFECTIUNI_PSIHOSOMATICE"]
["CRONICI_TERAPIE_IZOTOPICA"]
["DERMATOVENEROLOGIE"]
["DERMATOVENEROLOGIE","ALERGOLOGIE_SI_IMUNOLOGIE"]
["DERMATOVENEROLOGIE","DERMATOVENEROLOGIE_COPII"]
["DERMATOVENEROLOGIE","PARAZITOLOGIE_"]
["DERMATOVENEROLOGIE","PARAZITOLOGIE_","BOLI_PARAZITARE_COPII_"]
["DERMATOVENEROLOGIE_COPII_"]
["DIABET_ZAHARAT_NUTRITIE_SI_BOLI_METABOLICE"]
["DIABET_ZAHARAT_NUTRITIE_SI_BOLI_METABOLICE","DERMATOVENEROLOGIE_"]
["DIABET_ZAHARAT_NUTRITIE_SI_BOLI_METABOLICE","ENDOCRINOLOGIE"]
["DIABET_ZAHARAT_NUTRITIE_SI_BOLI_METABOLICE","MEDICINA_INTERNA"]
["DIABET_ZAHARAT_NUTRITIE_SI_BOLI_METABOLICE","TA__"]
["DIALIZA_PERITONEALA",null,null,null,"URG.FLOREASCA- PE INTERNE"]
["ENDOCRINOLOGIE_"]
["ENDOCRINOLOGIE_","DIABET_ZAHARAT_NUTRITIE_SI_BOLI_METABOLICE_"]
["ENDOCRINOLOGIE_","ENDOCRINOLOGIE_COPII"]
["ENDOCRINOLOGIE_","GUSA_ENDEMICA_SI_COMPLICATIILE_EI"]
["ENDOCRINOLOGIE_","INFERTILITATE_SI_PATOLOGIE_GONADICA"]
["ENDOCRINOLOGIE_","PATOLOGIA_TIROIDEI_DE_CORELATIE"]
["ENDOCRINOLOGIE_","PATOLOGIE_ENDOCRINO_METABOLICA"]
["ENDOCRINOLOGIE_","PATOLOGIE_HIPOFIZARA_SI_NEUROENDOCRINA"]
["ENDOCRINOLOGIE_","PATOLOGIE_SUPRARENALA_SI_A_METABOLISMULUI_OSOS"]
["ENDOCRINOLOGIE_COPII_"]
["GASTROENTEROLOGIE"]
["GASTROENTEROLOGIE","GASTROENTEROLOGIE_COPII"]
["GASTROENTEROLOGIE","HEPATOLOGIE"]
["GASTROENTEROLOGIE","MEDICINA_INTERNA_"]
["GASTROENTEROLOGIE","TA___"]
["GASTROENTEROLOGIE_HEPATOLOGIE"]
["GASTROENTEROLOGIE_HEPATOLOGIE","ONCOLOGIE_MEDICALA"]
["GENETICA_MEDICALA"]
["GERIATRIE_SI_GERONTOLOGIE_"]
["GERIATRIE_SI_GERONTOLOGIE_","PSIHOGERIATRIE"]
["GINECOLOGIE_"]
["GINECOLOGIE_","GINECO_ONCOLOGIE_"]
["GINECOLOGIE_","CHIRURGIE_LAPAROSCOPICA_GINECOLOGICA"]
["GINECOLOGIE_INFANTILA"]
["HEMATOLOGIE"]
["HEMATOLOGIE","HEMATOLOGIE_COPII"]
["HEMATOLOGIE","TRANSPLANT_MEDULAR"]
["HEMATOLOGIE","TRANSPLANT_MEDULAR_ADULTI_SI_COPII",null,null,"Turcanu- Timis"]
["HEMATOLOGIE_HEMOFILIE"]
["HEMATOLOGIE_ONCOLOGIE"]
["HEMATOLOGIE_ONCOLOGIE_PEDIATRICA"]
["HEMODIALIZA"]
["HIV_SIDA__"]
["HIV_SIDA_ADULTI_SI_COPII_"]
["HIV_SIDA_COPII"]
["INGRIJIRI_PALIATIVE__"]
["MEDICINA_GENERALA"]
["MEDICINA_INTERNA__"]
["MEDICINA_INTERNA__","ALERGOLOGIE_SI_IMUNOLOGIE_"]
["MEDICINA_INTERNA__","CARDIOLOGIE_"]
["MEDICINA_INTERNA__","CARDIOLOGIE_","CRONICI________"]
["MEDICINA_INTERNA__","CARDIOLOGIE_","TA___________"]
["MEDICINA_INTERNA__","CRONICI___"]
["MEDICINA_INTERNA__","DIABET_ZAHARAT_NUTRITIE_SI_BOLI_METABOLICE__"]
["MEDICINA_INTERNA__","DIALIZA_PERITONEALA_"]
["MEDICINA_INTERNA__","DERMATOVENEROLOGIE__"]
["MEDICINA_INTERNA__","ENDOCRINOLOGIE__"]
["MEDICINA_INTERNA__","GASTROENTEROLOGIE_"]
["MEDICINA_INTERNA__","GASTROENTEROLOGIE_","TA____________"]
["MEDICINA_INTERNA__","GERIATRIE_SI_GERONTOLOGIE__"]
["MEDICINA_INTERNA__","HEMATOLOGIE_"]
["MEDICINA_INTERNA__","MEDICINA_INTERNA_CRONICI"]
["MEDICINA_INTERNA__","BOLI_PROFESIONALE_"]
["MEDICINA_INTERNA__","NEFROLOGIE"]
["MEDICINA_INTERNA__","NEFROLOGIE","DIALIZA_PERITONEALA_____",null,"HUNEDOARA"]
["MEDICINA_INTERNA__","NEUROLOGIE"]
["MEDICINA_INTERNA__","PNEUMOLOGIE_DIN_SECTIILE_MEDICALE"]
["MEDICINA_INTERNA__","ONCOLOGIE_MEDICALA_"]
["MEDICINA_INTERNA__","RECUPERARE_MEDICINA_FIZICA_SI_BALNEOLOGIE"]
["MEDICINA_INTERNA__","REUMATOLOGIE"]
["MEDICINA_INTERNA__","TA____"]
["MEDICINA_INTERNA__","TI_____"]
["MEDICINA_INTERNA__","TI_CORONARIENI___"]
["MEDICINA_INTERNA_CRONICI_"]
["MEDICINA_INTERNA_CRONICI_","BOLI_PROFESIONALE__"]
["MEDICINA_MATERNO_FETALA"]
["ORL_MICROCHIRURGIE_ORL_SI_FONIATRIE_RECUPERAREA_VOCII",null,null,null,"HOCIOTA"]
["ORL_MICROCHIRURGIE_OTOLOGICA",null,null,null,"HOCIOTA"]
["ORL_MICROCHIRURGIE_OTOLOGICA","IMPLANT_COHLEAR",null,null,"HOCIOTA"]
["NEFROLOGIE_"]
["NEFROLOGIE_","DIALIZA_PERITONEALA__"]
["NEFROLOGIE_","HEMODIALIZA_"]
["NEFROLOGIE_","MEDICINA_INTERNA___"]
["NEFROLOGIE_","TA_____"]
["NEFROLOGIE_","TI______"]
["NEFROLOGIE_","TOXICOLOGIE"]
["NEFROLOGIE_PENTRU_DIABETICI",null,null,null,"PAULESCU"]
["NEFROLOGIE_PENTRU_DIABETICI","DIALIZA_PERITONEALA___",null,null,"PAULESCU"]
["NEFROLOGIE_PEDIATRICA"]
["NEONATOLOGIE"]
["NEONATOLOGIE","PREMATURI"]
["NEONATOLOGIE","TA______"]
["NEONATOLOGIE","TI_______"]
["NEONATOLOGIE_PREMATURI"]
["NEONATOLOGIE_PREMATURI","TI________"]
["NEUROCHIRURGIE__"]
["NEUROCHIRURGIE__","ATI__________"]
["NEUROCHIRURGIE__","CHIRURGIE_SPINALA"]
["NEUROCHIRURGIE__","CRONICI____"]
["NEUROCHIRURGIE__","NEUROCHIRURGIE_PEDIATRICA_COPII"]
["NEUROCHIRURGIE_STEREOTACTICA_SI_FUNCTIONALA"]
["NEUROLOGIE_"]
["NEUROLOGIE_","PENTRU_BOLNAVI_CU_MIASTENIA_GRAVIS"]
["NEUROLOGIE_","CRONICI_____"]
["NEUROLOGIE_","RECUPERARE_CRONICI"]
["NEUROLOGIE_","RECUPERARE_NEUROLOGICA"]
["NEUROLOGIE_","RECUPERARE_NEUROMOTORIE"]
["NEUROLOGIE_","TA_______"]
["NEUROLOGIE_","TI_________"]
["NEUROLOGIE_","URGENTE_NEUROVASCULARE"]
["NEUROLOGIE_PEDIATRICA"]
["NEUROLOGIE_PEDIATRICA","RECUPERARE_NEUROPSIHOMOTORIE"]
["NEUROLOGIE_PEDIATRICA","TA________"]
["NEUROLOGIE_CRONICI"]
["NEUROLOGIE_SI_PSIHIATRIE"]
["NEUROPSIHIATRIE_ADULTI"]
["NEUROPSIHIATRIE_INFANTILA"]
["OBSTETRICA"]
["OBSTETRICA","MEDICINA_MATERNO_FETALA_"]
["OBSTETRICA","OBSTETRICA_PATOLOGICA"]
["OBSTETRICA_FIZIOLOGICA"]
["OBSTETRICA_FIZIOLOGICA","NEONATOLOGIE_"]
["OBSTETRICA_GINECOLOGIE_NASTERI_PRECIPITATE"]
["OBSTETRICA_GINECOLOGIE_NASTERI_PRECIPITATE","NEONATOLOGIE__"]
["OBSTETRICA_PATOLOGICA_"]
["OBSTETRICA_PATOLOGICA_","STERILITATE_INFERTILITATE"]
["OBSTETRICA_GINECOLOGIE_PATOLOGICA"]
["OBSTETRICA_GINECOLOGIE_"]
["OBSTETRICA_GINECOLOGIE_","ATI___________"]
["OBSTETRICA_GINECOLOGIE_","FERTILIZARE_IN_VITRO"]
["OBSTETRICA_GINECOLOGIE_","GINECOLOGIE__"]
["OBSTETRICA_GINECOLOGIE_","GINECO_ONCOLOGIE__"]
["OBSTETRICA_GINECOLOGIE_","MEDICINA_MATERNO_FETALA__"]
["OBSTETRICA_GINECOLOGIE_","MEDICINA_MATERNO_FETALA__","DIAGNOSTIC_PRENATAL"]
["OBSTETRICA_GINECOLOGIE_","NASTERI_PRECIPITATE"]
["OBSTETRICA_GINECOLOGIE_","NASTERI_PRECIPITATE","NEONATOLOGIE_____"]
["OBSTETRICA_GINECOLOGIE_","NEONATOLOGIE___"]
["OBSTETRICA_GINECOLOGIE_","NEONATOLOGIE___","PREMATURI___"]
["OBSTETRICA_GINECOLOGIE_","OBSTETRICA_"]
["OBSTETRICA_GINECOLOGIE_","OBSTETRICA_PATOLOGICA__"]
["OBSTETRICA_GINECOLOGIE_","PREMATURI_"]
["OBSTETRICA_GINECOLOGIE_","TI_NEONATOLOGIE_"]
["OBSTETRICA_GINECOLOGIE_","TRATAMENTUL_INFERTILITATII_CUPLULUI_SI_REPRODUCERE_UMANA_ASISTATA"]
["OBSTETRICA_GINECOLOGIE_","TRATAMENTUL_INFERTILITATII_CUPLULUI_SI_REPRODUCERE_UMANA_ASISTATA","FERTILIZARE_IN_VITRO_"]
["OBSTETRICA_GINECOLOGIE_GRAVIDE_CU_RISC"]
["OFTALMOLOGIE___"]
["OFTALMOLOGIE___","ATI____________"]
["OFTALMOLOGIE___","OFTALMOLOGIE_COPII"]
["ONCOLOGIE_MEDICALA__"]
["ONCOLOGIE_MEDICALA__","HEMATOLOGIE__"]
["ONCOLOGIE_MEDICALA__","INGRIJIRI_PALIATIVE___"]
["ONCOLOGIE_MEDICALA__","RADIOTERAPIE"]
["ONCOLOGIE_MEDICALA_INGRIJIRI_PALIATIVE"]
["ONCOLOGIE_PEDIATRICA"]
["ONCOLOGIE_PEDIATRICA","HEMATOLOGIE___"]
["ONCOLOGIE_TERAPIE_CU_IZOTOPI"]
["ORL____"]
["ORL____","ATI_____________"]
["ORL____","CHIRURGIE_MAXILO_FACIALA__"]
["ORL____","CHIRURGIE_ORALA_SI_MAXILO_FACIALA___"]
["ORL____","IMPLANT_COHLEAR_"]
["ORL____","ORL_COPII"]
["ORTOPEDIE_PEDIATRICA__"]
["ORTOPEDIE_SI_TRAUMATOLOGIE_"]
["ORTOPEDIE_SI_TRAUMATOLOGIE_","ATI______________"]
["ORTOPEDIE_SI_TRAUMATOLOGIE_","CHIRURGIE_ARTROSCOPICA"]
["ORTOPEDIE_SI_TRAUMATOLOGIE_","CHIRURGIE_SPINALA_"]
["ORTOPEDIE_SI_TRAUMATOLOGIE_","ORTOPEDIE_PEDIATRICA___"]
["ORTOPEDIE_SI_TRAUMATOLOGIE_","ORTOPEDIE_SI_TRAUMATOLOGIE_PEDIATRICA"]
["ORTOPEDIE_SI_TRAUMATOLOGIE_","RECUPERARE_CRONICI_"]
["ORTOPEDIE_SI_TRAUMATOLOGIE_","RECUPERARE_MEDICALA"]
["ORTOPEDIE_SI_TRAUMATOLOGIE_","RECUPERARE_POSTTRAUMATICA"]
["PATURI_CARE_FUNCTIONEAZA_IN_RURAL"]
["PATURI_CARE_FUNCTIONEAZA_IN_URBAN"]
["PATURI_IN_CONSERVARE"]
["PATURI_INCHISE_TEMPORAR"]
["PEDIATRIE"]
["PEDIATRIE","ALERGOLOGIE_SI_IMUNOLOGIE__"]
["PEDIATRIE","CARDIOLOGIE__"]
["PEDIATRIE","CRONICI______",null,null,"MURES"]
["PEDIATRIE","DIABET_ZAHARAT_NUTRITIE_SI_BOLI_METABOLICE___"]
["PEDIATRIE","DIALIZA_PERITONEALA____"]
["PEDIATRIE","DERMATOVENEROLOGIE___"]
["PEDIATRIE","ENDOCRINOLOGIE___"]
["PEDIATRIE","GASTROENTEROLOGIE__"]
["PEDIATRIE","GENETICA_MEDICALA_"]
["PEDIATRIE","HEMATOLOGIE____"]
["PEDIATRIE","HEMATOLOGIE_THALASEMII"]
["PEDIATRIE","HEMATOLOGIE_ONCOLOGIE_"]
["PEDIATRIE","HEMATOLOGIE_ONCOLOGIE_","TI_____________"]
["PEDIATRIE","HIV_SIDA___"]
["PEDIATRIE","NEFROLOGIE__"]
["PEDIATRIE","NEONATOLOGIE_DIN_SECTIILE_DE_PEDIATRIE"]
["PEDIATRIE","NEONATOLOGIE_PATOLOGICA_DIN_SECTIILE_DE_PEDIATRIE"]
["PEDIATRIE","NEUROLOGIE_PEDIATRICA_"]
["PEDIATRIE","NEUROPSIHIATRIE_INFANTILA_"]
["PEDIATRIE","ONCOLOGIE_PEDIATRICA_"]
["PEDIATRIE","PNEUMOLOGIE_DIN_SECTIILE_MEDICALE_"]
["PEDIATRIE","PREMATURI_DIN_SECTIILE_DE_PEDIATRIE"]
["PEDIATRIE","PSIHIATRIE_PEDIATRICA"]
["PEDIATRIE","RECUPERARE_NEUROMOTORIE_"]
["PEDIATRIE","RECUPERARE_NUTRITIONALA_SI_METABOLICA_A_SUGARULUI_SI_COPILULUI_MIC"]
["PEDIATRIE","RECUPERARE_PEDIATRICA_DISTROFICI"]
["PEDIATRIE","TA_________"]
["PEDIATRIE","TI__________"]
["PEDIATRIE","TI__________","TI_NEONATOLOGIE__"]
["PEDIATRIE","TOXICOLOGIE_"]
["PEDIATRIE","TRANSPLANT_MEDULAR_"]
["PEDIATRIE_NEFROLOGIE"]
["PEDIATRIE_NEFROLOGIE","DIALIZA_PERITONEALA_COPII"]
["PEDIATRIE_RECUPERARE_PEDIATRICA"]
["PEDIATRIE_CRONICI",null,null,null,"ARAD,BUZAU,IASI"]
["PNEUMOLOGIE_DIN_SECTIILE_MEDICALE__"]
["PNEUMOLOGIE_DIN_SECTIILE_TBC"]
["PNEUMOLOGIE_DIN_SECTIILE_TBC","PNEUMOLOGIE_COPII_DIN_SECTIILE_TBC"]
["PNEUMOLOGIE_DIN_SECTIILE_TBC","PNEUMOLOGIE_TBC"]
["PNEUMOLOGIE_DIN_SECTIILE_TBC","PNEUMOLOGIE_TBC_CRONICI"]
["PNEUMOLOGIE_DIN_SECTIILE_TBC","PNEUMOLOGIE_TBC_MDR_MULTIDROG_REZISTENTA"]
["PNEUMOLOGIE_DIN_SECTIILE_TBC","PNEUMOLOGIE_TBC_ADULTI"]
["PNEUMOLOGIE_DIN_SECTIILE_TBC","PNEUMOLOGIE_TBC_COPII"]
["PNEUMOLOGIE_DIN_SECTIILE_TBC","TA__________"]
["PNEUMOLOGIE_DIN_SECTIILE_TBC","TI___________"]
["PNEUMOLOGIE_COPII_DIN_SECTIILE_TBC_"]
["PNEUMOLOGIE_COPII_DIN_SECTIILE_TBC_","PNEUMOLOGIE_TBC_COPII_"]
["PNEUMOLOGIE_TBC_"]
["PNEUMOLOGIE_TBC_","PNEUMOLOGIE_TBC_COPII__"]
["PNEUMOLOGIE_TBC_CRONICI_"]
["PNEUMOLOGIE_TBC_MDR_MULTIDROG_REZISTENTA_"]
["PNEUMOLOGIE_TBC_COPII___"]
["PREMATURI__"]
["PSIHIATRIE"]
["PSIHIATRIE","BOLNAVI_PSIHICI_CU_TBC_PULMONAR_COD_PENAL"]
["PSIHIATRIE","COD_PENAL"]
["PSIHIATRIE","CRONICI_TERAPIE_OCUPATIONALA_SI_REABILITARE"]
["PSIHIATRIE","INTERNARI_NEVOLUNTARE"]
["PSIHIATRIE","NEVROZE"]
["PSIHIATRIE","POSTCURA_POLITOXICOMANIE_SI_ADICTII"]
["PSIHIATRIE","POSTCURA_TOXICOMANIE"]
["PSIHIATRIE","PSIHIATRIE_ACUTI"]
["PSIHIATRIE","PSIHIATRIE_CRONICI"]
["PSIHIATRIE","PSIHIATRIE_PEDIATRICA_COPII"]
["PSIHIATRIE","PSIHOGERIATRIE_"]
["PSIHIATRIE","RECUPERARE_CRONICI__"]
["PSIHIATRIE_PEDIATRICA_COPII_"]
["PSIHIATRIE_PEDIATRICA_COPII_","PSIHIATRIE_CRONICI_",null,null,"DAMBOVITA, SP.JUD."]
["PSIHIATRIE_PEDIATRICA_COPII_","NEUROLOGIE_PEDIATRICA__"]
["PSIHIATRIE_PEDIATRICA_COPII_","TOXICOMANIE_DEZINTOXICARE"]
["PSIHIATRIE_DROGODEPENDENTA"]
["PSIHIATRIE_DROGODEPENDENTA","COD_PENAL_"]
["PSIHIATRIE_DROGODEPENDENTA","TOXICOMANIE"]
["PSIHIATRIE_ACUTI_"]
["PSIHIATRIE_ACUTI_","ALCOOLISM"]
["PSIHIATRIE_ACUTI_","COD_PENAL__"]
["PSIHIATRIE_ACUTI_","CURA_TOXICODEPENDENTE"]
["PSIHIATRIE_ACUTI_","NEUROPSIHIATRIE_INFANTILA__"]
["PSIHIATRIE_ACUTI_","PSIHIATRIE_"]
["PSIHIATRIE_ACUTI_","PSIHIATRIE_CRONICI__"]
["PSIHIATRIE_ACUTI_","TOXICOMANIE_"]
["PSIHIATRIE_ACUTI_","URGENTE_PSIHIATRICE"]
["PSIHIATRIE_CRONICI___"]
["PSIHIATRIE_CRONICI___","BOLNAVI_PSIHICI_CU_TBC_PULMONAR"]
["PSIHIATRIE_CRONICI___","BOLNAVI_PSIHICI_CU_TBC_PULMONAR_COD_PENAL_"]
["PSIHIATRIE_CRONICI___","CRONICI_AFECTIUNI_PSIHOSOMATICE_"]
["PSIHIATRIE_CRONICI___","DEMENTA_SENILA_SI_BOALA_ALZHEIMER"]
["PSIHIATRIE_CRONICI___","PSIHIATRIE__"]
["PSIHIATRIE_CRONICI___","PSIHIATRIE_ACUTI__"]
["PSIHIATRIE_CRONICI___","PSIHIATRIE_PEDIATRICA_COPII__"]
["PSIHIATRIE_CRONICI___","PSIHIATRIE_DEMENTE"]
["PSIHIATRIE_CRONICI___","TERAPIE_OCUPATIONALA_SI_ERGOTERAPIE"]
["PSIHIATRIE_CRONICI_COPII"]
["BOLNAVI_PSIHICI_CU_TBC_PULMONAR_"]
["BOLNAVI_PSIHICI_CU_TBC_PULMONAR_COD_PENAL__"]
["PSIHIATRIE_GERONTOPSIHIATRIE"]
["PSIHIATRIE_GERONTOPSIHIATRIE","PSIHIATRIE_CRONICI____"]
["PSIHIATRIE_PSIHOZE"]
["PSIHIATRIE_PSIHOZE","PSIHIATRIE_CRONICI_____"]
["PSIHIATRIE_PSIHOSOMATICA"]
["PSIHIATRIE_PSIHOSOMATICA","PSIHIATRIE_CRONICI______"]
["PSIHIATRIE_TOXICOMANIE"]
["PSIHOGERIATRIE__",null,null,null,"LA PSIH.CR.- LA ASLAN LA GERIATRIE"]
["RADIOTERAPIE_",null,null,null,"LA ONCOLOGIE"]
["RADIOTERAPIE_","COBALTOTERAPIE"]
["RADIOTERAPIE_","CRONICI_______"]
["RADIOTERAPIE_","CURIETERAPIE"]
["RADIOTERAPIE_","MEDICINA_NUCLEARA"]
["RADIOTERAPIE_","TERAPIE_CU_IZOTOPI"]
["RADIOTERAPIE_M_AP_N"]
["RADIOTERAPIE_M_AP_N","RADIOPATOLOGIE_"]
["RECUPERARE_BOLI_CRDIOVASCULARE"]
["RECUPERARE_BOLI_CRDIOVASCULARE","TI_CORONARIENI____"]
["RECUPERARE_CARDIOLOGIE_COPII"]
["RECUPERARE_NEUROLOGICA_"]
["RECUPERARE_NEUROLOGICA_CRONICI"]
["RECUPERARE_NEUROLOGICA_COPII"]
["RECUPERARE_NEUROMOTORIE__"]
["RECUPERARE_NEUROMOTORIE_COPII"]
["RECUPERARE_NEUROMUSCULARA"]
["RECUPERARE_NEUROPSIHOMOTORIE_SI_POSTTRAUMATICA_COPII"]
["RECUPERARE_ORL_COPII_CU_HANDICAP_AUZ_VORBIRE_CIUBOTICA_CUCULUI",null,null,null,"HOCIOTA"]
["RECUPERARE_ORTOPEDIE_SI_TRAUMATOLOGIE"]
["RECUPERARE_ORTOPEDIE_SI_TRAUMATOLOGIE","CHIRURGIE_SI_ORTOPEDIE_INFANTILA_PEDIATRICA__"]
["RECUPERARE_TRAUMATOLOGICA_VERTEBROMEDULARA_SI_NEUROMOTORIE"]
["RECUPERARE_MEDICALA_"]
["RECUPERARE_MEDICALA_CARDIOVASCULARA"]
["RECUPERARE_MEDICALA_CRONICI_DIABET_SI_HEMOFILIE",null,null,null,"CRISTIAN SERBAN"]
["RECUPERARE_NEUROLOGICA"]
["RECUPERARE_MEDICALA_NEUROPSIHOMOTORIE_COPII"]
["RECUPERARE_MEDICALA_ORTOPEDIE_SI_TRAUMATOLOGIE"]
["RECUPERARE_MEDICALA_RESPIRATORIE"]
["RECUPERARE_NEUROPSIHOMOTORIE_"]
["RECUPERARE_NEUROPSIHOMOTORIE_COPII"]
["RECUPERARE_NEUROPSIHOMOTORIE_COPII","TI____________"]
["RECUPERARE_PEDIATRICA_DISTROFICI_"]
["RECUPERARE_MEDICINA_FIZICA_SI_BALNEOLOGIE_"]
["RECUPERARE_MEDICINA_FIZICA_SI_BALNEOLOGIE_","RECUPERARE_BOLI_RESPIRATORII"]
["RECUPERARE_MEDICINA_FIZICA_SI_BALNEOLOGIE_","RECUPERARE_BOLI_CRDIOVASCULARE_"]
["RECUPERARE_MEDICINA_FIZICA_SI_BALNEOLOGIE_","RECUPERARE_BOLI_CRDIOVASCULARE__"]
["RECUPERARE_MEDICINA_FIZICA_SI_BALNEOLOGIE_","RECUPERARE_NEUROLOGICA__"]
["RECUPERARE_MEDICINA_FIZICA_SI_BALNEOLOGIE_","RECUPERARE_NEUROMOTORIE_COPII_"]
["RECUPERARE_MEDICINA_FIZICA_SI_BALNEOLOGIE_","RECUPERARE_ORTOPEDIE_SI_TRAUMATOLOGIE_"]
["RECUPERARE_MEDICINA_FIZICA_SI_BALNEOLOGIE_","RECUPERARE_NEUROLOGICA___"]
["RECUPERARE_MEDICINA_FIZICA_SI_BALNEOLOGIE_","RECUPERARE_POSTTRAUMATICA_"]
["RECUPERARE_MEDICINA_FIZICA_SI_BALNEOLOGIE_","REUMATOLOGIE_"]
["RECUPERARE_MEDICINA_FIZICA_SI_BALNEOLOGIE_COPII"]
["REUMATOLOGIE__"]
["REUMATOLOGIE__","RECUPERARE_MEDICINA_FIZICA_SI_BALNEOLOGIE__"]
["TBC_OSTEOARTICULAR"]
["TOXICOLOGIE__"]
["TOXICOLOGIE__","TOXICOLOGIE_COPII"]
["TOXICOMANIE__"]
["TOXICOMANIE__","TOXICOMANIE_COPII"]
["TOXICOMANIE_ELEVI_SI_STUDENTI"]
["UROLOGIE___"]
["UROLOGIE___","ATI_______________"]
["UROLOGIE___","ENDOUROLOGIE"]
["UROLOGIE___","ENDOUROLOGIE","LITOTRITIE_"]
["UROLOGIE___","LITOTRITIE"]
["UROLOGIE___","TRANSPLANT_RENAL"]
["UROLOGIE___","TRANSPLANT_RENAL","ATI_________________"]
["UROLOGIE___","UROLOGIE_COPII"]
["UPU","TOATE_SPECIALITATILE"]
["CPU"]
["CG","TOATE_SPECIALITATILE_"]

{"sheet":"Copac2012Backup","index":9,"n_rows":496,"n_cols":5,"rows_kept":496,"cut":false,"hidden":true,"merged":[]}
["SPECIALITATI ALE SECTIILOR MEDICALE"]
["****************         1",2,3,4,"NOTE"]
["ALERGOLOGIE SI IMUNOLOGIE"]
[null,"ALERGOLOGIE SI IMUNOLOGIE COPII"]
["ALTE SECŢII"]
[null,"ALTE SECTII COPII "]
["ATI"]
[null,"ATI - ARSI"]
[null,"ATI - CHIRURGIE CARDIOVASCULARA"]
[null,"ATI - CHIRURGIE GENERALA"]
[null,"ATI - CHIRURGIE PLASTICA"]
[null,"ATI - NOU NASCUTI (DIN PEDIATRIE)"]
[null,"ATI - NEUROCHIRURGIE"]
[null,"ATI - OBSTETRICA GINECOLOGIE"]
[null,"ATI - OFTALMOLOGIE"]
[null,"ATI - ORL"]
[null,"ATI - ORL SI OFTALMOLOGIE"]
[null,"ATI - ORTOPEDIE SI TRAUMATOLOGIE"]
[null,"ATI - POLITRAUMATISME"]
[null,"ATI - TOXICOLOGIE"]
[null,"ATI COPII"]
[null,"TI CORONARIENI"]
[null,"TI HEPATOLOGIE"]
[null,"TI NEONATOLOGIE"]
["ATI COPII"]
["BOLI CRONICE"]
[null,"INGRIJIRI PALIATIVE"]
["BOLI  INFECŢIOASE"]
[null,"BOLI INFECTIOASE COPII"]
[null,"HIV/SIDA"]
[null,"INGRIJIRI PALIATIVE"]
[null,"PARAZITOLOGIE"]
[null,null,"BOLI PARAZITARE COPII"]
[null,"TA"]
[null,"TI"]
["BOLI INFECTIOASE - HIV/SIDA"]
[null,"BOLI INFECTIOASE COPII - HIV/SIDA"]
["BOLI INFECTIOASE COPII"]
[null,"HIV/SIDA"]
[null,"HIV/SIDA - ADULTI SI COPII"]
[null,"TA"]
[null,"TI"]
["BOLI INFECTIOASE - MAPN"]
["BOLI INFECTIOASE SI TROPICALE"]
[null,"TI"]
[null,"BOLI INFECTIOASE SI TROPICALE COPII "]
["BOLI PROFESIONALE"]
[null,"RADIOPATOLOGIE"]
["CARDIOLOGIE"]
[null,"CARDIOLOGIE INTERVENTIONALA"]
[null,"CARDIOLOGIE PEDIATRICA"]
[null,null,"TI CORONARIENI"]
[null,"PATOLOGIE STABILIZATA SI CRONICA"]
[null,"RECUPERARE - CARDIOLOGIE"]
[null,"TI"]
[null,"TI CORONARIENI"]
["CARDIOLOGIE - PATOLOGIE STABILIZATA SI CRONICA"]
["CARDIOLOGIE PENTRU DIABETICI",null,null,null,"PAULESCU"]
["CARDIOLOGIE PEDIATRICA"]
[null,"TI CORONARIENI"]
[null,null,"TI NEONATOLOGIE (DIN SECTIILE DE PEDIATRIE)"]
["CARDIOLOGIE INTERVENTIONALA"]
["ORL - CHIRURGIE AUDIOLOGICA SI RINOLOGICA",null,null,null,"HOCIOTA"]
["CHIRURGIE CARDIACA SI A VASELOR MARI"]
[null,"ATI"]
["CHIRURGIE CARDIOVASCULARA"]
[null,"ATI"]
[null,"ATI COPII"]
[null,"CHIRURGIE CARDIOVASCULARA COPII"]
[null,"CHIRURGIE TORACICA"]
[null,"TRANSPLANT"]
["CHIRURGIE CARDIOVASCULARA ADULTI SI COPII"]
["CHIRURGIE ENDOCRINA"]
[null,"ATI"]
["CHIRURGIE GENERALA"]
[null,"ARSI"]
[null,"ATI"]
[null,"CHIRURGIE ENDOSCOPICA"]
[null,"CHIRURGIE HEPATICA"]
[null,"CHIRURGIE LAPAROSCOPICA "]
[null,"CHIRURGIE MAXILO-FACIALA"]
[null,"CHIRURGIE ONCOLOGICA"]
[null,"CHIRURGIE ORALA SI MAXILO-FACIALA"]
[null,"CHIRURGIE PEDIATRICA"]
[null,"CHIRURGIE PLASTICA, MICROCHIRURGIE RECONSTRUCTIVA"]
[null,"CHIRURGIE REPARATORIE A PICIORULUI DIABETIC"]
[null,"CHIRURGIE SI ORTOPEDIE INFANTILA/PEDIATRICA"]
[null,"CHIRURGIE TORACICA"]
[null,"CHIRURGIE TORACICA SI ESOFAGIANA"]
[null,"CHIRURGIE VASCULARA"]
[null,"CRONICI"]
[null,"FLEBOLOGIE"]
[null,"NEUROCHIRURGIE"]
[null,"OBSTETRICA-GINECOLOGIE"]
[null,null,"NEONATOLOGIE"]
[null,"OFTALMOLOGIE"]
[null,"ORL"]
[null,"ORTOPEDIE SI TRAUMATOLOGIE"]
[null,"TRANSPLANT HEPATIC"]
[null,"UROLOGIE"]
["CHIRURGIE GENERALA - CHIRURGIE ONCOLOGICA"]
[null,"CHIRURGIE TORACICA"]
["CHIRURGIE LAPAROSCOPICA ",null,null,null,"IN CHIRURGIE GEN. - LA SP.JUD.MEHEDINTI"]
["CHIRURGIE MAXILO-FACIALA"]
[null,"CHIRURGIE MAXILO-FACIALA COPII"]
["CHIRURGIE ONCOLOGICA"]
[null,"CHIRURGIE ONCOLOGICA COPII"]
[null,"CHIRURGIE TORACICA "]
[null,"CHIRURGIE ORALA SI MAXILO-FACIALA"]
[null,"CHIRURGIE PLASTICA, MICROCHIRURGIE RECONSTRUCTIVA"]
[null,"GINECOLOGIE"]
[null,"GINECO - ONCOLOGIE"]
[null,"UROLOGIE"]
["CHIRURGIE ONCOLOGICA ORL - CHIRURGIE CERVICO-FACIALA SI ONCOLOGIE LARINGIANA",null,null,null,"HOCIOTA"]
["CHIRURGIE ORALA SI MAXILO-FACIALA"]
[null,"ATI"]
[null,"CHIRURGIE ORALA SI MAXILO-FACIALA COPII"]
[null,"CHIRURGIE PLASTICA, MICROCHIRURGIE RECONSTRUCTIVA"]
[null,"CHIRURGIE PLASTICA SI REPARATORIE FACIALA"]
[null,"ORL"]
["CHIRURGIE PEDIATRICA"]
[null,"ATI"]
[null,"CHIRURGIE CARDIOVASCULARA"]
[null,"NEUROCHIRURGIE"]
[null,"OFTALMOLOGIE"]
[null,"ORL"]
[null,"ORTOPEDIE PEDIATRICA"]
[null,"UROLOGIE"]
["CHIRURGIE PLASTICA, MICROCHIRURGIE RECONSTRUCTIVA"]
[null,"ARSI"]
[null,null,"ATI"]
[null,"ATI"]
[null,"TI"]
["CHIRURGIE PLASTICA, MICROCHIRURGIE RECONSTRUCTIVA - ARSI"]
["CHIRURGIE PLASTICA, MICROCHIRURGIE RECONSTRUCTIVA COPII"]
["CHIRURGIE SI ORTOPEDIE INFANTILA/PEDIATRICA"]
[null,"CHIRURGIE PLASTICA, MICROCHIRURGIE RECONSTRUCTIVA"]
[null,"ORL"]
[null,"OFTALMOLOGIE"]
[null,"ORTOPEDIE PEDIATRICA"]
["CHIRURGIE TORACICA "]
[null,"ATI"]
[null,"CRONICI"]
["CHIRURGIE TORACICA TBC"]
[null,"ATI"]
["CHIRURGIE VASCULARA"]
[null,"MICROCHIRURGIE VASCULARA"]
["CRONICI"]
[null,"GERIATRIE SI GERONTOLOGIE"]
["CRONICI - AFECTIUNI PSIHOSOMATICE"]
["CRONICI - TERAPIE IZOTOPICA"]
["DERMATOVENEROLOGIE"]
[null,"ALERGOLOGIE SI IMUNOLOGIE"]
[null,"DERMATOVENEROLOGIE COPII"]
[null,"PARAZITOLOGIE"]
[null,null,"BOLI PARAZITARE COPII"]
["DERMATOVENEROLOGIE COPII"]
["DIABET ZAHARAT, NUTRITIE SI BOLI METABOLICE"]
[null,"DERMATOVENEROLOGIE"]
[null,"ENDOCRINOLOGIE "]
[null,"MEDICINA INTERNA"]
[null,"TA"]
["DIALIZA PERITONEALA",null,null,null,"URG.FLOREASCA- PE INTERNE"]
["ENDOCRINOLOGIE"]
[null,"DIABET ZAHARAT, NUTRITIE SI BOLI METABOLICE"]
[null,"ENDOCRINOLOGIE COPII"]
[null,"GUSA ENDEMICA SI COMPLICATIILE EI"]
[null,"INFERTILITATE SI PATOLOGIE GONADICA"]
[null,"PATOLOGIA TIROIDEI DE CORELATIE"]
[null,"PATOLOGIE ENDOCRINO- METABOLICA"]
[null,"PATOLOGIE HIPOFIZARA SI NEUROENDOCRINA"]
[null,"PATOLOGIE SUPRARENALA SI A METABOLISMULUI OSOS"]
["ENDOCRINOLOGIE COPII"]
["GASTROENTEROLOGIE"]
[null,"GASTROENTEROLOGIE COPII"]
[null,"HEPATOLOGIE"]
[null,"MEDICINA INTERNA"]
[null,"TA"]
["GASTROENTEROLOGIE - HEPATOLOGIE"]
[null,"ONCOLOGIE MEDICALA"]
["GENETICA MEDICALA"]
["GERIATRIE SI GERONTOLOGIE"]
[null,"PSIHOGERIATRIE"]
["GINECOLOGIE "]
[null,"GINECO - ONCOLOGIE"]
[null,"CHIRURGIE LAPAROSCOPICA GINECOLOGICA"]
["GINECOLOGIE INFANTILA"]
["HEMATOLOGIE"]
[null,"HEMATOLOGIE COPII"]
[null,"TRANSPLANT MEDULAR"]
[null,"TRANSPLANT MEDULAR ADULTI SI COPII",null,null,"Turcanu- Timis"]
["HEMATOLOGIE - HEMOFILIE"]
["HEMATOLOGIE ONCOLOGIE "]
["HEMATOLOGIE ONCOLOGIE PEDIATRICA"]
["HEMODIALIZA"]
["HIV/SIDA"]
["HIV/SIDA (ADULTI SI COPII)"]
["HIV/SIDA COPII"]
["INGRIJIRI PALIATIVE"]
["MEDICINA GENERALA"]
["MEDICINA INTERNA"]
[null,"ALERGOLOGIE SI IMUNOLOGIE"]
[null,"CARDIOLOGIE"]
[null,null,"CRONICI"]
[null,null,"TA"]
[null,"CRONICI"]
[null,"DIABET ZAHARAT, NUTRITIE SI BOLI METABOLICE"]
[null,"DIALIZA PERITONEALA"]
[null,"DERMATOVENEROLOGIE"]
[null,"ENDOCRINOLOGIE"]
[null,"GASTROENTEROLOGIE"]
[null,null,"TA"]
[null,"GERIATRIE SI GERONTOLOGIE"]
[null,"HEMATOLOGIE"]
[null,"MEDICINA INTERNA CRONICI "]
[null,"BOLI PROFESIONALE"]
[null,"NEFROLOGIE"]
[null,null,"DIALIZA PERITONEALA",null,"HUNEDOARA"]
[null,"NEUROLOGIE"]
[null,"PNEUMOLOGIE (DIN SECTIILE MEDICALE)"]
[null,"ONCOLOGIE MEDICALA"]
[null,"RECUPERARE, MEDICINA FIZICA SI BALNEOLOGIE"]
[null,"REUMATOLOGIE"]
[null,"TA"]
[null,"TI"]
[null,"TI CORONARIENI"]
["MEDICINA INTERNA CRONICI "]
[null,"BOLI PROFESIONALE"]
["MEDICINA MATERNO FETALA"]
["ORL - MICROCHIRURGIE ORL SI FONIATRIE/ RECUPERAREA VOCII",null,null,null,"HOCIOTA"]
["ORL - MICROCHIRURGIE OTOLOGICA",null,null,null,"HOCIOTA"]
[null,"IMPLANT COHLEAR",null,null,"HOCIOTA"]
["NEFROLOGIE"]
[null,"DIALIZA PERITONEALA"]
[null,"HEMODIALIZA"]
[null,"MEDICINA INTERNA"]
[null,"TA"]
[null,"TI"]
[null,"TOXICOLOGIE"]
["NEFROLOGIE PENTRU DIABETICI",null,null,null,"PAULESCU"]
[null,"DIALIZA PERITONEALA",null,null,"PAULESCU"]
["NEFROLOGIE PEDIATRICA"]
["NEONATOLOGIE"]
[null,"PREMATURI"]
[null,"TA"]
[null,"TI"]
["NEONATOLOGIE PREMATURI"]
[null,"TI"]
["NEUROCHIRURGIE"]
[null,"ATI"]
[null,"CHIRURGIE SPINALA"]
[null,"CRONICI"]
[null,"NEUROCHIRURGIE PEDIATRICA/COPII"]
["NEUROCHIRURGIE STEREOTACTICA SI FUNCTIONALA "]
["NEUROLOGIE"]
[null,"PENTRU BOLNAVI CU MIASTENIA GRAVIS"]
[null,"CRONICI"]
[null,"RECUPERARE - CRONICI"]
[null,"'RECUPERARE NEUROLOGICA"]
[null,"RECUPERARE NEUROMOTORIE"]
[null,"TA"]
[null,"TI"]
[null,"URGENTE NEUROVASCULARE"]
["NEUROLOGIE PEDIATRICA"]
[null,"RECUPERARE NEUROPSIHOMOTORIE"]
[null,"TA"]
["NEUROLOGIE CRONICI"]
["NEUROLOGIE SI PSIHIATRIE"]
["NEUROPSIHIATRIE ADULTI"]
["NEUROPSIHIATRIE INFANTILA"]
["OBSTETRICA"]
[null,"MEDICINA MATERNO FETALA"]
[null,"OBSTETRICA PATOLOGICA"]
["OBSTETRICA FIZIOLOGICA"]
[null,"NEONATOLOGIE"]
["OBSTETRICA GINECOLOGIE NASTERI PRECIPITATE"]
[null,"NEONATOLOGIE"]
["OBSTETRICA PATOLOGICA"]
[null,"STERILITATE - INFERTILITATE"]
["OBSTETRICA-GINECOLOGIE PATOLOGICA"]
["OBSTETRICA-GINECOLOGIE"]
[null,"ATI"]
[null,"FERTILIZARE IN VITRO"]
[null,"GINECOLOGIE"]
[null,"GINECO - ONCOLOGIE"]
[null,"MEDICINA MATERNO FETALA"]
[null,null,"DIAGNOSTIC PRENATAL"]
[null,"NASTERI PRECIPITATE"]
[null,null,"NEONATOLOGIE"]
[null,"NEONATOLOGIE"]
[null,null,"PREMATURI"]
[null,"OBSTETRICA"]
[null,"OBSTETRICA PATOLOGICA"]
[null,"PREMATURI"]
[null,"TI NEONATOLOGIE"]
[null,"TRATAMENTUL INFERTILITATII CUPLULUI SI REPRODUCERE UMANA ASISTATA"]
[null,null,"FERTILIZARE IN VITRO"]
["OBSTETRICA-GINECOLOGIE - GRAVIDE CU RISC"]
["OFTALMOLOGIE"]
[null,"ATI"]
[null,"OFTALMOLOGIE COPII"]
["ONCOLOGIE MEDICALA"]
[null,"HEMATOLOGIE"]
[null,"INGRIJIRI PALIATIVE"]
[null,"RADIOTERAPIE"]
["ONCOLOGIE MEDICALA - INGRIJIRI PALIATIVE"]
["ONCOLOGIE PEDIATRICA"]
[null,"HEMATOLOGIE"]
["ONCOLOGIE - TERAPIE CU IZOTOPI"]
["ORL"]
[null,"ATI"]
[null,"CHIRURGIE MAXILO-FACIALA"]
[null,"CHIRURGIE ORALA SI MAXILO-FACIALA"]
[null,"IMPLANT COHLEAR"]
[null,"ORL COPII"]
["ORTOPEDIE PEDIATRICA"]
["ORTOPEDIE SI TRAUMATOLOGIE"]
[null,"ATI"]
[null,"CHIRURGIE ARTROSCOPICA"]
[null,"CHIRURGIE SPINALA"]
[null,"ORTOPEDIE PEDIATRICA"]
[null,"ORTOPEDIE SI TRAUMATOLOGIE PEDIATRICA"]
[null,"RECUPERARE - CRONICI"]
[null,"RECUPERARE - MEDICALA"]
[null,"RECUPERARE POSTTRAUMATICA"]
["PATURI CARE FUNCTIONEAZA IN RURAL"]
["PATURI CARE FUNCTIONEAZA IN URBAN"]
["PATURI IN CONSERVARE"]
["PATURI INCHISE TEMPORAR"]
["PEDIATRIE"]
[null,"ALERGOLOGIE SI IMUNOLOGIE"]
[null,"CARDIOLOGIE"]
[null,"CRONICI",null,null,"MURES"]
[null,"DIABET ZAHARAT, NUTRITIE SI BOLI METABOLICE"]
[null,"DIALIZA PERITONEALA"]
[null,"DERMATOVENEROLOGIE"]
[null,"ENDOCRINOLOGIE"]
[null,"GASTROENTEROLOGIE"]
[null,"GENETICA MEDICALA"]
[null,"HEMATOLOGIE"]
[null,"HEMATOLOGIE THALASEMII"]
[null,"HEMATOLOGIE ONCOLOGIE"]
[null,null,"TI"]
[null,"HIV/SIDA"]
[null,"NEFROLOGIE"]
[null,"NEONATOLOGIE (DIN SECTIILE DE PEDIATRIE)"]
[null,"NEONATOLOGIE PATOLOGICA (DIN SECTIILE DE PEDIATRIE)"]
[null,"NEUROLOGIE PEDIATRICA"]
[null,"NEUROPSIHIATRIE INFANTILA"]
[null,"ONCOLOGIE PEDIATRICA"]
[null,"PNEUMOLOGIE (DIN SECTIILE MEDICALE)"]
[null,"PREMATURI (DIN SECTIILE DE PEDIATRIE)"]
[null,"PSIHIATRIE PEDIATRICA"]
[null,"RECUPERARE NEUROMOTORIE"]
[null,"RECUPERARE NUTRITIONALA SI METABOLICA A SUGARULUI SI COPILULUI MIC"]
[null,"RECUPERARE PEDIATRICA (DISTROFICI)"]
[null,"TA"]
[null,"TI"]
[null,null,"TI NEONATOLOGIE"]
[null,"TOXICOLOGIE"]
[null,"TRANSPLANT MEDULAR"]
["PEDIATRIE - NEFROLOGIE"]
[null,"DIALIZA PERITONEALA COPII"]
["PEDIATRIE - RECUPERARE PEDIATRICA"]
["PEDIATRIE CRONICI",null,null,null,"ARAD,BUZAU,IASI"]
["PNEUMOLOGIE (DIN SECTIILE MEDICALE)"]
["PNEUMOLOGIE (DIN SECTIILE TBC)"]
[null,"PNEUMOLOGIE COPII (DIN SECTIILE TBC)"]
[null,"PNEUMOLOGIE TBC"]
[null,"PNEUMOLOGIE TBC - CRONICI"]
[null,"PNEUMOLOGIE TBC - MDR (MULTIDROG REZISTENTA)"]
[null,"PNEUMOLOGIE TBC ADULTI"]
[null,"PNEUMOLOGIE TBC COPII"]
[null,"TA"]
[null,"TI"]
["PNEUMOLOGIE COPII (DIN SECTIILE TBC)"]
[null,"PNEUMOLOGIE TBC COPII"]
["PNEUMOLOGIE TBC"]
[null,"PNEUMOLOGIE TBC COPII"]
["PNEUMOLOGIE TBC - CRONICI"]
["PNEUMOLOGIE TBC - MDR (MULTIDROG REZISTENTA)"]
["PNEUMOLOGIE TBC COPII"]
["PREMATURI"]
["PSIHIATRIE"]
[null,"BOLNAVI PSIHICI CU TBC PULMONAR - COD PENAL"]
[null,"COD PENAL"]
[null,"CRONICI - TERAPIE OCUPATIONALA SI REABILITARE"]
[null,"INTERNARI NEVOLUNTARE"]
[null,"NEVROZE"]
[null,"POSTCURA POLITOXICOMANIE SI ADICTII"]
[null,"POSTCURA TOXICOMANIE"]
[null,"PSIHIATRIE ACUTI"]
[null,"PSIHIATRIE CRONICI"]
[null,"PSIHIATRIE PEDIATRICA/COPII"]
[null,"PSIHOGERIATRIE"]
[null,"RECUPERARE - CRONICI"]
["PSIHIATRIE PEDIATRICA/COPII"]
[null,"PSIHIATRIE CRONICI",null,null,"DAMBOVITA, SP.JUD."]
[null,"NEUROLOGIE PEDIATRICA"]
[null,"TOXICOMANIE - DEZINTOXICARE"]
["PSIHIATRIE - DROGODEPENDENTA"]
[null,"COD PENAL"]
[null,"TOXICOMANIE"]
["PSIHIATRIE ACUTI"]
[null,"ALCOOLISM"]
[null,"COD PENAL"]
[null,"CURA - TOXICODEPENDENTE"]
[null,"NEUROPSIHIATRIE INFANTILA"]
[null,"PSIHIATRIE "]
[null,"PSIHIATRIE CRONICI"]
[null,"TOXICOMANIE"]
[null,"URGENTE PSIHIATRICE"]
["PSIHIATRIE CRONICI"]
[null,"BOLNAVI PSIHICI CU TBC PULMONAR"]
[null,"BOLNAVI PSIHICI CU TBC PULMONAR - COD PENAL"]
[null,"CRONICI - AFECTIUNI PSIHOSOMATICE"]
[null,"DEMENTA SENILA SI BOALA ALZHEIMER"]
[null,"PSIHIATRIE"]
[null,"PSIHIATRIE ACUTI"]
[null,"PSIHIATRIE PEDIATRICA/COPII"]
[null,"PSIHIATRIE (DEMENTE)"]
[null,"TERAPIE OCUPATIONALA SI ERGOTERAPIE"]
["PSIHIATRIE CRONICI COPII"]
["BOLNAVI PSIHICI CU TBC PULMONAR"]
["BOLNAVI PSIHICI CU TBC PULMONAR - COD PENAL"]
["PSIHIATRIE - GERONTOPSIHIATRIE"]
[null,"PSIHIATRIE CRONICI"]
["PSIHIATRIE - PSIHOZE"]
[null,"PSIHIATRIE CRONICI"]
["PSIHIATRIE - PSIHOSOMATICA"]
[null,"PSIHIATRIE CRONICI"]
["PSIHIATRIE - TOXICOMANIE"]
["PSIHOGERIATRIE",null,null,null,"LA PSIH.CR.- LA ASLAN LA GERIATRIE"]
["RADIOTERAPIE ",null,null,null,"LA ONCOLOGIE"]
[null,"COBALTOTERAPIE"]
[null,"CRONICI"]
[null,"CURIETERAPIE"]
[null,"MEDICINA NUCLEARA"]
[null,"TERAPIE CU IZOTOPI"]
["RADIOTERAPIE M.AP.N"]
[null,"RADIOPATOLOGIE"]
["RECUPERARE BOLI CRDIOVASCULARE"]
[null,"TI CORONARIENI"]
["RECUPERARE - CARDIOLOGIE COPII"]
["RECUPERARE - NEUROLOGICA"]
["'RECUPERARE NEUROLOGICA - CRONICI"]
["'RECUPERARE NEUROLOGICA COPII"]
["RECUPERARE - NEUROMOTORIE"]
["RECUPERARE - NEUROMOTORIE COPII"]
["RECUPERARE - NEUROMUSCULARA"]
["RECUPERARE - NEUROPSIHOMOTORIE SI POSTTRAUMATICA COPII"]
["RECUPERARE - ORL, COPII CU HANDICAP AUZ-VORBIRE  CIUBOTICA CUCULUI",null,null,null,"HOCIOTA"]
["RECUPERARE - ORTOPEDIE SI TRAUMATOLOGIE"]
[null,"CHIRURGIE SI ORTOPEDIE INFANTILA/PEDIATRICA"]
["RECUPERARE - TRAUMATOLOGICA, VERTEBROMEDULARA SI NEUROMOTORIE"]
["RECUPERARE MEDICALA"]
["RECUPERARE MEDICALA - CARDIOVASCULARA"]
["RECUPERARE MEDICALA - CRONICI DIABET SI HEMOFILIE",null,null,null,"CRISTIAN SERBAN"]
["'RECUPERARE NEUROLOGICA"]
["RECUPERARE MEDICALA - NEUROPSIHOMOTORIE COPII"]
["RECUPERARE MEDICALA - ORTOPEDIE SI TRAUMATOLOGIE"]
["RECUPERARE MEDICALA - RESPIRATORIE"]
["RECUPERARE NEUROPSIHOMOTORIE"]
["RECUPERARE NEUROPSIHOMOTORIE COPII"]
[null,"TI"]
["RECUPERARE PEDIATRICA (DISTROFICI)"]
["RECUPERARE, MEDICINA FIZICA SI BALNEOLOGIE"]
[null,"RECUPERARE BOLI RESPIRATORII"]
[null,"RECUPERARE BOLI CRDIOVASCULARE"]
[null,"RECUPERARE BOLI CRDIOVASCULARE "]
[null,"RECUPERARE - NEUROLOGICA"]
[null,"RECUPERARE - NEUROMOTORIE COPII"]
[null,"RECUPERARE - ORTOPEDIE SI TRAUMATOLOGIE"]
[null,"RECUPERARE NEUROLOGICA"]
[null,"RECUPERARE POSTTRAUMATICA"]
[null,"REUMATOLOGIE"]
["RECUPERARE, MEDICINA FIZICA SI BALNEOLOGIE COPII"]
["REUMATOLOGIE"]
[null,"RECUPERARE, MEDICINA FIZICA SI BALNEOLOGIE"]
["TBC - OSTEOARTICULAR "]
["TOXICOLOGIE "]
[null,"TOXICOLOGIE COPII"]
["TOXICOMANIE"]
[null,"TOXICOMANIE COPII"]
["TOXICOMANIE (ELEVI SI STUDENTI)"]
["UROLOGIE"]
[null,"ATI"]
[null,"ENDOUROLOGIE"]
[null,null,"LITOTRITIE"]
[null,"LITOTRITIE"]
[null,"TRANSPLANT RENAL"]
[null,null,"ATI"]
[null,"UROLOGIE COPII"]
["UPU","TOATE SPECIALITATILE"]
["CPU"]
["CG","TOATE SPECIALITATILE"]

{"sheet":"Erori2012","index":10,"n_rows":4,"n_cols":7,"rows_kept":4,"cut":false,"hidden":false,"merged":[]}
["Functie","Subrutina","Linie","Numarul Erorii","Descrierea Erorii","ContorThisWorkbook","contorEroare"]
["Foaia: c15, linia: 1, coloana: 1","Worksheet_Change",170,7,"Out of memory",0,0]
["Foaia: SAN, linia: 24, coloana: 1","Worksheet_Change",0,13,"Type mismatch",0,0]
["Foaia: SAN, linia: 24, coloana: 1","Worksheet_Change",0,13,"Type mismatch",0,0]